{"text_format":"1","workbook":"xlsx","n_sheets":14,"sheets":["INDICE","F1. INF. GENERAL","Hoja4","F2. COMP. LAB Y COM COMPOR","F3. EVIDENCIAS","F4. CALF. COM. COMPORT.","F5. EVA. ÁREAS O DEPENDENCIAS.","F6. REPOR CLF PRD ANUAL U ORD","F7. PLAN DE MEJORAMIENTO","F8. EVA. EVENTUAL (Semestre 1)","F8. EVA. EVENTUAL (Semestre 2)","F9. EV. EXTRAORDINARIA","F10. EVA. INFERIOR A 1 AÑO","F11. EVA P. PRUEBA"],"not_rendered":{"charts":0,"images":9,"macros":1,"external_links":6,"defined_names":92,"comments":1,"pivot_tables":0},"unopened":[],"bounds":{"document_bytes":16777216,"sheet_cells":100000,"rows_first":2000,"rows_last":500,"rows_between":2000,"halvings":0,"cell_chars":16384,"cell_head_chars":4096},"cells_cut":0,"cells_raw":0,"read":"whole","date_system":"1900"}

{"sheet":"INDICE","index":0,"n_rows":76,"n_cols":64,"rows_kept":76,"cut":false,"hidden":false,"merged":[[45,3,45,65],[46,0,76,2],[46,3,73,65],[74,3,74,65],[75,3,76,65],[26,2,45,2],[26,3,31,65],[35,17,35,18],[35,63,35,65],[43,4,43,10],[43,12,43,16],[43,17,44,18],[43,63,44,65],[44,4,44,10],[44,12,44,16],[40,4,40,10],[40,12,40,16],[40,17,40,18],[40,63,40,65],[41,4,41,10],[41,12,41,16],[41,17,42,18],[41,63,42,65],[42,4,42,10],[42,12,42,16],[36,4,36,10],[36,12,36,16],[36,17,39,18],[36,63,39,65],[37,4,37,10],[37,12,37,16],[38,4,38,10],[38,12,38,16],[39,4,39,10],[39,12,39,16],[32,67,32,70],[32,71,32,82],[33,4,33,10],[33,11,34,11],[33,12,34,16],[33,17,34,18],[33,63,34,65],[33,67,33,82],[34,4,34,10],[34,66,35,66],[32,3,32,10],[32,12,32,16],[32,17,32,18],[32,63,32,65],[35,4,35,10],[35,12,35,16],[13,3,15,3],[13,4,15,4],[13,15,15,16],[13,17,15,18],[16,3,17,3],[16,4,18,4],[7,15,9,16],[7,17,8,18],[10,15,12,16],[10,17,12,18],[11,3,12,3],[11,4,12,4]]}
[]
[]
[]
[]
[]
[]
[]
[]
[]
[]
[]
[]
[]
[]
[]
[]
[]
[]
[]
[]
[]
[]
[]
[]
[]
[]
[null,null,null,"\nINSTRUCIONES BÁSICAS PARA EL DILIGENCIAMIENTO DE LOS FORMATOS CORRESPONDIENTES AL PERÍODO ANUAL U ORDINARIO."]
[]
[]
[]
[]
[]
[null,null,null,"PROCEDIMIENTO",null,null,null,null,null,null,null,"Nº","FORMATOS",null,null,null,null,"FASE",null,null,null,null,null,null,null,null,null,null,null,null,null,null,null,null,null,null,null,null,null,null,null,null,null,null,null,null,null,null,null,null,null,null,null,null,null,null,null,null,null,null,null,null,null,"GRÁFICO"]
[null,null,null,"PASO 1. ","Diligenciar  la información personal y de los empleos de los evaluadores y del evaluado.",null,null,null,null,null,null,"F2. ","Compromisos laborales y competencias comportamentales ",null,null,null,null,"FASE II. CONCERTACIÓN DE COMPROMISOS LABORALES Y COMPETENCIAS COMPORTAMENTALES"]
[null,null,null,"PASO 2.","Concertar a mas tardar el 28 de febrero de cada año  los compromisos laborales y competencias comportamentales "]
[null,null,null,"PASO 3. ","Acopiar durante todo el proceso de evaluación las evidencias especificando la ubicación y fecha de aporte.",null,null,null,null,null,null,"F3."," Evidencias",null,null,null,null,"FASE III. SEGUIMIENTO AL DESEMPEÑO LABORAL Y AL DESARROLLO DE LAS COMPETENCIAS COMPORTAMENTALES."]
[null,null,null,"PASO 4. ","Efectuar la primera evaluación parcial semestral la cual comprende del primero (1º) de febrero hasta el treinta y uno (31) de julio de cada año; la calificación de los compromisos laborales deberá producirse dentro de los quince (15) días hábiles siguientes al vencimiento de dicho período.",null,null,null,null,null,null,"F1."," Información general",null,null,null,null,"IV FASE. EVALUACIONES PARCIALES EN PERÍODO ANUAL U ORDINARIO"]
[null,null,null,"PASO 5. ","Efectuar la calificación de las competencias comportamentales correspondientes al primer semestre. (las fechas proceden igual que lo especificado en el ítem anterior)",null,null,null,null,null,null,"F4."," Calificación competencias comportamentales"]
[null,null,null,"PASO 6. ","Comunicar  la calificación dos días después de efectuada.",null,null,null,null,null,null,"F6. ","Reporte de calificaciones período anual u ordinario"]
[null,null,null,"PASO 7. ","Implementar de ser necesario el plan de mejoramiento de acuerdo al resultado del seguimiento o la evaluación.",null,null,null,null,null,null,"F7.","Plan de mejoramiento"]
[null,null,null,"PASO 8. ","Acopiar durante todo el proceso de evaluación las evidencias especificando la ubicación y fecha de aporte.",null,null,null,null,null,null,"F3. ","Evidencias",null,null,null,null,"FASE III. SEGUIMIENTO AL DESEMPEÑO LABORAL Y AL DESARROLLO DE LAS COMPETENCIAS COMPORTAMENTALES."]
[null,null,null,"PASO 9. ","Para la segunda evaluación parcial semestral comprende el primero (1º) de agosto y el treinta y uno (31) de enero del año siguiente, calificación que deberá producirse a más tardar dentro de los quince (15) días hábiles siguientes al vencimiento de dicho período",null,null,null,null,null,null,"F1.","Información general",null,null,null,null,"IV FASE. EVALUACIONES PARCIALES EN PERÍODO ANUAL U ORDINARIO"]
[null,null,null,"PASO 10. ","Deberá realizar la calificación de las competencias comportamentales correspondientes al primer semestre. (las fechas proceden igual que el ítem anterior)",null,null,null,null,null,null,"F4.","Calificación competencias comportamentales"]
[null,null,null,"PASO 11. ","Registrar el resultado de las evaluación de gestión por áreas o dependencias de acuerdo con la información del formato (F5.  EVA. ÁREAS O DEPENDENCIAS).",null,null,null,null,null,null,"F1.","Información general",null,null,null,null,"V FASE. CALIFICACIÓN DEFINITIVA"]
[null,null,null,"PASO 12. ","Notificar la calificación final, en el caso de presentarse recursos diligenciar la sección V y VI del formato.",null,null,null,null,null,null,"F6.","Reporte de calificaciones período anual u ordinario"]
[]
[]
[]
[]
[]
[]
[]
[]
[]
[]
[]
[]
[]
[]
[]
[]
[]
[]
[]
[]
[]
[]
[]
[]
[]
[]
[]
[]
[]
[]
[null,null,null,"Estos formatos constituyen una ayuda metodológica para la aplicación del Sistema Tipo de Evaluación de Desempeño Laboral establecido a través del Acuerdo No. 565 de 2016, proferido por la CNSC.\nLos presentes documentos podrán ser susceptibles de modificación.\nLos formatos no cuentan con clave de protección."]

{"sheet":"F1. INF. GENERAL","index":1,"n_rows":62,"n_cols":19,"rows_kept":62,"cut":false,"hidden":false,"merged":[[56,1,56,4],[56,5,56,6],[46,11,46,13],[46,15,46,17],[58,5,58,6],[58,7,58,8],[58,11,59,18],[57,9,59,10],[51,9,56,10],[56,11,56,14],[56,15,56,18],[56,7,56,8],[53,1,53,4],[53,5,53,6],[53,7,53,8],[54,1,54,4],[54,5,54,6],[54,7,54,8],[49,0,50,10],[51,0,51,8],[54,11,55,18],[52,0,52,4],[52,5,52,6],[52,7,52,8],[42,0,42,8],[42,11,42,13],[42,15,42,17],[47,0,48,10],[48,11,48,14],[48,15,48,18],[46,0,46,10],[47,11,47,18],[51,11,51,18],[43,0,44,5],[43,6,43,10],[44,6,44,10],[43,11,43,14],[43,15,43,18],[44,11,44,14],[44,15,44,18],[45,0,45,10],[45,11,45,14],[45,15,45,18],[52,11,53,14],[52,15,53,18],[49,14,50,14],[49,15,50,17],[49,18,50,18],[49,11,50,13],[55,7,55,8],[55,1,55,4],[55,5,55,6],[62,0,62,6],[62,7,62,12],[62,13,62,18],[60,0,60,18],[57,5,57,6],[57,7,57,8],[59,5,59,8],[61,0,61,2],[61,3,61,5],[61,6,61,8],[61,16,61,18],[57,0,57,4],[58,0,58,4],[59,0,59,4],[57,11,57,14],[57,15,57,18],[61,13,61,15],[61,9,61,10],[61,11,61,12],[38,17,39,18],[40,0,41,3],[40,4,41,8],[40,13,41,14],[40,17,41,18],[38,0,39,3],[38,4,39,8],[38,13,39,14],[38,11,39,11],[40,11,41,11],[38,15,39,15],[40,15,41,15],[38,12,39,12],[40,12,41,12],[40,16,41,16],[38,16,39,16],[38,9,39,9],[40,9,41,9],[38,10,39,10],[40,10,41,10],[34,17,35,18],[36,0,37,3],[36,4,37,8],[36,13,37,14],[36,17,37,18],[34,0,35,3],[34,4,35,8],[34,13,35,14],[34,11,35,11],[36,11,37,11],[34,15,35,15],[36,15,37,15],[34,12,35,12],[36,12,37,12],[36,16,37,16],[34,16,35,16],[34,9,35,9],[36,9,37,9],[34,10,35,10],[36,10,37,10],[31,17,31,18],[32,0,33,3],[32,4,33,8],[32,13,33,14],[32,17,33,18],[27,0,27,18],[28,0,31,3],[28,4,31,8],[28,11,29,18],[30,11,30,14],[30,15,30,18],[31,13,31,14],[32,11,33,11],[32,15,33,15],[32,12,33,12],[32,16,33,16],[28,9,31,9],[28,10,31,10],[32,9,33,9],[32,10,33,10],[25,17,25,18],[26,0,26,5],[26,13,26,14],[26,15,26,16],[26,17,26,18],[25,0,25,5],[25,13,25,14],[25,15,25,16],[26,6,26,12],[25,6,25,12],[24,0,24,1],[24,2,24,4],[24,5,24,7],[24,8,24,10],[24,11,24,14],[24,15,24,18],[22,0,22,18],[23,0,23,1],[23,2,23,4],[23,5,23,7],[23,8,23,10],[23,11,23,14],[23,15,23,18],[20,17,20,18],[21,0,21,5],[21,13,21,14],[21,15,21,16],[21,17,21,18],[20,0,20,5],[20,13,20,14],[20,15,20,16],[21,6,21,12],[20,6,20,12],[19,0,19,1],[19,2,19,4],[19,5,19,7],[19,8,19,10],[19,11,19,14],[19,15,19,18],[18,0,18,1],[18,2,18,4],[18,5,18,7],[18,8,18,10],[18,11,18,14],[18,15,18,18],[15,0,15,4],[15,5,15,6],[16,0,16,4],[16,5,16,6],[17,0,17,18],[13,0,13,7],[14,0,14,7],[14,8,14,18],[13,8,13,18],[15,8,16,8],[15,9,16,18],[12,0,12,1],[12,2,12,4],[12,5,12,7],[12,8,12,10],[12,11,12,14],[12,15,12,18],[8,0,9,3],[8,7,9,8],[8,12,9,15],[10,0,10,18],[11,0,11,1],[11,2,11,4],[11,5,11,7],[11,8,11,10],[11,11,11,14],[11,15,11,18],[1,0,6,3],[1,4,2,14],[1,15,7,18],[3,4,4,14],[5,4,6,6],[6,7,6,8],[6,9,6,10],[7,0,7,14],[6,11,6,12],[5,7,5,8],[5,9,5,10],[5,11,5,12],[5,13,5,14],[6,13,6,14]]}
[]
[null,null,null,null,"COMISIÓN NACIONAL DEL SERVICIO CIVIL"]
[]
[null,null,null,null,"FORMATO 1. INFORMACIÓN GENERAL"]
[]
[null,null,null,null,"PROCESO: EVALUACIÓN DEL DESEMPEÑO LABORAL",null,null,"Código:  ",null,"F-ED-002",null,"Página",null,"1 de 1"]
[null,null,null,null,null,null,null,"Fecha de emisión: ",null,"2016-12-27",null,"Versión: ",null,"2.0"]
[]
["PERÍODO DE EVALUACIÓN",null,null,null,"DÍA","MES","AÑO","al",null,"DÍA","MES","AÑO","FECHA CONCERTACIÓN O AJUSTE DE COMPROMISOS",null,null,null,"DÍA","MES","AÑO"]
[]
["I. IDENTIFICACIÓN DEL EVALUADO"]
["Tipo de Documento",null,"Número de identificación",null,null,"Primer apellido",null,null,"Segundo apellido",null,null,"Primer nombre",null,null,null,"Otros nombres"]
[{"$f":"'F2. COMP. LAB Y COM COMPOR'!A13:B13","v":"CEDULA DE CIUDADANIA"},null,{"$f":"'F2. COMP. LAB Y COM COMPOR'!C13:E13","v":0},null,null,{"$f":"'F2. COMP. LAB Y COM COMPOR'!F13:H13","v":0},null,null,{"$f":"'F2. COMP. LAB Y COM COMPOR'!I13:K13","v":0},null,null,{"$f":"'F2. COMP. LAB Y COM COMPOR'!L13:O13","v":0},null,null,null,{"$f":"'F2. COMP. LAB Y COM COMPOR'!P13:S13","v":0}]
["Dependencia o área a la que pertenece el evaluado",null,null,null,null,null,null,null,"Denominación del empleo"]
[{"$f":"'F2. COMP. LAB Y COM COMPOR'!A15:H15","v":0},null,null,null,null,null,null,null,{"$f":"'F2. COMP. LAB Y COM COMPOR'!I15:S15","v":"ddd"}]
["Nivel jerárquico",null,null,null,null,"Código",null,"Grado",{"$f":"'F2. COMP. LAB Y COM COMPOR'!I16:S17","v":"Propósito del empleo:"},{"$f":"'F2. COMP. LAB Y COM COMPOR'!J16:S17","v":0}]
[{"$f":"'F2. COMP. LAB Y COM COMPOR'!A17:E17","v":"DIRECTIVO"},null,null,null,null,{"$f":"'F2. COMP. LAB Y COM COMPOR'!F17:G17","v":0},null,{"$f":"'F2. COMP. LAB Y COM COMPOR'!H17","v":0}]
["II. IDENTIFICACIÓN EVALUADOR. (Jefe inmediato)"]
["Tipo de documento",null,"Número de identificación",null,null,"Primer apellido",null,null,"Segundo apellido",null,null,"Primer nombre",null,null,null,"Otros nombres"]
[{"$f":"'F2. COMP. LAB Y COM COMPOR'!A20:B20","v":"CEDULA DE CIUDADANIA"},null,{"$f":"'F2. COMP. LAB Y COM COMPOR'!C20:E20","v":0},null,null,{"$f":"'F2. COMP. LAB Y COM COMPOR'!F20:H20","v":0},null,null,{"$f":"'F2. COMP. LAB Y COM COMPOR'!I20:K20","v":"  "},null,null,{"$f":"'F2. COMP. LAB Y COM COMPOR'!L20:O20","v":0},null,null,null,{"$f":"'F2. COMP. LAB Y COM COMPOR'!P20:S20","v":"  "}]
[" Área o Dependencia a la que pertenece el evaluador",null,null,null,null,null,"Denominación del empleo",null,null,null,null,null,null,"Código",null,"Grado",null,"Nivel jerárquico"]
[{"$f":"'F2. COMP. LAB Y COM COMPOR'!A22:F22","v":0},null,null,null,null,null,{"$f":"'F2. COMP. LAB Y COM COMPOR'!G22:M22","v":0},null,null,null,null,null,null,{"$f":"'F2. COMP. LAB Y COM COMPOR'!N22:O22","v":0},null,{"$f":"'F2. COMP. LAB Y COM COMPOR'!P22:Q22","v":0},null,{"$f":"'F2. COMP. LAB Y COM COMPOR'!R22:S22","v":0}]
["III. IDENTIFICACIÓN EVALUADOR (Servidor público de Libre Nombramiento y Remoción en caso de constituir Comisión Evaluadora)"]
["Tipo de documento",null,"Número de identificación",null,null,"Primer apellido",null,null,"Segundo apellido",null,null,"Primer nombre",null,null,null,"Otros nombres"]
[{"$f":"'F2. COMP. LAB Y COM COMPOR'!A26:B26","v":"CEDULA DE CIUDADANIA"},null,{"$f":"IF('F2. COMP. LAB Y COM COMPOR'!R24=\"NO\",\"NO REQUERIDO\",'F2. COMP. LAB Y COM COMPOR'!C26:E26)","v":"NO REQUERIDO"},null,null,{"$f":"IF('F2. COMP. LAB Y COM COMPOR'!R24=\"NO\",\"NO REQUERIDO\",'F2. COMP. LAB Y COM COMPOR'!F26:H26)","v":"NO REQUERIDO"},null,null,{"$f":"IF('F2. COMP. LAB Y COM COMPOR'!R24=\"NO\",\"NO REQUERIDO\",'F2. COMP. LAB Y COM COMPOR'!I26:K26)","v":"NO REQUERIDO"},null,null,{"$f":"IF('F2. COMP. LAB Y COM COMPOR'!R24=\"NO\",\"NO REQUERIDO\",'F2. COMP. LAB Y COM COMPOR'!L26:O26)","v":"NO REQUERIDO"},null,null,null,{"$f":"IF('F2. COMP. LAB Y COM COMPOR'!R24=\"NO\",\"NO REQUERIDO\",'F2. COMP. LAB Y COM COMPOR'!P26:S26)","v":"NO REQUERIDO"}]
["Dependencia o área a la que pertenece el evaluador",null,null,null,null,null,"Denominación del empleo",null,null,null,null,null,null,"Código",null,"Grado",null,"Nivel jerárquico"]
[{"$f":"IF('F2. COMP. LAB Y COM COMPOR'!R24=\"NO\",\"NO REQUERIDO\",'F2. COMP. LAB Y COM COMPOR'!A28:F28)","v":"NO REQUERIDO"},null,null,null,null,null,{"$f":"IF('F2. COMP. LAB Y COM COMPOR'!R24=\"NO\",\"NO REQUERIDO\",'F2. COMP. LAB Y COM COMPOR'!G28:M28)","v":"NO REQUERIDO"},null,null,null,null,null,null,{"$f":"IF('F2. COMP. LAB Y COM COMPOR'!R24=\"NO\",\"NO REQUERIDO\",'F2. COMP. LAB Y COM COMPOR'!N28:O28)","v":"NO REQUERIDO"},null,{"$f":"IF('F2. COMP. LAB Y COM COMPOR'!R24=\"NO\",\"NO REQUERIDO\",'F2. COMP. LAB Y COM COMPOR'!P28:Q28)","v":"NO REQUERIDO"},null,{"$f":"IF('F2. COMP. LAB Y COM COMPOR'!R24=\"NO\",\"NO REQUERIDO\",'F2. COMP. LAB Y COM COMPOR'!R28:S28)","v":"NO REQUERIDO"}]
["IV. COMPROMISOS LABORALES"]
["Metas de la Dependencia a las cuales contribuye el empleo",null,null,null,"Compromisos Laborales.",null,null,null,null,"Peso porcentual del compromiso en el año","Calificación por compromiso en período anual","Porcentaje de Cumplimiento. "]
[]
[null,null,null,null,null,null,null,null,null,null,null,"PRIMERA PARCIAL SEMESTRAL",null,null,null,"SEGUNDA PARCIAL SEMESTRAL"]
[null,null,null,null,null,null,null,null,null,null,null,"Peso porcentual semestre","CALIFICACIÓN DEL COMPROMISO","CALIFICACIÓN DEL COMPROMISO (Con peso porcentual)",null,"Peso porcentual semestre","CALIFICACIÓN DEL COMPROMISO","CALIFICACIÓN DEL COMPROMISO (Con peso porcentual)"]
[{"$f":"'F2. COMP. LAB Y COM COMPOR'!A37","v":0},null,null,null,{"$f":"'F2. COMP. LAB Y COM COMPOR'!H37","v":0},null,null,null,null,{"$f":"+'F2. COMP. LAB Y COM COMPOR'!S37","v":""},{"$f":"IF(OR(N33=\"No aplica\",R33=\"No aplica\"),\"No aplica\",IFERROR(AVERAGE(N33,R33),\"No Aplica\"))","v":0},{"$f":"'F2. COMP. LAB Y COM COMPOR'!Q37","v":0},null,{"$f":"IF($O$47>0,\"No aplica\",(L33*M33))","v":0},null,{"$f":"+'F2. COMP. LAB Y COM COMPOR'!R37","v":0},null,{"$f":"IF($S$47>0,\"No aplica\",(P33*Q33))","v":0}]
[]
[{"$f":"'F2. COMP. LAB Y COM COMPOR'!A39","v":0},null,null,null,{"$f":"'F2. COMP. LAB Y COM COMPOR'!$H$39","v":0},null,null,null,null,{"$f":"+'F2. COMP. LAB Y COM COMPOR'!S39","v":""},{"$f":"IF(OR(N35=\"No aplica\",R35=\"No aplica\"),\"No aplica\",IFERROR(AVERAGE(N35,R35),\"No Aplica\"))","v":0},{"$f":"+'F2. COMP. LAB Y COM COMPOR'!Q39","v":0},null,{"$f":"IF($O$47>0,\"No aplica\",(L35*M35))","v":0},null,{"$f":"+'F2. COMP. LAB Y COM COMPOR'!R39","v":0},null,{"$f":"IF($S$47>0,\"No aplica\",(P35*Q35))","v":0}]
[]
[{"$f":"'F2. COMP. LAB Y COM COMPOR'!A41","v":0},null,null,null,{"$f":"'F2. COMP. LAB Y COM COMPOR'!$H$41","v":0},null,null,null,null,{"$f":"+'F2. COMP. LAB Y COM COMPOR'!S41","v":""},{"$f":"IF(OR(N37=\"No aplica\",R37=\"No aplica\"),\"No aplica\",IFERROR(AVERAGE(N37,R37),\"No Aplica\"))","v":0},{"$f":"+'F2. COMP. LAB Y COM COMPOR'!Q41","v":0},null,{"$f":"IF($O$47>0,\"No aplica\",(L37*M37))","v":0},null,{"$f":"+'F2. COMP. LAB Y COM COMPOR'!R41","v":0},null,{"$f":"IF($S$47>0,\"No aplica\",(P37*Q37))","v":0}]
[]
[{"$f":"'F2. COMP. LAB Y COM COMPOR'!A43","v":0},null,null,null,{"$f":"'F2. COMP. LAB Y COM COMPOR'!$H$43","v":0},null,null,null,null,{"$f":"+'F2. COMP. LAB Y COM COMPOR'!S43","v":""},{"$f":"IF(OR(N39=\"No aplica\",R39=\"No aplica\"),\"No aplica\",IFERROR(AVERAGE(N39,R39),\"No Aplica\"))","v":0},{"$f":"+'F2. COMP. LAB Y COM COMPOR'!Q43","v":0},null,{"$f":"IF($O$47>0,\"No aplica\",(L39*M39))","v":0},null,{"$f":"+'F2. COMP. LAB Y COM COMPOR'!R43","v":0},null,{"$f":"IF($S$47>0,\"No aplica\",(P39*Q39))","v":0}]
[]
[{"$f":"'F2. COMP. LAB Y COM COMPOR'!A45","v":0},null,null,null,{"$f":"'F2. COMP. LAB Y COM COMPOR'!$H$45","v":0},null,null,null,null,{"$f":"+'F2. COMP. LAB Y COM COMPOR'!S45","v":""},{"$f":"IF(OR(N41=\"No aplica\",R41=\"No aplica\"),\"No aplica\",IFERROR(AVERAGE(N41,R41),\"No Aplica\"))","v":0},{"$f":"+'F2. COMP. LAB Y COM COMPOR'!Q45","v":0},null,{"$f":"IF($O$47>0,\"No aplica\",(L41*M41))","v":0},null,{"$f":"+'F2. COMP. LAB Y COM COMPOR'!R45","v":0},null,{"$f":"IF($S$47>0,\"No aplica\",(P41*Q41))","v":0}]
[]
[" TOTALES",null,null,null,null,null,null,null,null,{"$f":"SUM(J33:J42)","v":0},{"$f":"SUM(K33:K42)","v":0},"Resultado total ",null,null,{"$f":"IF(O47>0,\"\",SUMIF(N33:O42,\"<=100\",N33:O42))","v":0},"Resultado total ",null,null,{"$f":"IF(S47>0,\"\",SUMIF(R33:S42,\"<=100\",R33:S42))","v":0}]
["Tiempo efectivamente laborado en el semestre",null,null,null,null,null,"Total Días Laborados de cada Evaluación Semestral"]
[null,null,null,null,null,null,"% Participación Días Laborados de cada Evaluación Semestral",null,null,null,null,{"$f":"IFERROR(Hoja4!D539,0)","v":0},null,null,null,{"$f":"IFERROR(Hoja4!D540,0)","v":0}]
["TOTAL SEMESTRAL",null,null,null,null,null,null,null,null,null,null,{"$f":"IFERROR(O43*L45,\"No Aplica\")","v":0},null,null,null,{"$f":"IFERROR(S43*P45,\"No Aplica\")","v":0}]
["Totales Parciales Semestrales con Eventuales",null,null,null,null,null,null,null,null,null,null,"Resultado Eventuales I Sem",null,null,{"$f":"+'F8. EVA. EVENTUAL (Semestre 1)'!K48","v":0},"Resultado Eventuales II Sem",null,null,{"$f":"+'F8. EVA. EVENTUAL (Semestre 2)'!K47","v":0}]
["Calificaciones parciales semestrales compromisos laborales ",null,null,null,null,null,null,null,null,null,null,"Calificación total"]
[null,null,null,null,null,null,null,null,null,null,null,{"$f":"O43*40","v":0},null,null,null,{"$f":"S43*40","v":0}]
["CALIFICACIÒN TOTAL DE LOS COMPROMISOS LABORALES",null,null,null,null,null,null,null,null,null,null,"Sobre el 100%",null,null,{"$f":"IF(AND(L45>0,P45>0)=TRUE,IF(O43=\"\",(O47*L45),(O43*L45))+IF(S43=\"\",(S47*P45),(S43*P45)),\"No Aplica\")","v":"No Aplica"},"Sobre el peso porcentual del 80%",null,null,{"$f":"IF(O50=\"No Aplica\",\"No Aplica\",(O50*80%))","v":"No Aplica"}]
[]
["V. COMPETENCIAS COMPORTAMENTALES",null,null,null,null,null,null,null,null,"F5. EVA. ÁREAS O DEPENDENCIAS",null,"VI. EVALUACIÓN DE GESTIÓN POR ÁREAS O DEPENDENCIAS"]
["COMPETENCIAS COMPORTAMENTALES",null,null,null,null,"1° parcial semestral",null,"2° parcial semestral",null,null,null,"CALIFICACIÓN DE LA EVALUACIÓN DE GESTIÓN POR ÁREAS O  DEPENDENCIAS."]
["1.  ",{"$f":"'F2. COMP. LAB Y COM COMPOR'!B51","v":0},null,null,null,{"$f":"IF(F59>0,\"No aplica\",IF('F4. CALF. COM. COMPORT.'!N32=\"DEFINA COMPETENCIA\",\"DEFINA COMPETENCIA\",IF('F4. CALF. COM. COMPORT.'!N32=\"\",0,'F4. CALF. COM. COMPORT.'!N32)))","v":"DEFINA COMPETENCIA"},null,{"$f":"IF(H59>0,\"No aplica\",IF('F4. CALF. COM. COMPORT.'!O32=\"DEFINA COMPETENCIA\",\"DEFINA COMPETENCIA\",IF('F4. CALF. COM. COMPORT.'!O32=\"\",0,'F4. CALF. COM. COMPORT.'!O32)))","v":"DEFINA COMPETENCIA"}]
["2. ",{"$f":"'F2. COMP. LAB Y COM COMPOR'!B53","v":0},null,null,null,{"$f":"IF(F59>0,\"No aplica\",IF('F4. CALF. COM. COMPORT.'!N34=\"DEFINA COMPETENCIA\",\"DEFINA COMPETENCIA\",IF('F4. CALF. COM. COMPORT.'!N34=\"\",0,'F4. CALF. COM. COMPORT.'!N34)))","v":"DEFINA COMPETENCIA"},null,{"$f":"IF(H59>0,\"No aplica\",IF('F4. CALF. COM. COMPORT.'!O34=\"DEFINA COMPETENCIA\",\"DEFINA COMPETENCIA\",IF('F4. CALF. COM. COMPORT.'!O34=\"\",0,'F4. CALF. COM. COMPORT.'!O34)))","v":"DEFINA COMPETENCIA"},null,null,null,"VII. RESULTADOS CONSOLIDADOS COMPONENTES DE LA EVALUACIÓN DE DESEMPEÑO LABORAL PARA LA EVALUACIÓN ANUAL U ORDINARIA"]
["3. ",{"$f":"'F2. COMP. LAB Y COM COMPOR'!B55","v":0},null,null,null,{"$f":"IF(F59>0,\"No aplica\",IF('F4. CALF. COM. COMPORT.'!N36=\"DEFINA COMPETENCIA\",\"DEFINA COMPETENCIA\",IF('F4. CALF. COM. COMPORT.'!N36=\"\",0,'F4. CALF. COM. COMPORT.'!N36)))","v":"DEFINA COMPETENCIA"},null,{"$f":"IF(H59>0,\"No aplica\",IF('F4. CALF. COM. COMPORT.'!O36=\"DEFINA COMPETENCIA\",\"DEFINA COMPETENCIA\",IF('F4. CALF. COM. COMPORT.'!O36=\"\",0,'F4. CALF. COM. COMPORT.'!O36)))","v":"DEFINA COMPETENCIA"}]
["4. ",{"$f":"'F2. COMP. LAB Y COM COMPOR'!B57","v":0},null,null,null,{"$f":"IF(F59>0,\"No aplica\",IF('F4. CALF. COM. COMPORT.'!N37=\"DEFINA COMPETENCIA\",\"DEFINA COMPETENCIA\",IF('F4. CALF. COM. COMPORT.'!N38=\"\",0,'F4. CALF. COM. COMPORT.'!N38)))","v":"DEFINA COMPETENCIA"},null,{"$f":"IF(H59>0,\"No aplica\",IF('F4. CALF. COM. COMPORT.'!O37=\"DEFINA COMPETENCIA\",\"DEFINA COMPETENCIA\",IF('F4. CALF. COM. COMPORT.'!O38=\"\",0,'F4. CALF. COM. COMPORT.'!O38)))","v":"DEFINA COMPETENCIA"},null,null,null,"CALIFICACIÓN",null,null,null,"NIVEL DE CALIFICACIÓN"]
["Totales Parciales Semestrales",null,null,null,null,{"$f":"'F4. CALF. COM. COMPORT.'!N41","v":"CALIFIQUE 4 COMPETENCIAS"},null,{"$f":"'F4. CALF. COM. COMPORT.'!O41","v":"CALIFIQUE 4 COMPETENCIAS"},null,"F4. CAL. COMP. COMPORTAMENT.",null,{"$f":"IFERROR(IF(F60=\"DEFINA COMPETENCIAS\",\"FALTA CALIFICACIÓN DE COMPETENCIAS\",(+F$60+S$50+P$53)),\"NO APLICA\")","v":"NO APLICA"},null,null,null,{"$f":"IF(AND(OR(SUM(N33:O42)>0,O47>1)=TRUE,OR(SUM(R33:S42)>0,S47>1)=TRUE,P53<>\"\",AND(OR(F58>0,F59>0)=TRUE,OR(H58>0,H59>0)=TRUE)=TRUE)=TRUE,IFERROR(VLOOKUP(L58,Hoja4!AA3:AB1002,2),0),\"NO APLICA\")","v":"NO APLICA"}]
["Totales Parciales Semestrales con Eventuales",null,null,null,null,{"$f":"+'F8. EVA. EVENTUAL (Semestre 1)'!M62","v":0},null,{"$f":"+'F8. EVA. EVENTUAL (Semestre 2)'!M61","v":0},null,null,null,"F2. COMP. LAB Y COM COMPOR"]
["CALIFICACIÓN DE LAS COMPETENCIAS COMPORTAMENTALES",null,null,null,null,{"$f":"((IF(F59>0,(F59*L45),IF(F58<>\"CALIFIQUE 4 COMPETENCIAS\",(F58*L45),0)))+(IF(H59>0,(H59*P45),IF(H58<>\"CALIFIQUE 4 COMPETENCIAS\",(H58*P45),0))))","v":0}]
["VIII. EVIDENCIAS, PLAN DE MEJORAMIENTO DEL EMPLEADO PÚBLICO Y REPORTES DE CALIFICACIÓN"]
["F3. EVIDENCIAS",null,null,"F7. PLAN DE MEJORAMIENTO",null,null,"F6. REPOR CLF PRD ANUAL U ORD",null,null,"F8. EVA. EVENTUAL (Sem 1)",null,"F8. EVA. EVENTUAL (Sem 2)",null,"F9. EVA. EXTRAORDINARIA",null,null,"F10. EVA. INFERIOR A 1 AÑO"]

{"sheet":"Hoja4","index":2,"n_rows":1199,"n_cols":34,"rows_kept":1199,"cut":false,"hidden":true,"merged":[[489,0,489,1],[501,0,501,1],[106,25,131,25],[28,25,53,25],[54,25,79,25],[80,25,105,25],[132,25,157,25],[454,8,454,9],[455,8,455,9],[158,25,183,25],[184,25,209,25],[454,10,454,11],[452,10,452,11],[453,10,453,11],[452,8,452,9],[453,8,453,9],[17,17,18,17],[19,17,21,17],[22,17,24,17],[450,10,450,11],[451,10,451,11],[447,7,449,7],[447,10,449,11],[447,8,449,9],[457,10,457,11],[456,8,456,9],[457,8,457,9],[455,10,455,11],[450,8,450,9],[451,8,451,9],[456,10,456,11]]}
[null,null,null,null,null,null,null,null,null,null,null,null,null,0]
["CODIGO",null,"DIRECTIVO",null,null,null,null,null,null,null,null,null,null,1,null,"2016-01-01",null,null,"SI",0.01,"NO SATISFACTORIO",null,null,null,null,"UNO"]
[1050,null,"ASESOR","MODIFICA LA CALIFICACIÓN",1,6,null,1,null,2016,null,65,null,2,null,"2016-01-02",null,null,"NO",0.02,"NO SATISFACTORIO",null,null,null,"CEDULA DE CIUDADANIA","UNO",1,"NO SATISFACTORIO"]
[1020,null,"PROFESIONAL","CONFIRMA LA CALIFICACIÓN",2,9,"X",2,null,2017,null,76,null,3,null,"2016-01-03",null,null,null,0.03,"NO SATISFACTORIO",null,null,null,null,"UNO",1.1000000000000001,"NO SATISFACTORIO"]
[1060,null,"TECNICO","RECHAZA POR EXTEMPORÁNEA",3,12,null,3,null,2018,null,null,null,4,null,"2016-01-04",null,null,null,0.04,"NO SATISFACTORIO",null,null,null,null,"UNO",1.2,"NO SATISFACTORIO"]
[1045,null,"ASISTENCIAL",null,4,15,null,4,null,2019,null,null,null,5,null,"2016-01-05",null,null,null,0.05,"NO SATISFACTORIO",null,null,null,null,"UNO",1.3,"NO SATISFACTORIO"]
[2025,null,null,null,5,4,null,5,null,2020,null,null,null,6,null,"2016-01-06",null,null,null,0.06,"NO SATISFACTORIO",null,null,null,null,"UNO",1.4,"NO SATISFACTORIO"]
[2001,null,null,null,6,6,null,6,null,2021,null,null,null,7,null,"2016-01-07",null,null,null,7.0000000000000007E-2,"NO SATISFACTORIO",null,null,null,"EVALUADO","UNO",1.5,"NO SATISFACTORIO"]
[2132,null,"CEDULA DE CIUDADANIA",null,7,8,null,7,null,2022,null,null,null,8,null,"2016-01-08",null,null,null,0.08,"NO SATISFACTORIO",null,null,null,"EVALUADOR","UNO",1.6,"NO SATISFACTORIO"]
[2133,null,"CEDULA DE EXTRAJERIA",null,8,10,null,8,null,2023,null,null,null,9,null,"2016-01-09",null,null,null,0.09,"NO SATISFACTORIO",1,1,null,"TERCERO","UNO",1.7,"NO SATISFACTORIO"]
[2002,null,null,null,9,null,null,9,null,2024,null,null,null,10,null,"2016-01-10",null,null,null,0.1,"NO SATISFACTORIO",2,2,null,null,"UNO",1.8,"NO SATISFACTORIO"]
[2125,null,null,null,10,null,null,10,null,2025,null,null,null,11,null,"2016-01-11",null,null,null,0.11,"NO SATISFACTORIO",3,3,null,null,"UNO",1.9,"NO SATISFACTORIO"]
[2137,null,null,null,11,null,null,11,null,2026,null,null,null,12,null,"2016-01-12",null,null,null,0.12,"NO SATISFACTORIO",4,4,null,null,"UNO",2,"NO SATISFACTORIO"]
[2012,null,null,null,12,null,null,12,null,2027,null,null,null,13,null,"2016-01-13",null,null,null,0.13,"NO SATISFACTORIO",null,5,null,null,"UNO",2.1,"NO SATISFACTORIO"]
[2014,null,"SI",null,13,null,null,13,null,2028,null,null,null,14,null,"2016-01-14",null,null,null,0.14000000000000001,"NO SATISFACTORIO",null,6,null,null,"UNO",2.2000000000000002,"NO SATISFACTORIO"]
[2018,null,"NO",null,14,null,null,14,null,2029,null,null,null,15,null,"2016-01-15",null,null,null,0.15,"NO SATISFACTORIO",null,7,null,null,"UNO",2.2999999999999998,"NO SATISFACTORIO"]
[2003,null,null,null,15,null,null,15,null,2030,null,null,null,16,null,"2016-01-16",null,null,null,0.16,null,null,8,null,null,"UNO",15,"NO SATISFACTORIO"]
[2004,null,null,null,16,null,null,16,null,2031,null,null,null,17,null,"2016-01-17",null,"CONOCIMIENTO DEL ENTORNO",null,0.16,"NO SATISFACTORIO",5,9,null,null,"UNO",2.4,"NO SATISFACTORIO"]
[2085,null,null,null,17,null,null,17,null,2032,null,null,null,18,null,"2016-01-18",null,null,null,0.17,"NO SATISFACTORIO",5.9589041095890396,10,null,null,"UNO",2.5,"NO SATISFACTORIO"]
[2120,null,null,null,18,null,null,18,null,2033,null,null,null,19,null,"2016-01-19",null,"CONSTRUCCIÓN DE RELACIONES",null,0.18,"NO SATISFACTORIO",6.5068493150685001,11,null,null,"UNO",2.6,"NO SATISFACTORIO"]
[2142,null,null,null,19,null,null,19,null,2034,null,null,null,20,null,"2016-01-20",null,null,null,0.19,"NO SATISFACTORIO",7.0547945205479401,12,null,null,"UNO",2.7,"NO SATISFACTORIO"]
[2087,null,null,null,20,null,null,20,null,2035,null,null,null,21,null,"2016-01-21",null,null,null,0.2,"NO SATISFACTORIO",7.6027397260273899,13,null,null,"UNO",2.8,"NO SATISFACTORIO"]
[2123,null,null,null,21,null,null,21,null,2036,null,null,null,22,null,"2016-01-22",null,"INICIATIVA",null,0.21,"NO SATISFACTORIO",8.1506849315068504,14,null,null,"UNO",2.9,"NO SATISFACTORIO"]
[2052,null,null,null,22,null,null,22,null,2037,null,null,null,23,null,"2016-01-23",null,null,null,0.22,"NO SATISFACTORIO",8.6986301369862993,15,null,null,"UNO",3,"NO SATISFACTORIO"]
[2009,null,null,null,23,null,null,23,null,2038,null,null,null,24,null,"2016-01-24",null,null,null,0.23,"NO SATISFACTORIO",9.24657534246575,16,null,null,"UNO",3.1,"NO SATISFACTORIO"]
[2007,null,null,null,24,null,null,24,null,2039,null,65,null,25,null,"2016-01-25",null,null,null,0.24,"NO SATISFACTORIO",9.7945205479452007,17,null,null,"UNO",3.2,"NO SATISFACTORIO"]
[2112,null,null,null,25,null,null,25,null,2040,null,76,null,26,null,"2016-01-26",null,null,null,0.25,"NO SATISFACTORIO",10.342465753424699,18,null,null,"UNO",3.3,"NO SATISFACTORIO"]
[2165,null,null,null,26,null,null,26,null,2042,null,80,null,27,null,"2016-01-27",null,null,null,0.26,"NO SATISFACTORIO",10.8904109589041,19,null,null,"UNO",3.3,"NO SATISFACTORIO"]
[2028,null,null,null,27,null,null,27,null,2043,null,85,null,28,null,"2016-01-28",null,null,null,0.27,"NO SATISFACTORIO",11.438356164383601,20,null,null,"DOS",3.4,"NO SATISFACTORIO"]
[2033,null,null,null,null,null,null,28,null,2044,null,90,null,29,null,"2016-01-29",null,null,null,0.28000000000000003,"NO SATISFACTORIO",11.986301369863,21,null,null,null,3.5,"NO SATISFACTORIO"]
[2044,null,null,null,null,null,null,29,null,2045,null,95,null,30,null,"2016-01-30",null,null,null,0.28999999999999998,"NO SATISFACTORIO",12.534246575342401,22,null,null,null,3.6,"NO SATISFACTORIO"]
[2048,null,null,null,null,null,null,30,null,2046,null,100,null,31,null,"2016-01-31",null,null,null,0.3,"NO SATISFACTORIO",13.082191780821899,23,null,null,null,3.7,"NO SATISFACTORIO"]
[2152,null,null,null,null,null,null,31,null,2047,null,null,null,32,null,"2016-02-01",null,null,null,0.31,"NO SATISFACTORIO",13.6301369863013,24,null,null,null,3.8,"NO SATISFACTORIO"]
[2184,null,null,null,null,null,null,null,null,2048,null,null,null,33,null,"2016-02-02",null,null,null,0.32,"NO SATISFACTORIO",14.178082191780801,25,null,null,null,3.9,"NO SATISFACTORIO"]
[2094,null,null,null,null,null,null,null,null,2049,null,null,null,34,null,"2016-02-03",null,null,null,0.33,"NO SATISFACTORIO",14.7260273972603,26,null,null,null,4,"NO SATISFACTORIO"]
[2186,null,null,null,null,null,null,null,null,2050,null,null,null,35,null,"2016-02-04",null,null,null,0.34,"NO SATISFACTORIO",15.2739726027397,27,null,null,null,4.0999999999999996,"NO SATISFACTORIO"]
[2102,null,null,null,null,null,null,null,null,null,null,null,null,36,null,"2016-02-05",null,null,null,0.35,"NO SATISFACTORIO",15.821917808219199,28,null,null,null,4.2,"NO SATISFACTORIO"]
[2103,null,null,null,null,null,null,null,null,null,null,null,null,37,null,"2016-02-06",null,null,null,0.36,"NO SATISFACTORIO",16.369863013698598,29,null,null,null,4.3,"NO SATISFACTORIO"]
[2114,null,null,null,null,null,null,null,null,null,null,null,null,38,null,"2016-02-07",null,null,null,0.37,"NO SATISFACTORIO",16.917808219178099,30,null,null,null,4.4000000000000004,"NO SATISFACTORIO"]
[2147,null,null,null,null,null,null,null,null,null,null,null,null,39,null,"2016-02-08",null,null,null,0.38,"NO SATISFACTORIO",17.4657534246575,31,null,null,null,4.5,"NO SATISFACTORIO"]
[2116,null,null,null,null,null,null,null,null,null,null,null,null,40,null,"2016-02-09",null,null,null,0.39,"NO SATISFACTORIO",18.013698630137,32,null,null,null,4.5999999999999996,"NO SATISFACTORIO"]
[3003,null,null,null,null,null,null,null,null,null,null,null,null,41,null,"2016-02-10",null,null,null,0.4,"NO SATISFACTORIO",18.561643835616401,33,null,null,null,4.7,"NO SATISFACTORIO"]
[3038,null,null,null,null,null,null,null,null,null,null,null,null,42,null,"2016-02-11",null,null,null,0.41,"NO SATISFACTORIO",19.109589041095902,34,null,null,null,4.8,"NO SATISFACTORIO"]
[3046,null,null,null,null,null,null,null,null,null,null,null,null,43,null,"2016-02-12",null,null,null,0.42,"NO SATISFACTORIO",19.657534246575299,35,null,null,null,4.9000000000000004,"NO SATISFACTORIO"]
[3054,null,null,null,null,null,null,null,null,null,null,null,null,44,null,"2016-02-13",null,null,null,0.43,"NO SATISFACTORIO",20.205479452054799,36,null,null,null,5,"NO SATISFACTORIO"]
[3066,null,null,null,null,null,null,null,null,null,null,null,null,45,null,"2016-02-14",null,null,null,0.44,"NO SATISFACTORIO",20.7534246575342,37,null,null,null,5.0999999999999996,"NO SATISFACTORIO"]
[3066,null,null,null,null,null,null,null,null,null,null,null,null,46,null,"2016-02-15",null,null,null,0.45,"NO SATISFACTORIO",21.301369863013701,38,null,null,null,5.6,"NO SATISFACTORIO"]
[3074,null,null,null,null,null,null,null,null,null,null,null,null,47,null,"2016-02-16",null,null,null,0.46,"NO SATISFACTORIO",21.849315068493102,39,null,null,null,5.7,"NO SATISFACTORIO"]
[3078,null,null,null,null,null,null,null,null,null,null,null,null,48,null,"2016-02-17",null,null,null,0.47,"NO SATISFACTORIO",22.397260273972599,40,null,null,null,5.8,"NO SATISFACTORIO"]
[3080,null,null,null,null,null,null,null,null,null,null,null,null,49,null,"2016-02-18",null,null,null,0.48,"NO SATISFACTORIO",22.945205479452,41,null,null,null,5.9,"NO SATISFACTORIO"]
[3084,null,null,null,null,null,null,null,null,null,null,null,null,50,null,"2016-02-19",null,null,null,0.49,"NO SATISFACTORIO",23.4931506849315,42,null,null,null,6,"NO SATISFACTORIO"]
[3092,null,null,null,null,null,null,null,null,null,null,null,null,51,null,"2016-02-20",null,null,null,0.5,"NO SATISFACTORIO",24.041095890410901,43,null,null,null,6.1,"NO SATISFACTORIO"]
[3094,null,null,null,null,null,null,null,null,null,null,null,null,52,null,"2016-02-21",null,null,null,0.51,"NO SATISFACTORIO",24.589041095890401,44,null,null,null,6.2,"NO SATISFACTORIO"]
[3070,null,null,null,null,null,null,null,null,null,null,null,null,53,null,"2016-02-22",null,null,null,0.52,"NO SATISFACTORIO",null,45,null,null,null,6.3,"NO SATISFACTORIO"]
[3102,null,null,null,null,null,null,null,null,null,null,null,null,54,null,"2016-02-23",null,null,null,0.53,"NO SATISFACTORIO",null,46,null,null,"TRES",6.4,"NO SATISFACTORIO"]
[3105,null,null,null,null,null,null,null,null,null,null,null,null,55,null,"2016-02-24",null,null,null,0.54,"NO SATISFACTORIO",null,47,null,null,null,6.5,"NO SATISFACTORIO"]
[3110,null,null,null,null,null,null,null,null,null,null,null,null,56,null,"2016-02-25",null,null,null,0.55000000000000004,"NO SATISFACTORIO",null,48,null,null,null,6.6,"NO SATISFACTORIO"]
[3116,null,null,null,null,null,null,null,null,null,null,null,null,57,null,"2016-02-26",null,null,null,0.56000000000000005,"NO SATISFACTORIO",null,49,null,null,null,6.7,"NO SATISFACTORIO"]
[3118,null,null,null,null,null,null,null,null,null,null,null,null,58,null,"2016-02-27",null,null,null,0.56999999999999995,"NO SATISFACTORIO",null,50,null,null,null,6.8,"NO SATISFACTORIO"]
[3100,null,null,null,null,null,null,null,null,null,null,null,null,59,null,"2016-02-28",null,null,null,0.57999999999999996,"NO SATISFACTORIO",null,51,null,null,null,6.9,"NO SATISFACTORIO"]
[3124,null,null,null,null,null,null,null,null,null,null,null,null,60,null,"2016-02-29",null,null,null,0.59,"NO SATISFACTORIO",null,52,null,null,null,7,"NO SATISFACTORIO"]
[3234,null,null,null,null,null,null,null,null,null,null,null,null,61,null,"2016-03-01",null,null,null,0.6,"NO SATISFACTORIO",null,53,null,null,null,7.1,"NO SATISFACTORIO"]
[3128,null,null,null,null,null,null,null,null,null,null,null,null,62,null,"2016-03-02",null,null,null,0.61,"NO SATISFACTORIO",null,54,null,null,null,7.2,"NO SATISFACTORIO"]
[3132,null,null,null,null,null,null,null,null,null,null,null,null,63,null,"2016-03-03",null,null,null,0.62,"NO SATISFACTORIO",null,55,null,null,null,7.3,"NO SATISFACTORIO"]
[3136,null,null,null,null,null,null,null,null,null,null,null,null,64,null,"2016-03-04",null,null,null,0.63,"NO SATISFACTORIO",null,56,null,null,null,7.4,"NO SATISFACTORIO"]
[3142,null,null,null,null,null,null,null,null,null,null,null,null,65,null,"2016-03-05",null,null,null,0.64,"NO SATISFACTORIO",null,57,null,null,null,7.5,"NO SATISFACTORIO"]
[3142,null,null,null,null,null,null,null,null,null,null,null,null,66,null,"2016-03-06",null,null,null,0.65010000000000001,"SATISFACTORIO",null,58,null,null,null,7.6,"NO SATISFACTORIO"]
[3142,null,null,null,null,null,null,null,null,null,null,null,null,67,null,"2016-03-07",null,null,null,0.66,"SATISFACTORIO",null,59,null,null,null,7.7,"NO SATISFACTORIO"]
[3142,null,null,null,null,null,null,null,null,null,null,null,null,68,null,"2016-03-08",null,null,null,0.67,"SATISFACTORIO",null,60,null,null,null,7.8,"NO SATISFACTORIO"]
[3142,null,null,null,null,null,null,null,null,null,null,null,null,69,null,"2016-03-09",null,null,null,0.68,"SATISFACTORIO",null,61,null,null,null,7.9,"NO SATISFACTORIO"]
[4002,null,null,null,null,null,null,null,null,null,null,null,null,70,null,"2016-03-10",null,null,null,0.69,"SATISFACTORIO",null,62,null,null,null,8,"NO SATISFACTORIO"]
[4006,null,null,null,null,null,null,null,null,null,null,null,null,71,null,"2016-03-11",null,null,null,0.7,"SATISFACTORIO",null,63,null,null,null,8.1,"NO SATISFACTORIO"]
[4008,null,null,null,null,null,null,null,null,null,null,null,null,72,null,"2016-03-12",null,null,null,0.71,"SATISFACTORIO",null,64,null,null,null,8.1999999999999993,"NO SATISFACTORIO"]
[4026,null,null,null,null,null,null,null,null,null,null,null,null,73,null,"2016-03-13",null,null,null,0.72,"SATISFACTORIO",null,65,null,null,null,8.3000000000000007,"NO SATISFACTORIO"]
[4028,null,null,null,null,null,null,null,null,null,null,null,null,74,null,"2016-03-14",null,null,null,0.73,"SATISFACTORIO",null,66,null,null,null,8.4,"NO SATISFACTORIO"]
[4032,null,null,null,null,null,null,null,null,null,null,null,null,75,null,"2016-03-15",null,null,null,0.74,"SATISFACTORIO",null,67,null,null,null,8.5,"NO SATISFACTORIO"]
[4034,null,null,null,null,null,null,null,null,null,null,null,null,76,null,"2016-03-16",null,null,null,0.75,"SATISFACTORIO",null,68,null,null,null,8.6,"NO SATISFACTORIO"]
[4036,null,null,null,null,null,null,null,null,null,null,null,null,77,null,"2016-03-17",null,null,null,0.76,"SATISFACTORIO",null,69,null,null,null,8.6999999999999993,"NO SATISFACTORIO"]
[4038,null,null,null,null,null,null,null,null,null,null,null,null,78,null,"2016-03-18",null,null,null,0.77,"SATISFACTORIO",null,70,null,null,null,8.9,"NO SATISFACTORIO"]
[4044,null,null,null,null,null,null,null,null,null,null,null,null,79,null,"2016-03-19",null,null,null,0.78,"SATISFACTORIO",null,71,null,null,null,9,"NO SATISFACTORIO"]
[4048,null,null,null,null,null,null,null,null,null,null,null,null,80,null,"2016-03-20",null,null,null,0.79,"SATISFACTORIO",null,72,null,null,"CUATRO",9.1,"NO SATISFACTORIO"]
[4056,null,null,null,null,null,null,null,null,null,null,null,null,81,null,"2016-03-21",null,null,null,0.8,"SATISFACTORIO",null,73,null,null,null,9.1999999999999993,"NO SATISFACTORIO"]
[4064,null,null,null,null,null,null,null,null,null,null,null,null,82,null,"2016-03-22",null,null,null,0.81,"SATISFACTORIO",null,74,null,null,null,9.3000000000000007,"NO SATISFACTORIO"]
[4069,null,null,null,null,null,null,null,null,null,null,null,null,83,null,"2016-03-23",null,null,null,0.82,"SATISFACTORIO",null,75,null,null,null,9.4,"NO SATISFACTORIO"]
[4078,null,null,null,null,null,null,null,null,null,null,null,null,84,null,"2016-03-24",null,null,null,0.83,"SATISFACTORIO",null,76,null,null,null,9.5,"NO SATISFACTORIO"]
[4097,null,null,null,null,null,null,null,null,null,null,null,null,85,null,"2016-03-25",null,null,null,0.84,"SATISFACTORIO",null,77,null,null,null,9.6,"NO SATISFACTORIO"]
[4097,null,null,null,null,null,null,null,null,null,null,null,null,86,null,"2016-03-26",null,null,null,0.85,"SATISFACTORIO",null,78,null,null,null,9.6999999999999993,"NO SATISFACTORIO"]
[4097,null,null,null,null,null,null,null,null,null,null,null,null,87,null,"2016-03-27",null,null,null,0.86,"SATISFACTORIO",null,79,null,null,null,9.8000000000000007,"NO SATISFACTORIO"]
[4097,null,null,null,null,null,null,null,null,null,null,null,null,88,null,"2016-03-28",null,null,null,0.87,"SATISFACTORIO",null,80,null,null,null,9.9,"NO SATISFACTORIO"]
[4097,null,null,null,null,null,null,null,null,null,null,null,null,89,null,"2016-03-29",null,null,null,0.88,"SATISFACTORIO",null,81,null,null,null,10,"NO SATISFACTORIO"]
[4103,null,null,null,null,null,null,null,null,null,null,null,null,90,null,"2016-03-30",null,null,null,0.89,"SATISFACTORIO",null,82,null,null,null,10.1,"NO SATISFACTORIO"]
[4112,null,null,null,null,null,null,null,null,null,null,null,null,91,null,"2016-03-31",null,null,null,0.9,"SATISFACTORIO",null,83,null,null,null,10.199999999999999,"NO SATISFACTORIO"]
[4114,null,null,null,null,null,null,null,null,null,null,null,null,92,null,"2016-04-01",null,null,null,0.91,"SATISFACTORIO",null,84,null,null,null,10.3,"NO SATISFACTORIO"]
[4123,null,null,null,null,null,null,null,null,null,null,null,null,93,null,"2016-04-02",null,null,null,0.93,"SATISFACTORIO",null,85,null,null,null,10.4,"NO SATISFACTORIO"]
[4128,null,null,null,null,null,null,null,null,null,null,null,null,94,null,"2016-04-03",null,null,null,0.94,"SATISFACTORIO",null,86,null,null,null,10.5,"NO SATISFACTORIO"]
[4137,null,null,null,null,null,null,null,null,null,null,null,null,95,null,"2016-04-04",null,null,null,0.95,"SOBRESALIENTE",null,87,null,null,null,10.6,"NO SATISFACTORIO"]
[4152,null,null,null,null,null,null,null,null,null,null,null,null,96,null,"2016-04-05",null,null,null,0.96,"SOBRESALIENTE",null,88,null,null,null,10.7,"NO SATISFACTORIO"]
[4158,null,null,null,null,null,null,null,null,null,null,null,null,97,null,"2016-04-06",null,null,null,0.97,"SOBRESALIENTE",null,89,null,null,null,10.8,"NO SATISFACTORIO"]
[4167,null,null,null,null,null,null,null,null,null,null,null,null,98,null,"2016-04-07",null,null,null,0.98,"SOBRESALIENTE",null,90,null,null,null,10.9,"NO SATISFACTORIO"]
[4169,null,null,null,null,null,null,null,null,null,null,null,null,99,null,"2016-04-08",null,null,null,0.99,"SOBRESALIENTE",null,91,null,null,null,11,"NO SATISFACTORIO"]
[4173,null,null,null,null,null,null,null,null,null,null,null,null,100,null,"2016-04-09",null,null,null,1,"SOBRESALIENTE",null,92,null,null,null,11.1,"NO SATISFACTORIO"]
[4178,null,null,null,null,null,null,null,null,null,null,null,null,null,null,"2016-04-10",null,null,null,1.01,"SOBRESALIENTE",null,93,null,null,null,11.2,"NO SATISFACTORIO"]
[4182,null,null,null,null,null,null,null,null,null,null,null,null,0.98,null,"2016-04-11",null,null,null,null,null,null,94,null,null,null,11.3,"NO SATISFACTORIO"]
[4210,null,null,null,null,null,null,null,null,null,null,null,null,0.99,null,"2016-04-12",null,null,null,null,null,null,95,null,null,null,11.4,"NO SATISFACTORIO"]
[4212,null,null,null,null,null,null,null,null,null,null,null,null,1,null,"2016-04-13",null,null,null,null,null,null,96,null,null,null,11.5,"NO SATISFACTORIO"]
[4215,null,null,null,null,null,null,null,null,null,null,null,null,null,null,"2016-04-14",null,null,null,null,null,null,97,null,null,null,11.6,"NO SATISFACTORIO"]
[4220,null,null,null,null,null,null,null,null,null,null,null,null,null,null,"2016-04-15",null,null,null,null,null,null,98,null,null,"CINCO",11.7,"NO SATISFACTORIO"]
[4222,null,null,null,null,null,null,null,null,null,null,null,null,null,null,"2016-04-16",null,null,null,null,null,null,99,null,null,null,11.8,"NO SATISFACTORIO"]
[4225,null,null,null,null,null,null,null,null,null,null,null,null,null,null,"2016-04-17",null,null,null,null,null,null,100,null,null,null,11.9,"NO SATISFACTORIO"]
[4225,null,null,null,null,null,null,null,null,null,null,null,null,null,null,"2016-04-18",null,null,null,null,null,null,101,null,null,null,12,"NO SATISFACTORIO"]
[null,null,null,null,null,null,null,null,null,null,null,null,null,null,null,"2016-04-19",null,null,null,null,null,null,102,null,null,null,12.1,"NO SATISFACTORIO"]
[null,null,null,null,null,null,null,null,null,null,null,null,null,null,null,"2016-04-20",null,null,null,null,null,null,103,null,null,null,12.2,"NO SATISFACTORIO"]
["Agregado para Asuntos Aéreos",null,null,null,null,null,null,null,null,null,null,null,null,null,null,"2016-04-21",null,null,null,null,null,null,104,null,null,null,12.3,"NO SATISFACTORIO"]
["Asesor",null,null,null,null,null,null,null,null,null,null,null,null,null,null,"2016-04-22",null,null,null,null,null,null,105,null,null,null,12.4,"NO SATISFACTORIO"]
["Asesor Comercial",null,null,null,null,null,null,null,null,null,null,null,null,null,null,"2016-04-23",null,null,null,null,null,null,106,null,null,null,12.5,"NO SATISFACTORIO"]
["Jefe de Oficina Asesora de Comunicaciones o de Prensa o de Jurídica o de Planeación",null,null,null,null,null,null,null,null,null,null,null,null,null,null,"2016-04-24",null,null,null,null,null,null,107,null,null,null,12.6,"NO SATISFACTORIO"]
["Administrador de Parques Nacionales",null,null,null,null,null,null,null,null,null,null,null,null,null,null,"2016-04-25",null,null,null,null,null,null,108,null,null,null,12.7,"NO SATISFACTORIO"]
["Jefe de Área protegida",null,null,null,null,null,null,null,null,null,null,null,null,null,null,"2016-04-26",null,null,null,null,null,null,109,null,null,null,12.8,"NO SATISFACTORIO"]
["Capellán",null,null,null,null,null,null,null,null,null,null,null,null,null,null,"2016-04-27",null,null,null,null,null,null,110,null,null,null,12.9,"NO SATISFACTORIO"]
["Comandante Superior de Prisiones",null,null,null,null,null,null,null,null,null,null,null,null,null,null,"2016-04-28",null,null,null,null,null,null,111,null,null,null,13,"NO SATISFACTORIO"]
["Consejero de Relaciones Exteriores",null,null,null,null,null,null,null,null,null,null,null,null,null,null,"2016-04-29",null,null,null,null,null,null,112,null,null,null,13.1,"NO SATISFACTORIO"]
["Copiloto de Aviación",null,null,null,null,null,null,null,null,null,null,null,null,null,null,"2016-04-30",null,null,null,null,null,null,113,null,null,null,13.2,"NO SATISFACTORIO"]
["Defensor de Familia",null,null,null,null,null,null,null,null,null,null,null,null,null,null,"2016-05-01",null,null,null,null,null,null,114,null,null,null,13.3,"NO SATISFACTORIO"]
["Director de Establecimiento Carcelario",null,null,null,null,null,null,null,null,null,null,null,null,null,null,"2016-05-02",null,null,null,null,null,null,115,null,null,null,13.4,"NO SATISFACTORIO"]
["Especialista Asesor Primero",null,null,null,null,null,null,null,null,null,null,null,null,null,null,"2016-05-03",null,null,null,null,null,null,116,null,null,null,13.5,"NO SATISFACTORIO"]
["Especialista Jefe",null,null,null,null,null,null,null,null,null,null,null,null,null,null,"2016-05-04",null,null,null,null,null,null,117,null,null,null,13.6,"NO SATISFACTORIO"]
["Inspector de Trabajo y Seguridad Social",null,null,null,null,null,null,null,null,null,null,null,null,null,null,"2016-05-05",null,null,null,null,null,null,118,null,null,null,13.7,"NO SATISFACTORIO"]
["Inspector de Trabajo y Seguridad Social Especializado",null,null,null,null,null,null,null,null,null,null,null,null,null,null,"2016-05-06",null,null,null,null,null,null,119,null,null,null,13.8,"NO SATISFACTORIO"]
["Médico",null,null,null,null,null,null,null,null,null,null,null,null,null,null,"2016-05-07",null,null,null,null,null,null,120,null,null,null,13.9,"NO SATISFACTORIO"]
["Médico Especialista",null,null,null,null,null,null,null,null,null,null,null,null,null,null,"2016-05-08",null,null,null,null,null,null,121,null,null,null,14,"NO SATISFACTORIO"]
["Odontólogo",null,null,null,null,null,null,null,null,null,null,null,null,null,null,"2016-05-09",null,null,null,null,null,null,122,null,null,null,14.1,"NO SATISFACTORIO"]
["Odontólogo Especialista",null,null,null,null,null,null,null,null,null,null,null,null,null,null,"2016-05-10",null,null,null,null,null,null,123,null,null,null,14.2,"NO SATISFACTORIO"]
["Oficial Logístico",null,null,null,null,null,null,null,null,null,null,null,null,null,null,"2016-05-11",null,null,null,null,null,null,124,null,null,"SEIS",14.3,"NO SATISFACTORIO"]
["Oficial de Tratamiento Penitenciario",null,null,null,null,null,null,null,null,null,null,null,null,null,null,"2016-05-12",null,null,null,null,null,null,125,null,null,null,14.4,"NO SATISFACTORIO"]
["Pastor u Orientador Espiritual",null,null,null,null,null,null,null,null,null,null,null,null,null,null,"2016-05-13",null,null,null,null,null,null,126,null,null,null,14.5,"NO SATISFACTORIO"]
["Piloto de Aviación",null,null,null,null,null,null,null,null,null,null,null,null,null,null,"2016-05-14",null,null,null,null,null,null,127,null,null,null,14.6,"NO SATISFACTORIO"]
["Primer Secretario de Relaciones Exteriores",null,null,null,null,null,null,null,null,null,null,null,null,null,null,"2016-05-15",null,null,null,null,null,null,128,null,null,null,14.7,"NO SATISFACTORIO"]
["Profesional de Gestión Institucional",null,null,null,null,null,null,null,null,null,null,null,null,null,null,"2016-05-16",null,null,null,null,null,null,129,null,null,null,14.8,"NO SATISFACTORIO"]
["Profesional de Gestión Institucional",null,null,null,null,null,null,null,null,null,null,null,null,null,null,"2016-05-17",null,null,null,null,null,null,130,null,null,null,14.9,"NO SATISFACTORIO"]
["Profesional Especializado",null,null,null,null,null,null,null,null,null,null,null,null,null,null,"2016-05-18",null,null,null,null,null,null,131,null,null,null,15,"NO SATISFACTORIO"]
["Profesional Especializado Area de la Salud",null,null,null,null,null,null,null,null,null,null,null,null,null,null,"2016-05-19",null,null,null,null,null,null,132,null,null,null,15.1,"NO SATISFACTORIO"]
["Profesional Universitario",null,null,null,null,null,null,null,null,null,null,null,null,null,null,"2016-05-20",null,null,null,null,null,null,133,null,null,null,15.2,"NO SATISFACTORIO"]
["Profesional Universitario Area de la Salud",null,null,null,null,null,null,null,null,null,null,null,null,null,null,"2016-05-21",null,null,null,null,null,null,134,null,null,null,15.3,"NO SATISFACTORIO"]
["Registrador Delegado",null,null,null,null,null,null,null,null,null,null,null,null,null,null,"2016-05-22",null,null,null,null,null,null,135,null,null,null,15.4,"NO SATISFACTORIO"]
["Registrador Seccional",null,null,null,null,null,null,null,null,null,null,null,null,null,null,"2016-05-23",null,null,null,null,null,null,136,null,null,null,15.5,"NO SATISFACTORIO"]
["Representante del Ministro de Educación ante Entidad Territorial",null,null,null,null,null,null,null,null,null,null,null,null,null,null,"2016-05-24",null,null,null,null,null,null,137,null,null,null,15.6,"NO SATISFACTORIO"]
["Restaurador o Museólogo o Curador",null,null,null,null,null,null,null,null,null,null,null,null,null,null,"2016-05-25",null,null,null,null,null,null,138,null,null,null,15.7,"NO SATISFACTORIO"]
["Secretario de Facultad",null,null,null,null,null,null,null,null,null,null,null,null,null,null,"2016-05-26",null,null,null,null,null,null,139,null,null,null,15.8,"NO SATISFACTORIO"]
["Secretario Comercial I",null,null,null,null,null,null,null,null,null,null,null,null,null,null,"2016-05-27",null,null,null,null,null,null,140,null,null,null,15.9,"NO SATISFACTORIO"]
["Secretario Comercial II",null,null,null,null,null,null,null,null,null,null,null,null,null,null,"2016-05-28",null,null,null,null,null,null,141,null,null,null,16,"NO SATISFACTORIO"]
["Segundo Secretario de Relaciones Exteriores",null,null,null,null,null,null,null,null,null,null,null,null,null,null,"2016-05-29",null,null,null,null,null,null,142,null,null,null,16.100000000000001,"NO SATISFACTORIO"]
["Subdirector de Establecimiento Carcelario",null,null,null,null,null,null,null,null,null,null,null,null,null,null,"2016-05-30",null,null,null,null,null,null,143,null,null,null,16.2,"NO SATISFACTORIO"]
["Tercer Secretario de Relaciones Exteriores",null,null,null,null,null,null,null,null,null,null,null,null,null,null,"2016-05-31",null,null,null,null,null,null,144,null,null,null,16.3,"NO SATISFACTORIO"]
["Analista de Sistemas",null,null,null,null,null,null,null,null,null,null,null,null,null,null,"2016-06-01",null,null,null,null,null,null,145,null,null,null,16.399999999999999,"NO SATISFACTORIO"]
["Auxiliar de Escena",null,null,null,null,null,null,null,null,null,null,null,null,null,null,"2016-06-02",null,null,null,null,null,null,146,null,null,null,16.5,"NO SATISFACTORIO"]
["Auxiliar de Pronóstico",null,null,null,null,null,null,null,null,null,null,null,null,null,null,"2016-06-03",null,null,null,null,null,null,147,null,null,null,16.600000000000001,"NO SATISFACTORIO"]
["Auxiliar de Técnico",null,null,null,null,null,null,null,null,null,null,null,null,null,null,"2016-06-04",null,null,null,null,null,null,148,null,null,null,16.7,"NO SATISFACTORIO"]
["Dactiloscopista",null,null,null,null,null,null,null,null,null,null,null,null,null,null,"2016-06-05",null,null,null,null,null,null,149,null,null,null,16.8,"NO SATISFACTORIO"]
["Tecnico",null,null,null,null,null,null,null,null,null,null,null,null,null,null,"2016-06-06",null,null,null,null,null,null,150,null,null,"SIETE",16.899999999999999,"NO SATISFACTORIO"]
["Especialista Primero",null,null,null,null,null,null,null,null,null,null,null,null,null,null,"2016-06-07",null,null,null,null,null,null,151,null,null,null,17,"NO SATISFACTORIO"]
["Especialista Segundo",null,null,null,null,null,null,null,null,null,null,null,null,null,null,"2016-06-08",null,null,null,null,null,null,152,null,null,null,17.100000000000001,"NO SATISFACTORIO"]
["Especialista Tercero",null,null,null,null,null,null,null,null,null,null,null,null,null,null,"2016-06-09",null,null,null,null,null,null,153,null,null,null,17.2,"NO SATISFACTORIO"]
["Especialista Cuarto",null,null,null,null,null,null,null,null,null,null,null,null,null,null,"2016-06-10",null,null,null,null,null,null,154,null,null,null,17.3,"NO SATISFACTORIO"]
["Especialista Quinto",null,null,null,null,null,null,null,null,null,null,null,null,null,null,"2016-06-11",null,null,null,null,null,null,155,null,null,null,17.399999999999999,"NO SATISFACTORIO"]
["Especialista Sexto",null,null,null,null,null,null,null,null,null,null,null,null,null,null,"2016-06-12",null,null,null,null,null,null,156,null,null,null,17.5,"NO SATISFACTORIO"]
["Instructor",null,null,null,null,null,null,null,null,null,null,null,null,null,null,"2016-06-13",null,null,null,null,null,null,157,null,null,null,17.600000000000001,"NO SATISFACTORIO"]
["Instrumentador Quirúrgico",null,null,null,null,null,null,null,null,null,null,null,null,null,null,"2016-06-14",null,null,null,null,null,null,158,null,null,null,17.7,"NO SATISFACTORIO"]
["Observador de Superficie",null,null,null,null,null,null,null,null,null,null,null,null,null,null,"2016-06-15",null,null,null,null,null,null,159,null,null,null,17.8,"NO SATISFACTORIO"]
["Oficial de Catastro",null,null,null,null,null,null,null,null,null,null,null,null,null,null,"2016-06-16",null,null,null,null,null,null,160,null,null,null,17.899999999999999,"NO SATISFACTORIO"]
["Pronosticador",null,null,null,null,null,null,null,null,null,null,null,null,null,null,"2016-06-17",null,null,null,null,null,null,161,null,null,null,18,"NO SATISFACTORIO"]
["Radiosondista",null,null,null,null,null,null,null,null,null,null,null,null,null,null,"2016-06-18",null,null,null,null,null,null,162,null,null,null,18.100000000000001,"NO SATISFACTORIO"]
["Técnico",null,null,null,null,null,null,null,null,null,null,null,null,null,null,"2016-06-19",null,null,null,null,null,null,163,null,null,null,18.2,"NO SATISFACTORIO"]
["Técnico Administrativo",null,null,null,null,null,null,null,null,null,null,null,null,null,null,"2016-06-20",null,null,null,null,null,null,164,null,null,null,18.3,"NO SATISFACTORIO"]
["Técnico Area Salud",null,null,null,null,null,null,null,null,null,null,null,null,null,null,"2016-06-21",null,null,null,null,null,null,165,null,null,null,18.399999999999999,"NO SATISFACTORIO"]
["Técnico de Servicios Asistenciales",null,null,null,null,null,null,null,null,null,null,null,null,null,null,"2016-06-22",null,null,null,null,null,null,166,null,null,null,18.5,"NO SATISFACTORIO"]
["Técnico Operativo",null,null,null,null,null,null,null,null,null,null,null,null,null,null,"2016-06-23",null,null,null,null,null,null,167,null,null,null,18.600000000000001,"NO SATISFACTORIO"]
["Topógrafo",null,null,null,null,null,null,null,null,null,null,null,null,null,null,"2016-06-24",null,null,null,null,null,null,168,null,null,null,18.7,"NO SATISFACTORIO"]
["Topógrafo Tecnólogo",null,null,null,null,null,null,null,null,null,null,null,null,null,null,"2016-06-25",null,null,null,null,null,null,169,null,null,null,18.8,"NO SATISFACTORIO"]
["Adjunto Jefe",null,null,null,null,null,null,null,null,null,null,null,null,null,null,"2016-06-26",null,null,null,null,null,null,170,null,null,null,18.899999999999999,"NO SATISFACTORIO"]
["Adjunto Intendente",null,null,null,null,null,null,null,null,null,null,null,null,null,null,"2016-06-27",null,null,null,null,null,null,171,null,null,null,19,"NO SATISFACTORIO"]
["Adjunto Mayor",null,null,null,null,null,null,null,null,null,null,null,null,null,null,"2016-06-28",null,null,null,null,null,null,172,null,null,null,19.100000000000001,"NO SATISFACTORIO"]
["Adjunto Especial",null,null,null,null,null,null,null,null,null,null,null,null,null,null,"2016-06-29",null,null,null,null,null,null,173,null,null,null,19.2,"NO SATISFACTORIO"]
["Adjunto Primero",null,null,null,null,null,null,null,null,null,null,null,null,null,null,"2016-06-30",null,null,null,null,null,null,174,null,null,null,19.3,"NO SATISFACTORIO"]
["Adjunto Segundo",null,null,null,null,null,null,null,null,null,null,null,null,null,null,"2016-07-01",null,null,null,null,null,null,175,null,null,null,19.399999999999999,"NO SATISFACTORIO"]
["Adjunto Tercero",null,null,null,null,null,null,null,null,null,null,null,null,null,null,"2016-07-02",null,null,null,null,null,null,176,null,null,"OCHO",19.5,"NO SATISFACTORIO"]
["Adjunto Cuarto",null,null,null,null,null,null,null,null,null,null,null,null,null,null,"2016-07-03",null,null,null,null,null,null,177,null,null,null,19.600000000000001,"NO SATISFACTORIO"]
["Adjunto Quinto",null,null,null,null,null,null,null,null,null,null,null,null,null,null,"2016-07-04",null,null,null,null,null,null,178,null,null,null,19.7,"NO SATISFACTORIO"]
["Auxiliar Administrativo",null,null,null,null,null,null,null,null,null,null,null,null,null,null,"2016-07-05",null,null,null,null,null,null,179,null,null,null,19.8,"NO SATISFACTORIO"]
["Auxiliar Area Salud",null,null,null,null,null,null,null,null,null,null,null,null,null,null,"2016-07-06",null,null,null,null,null,null,180,null,null,null,19.899999999999999,"NO SATISFACTORIO"]
["Auxiliar Bilingüe",null,null,null,null,null,null,null,null,null,null,null,null,null,null,"2016-07-07",null,null,null,null,null,null,181,null,null,null,20,"NO SATISFACTORIO"]
["Auxiliar de Servicios Asistenciales",null,null,null,null,null,null,null,null,null,null,null,null,null,null,"2016-07-08",null,null,null,null,null,null,182,null,null,null,20.100000000000001,"NO SATISFACTORIO"]
["Auxiliar de Servicios Generales",null,null,null,null,null,null,null,null,null,null,null,null,null,null,"2016-07-09",null,null,null,null,null,null,183,null,null,null,20.2,"NO SATISFACTORIO"]
["Capitán de Prisiones",null,null,null,null,null,null,null,null,null,null,null,null,null,null,"2016-07-10",null,null,null,null,null,null,184,null,null,null,20.3,"NO SATISFACTORIO"]
["Celador",null,null,null,null,null,null,null,null,null,null,null,null,null,null,"2016-07-11",null,null,null,null,null,null,185,null,null,null,20.399999999999999,"NO SATISFACTORIO"]
["Asistencial",null,null,null,null,null,null,null,null,null,null,null,null,null,null,"2016-07-12",null,null,null,null,null,null,186,null,null,null,20.5,"NO SATISFACTORIO"]
["Conductor Mecánico",null,null,null,null,null,null,null,null,null,null,null,null,null,null,"2016-07-13",null,null,null,null,null,null,187,null,null,null,20.6,"NO SATISFACTORIO"]
["Distinguido",null,null,null,null,null,null,null,null,null,null,null,null,null,null,"2016-07-14",null,null,null,null,null,null,188,null,null,null,20.7,"NO SATISFACTORIO"]
["Dragoneante",null,null,null,null,null,null,null,null,null,null,null,null,null,null,"2016-07-15",null,null,null,null,null,null,189,null,null,null,20.8,"NO SATISFACTORIO"]
["Ecónomo",null,null,null,null,null,null,null,null,null,null,null,null,null,null,"2016-07-16",null,null,null,null,null,null,190,null,null,null,20.9,"NO SATISFACTORIO"]
["Enfermero Auxiliar",null,null,null,null,null,null,null,null,null,null,null,null,null,null,"2016-07-17",null,null,null,null,null,null,191,null,null,null,21,"NO SATISFACTORIO"]
["Inspector",null,null,null,null,null,null,null,null,null,null,null,null,null,null,"2016-07-18",null,null,null,null,null,null,192,null,null,null,21.1,"NO SATISFACTORIO"]
["Inspector Jefe",null,null,null,null,null,null,null,null,null,null,null,null,null,null,"2016-07-19",null,null,null,null,null,null,193,null,null,null,21.2,"NO SATISFACTORIO"]
["Mayor de Prisiones",null,null,null,null,null,null,null,null,null,null,null,null,null,null,"2016-07-20",null,null,null,null,null,null,194,null,null,null,21.3,"NO SATISFACTORIO"]
["Operario",null,null,null,null,null,null,null,null,null,null,null,null,null,null,"2016-07-21",null,null,null,null,null,null,195,null,null,null,21.4,"NO SATISFACTORIO"]
["Operario Calificado",null,null,null,null,null,null,null,null,null,null,null,null,null,null,"2016-07-22",null,null,null,null,null,null,196,null,null,null,21.5,"NO SATISFACTORIO"]
["Pagador",null,null,null,null,null,null,null,null,null,null,null,null,null,null,"2016-07-23",null,null,null,null,null,null,197,null,null,null,21.6,"NO SATISFACTORIO"]
["Secretario",null,null,null,null,null,null,null,null,null,null,null,null,null,null,"2016-07-24",null,null,null,null,null,null,198,null,null,null,21.7,"NO SATISFACTORIO"]
["Secretario Bilingüe",null,null,null,null,null,null,null,null,null,null,null,null,null,null,"2016-07-25",null,null,null,null,null,null,199,null,null,null,21.8,"NO SATISFACTORIO"]
["Secretario Ejecutivo",null,null,null,null,null,null,null,null,null,null,null,null,null,null,"2016-07-26",null,null,null,null,null,null,200,null,null,null,21.9,"NO SATISFACTORIO"]
["Secretario Ejecutivo del Despacho de Ministro o de Director de Departamento Administrativo",null,null,null,null,null,null,null,null,null,null,null,null,null,null,"2016-07-27",null,null,null,null,null,null,201,null,null,null,22,"NO SATISFACTORIO"]
["Secretario Ejecutivo del Despacho del Viceministro o de Subdirector de Departamento Administrativo",null,null,null,null,null,null,null,null,null,null,null,null,null,null,"2016-07-28",null,null,null,null,null,null,202,null,null,"NUEVE",22.1,"NO SATISFACTORIO"]
["Supervisor",null,null,null,null,null,null,null,null,null,null,null,null,null,null,"2016-07-29",null,null,null,null,null,null,203,null,null,null,22.2,"NO SATISFACTORIO"]
["Teniente de Prisiones",null,null,null,null,null,null,null,null,null,null,null,null,null,null,"2016-07-30",null,null,null,null,null,null,204,null,null,null,22.3,"NO SATISFACTORIO"]
["Tesorero",null,null,null,null,null,null,null,null,null,null,null,null,null,null,"2016-07-31",null,null,null,null,null,null,205,null,null,null,22.4,"NO SATISFACTORIO"]
[null,null,null,null,null,null,null,null,null,null,null,null,null,null,null,"2016-08-01",null,null,null,null,null,null,206,null,null,null,22.5,"NO SATISFACTORIO"]
[null,null,null,null,null,null,null,null,null,null,null,null,null,null,null,"2016-08-02",null,null,null,null,null,null,207,null,null,null,22.6,"NO SATISFACTORIO"]
[null,null,null,null,null,null,null,null,null,null,null,null,null,null,null,"2016-08-03",null,null,null,null,null,null,208,null,null,null,22.7,"NO SATISFACTORIO"]
[null,null,null,null,null,null,null,null,null,null,null,null,null,null,null,"2016-08-04",null,null,null,null,null,null,209,null,null,null,22.8,"NO SATISFACTORIO"]
["NIVEL","Competencia","Concatenar","Definición de la competencia","Conductas asociadas",null,null,null,null,null,null,null,null,null,null,null,"2016-08-05",null,null,null,null,null,null,210,null,null,null,22.9,"NO SATISFACTORIO"]
[null,null,null,null,null,null,null,null,null,null,null,null,null,null,null,null,"2016-08-06",null,null,null,null,null,null,211,null,null,null,23,"NO SATISFACTORIO"]
["ASESOR","Orientación a resultados ",{"$f":"A221&B221","v":"ASESOROrientación a resultados "},"Realizar las funciones y cumplir los compromisos organizacionales con eficacia y calidad. ","▪ Cumple con oportunidad en función de estándares, objetivos y metas establecidas por la entidad, las funciones que le son asignadas.\n▪ Asume la responsabilidad por sus resultados.\n▪ Compromete recursos y tiempos para mejorar la productividad tomando las medidas necesarias para minimizar los riesgos.\n▪ Realiza todas las acciones necesarias para alcanzar los objetivos propuestos enfrentando los obstáculos que se presentan.",null,null,"NIVEL","COMPETENCIA",null,null,null,null,null,null,null,"2016-08-07",null,null,null,null,null,null,212,null,null,null,23.1,"NO SATISFACTORIO"]
["ASESOR","Orientación al usuario y al ciudadano",{"$f":"A222&B222","v":"ASESOROrientación al usuario y al ciudadano"},"Dirigir las decisiones y acciones a la satisfacción de las necesidades e intereses de los usuarios internos y externos, de conformidad con las responsabilidades públicas asignadas a la entidad.","▪ Atiende y valora las necesidades y peticiones de los usuarios y de ciudadanos en general.\n▪Considera las necesidades de los usuarios al diseñar proyectos o servicios.\n▪Da respuesta oportuna a las necesidades de los usuarios de conformidad con el servicio que ofrece la entidad.\n▪Establece diferentes canales de comunicación con el usuario para conocer sus necesidades y propuestas y responde a las mismas.\n▪Reconoce la interdependencia entre su trabajo y el de otros.",null,null,"PROFESIONAL",null,null,null,null,null,null,null,null,"2016-08-08",null,null,null,null,null,null,213,null,null,null,23.2,"NO SATISFACTORIO"]
["ASESOR","Compromiso con la Organización","ASESORCompromiso con la Organización","Alinear el propio comportamiento a las necesidades, prioridades y metas organizacionales.","▪Promueve las metas de la organización y respeta sus normas.\n▪Antepone las necesidades de la organización a sus propias necesidades.\n▪Apoya a la organización en situaciones difíciles.\n▪Demuestra sentido de pertenencia en todas sus actuaciones.",null,null,null,null,null,null,null,null,null,null,null,"2016-08-09",null,null,null,null,null,null,214,null,null,null,23.3,"NO SATISFACTORIO",null,"NIVEL","COMPETENCIA","DEFINICIÒN DE LA COMPETENCIA","CONDUCTAS ASOCIADAS"]
["ASESOR","Experticia profesional","ASESORExperticia profesional","Aplicar el conocimiento profesional","▪Orienta el desarrollo de proyectos especiales para el logro de resultados de la alta dirección.\n▪Aconseja y orienta la toma de decisiones en los temas que le han sido asignados.\n▪Asesora en materias propias de su campo de conocimiento, emitiendo conceptos, juicios o propuestas ajustados a lineamientos teóricos y técnicos.\n▪Se comunica de modo lógico, claro, efectivo y seguro.",null,null,null,null,null,null,null,null,null,null,null,"2016-08-10",null,null,null,null,null,null,215,null,null,null,23.4,"NO SATISFACTORIO",null,"ASESOR","Experticia","Aplicar el conocimiento profesional","▪Orienta el desarrollo de proyectos especiales para el logro de resultados de la alta dirección.\n▪Aconseja y orienta la toma de decisiones en los temas que le han sido asignados.\n▪Asesora en materias propias de su campo de conocimiento, emitiendo conceptos, juicios o propuestas ajustados a lineamientos teóricos y técnicos.\n▪Se comunica de modo lógico, claro, efectivo y seguro."]
["ASESOR","Conocimiento del entorno","ASESORConocimiento del entorno","Conocer e interpretar la organización, su funcionamiento y sus relaciones políticas y administrativas.","▪Comprende el entorno organizacional que enmarca las situaciones objeto de asesoría y lo toma como referente obligado para emitir juicios, conceptos o propuestas a desarrollar.\n▪Se informa permanentemente sobre políticas gubernamentales, problemas y demandas del entorno.",null,null,null,null,null,null,null,null,null,null,null,"2016-08-11",null,null,null,null,null,null,216,null,null,null,23.5,"NO SATISFACTORIO",null,"ASESOR","Conocimiento del entorno","Conocer e interpretar la organización, su funcionamiento y sus relaciones políticas y administrativas.","▪Comprende el entorno organizacional que enmarca las situaciones objeto de asesoría y lo toma como referente obligado para emitir juicios, conceptos o propuestas a desarrollar.\n▪Se informa permanentemente sobre políticas gubernamentales, problemas y demandas del entorno."]
["ASESOR","Construcción de relaciones","ASESORConstrucción de relaciones","Establecer y mantener relaciones cordiales y recíprocas con redes o grupos de personas internas y externas a la organización que faciliten la consecución de los objetivos institucionales.","▪Utiliza sus contactos para conseguir objetivos.\n▪Comparte información para establecer lazos.\n▪Interactúa con otros de un modo efectivo y adecuado.",null,null,null,null,null,null,null,null,null,null,null,"2016-08-12",null,null,null,null,null,null,217,null,null,null,23.6,"NO SATISFACTORIO",null,"ASESOR","Construcción de relaciones","Establecer y mantener relaciones cordiales y recíprocas con redes o grupos de personas internas y externas a la organización que faciliten la consecución de los objetivos institucionales.","▪Utiliza sus contactos para conseguir objetivos.\n▪Comparte información para establecer lazos.\n▪Interactúa con otros de un modo efectivo y adecuado."]
["ASESOR","Iniciativa","ASESORIniciativa","Anticiparse a los problemas iniciando acciones para superar los obstáculos y alcanzar metas concretas","▪Prevé situaciones y alternativas de solución que orientan la toma de decisiones de la alta dirección.\n▪Enfrenta los problemas y propone acciones concretas para solucionarlos.\n▪Reconoce y hace viables las oportunidades.",null,null,null,null,null,null,null,null,null,null,null,"2016-08-13",null,null,null,null,null,null,218,null,null,null,23.7,"NO SATISFACTORIO",null,"ASESOR","Iniciativa","Anticiparse a los problemas iniciando acciones para superar los obstáculos y alcanzar metas concretas","▪Prevé situaciones y alternativas de solución que orientan la toma de decisiones de la alta dirección.\n▪Enfrenta los problemas y propone acciones concretas para solucionarlos.\n▪Reconoce y hace viables las oportunidades."]
["PROFESIONAL","Orientación a resultados ","PROFESIONALOrientación a resultados ","Realizar las funciones y cumplir los compromisos organizacionales con eficacia y calidad. ","▪ Cumple con oportunidad en función de estándares, objetivos y metas establecidas por la entidad, las funciones que le son asignadas.\n▪ Asume la responsabilidad por sus resultados.\n▪ Compromete recursos y tiempos para mejorar la productividad tomando las medidas necesarias para minimizar los riesgos.\n▪ Realiza todas las acciones necesarias para alcanzar los objetivos propuestos enfrentando los obstáculos que se presentan.",null,null,"NIVEL","COMPETENCIA",null,null,null,null,null,null,null,"2016-08-07",null,null,null,null,null,null,212,null,null,null,23.1,"NO SATISFACTORIO"]
["PROFESIONAL","Orientación al usuario y al ciudadano","PROFESIONALOrientación al usuario y al ciudadano","Dirigir las decisiones y acciones a la satisfacción de las necesidades e intereses de los usuarios internos y externos, de conformidad con las responsabilidades públicas asignadas a la entidad.","▪ Atiende y valora las necesidades y peticiones de los usuarios y de ciudadanos en general.\n▪Considera las necesidades de los usuarios al diseñar proyectos o servicios.\n▪Da respuesta oportuna a las necesidades de los usuarios de conformidad con el servicio que ofrece la entidad.\n▪Establece diferentes canales de comunicación con el usuario para conocer sus necesidades y propuestas y responde a las mismas.\n▪Reconoce la interdependencia entre su trabajo y el de otros.",null,null,"ASESOR",null,null,null,null,null,null,null,null,"2016-08-08",null,null,null,null,null,null,213,null,null,null,23.2,"NO SATISFACTORIO"]
["PROFESIONAL","Compromiso con la Organización","PROFESIONALCompromiso con la Organización","Alinear el propio comportamiento a las necesidades, prioridades y metas organizacionales.","▪Promueve las metas de la organización y respeta sus normas.\n▪Antepone las necesidades de la organización a sus propias necesidades.\n▪Apoya a la organización en situaciones difíciles.\n▪Demuestra sentido de pertenencia en todas sus actuaciones.",null,null,null,null,null,null,null,null,null,null,null,"2016-08-09",null,null,null,null,null,null,214,null,null,null,23.3,"NO SATISFACTORIO",null,"NIVEL","COMPETENCIA","DEFINICIÒN DE LA COMPETENCIA","CONDUCTAS ASOCIADAS"]
["PROFESIONAL","Aprendizaje Continuo","PROFESIONALAprendizaje Continuo","Adquirir y desarrollar permanentemente conocimientos, destrezas y habilidades, con el fin de mantener altos estándares de eficacia organizacional.","▪Aprende de la experiencia de otros y de la propia.\n▪Se adapta y aplica nuevas tecnologías que se implanten en la organización.\n▪Aplica los conocimientos adquiridos a los desafíos que se presentan en el desarrollo del trabajo.\n▪Investiga, indaga y profundiza en los temas de su entorno área de desempeño.\n▪Reconoce las propias limitaciones y las necesidades de mejorar su preparación.\n▪Asimila nueva información y la aplica correctamente.",null,null,null,null,null,null,null,null,null,null,null,"2016-08-14",null,null,null,null,null,null,219,null,null,null,23.8,"NO SATISFACTORIO",null,"ASESOR","Orientación a resultados ","Realizar las funciones y cumplir los compromisos organizacionales con eficacia y calidad. ","▪ Cumple con oportunidad en función de estándares, objetivos y metas establecidas por la entidad, las funciones que le son asignadas.\n▪ Asume la responsabilidad por sus resultados.\n▪ Compromete recursos y tiempos para mejorar la productividad tomando las medidas necesarias para minimizar los riesgos.\n▪ Realiza todas las acciones necesarias para alcanzar los objetivos propuestos enfrentando los obstáculos que se presentan."]
["PROFESIONAL","Experticia profesional","PROFESIONALExperticia profesional","Aplicar el conocimiento profesional en la resolución de problemas y transferirlo a su entorno laboral.","▪Analiza de un modo sistemático y racional los aspectos del trabajo, basándose en la información relevante.\n▪Aplica reglas básicas y conceptos complejos aprendidos\n▪Identifica y reconoce con facilidad las causas de los problemas y sus soluciones.\n▪Clarifica datos o situaciones complejas.\n▪Planea, organiza y ejecuta múltiples tareas tendientes a alcanzar resultados institucionales.",null,null,null,null,null,null,null,null,null,null,null,"2016-08-15",null,null,null,null,null,null,220,null,null,null,23.9,"NO SATISFACTORIO",null,"ASESOR","Orientación al usuario y al ciudadano","Dirigir las decisiones y acciones a la satisfacción de las necesidades e intereses de los usuarios internos y externos, de conformidad con las responsabilidades públicas asignadas a la entidad.","▪ Atiende y valora las necesidades y peticiones de los usuarios y de ciudadanos en general.\n▪Considera las necesidades de los usuarios al diseñar proyectos o servicios.\n▪Da respuesta oportuna a las necesidades de los usuarios de conformidad con el servicio que ofrece la entidad.\n▪Establece diferentes canales de comunicación con el usuario para conocer sus necesidades y propuestas y responde a las mismas.\n▪Reconoce la interdependencia entre su trabajo y el de otros.\n"]
["PROFESIONAL","Trabajo en equipo y Colaboración","PROFESIONALTrabajo en equipo y Colaboración","Trabajar con otros de forma conjunta y de manera participativa, integrando esfuerzos para la consecución de metas institucionales comunes.","▪Coopera en distintas situaciones y comparte información.\n▪Aporta sugerencias, ideas y opiniones.\n▪Expresa expectativas positivas del equipo o de los miembros del mismo.\n▪Planifica las propias acciones teniendo en cuenta la repercusión de las mismas para la consecución de los objetivos grupales.\n▪Establece diálogo directo con los miembros del equipo que permita compartir información e ideas en condiciones de respeto y cordialidad.\n▪Respeta criterios dispares y distintas opiniones del equipo.",null,null,null,null,null,null,null,null,null,null,null,"2016-08-16",null,null,null,null,null,null,221,null,null,null,24,"NO SATISFACTORIO",null,"ASESOR","Compromiso con la Organización","Alinear el propio comportamiento a las necesidades, prioridades y metas organizacionales.","▪Promueve las metas de la organización y respeta sus normas.\n▪Antepone las necesidades de la organización a sus propias necesidades.\n▪Apoya a la organización en situaciones difíciles.\n▪Demuestra sentido de pertenencia en todas sus actuaciones."]
["PROFESIONAL","Creatividad e Innovación","PROFESIONALCreatividad e Innovación","Generar y desarrollar nuevas ideas, conceptos, métodos y soluciones.","▪Ofrece respuestas alternativas.\n▪Aprovecha las oportunidades y problemas para dar soluciones novedosas.\n▪Desarrolla nuevas formas de hacer y tecnologías.\n▪Busca nuevas alternativas de solución y se arriesga a romper esquemas tradicionales.\n▪Inicia acciones para superar los obstáculos y alcanzar metas específicas.",null,null,null,null,null,null,null,null,null,null,null,"2016-08-17",null,null,null,null,null,null,222,null,null,null,24.1,"NO SATISFACTORIO",null,"PROFESIONAL","Aprendizaje Continuo","Adquirir y desarrollar permanentemente conocimientos, destrezas y habilidades, con el fin de mantener altos estándares de eficacia organizacional.","▪Aprende de la experiencia de otros y de la propia.\n▪Se adapta y aplica nuevas tecnologías que se implanten en la organización.\n▪Aplica los conocimientos adquiridos a los desafíos que se presentan en el desarrollo del trabajo.\n▪Investiga, indaga y profundiza en los temas de su entorno área de desempeño.\n▪Reconoce las propias limitaciones y las necesidades de mejorar su preparación.\n▪Asimila nueva información y la aplica correctamente."]
["PROFESIONAL","Liderazgo de Grupos de Trabajo (personal a cargo)","PROFESIONALLiderazgo de Grupos de Trabajo (personal a cargo)","Asumir el rol de orientar y guía de un grupo o equipo de trabajo, utilizando la autoridad con arreglo a las normas y promoviendo la Efectividad en la consecución de objetivos y metas institucionales.","▪Establece los objetivos del grupo de forma clara y equilibrada.\n▪Asegura que los integrantes del grupo compartan planes, programas y proyectos institucionales.\n▪Orienta y coordina el trabajo del grupo para la identificación de planes y actividades a seguir.\n▪Facilita la colaboración con otras áreas y dependencias.\n▪Escucha y tiene en cuenta las opiniones de los integrantes del grupo.\n▪Gestiona los recursos necesarios para poder cumplir con las metas propuestas.\n▪Garantiza los recursos necesarios para poder cumplir con las metas propuestas.\n▪Garantiza que el grupo tenga la información necesaria.\n▪Explica las razones de las decisiones.",null,null,null,null,null,null,null,null,null,null,null,"2016-08-18",null,null,null,null,null,null,223,null,null,null,24.2,"NO SATISFACTORIO",null,"PROFESIONAL","Experticia profesional","Aplicar el conocimiento profesional en la resolución de problemas y transferirlo a su entorno laboral.","▪Analiza de un modo sistemático y racional los aspectos del trabajo, basándose en la información relevante.\n▪Aplica reglas básicas y conceptos complejos aprendidos\n▪Identifica y reconoce con facilidad las causas de los problemas y sus soluciones.\n▪Clarifica datos o situaciones complejas.\n▪Planea, organiza y ejecuta múltiples tareas tendientes a alcanzar resultados institucionales.\n"]
["PROFESIONAL","Toma de decisiones (personal a cargo)","PROFESIONALToma de decisiones (personal a cargo)","Elegir entre una o varias alternativas para solucionar un problema y tomar las acciones concretas y consecuentes con la elección realizada.","▪Elige alternativas de solución efectiva y suficiente para atender los asuntos encomendados.\n▪Decide y establece prioridades para el trabajo del grupo.\n▪Asume posiciones concretas para el manejo de temas o situaciones que demandan su atención.\n▪Efectúa cambios en las actividades o en la manera de desarrollar sus responsabilidades cuando detecta dificultades para su realización o mejores prácticas que pueden optimizar el desempeño.\n▪Asume las consecuencias de las decisiones adoptadas.\n▪Fomenta la participación en la toma de decisiones.",null,null,null,null,null,null,null,null,null,null,null,"2016-08-19",null,null,null,null,null,null,224,null,null,null,24.3,"NO SATISFACTORIO",null,"PROFESIONAL","Trabajo en equipo y Colaboración","Trabajar con otros de forma conjunta y de manera participativa, integrando esfuerzos para la consecución de metas institucionales comunes.","▪Coopera en distintas situaciones y comparte información.\n▪Aporta sugerencias, ideas y opiniones.\n▪Expresa expectativas positivas del equipo o de los miembros del mismo.\n▪Planifica las propias acciones teniendo en cuenta la repercusión de las mismas para la consecución de los objetivos grupales.\n▪Establece diálogo directo con los miembros del equipo que permita compartir información e ideas en condiciones de respeto y cordialidad.\n▪Respeta criterios dispares y distintas opiniones del equipo."]
["TECNICO","Orientación a resultados ","TECNICOOrientación a resultados ","Realizar las funciones y cumplir los compromisos organizacionales con eficacia y calidad. ","▪ Cumple con oportunidad en función de estándares, objetivos y metas establecidas por la entidad, las funciones que le son asignadas.\n▪ Asume la responsabilidad por sus resultados.\n▪ Compromete recursos y tiempos para mejorar la productividad tomando las medidas necesarias para minimizar los riesgos.\n▪ Realiza todas las acciones necesarias para alcanzar los objetivos propuestos enfrentando los obstáculos que se presentan.",null,null,"NIVEL","COMPETENCIA",null,null,null,null,null,null,null,"2016-08-07",null,null,null,null,null,null,212,null,null,null,23.1,"NO SATISFACTORIO"]
["TECNICO","Orientación al usuario y al ciudadano","TECNICOOrientación al usuario y al ciudadano","Dirigir las decisiones y acciones a la satisfacción de las necesidades e intereses de los usuarios internos y externos, de conformidad con las responsabilidades públicas asignadas a la entidad.","▪ Atiende y valora las necesidades y peticiones de los usuarios y de ciudadanos en general.\n▪Considera las necesidades de los usuarios al diseñar proyectos o servicios.\n▪Da respuesta oportuna a las necesidades de los usuarios de conformidad con el servicio que ofrece la entidad.\n▪Establece diferentes canales de comunicación con el usuario para conocer sus necesidades y propuestas y responde a las mismas.\n▪Reconoce la interdependencia entre su trabajo y el de otros.",null,null,"ASESOR","Orientación a resultados ",null,null,null,null,null,null,null,"2016-08-08",null,null,null,null,null,null,213,null,null,null,23.2,"NO SATISFACTORIO"]
["TECNICO","Compromiso con la Organización","TECNICOCompromiso con la Organización","Alinear el propio comportamiento a las necesidades, prioridades y metas organizacionales.","▪Promueve las metas de la organización y respeta sus normas.\n▪Antepone las necesidades de la organización a sus propias necesidades.\n▪Apoya a la organización en situaciones difíciles.\n▪Demuestra sentido de pertenencia en todas sus actuaciones.",null,null,null,null,null,null,null,null,null,null,null,"2016-08-09",null,null,null,null,null,null,214,null,null,null,23.3,"NO SATISFACTORIO",null,"NIVEL","COMPETENCIA","DEFINICIÒN DE LA COMPETENCIA","CONDUCTAS ASOCIADAS"]
["TECNICO","Experticia Técnica","TECNICOExperticia Técnica","Entender y aplicar los conocimientos técnicos del área de desempeño y mantenerlos actualizados","▪Capta y asimila con facilidad conceptos e información.\n▪Aplica el conocimiento técnico a las actividades cotidianas.\n▪Analiza la información de acuerdo con las necesidades de la organización.\n▪Comprende los aspectos técnicos y los aplica al desarrollo de procesos y procedimientos en los que está involucrado.\n▪Resuelve problemas utilizando sus conocimientos técnicos de su especialidad y garantizando indicadores y estándares establecidos.",null,null,null,null,null,null,null,null,null,null,null,"2016-08-20",null,null,null,null,null,null,225,null,null,null,24.4,"NO SATISFACTORIO",null,"PROFESIONAL","Creatividad e Innovación","Generar y desarrollar nuevas ideas, conceptos, métodos y soluciones.","▪Ofrece respuestas alternativas.\n▪Aprovecha las oportunidades y problemas para dar soluciones novedosas.\n▪Desarrolla nuevas formas de hacer y tecnologías.\n▪Busca nuevas alternativas de solución y se arriesga a romper esquemas tradicionales.\n▪Inicia acciones para superar los obstáculos y alcanzar metas específicas."]
["TECNICO","Trabajo en equipo","TECNICOTrabajo en equipo","Trabajar con otros para conseguir metas comunes","▪Identifica claramente los objetivos del grupo y orienta su trabajo a la consecución de los mismos.\n▪Colabora con otros para la realización de actividades y metas grupales.",null,null,null,null,null,null,null,null,null,null,null,"2016-08-21",null,null,null,null,null,null,226,null,null,null,24.5,"NO SATISFACTORIO",null,"PROFESIONAL","Orientación a resultados ","Realizar las funciones y cumplir los compromisos organizacionales con eficacia y calidad. ","▪ Cumple con oportunidad en función de estándares, objetivos y metas establecidas por la entidad, las funciones que le son asignadas.\n▪ Asume la responsabilidad por sus resultados.\n▪ Compromete recursos y tiempos para mejorar la productividad tomando las medidas necesarias para minimizar los riesgos.\n▪ Realiza todas las acciones necesarias para alcanzar los objetivos propuestos enfrentando los obstáculos que se presentan."]
["TECNICO","Creatividad e innovación","TECNICOCreatividad e innovación","Presentar ideas y métodos novedosos y concretarlos en acciones","▪Propone y encuentra formas nuevas y eficaces de hacer las cosas.\n▪Es recursivo.\n▪Es práctico.\n▪Busca nuevas alternativas de solución.\n▪Revisa permanentemente los procesos y procedimientos para optimizar los resultados.",null,null,null,null,null,null,null,null,null,null,null,"2016-08-22",null,null,null,null,null,null,227,null,null,null,24.599999999999898,"NO SATISFACTORIO",null,"PROFESIONAL","Orientación al usuario y al ciudadano","Dirigir las decisiones y acciones a la satisfacción de las necesidades e intereses de los usuarios internos y externos, de conformidad con las responsabilidades públicas asignadas a la entidad.","▪ Atiende y valora las necesidades y peticiones de los usuarios y de ciudadanos en general.\n▪Considera las necesidades de los usuarios al diseñar proyectos o servicios.\n▪Da respuesta oportuna a las necesidades de los usuarios de conformidad con el servicio que ofrece la entidad.\n▪Establece diferentes canales de comunicación con el usuario para conocer sus necesidades y propuestas y responde a las mismas.\n▪Reconoce la interdependencia entre su trabajo y el de otros.\n"]
["ASISTENCIAL","Orientación a resultados ","ASISTENCIALOrientación a resultados ","Realizar las funciones y cumplir los compromisos organizacionales con eficacia y calidad. ","▪ Cumple con oportunidad en función de estándares, objetivos y metas establecidas por la entidad, las funciones que le son asignadas.\n▪ Asume la responsabilidad por sus resultados.\n▪ Compromete recursos y tiempos para mejorar la productividad tomando las medidas necesarias para minimizar los riesgos.\n▪ Realiza todas las acciones necesarias para alcanzar los objetivos propuestos enfrentando los obstáculos que se presentan.",null,null,"NIVEL","COMPETENCIA",null,null,null,null,null,null,null,"2016-08-07",null,null,null,null,null,null,212,null,null,null,23.1,"NO SATISFACTORIO"]
["ASISTENCIAL","Orientación al usuario y al ciudadano","ASISTENCIALOrientación al usuario y al ciudadano","Dirigir las decisiones y acciones a la satisfacción de las necesidades e intereses de los usuarios internos y externos, de conformidad con las responsabilidades públicas asignadas a la entidad.","▪ Atiende y valora las necesidades y peticiones de los usuarios y de ciudadanos en general.\n▪Considera las necesidades de los usuarios al diseñar proyectos o servicios.\n▪Da respuesta oportuna a las necesidades de los usuarios de conformidad con el servicio que ofrece la entidad.\n▪Establece diferentes canales de comunicación con el usuario para conocer sus necesidades y propuestas y responde a las mismas.\n▪Reconoce la interdependencia entre su trabajo y el de otros.",null,null,"ASESOR",null,null,null,null,null,null,null,null,"2016-08-08",null,null,null,null,null,null,213,null,null,null,23.2,"NO SATISFACTORIO"]
["ASISTENCIAL","Compromiso con la Organización","ASISTENCIALCompromiso con la Organización","Alinear el propio comportamiento a las necesidades, prioridades y metas organizacionales.","▪Promueve las metas de la organización y respeta sus normas.\n▪Antepone las necesidades de la organización a sus propias necesidades.\n▪Apoya a la organización en situaciones difíciles.\n▪Demuestra sentido de pertenencia en todas sus actuaciones.",null,null,null,null,null,null,null,null,null,null,null,"2016-08-09",null,null,null,null,null,null,214,null,null,null,23.3,"NO SATISFACTORIO",null,"NIVEL","COMPETENCIA","DEFINICIÒN DE LA COMPETENCIA","CONDUCTAS ASOCIADAS"]
["ASISTENCIAL","Manejo de la información","ASISTENCIALManejo de la información","Manejar con respeto las informaciones personales e institucionales de que dispone.","▪Evade temas que indagan sobre información confidencial.\n▪Recoge sólo información imprescindible para el desarrollo de la tarea.\n▪Organiza y guarda de forma adecuada la información a su cuidado, teniendo en cuenta las normas legales y de la organización.\n▪No hace pública información laboral o de las personas que pueda afectar la organización o las personas.",null,null,null,null,null,null,null,null,null,null,null,"2016-08-23",null,null,null,null,null,null,228,null,null,"DIEZ",24.6999999999999,"NO SATISFACTORIO",null,"PROFESIONAL","Compromiso con la Organización","Alinear el propio comportamiento a las necesidades, prioridades y metas organizacionales.","▪Promueve las metas de la organización y respeta sus normas.\n▪Antepone las necesidades de la organización a sus propias necesidades.\n▪Apoya a la organización en situaciones difíciles.\n▪Demuestra sentido de pertenencia en todas sus actuaciones."]
["ASISTENCIAL","Adaptación al cambio","ASISTENCIALAdaptación al cambio","Enfrentarse con flexibilidad y versatilidad a situaciones nuevas para aceptar los cambios positiva y constructivamente.","▪Acepta y se adapta fácilmente los cambios.\n▪Responde al cambio con flexibilidad.\n▪Promueve el cambio.",null,null,null,null,null,null,null,null,null,null,null,"2016-08-24",null,null,null,null,null,null,229,null,null,null,24.799999999999901,"NO SATISFACTORIO",null,"PROFESIONAL CON PERSONAL A CARGO","Aprendizaje Continuo","Adquirir y desarrollar permanentemente conocimientos, destrezas y habilidades, con el fin de mantener altos estándares de eficacia organizacional.","▪Aprende de la experiencia de otros y de la propia.\n▪Se adapta y aplica nuevas tecnologías que se implanten en la organización.\n▪Aplica los conocimientos adquiridos a los desafíos que se presentan en el desarrollo del trabajo.\n▪Investiga, indaga y profundiza en los temas de su entorno área de desempeño.\n▪Reconoce las propias limitaciones y las necesidades de mejorar su preparación.\n▪Asimila nueva información y la aplica correctamente."]
["ASISTENCIAL","Disciplina","ASISTENCIALDisciplina","Adaptarse a las políticas institucionales y buscar información de los cambios en la autoridad competente.","▪Acepta instrucciones aunque se difiera de ellas.\n▪Realiza los cometidos y tareas del puesto de trabajo.\n▪Acepta la supervisión constante.\n▪Realiza funciones orientadas a apoyar la acción de otros miembros de la organización.",null,null,null,null,null,null,null,null,null,null,null,"2016-08-25",null,null,null,null,null,null,230,null,null,null,24.899999999999899,"NO SATISFACTORIO",null,"PROFESIONAL CON PERSONAL A CARGO","Experticia profesional","Aplicar el conocimiento profesional en la resolución de problemas y transferirlo a su entorno laboral.","▪Analiza de un modo sistemático y racional los aspectos del trabajo, basándose en la información relevante.\n▪Aplica reglas básicas y conceptos complejos aprendidos\n▪Identifica y reconoce con facilidad las causas de los problemas y sus soluciones.\n▪Clarifica datos o situaciones complejas.\n▪Planea, organiza y ejecuta múltiples tareas tendientes a alcanzar resultados institucionales.\n"]
["ASISTENCIAL","Relaciones Interpersonales","ASISTENCIALRelaciones Interpersonales","Establecer y mantener relaciones de trabajo amistosas y positivas, basadas en la comunicación abierta y fluida y en el respeto por los demás.","▪Escucha con interés a las personas y capta las preocupaciones, intereses y necesidades de los demás.\n▪Transmite eficazmente las ideas, sentimientos e información impidiendo con ello malos entendidos o situaciones confusas que puedan generar conflictos.",null,null,null,null,null,null,null,null,null,null,null,"2016-08-26",null,null,null,null,null,null,231,null,null,null,24.999999999999901,"NO SATISFACTORIO",null,"PROFESIONAL CON PERSONAL A CARGO","Trabajo en equipo y Colaboración","Trabajar con otros de forma conjunta y de manera participativa, integrando esfuerzos para la consecución de metas institucionales comunes.","▪Coopera en distintas situaciones y comparte información.\n▪Aporta sugerencias, ideas y opiniones.\n▪Expresa expectativas positivas del equipo o de los miembros del mismo.\n▪Planifica las propias acciones teniendo en cuenta la repercusión de las mismas para la consecución de los objetivos grupales.\n▪Establece diálogo directo con los miembros del equipo que permita compartir información e ideas en condiciones de respeto y cordialidad.\n▪Respeta criterios dispares y distintas opiniones del equipo."]
["ASISTENCIAL","Colaboración","ASISTENCIALColaboración","Cooperar con los demás con el fin de alcanzar los objetivos institucionales","▪Ayuda al logro de los objetivos articulando sus actuaciones con los demás.\n▪Cumple los compromisos que adquiere.\n▪Facilita la labor de sus superiores y compañeros de trabajo.",null,null,null,null,null,null,null,null,null,null,null,"2016-08-27",null,null,null,null,null,null,232,null,null,null,25.099999999999898,"NO SATISFACTORIO",null,"PROFESIONAL CON PERSONAL A CARGO","Creatividad e Innovación","Generar y desarrollar nuevas ideas, conceptos, métodos y soluciones.","▪Ofrece respuestas alternativas.\n▪Aprovecha las oportunidades y problemas para dar soluciones novedosas.\n▪Desarrolla nuevas formas de hacer y tecnologías.\n▪Busca nuevas alternativas de solución y se arriesga a romper esquemas tradicionales.\n▪Inicia acciones para superar los obstáculos y alcanzar metas específicas."]
[null,null,null,null,null,null,null,null,null,null,null,null,null,null,null,"2016-08-28",null,null,null,null,null,null,233,null,null,null,25.1999999999999,"NO SATISFACTORIO",null,"PROFESIONAL CON PERSONAL A CARGO","Orientación a resultados ","Realizar las funciones y cumplir los compromisos organizacionales con eficacia y calidad. ","▪ Cumple con oportunidad en función de estándares, objetivos y metas establecidas por la entidad, las funciones que le son asignadas.\n▪ Asume la responsabilidad por sus resultados.\n▪ Compromete recursos y tiempos para mejorar la productividad tomando las medidas necesarias para minimizar los riesgos.\n▪ Realiza todas las acciones necesarias para alcanzar los objetivos propuestos enfrentando los obstáculos que se presentan."]
[null,null,null,null,null,null,null,null,null,null,null,null,null,null,null,"2016-08-29",null,null,null,null,null,null,234,null,null,null,25.299999999999901,"NO SATISFACTORIO",null,"PROFESIONAL CON PERSONAL A CARGO","Orientación al usuario y al ciudadano","Dirigir las decisiones y acciones a la satisfacción de las necesidades e intereses de los usuarios internos y externos, de conformidad con las responsabilidades públicas asignadas a la entidad.","▪ Atiende y valora las necesidades y peticiones de los usuarios y de ciudadanos en general.\n▪Considera las necesidades de los usuarios al diseñar proyectos o servicios.\n▪Da respuesta oportuna a las necesidades de los usuarios de conformidad con el servicio que ofrece la entidad.\n▪Establece diferentes canales de comunicación con el usuario para conocer sus necesidades y propuestas y responde a las mismas.\n▪Reconoce la interdependencia entre su trabajo y el de otros.\n"]
["NIVELES DE PROFUNDIZACION DE LA COMPETENCIAS","RESULTADOS CUANTITATIVOS",null,null,null,null,"RESULTADOS CUANTITATIVOS",null,null,null,null,null,null,null,null,"2016-08-30",null,null,null,null,null,null,235,null,null,null,25.399999999999899,"NO SATISFACTORIO",null,"PROFESIONAL CON PERSONAL A CARGO","Compromiso con la Organización","Alinear el propio comportamiento a las necesidades, prioridades y metas organizacionales.","▪Promueve las metas de la organización y respeta sus normas.\n▪Antepone las necesidades de la organización a sus propias necesidades.\n▪Apoya a la organización en situaciones difíciles.\n▪Demuestra sentido de pertenencia en todas sus actuaciones."]
["NO EVALUADO",0,null,null,null,null,null,null,null,null,null,null,null,null,null,"2016-08-31",null,null,null,null,null,null,236,null,null,null,25.499999999999901,"NO SATISFACTORIO",null,"PROFESIONAL CON PERSONAL A CARGO","Liderazgo de Grupos de Trabajo","Asumir el rol de orientar y guía de un grupo o equipo de trabajo, utilizando la autoridad con arreglo a las normas y promoviendo la Efectividad en la consecución de objetivos y metas institucionales.","▪Establece los objetivos del grupo de forma clara y equilibrada.\n▪Asegura que los integrantes del grupo compartan planes, programas y proyectos institucionales.\n▪Orienta y coordina el trabajo del grupo para la identificación de planes y actividades a seguir.\n▪Facilita la colaboración con otras áreas y dependencias.\n▪Escucha y tiene en cuenta las opiniones de los integrantes del grupo.\n▪Gestiona los recursos necesarios para poder cumplir con las metas propuestas.\n▪Garantiza los recursos necesarios para poder cumplir con las metas propuestas.\n▪Garantiza que el grupo tenga la información necesaria.\n▪Explica las razones de las decisiones."]
["BAJO",4,null,null,null,null,4,null,null,null,null,null,null,null,null,"2016-09-01",null,null,null,null,null,null,237,null,null,null,25.599999999999898,"NO SATISFACTORIO",null,"PROFESIONAL CON PERSONAL A CARGO","Toma de decisiones","Elegir entre una o varias alternativas para solucionar un problema y tomar las acciones concretas y consecuentes con la elección realizada.","▪Elige alternativas de solución efectiva y suficiente para atender los asuntos encomendados.\n▪Decide y establece prioridades para el trabajo del grupo.\n▪Asume posiciones concretas para el manejo de temas o situaciones que demandan su atención.\n▪Efectúa cambios en las actividades o en la manera de desarrollar sus responsabilidades cuando detecta dificultades para su realización o mejores prácticas que pueden optimizar el desempeño.\n▪Asume las consecuencias de las decisiones adoptadas.\n▪Fomenta la participación en la toma de decisiones."]
["ACEPTABLE",6,5,null,null,null,6,null,null,null,null,null,null,null,null,"2016-09-02",null,null,null,null,null,null,238,null,null,null,25.6999999999999,"NO SATISFACTORIO",null,"PROFESIONAL CON PERSONAL A CARGO","Orientación a resultados ","Realizar las funciones y cumplir los compromisos organizacionales con eficacia y calidad. ","▪ Cumple con oportunidad en función de estándares, objetivos y metas establecidas por la entidad, las funciones que le son asignadas.\n▪ Asume la responsabilidad por sus resultados.\n▪ Compromete recursos y tiempos para mejorar la productividad tomando las medidas necesarias para minimizar los riesgos.\n▪ Realiza todas las acciones necesarias para alcanzar los objetivos propuestos enfrentando los obstáculos que se presentan."]
["ALTO",8,null,null,null,null,8,null,null,null,null,null,null,null,null,"2016-09-03",null,null,null,null,null,null,239,null,null,null,25.799999999999901,"NO SATISFACTORIO",null,"PROFESIONAL CON PERSONAL A CARGO","Orientación al usuario y al ciudadano","Dirigir las decisiones y acciones a la satisfacción de las necesidades e intereses de los usuarios internos y externos, de conformidad con las responsabilidades públicas asignadas a la entidad.","▪ Atiende y valora las necesidades y peticiones de los usuarios y de ciudadanos en general.\n▪Considera las necesidades de los usuarios al diseñar proyectos o servicios.\n▪Da respuesta oportuna a las necesidades de los usuarios de conformidad con el servicio que ofrece la entidad.\n▪Establece diferentes canales de comunicación con el usuario para conocer sus necesidades y propuestas y responde a las mismas.\n▪Reconoce la interdependencia entre su trabajo y el de otros.\n"]
["MUY ALTO",10,null,null,null,null,10,null,null,null,null,null,null,null,null,"2016-09-04",null,null,null,null,null,null,240,null,null,null,25.899999999999899,"NO SATISFACTORIO",null,"PROFESIONAL CON PERSONAL A CARGO","Compromiso con la Organización","Alinear el propio comportamiento a las necesidades, prioridades y metas organizacionales.","▪Promueve las metas de la organización y respeta sus normas.\n▪Antepone las necesidades de la organización a sus propias necesidades.\n▪Apoya a la organización en situaciones difíciles.\n▪Demuestra sentido de pertenencia en todas sus actuaciones."]
[null,null,null,null,null,null,null,null,null,null,null,null,null,null,null,"2016-09-05",null,null,null,null,null,null,241,null,null,null,25.999999999999901,"NO SATISFACTORIO",null,"TÈCNICO","Experticia Técnica","Entender y aplicar los conocimientos técnicos del área de desempeño y mantenerlos actualizados","▪Capta y asimila con facilidad conceptos e información.\n▪Aplica el conocimiento técnico a las actividades cotidianas.\n▪Analiza la información de acuerdo con las necesidades de la organización.\n▪Comprende los aspectos técnicos y los aplica al desarrollo de procesos y procedimientos en los que está involucrado.\n▪Resuelve problemas utilizando sus conocimientos técnicos de su especialidad y garantizando indicadores y estándares establecidos."]
[null,null,null,null,null,null,null,null,null,null,null,null,null,null,null,"2016-09-06",null,null,null,null,null,null,242,null,null,null,26.099999999999898,"NO SATISFACTORIO",null,"TÈCNICO","Trabajo en equipo","Trabajar con otros para conseguir metas comunes","▪Identifica claramente los objetivos del grupo y orienta su trabajo a la consecución de los mismos.\n▪Colabora con otros para la realización de actividades y metas grupales."]
[1,"1. Cambios en los planes, programas o proyectos que sirvieron de base para la concertación.",null,null,null,null,null,null,null,null,null,null,null,null,null,"2016-09-07",null,null,null,null,null,null,243,null,null,null,26.1999999999999,"NO SATISFACTORIO",null,"TÈCNICO","Creatividad e innovación","Presentar ideas y métodos novedosos y concretarlos en acciones","▪Propone y encuentra formas nuevas y eficaces de hacer las cosas.\n▪Es recursivo.\n▪Es práctico.\n▪Busca nuevas alternativas de solución.\n▪Revisa permanentemente los procesos y procedimientos para optimizar los resultados."]
[2,"2. Separación del cargo superior a treinta (30) días calendario que afecte el cumplimiento de los compromisos. ",null,null,null,null,null,null,null,null,null,null,null,null,null,"2016-09-08",null,null,null,null,null,null,244,null,null,null,26.299999999999901,"NO SATISFACTORIO",null,"TÈCNICO","Orientación a resultados ","Realizar las funciones y cumplir los compromisos organizacionales con eficacia y calidad. ","▪ Cumple con oportunidad en función de estándares, objetivos y metas establecidas por la entidad, las funciones que le son asignadas.\n▪ Asume la responsabilidad por sus resultados.\n▪ Compromete recursos y tiempos para mejorar la productividad tomando las medidas necesarias para minimizar los riesgos.\n▪ Realiza todas las acciones necesarias para alcanzar los objetivos propuestos enfrentando los obstáculos que se presentan."]
[3,"3. Traslado o encargo del empleado.",null,null,null,null,null,null,null,null,null,null,null,null,null,"2016-09-09",null,null,null,null,null,null,245,null,null,null,26.399999999999899,"NO SATISFACTORIO",null,"TÈCNICO","Orientación al usuario y al ciudadano","Dirigir las decisiones y acciones a la satisfacción de las necesidades e intereses de los usuarios internos y externos, de conformidad con las responsabilidades públicas asignadas a la entidad.","▪ Atiende y valora las necesidades y peticiones de los usuarios y de ciudadanos en general.\n▪Considera las necesidades de los usuarios al diseñar proyectos o servicios.\n▪Da respuesta oportuna a las necesidades de los usuarios de conformidad con el servicio que ofrece la entidad.\n▪Establece diferentes canales de comunicación con el usuario para conocer sus necesidades y propuestas y responde a las mismas.\n▪Reconoce la interdependencia entre su trabajo y el de otros.\n"]
[4,null,null,null,null,null,null,null,null,null,null,null,null,null,null,"2016-09-10",null,null,null,null,null,null,246,null,null,null,26.499999999999901,"NO SATISFACTORIO",null,"TÈCNICO","Compromiso con la Organización","Alinear el propio comportamiento a las necesidades, prioridades y metas organizacionales.","▪Promueve las metas de la organización y respeta sus normas.\n▪Antepone las necesidades de la organización a sus propias necesidades.\n▪Apoya a la organización en situaciones difíciles.\n▪Demuestra sentido de pertenencia en todas sus actuaciones."]
[5,null,null,null,null,null,null,null,null,null,null,null,null,null,null,"2016-09-11",null,null,null,null,null,null,247,null,null,null,26.599999999999898,"NO SATISFACTORIO",null,"ASISTENCIAL","Manejo de la información","Manejar con respeto las informaciones personales e institucionales de que dispone.","▪Evade temas que indagan sobre información confidencial.\n▪Recoge sólo información imprescindible para el desarrollo de la tarea.\n▪Organiza y guarda de forma adecuada la información a su cuidado, teniendo en cuenta las normas legales y de la organización.\n▪No hace pública información laboral o de las personas que pueda afectar la organización o las personas.\n"]
[6,null,null,null,null,null,null,null,null,null,null,null,null,null,null,"2016-09-12",null,null,null,null,null,null,248,null,null,null,26.6999999999999,"NO SATISFACTORIO",null,"ASISTENCIAL","Adaptación al cambio","Enfrentarse con flexibilidad y versatilidad a situaciones nuevas para aceptar los cambios positiva y constructivamente.","▪Acepta y se adapta fácilmente los cambios.\n▪Responde al cambio con flexibilidad.\n▪Promueve el cambio."]
[7,null,null,null,null,null,null,null,null,null,null,null,null,null,null,"2016-09-13",null,null,null,null,null,null,249,null,null,null,26.799999999999901,"NO SATISFACTORIO",null,"ASISTENCIAL","Disciplina","Adaptarse a las políticas institucionales y buscar información de los cambios en la autoridad competente.","▪Acepta instrucciones aunque se difiera de ellas.\n▪Realiza los cometidos y tareas del puesto de trabajo.\n▪Acepta la supervisión constante.\n▪Realiza funciones orientadas a apoyar la acción de otros miembros de la organización."]
[8,null,null,null,null,null,null,null,null,null,null,null,null,null,null,"2016-09-14",null,null,null,null,null,null,250,null,null,null,26.899999999999899,"NO SATISFACTORIO",null,"ASISTENCIAL","Relaciones Interpersonales","Establecer y mantener relaciones de trabajo amistosas y positivas, basadas en la comunicación abierta y fluida y en el respeto por los demás.","▪Escucha con interés a las personas y capta las preocupaciones, intereses y necesidades de los demás.\n▪Transmite eficazmente las ideas, sentimientos e información impidiendo con ello malos entendidos o situaciones confusas que puedan generar conflictos."]
[9,null,null,null,null,null,null,null,null,null,null,null,null,null,null,"2016-09-15",null,null,null,null,null,null,251,null,null,null,26.999999999999901,"NO SATISFACTORIO",null,"ASISTENCIAL","Colaboración","Cooperar con los demás con el fin de alcanzar los objetivos institucionales","▪Ayuda al logro de los objetivos articulando sus actuaciones con los demás.\n▪Cumple los compromisos que adquiere.\n▪Facilita la labor de sus superiores y compañeros de trabajo."]
[10,null,null,null,null,null,null,null,null,null,null,null,null,null,null,"2016-09-16",null,null,null,null,null,null,252,null,null,null,27.099999999999898,"NO SATISFACTORIO",null,"ASISTENCIAL","Orientación a resultados ","Realizar las funciones y cumplir los compromisos organizacionales con eficacia y calidad. ","▪ Cumple con oportunidad en función de estándares, objetivos y metas establecidas por la entidad, las funciones que le son asignadas.\n▪ Asume la responsabilidad por sus resultados.\n▪ Compromete recursos y tiempos para mejorar la productividad tomando las medidas necesarias para minimizar los riesgos.\n▪ Realiza todas las acciones necesarias para alcanzar los objetivos propuestos enfrentando los obstáculos que se presentan."]
[11,null,null,null,null,null,null,null,null,null,null,null,null,null,null,"2016-09-17",null,null,null,null,null,null,253,null,null,null,27.1999999999999,"NO SATISFACTORIO",null,"ASISTENCIAL","Orientación al usuario y al ciudadano","Dirigir las decisiones y acciones a la satisfacción de las necesidades e intereses de los usuarios internos y externos, de conformidad con las responsabilidades públicas asignadas a la entidad.","▪ Atiende y valora las necesidades y peticiones de los usuarios y de ciudadanos en general.\n▪Considera las necesidades de los usuarios al diseñar proyectos o servicios.\n▪Da respuesta oportuna a las necesidades de los usuarios de conformidad con el servicio que ofrece la entidad.\n▪Establece diferentes canales de comunicación con el usuario para conocer sus necesidades y propuestas y responde a las mismas.\n▪Reconoce la interdependencia entre su trabajo y el de otros.\n"]
[12,null,null,null,null,null,null,null,null,null,null,null,null,null,null,"2016-09-18",null,null,null,null,null,null,254,null,null,null,27.299999999999901,"NO SATISFACTORIO",null,"ASISTENCIAL","Compromiso con la Organización","Alinear el propio comportamiento a las necesidades, prioridades y metas organizacionales.","▪Promueve las metas de la organización y respeta sus normas.\n▪Antepone las necesidades de la organización a sus propias necesidades.\n▪Apoya a la organización en situaciones difíciles.\n▪Demuestra sentido de pertenencia en todas sus actuaciones."]
[13,null,null,null,null,null,null,null,null,null,null,null,null,null,null,"2016-09-19",null,null,null,null,null,null,255,null,null,null,27.399999999999899,"NO SATISFACTORIO"]
[14,null,null,null,null,null,null,null,null,null,null,null,null,null,null,"2016-09-20",null,null,null,null,null,null,256,null,null,null,27.499999999999901,"NO SATISFACTORIO"]
[15,null,null,null,null,null,null,null,null,null,null,null,null,null,null,"2016-09-21",null,null,null,null,null,null,257,null,null,null,27.599999999999898,"NO SATISFACTORIO"]
[16,null,null,null,null,null,null,null,null,null,null,null,null,null,null,"2016-09-22",null,null,null,null,null,null,258,null,null,null,27.6999999999999,"NO SATISFACTORIO"]
[17,null,null,null,null,null,null,null,null,null,null,null,null,null,null,"2016-09-23",null,null,null,null,null,null,259,null,null,null,27.799999999999901,"NO SATISFACTORIO"]
[18,null,null,null,null,null,null,null,null,null,null,null,null,null,null,"2016-09-24",null,null,null,null,null,null,260,null,null,null,27.899999999999899,"NO SATISFACTORIO"]
[19,null,null,null,null,null,null,null,null,null,null,null,null,null,null,"2016-09-25",null,null,null,null,null,null,261,null,null,null,27.999999999999901,"NO SATISFACTORIO"]
[20,null,null,null,null,null,null,null,null,null,null,null,null,null,null,"2016-09-26",null,null,null,null,null,null,262,null,null,null,28.099999999999898,"NO SATISFACTORIO"]
[21,null,null,null,null,null,null,null,null,null,null,null,null,null,null,"2016-09-27",null,null,null,null,null,null,263,null,null,null,28.1999999999999,"NO SATISFACTORIO"]
[22,null,null,null,null,null,null,null,null,null,null,null,null,null,null,"2016-09-28",null,null,null,null,null,null,264,null,null,null,28.299999999999901,"NO SATISFACTORIO"]
[23,null,null,null,null,null,null,null,null,null,null,null,null,null,null,"2016-09-29",null,null,null,null,null,null,265,null,null,null,28.399999999999899,"NO SATISFACTORIO"]
[24,null,null,null,null,null,null,null,null,null,null,null,null,null,null,"2016-09-30",null,null,null,null,null,null,266,null,null,null,28.499999999999901,"NO SATISFACTORIO"]
[25,null,null,null,null,null,null,null,null,null,null,null,null,null,null,"2016-10-01",null,null,null,null,null,null,267,null,null,null,28.599999999999898,"NO SATISFACTORIO"]
[26,null,null,null,null,null,null,null,null,null,null,null,null,null,null,"2016-10-02",null,null,null,null,null,null,268,null,null,null,28.6999999999999,"NO SATISFACTORIO"]
[27,null,null,null,null,null,null,null,null,null,null,null,null,null,null,"2016-10-03",null,null,null,null,null,null,269,null,null,null,28.799999999999901,"NO SATISFACTORIO"]
[28,null,null,null,null,null,null,null,null,null,null,null,null,null,null,"2016-10-04",null,null,null,null,null,null,270,null,null,null,28.899999999999899,"NO SATISFACTORIO"]
[29,null,null,null,null,null,null,null,null,null,null,null,null,null,null,"2016-10-05",null,null,null,null,null,null,271,null,null,null,28.999999999999901,"NO SATISFACTORIO"]
[30,null,null,null,null,null,null,null,null,null,null,null,null,null,null,"2016-10-06",null,null,null,null,null,null,272,null,null,null,29.099999999999898,"NO SATISFACTORIO"]
[31,null,null,null,null,null,null,null,null,null,null,null,null,null,null,"2016-10-07",null,null,null,null,null,null,273,null,null,null,29.1999999999999,"NO SATISFACTORIO"]
[32,null,null,null,null,null,null,null,null,null,null,null,null,null,null,"2016-10-08",null,null,null,null,null,null,274,null,null,null,29.299999999999901,"NO SATISFACTORIO"]
[33,null,null,null,null,null,null,null,null,null,null,null,null,null,null,"2016-10-09",null,null,null,null,null,null,275,null,null,null,29.399999999999899,"NO SATISFACTORIO"]
[34,null,null,null,null,null,null,null,null,null,null,null,null,null,null,"2016-10-10",null,null,null,null,null,null,276,null,null,null,29.499999999999901,"NO SATISFACTORIO"]
[35,null,null,null,null,null,null,null,null,null,null,null,null,null,null,"2016-10-11",null,null,null,null,null,null,277,null,null,null,29.599999999999898,"NO SATISFACTORIO"]
[36,null,null,null,null,null,null,null,null,null,null,null,null,null,null,"2016-10-12",null,null,null,null,null,null,278,null,null,null,29.6999999999999,"NO SATISFACTORIO"]
[37,null,null,null,null,null,null,null,null,null,null,null,null,null,null,"2016-10-13",null,null,null,null,null,null,279,null,null,null,29.799999999999901,"NO SATISFACTORIO"]
[38,null,null,null,null,null,null,null,null,null,null,null,null,null,null,"2016-10-14",null,null,null,null,null,null,280,null,null,null,29.899999999999899,"NO SATISFACTORIO"]
[39,null,null,null,null,null,null,null,null,null,null,null,null,null,null,"2016-10-15",null,null,null,null,null,null,281,null,null,null,29.999999999999901,"NO SATISFACTORIO"]
[40,null,null,null,null,null,null,null,null,null,null,null,null,null,null,"2016-10-16",null,null,null,null,null,null,282,null,null,null,30.099999999999898,"NO SATISFACTORIO"]
[41,null,null,null,null,null,null,null,null,null,null,null,null,null,null,"2016-10-17",null,null,null,null,null,null,283,null,null,null,30.1999999999999,"NO SATISFACTORIO"]
[42,null,null,null,null,null,null,null,null,null,null,null,null,null,null,"2016-10-18",null,null,null,null,null,null,284,null,null,null,30.299999999999901,"NO SATISFACTORIO"]
[43,null,null,null,null,null,null,null,null,null,null,null,null,null,null,"2016-10-19",null,null,null,null,null,null,285,null,null,null,30.399999999999899,"NO SATISFACTORIO"]
[44,null,null,null,null,null,null,null,null,null,null,null,null,null,null,"2016-10-20",null,null,null,null,null,null,286,null,null,null,30.499999999999901,"NO SATISFACTORIO"]
[45,null,null,null,null,null,null,null,null,null,null,null,null,null,null,"2016-10-21",null,null,null,null,null,null,287,null,null,null,30.599999999999898,"NO SATISFACTORIO"]
[46,null,null,null,null,null,null,null,null,null,null,null,null,null,null,"2016-10-22",null,null,null,null,null,null,288,null,null,null,30.6999999999999,"NO SATISFACTORIO"]
[47,null,null,null,null,null,null,null,null,null,null,null,null,null,null,"2016-10-23",null,null,null,null,null,null,289,null,null,null,30.799999999999901,"NO SATISFACTORIO"]
[48,null,null,null,null,null,null,null,null,null,null,null,null,null,null,"2016-10-24",null,null,null,null,null,null,290,null,null,null,30.899999999999899,"NO SATISFACTORIO"]
[49,null,null,null,null,null,null,null,null,null,null,null,null,null,null,"2016-10-25",null,null,null,null,null,null,291,null,null,null,30.999999999999901,"NO SATISFACTORIO"]
[50,null,null,null,null,null,null,null,null,null,null,null,null,null,null,"2016-10-26",null,null,null,null,null,null,292,null,null,null,31.099999999999898,"NO SATISFACTORIO"]
[51,null,null,null,null,null,null,null,null,null,null,null,null,null,null,"2016-10-27",null,null,null,null,null,null,293,null,null,null,31.1999999999999,"NO SATISFACTORIO"]
[52,null,null,null,null,null,null,null,null,null,null,null,null,null,null,"2016-10-28",null,null,null,null,null,null,294,null,null,null,31.299999999999901,"NO SATISFACTORIO"]
[53,null,null,null,null,null,null,null,null,null,null,null,null,null,null,"2016-10-29",null,null,null,null,null,null,295,null,null,null,31.399999999999899,"NO SATISFACTORIO"]
[54,null,null,null,null,null,null,null,null,null,null,null,null,null,null,"2016-10-30",null,null,null,null,null,null,296,null,null,null,31.499999999999901,"NO SATISFACTORIO"]
[55,null,null,null,null,null,null,null,null,null,null,null,null,null,null,"2016-10-31",null,null,null,null,null,null,297,null,null,null,31.599999999999898,"NO SATISFACTORIO"]
[56,null,null,null,null,null,null,null,null,null,null,null,null,null,null,"2016-11-01",null,null,null,null,null,null,298,null,null,null,31.6999999999999,"NO SATISFACTORIO"]
[57,null,null,null,null,null,null,null,null,null,null,null,null,null,null,"2016-11-02",null,null,null,null,null,null,299,null,null,null,31.799999999999901,"NO SATISFACTORIO"]
[58,null,null,null,null,null,null,null,null,null,null,null,null,null,null,"2016-11-03",null,null,null,null,null,null,300,null,null,null,31.899999999999899,"NO SATISFACTORIO"]
[59,null,null,null,null,null,null,null,null,null,null,null,null,null,null,"2016-11-04",null,null,null,null,null,null,301,null,null,null,31.999999999999901,"NO SATISFACTORIO"]
[60,null,null,null,null,null,null,null,null,null,null,null,null,null,null,"2016-11-05",null,null,null,null,null,null,302,null,null,null,32.099999999999902,"NO SATISFACTORIO"]
[61,null,null,null,null,null,null,null,null,null,null,null,null,null,null,"2016-11-06",null,null,null,null,null,null,303,null,null,null,32.199999999999903,"NO SATISFACTORIO"]
[62,null,null,null,null,null,null,null,null,null,null,null,null,null,null,"2016-11-07",null,null,null,null,null,null,304,null,null,null,32.299999999999898,"NO SATISFACTORIO"]
[63,null,null,null,null,null,null,null,null,null,null,null,null,null,null,"2016-11-08",null,null,null,null,null,null,305,null,null,null,32.399999999999899,"NO SATISFACTORIO"]
[64,null,null,null,null,null,null,null,null,null,null,null,null,null,null,"2016-11-09",null,null,null,null,null,null,306,null,null,null,32.499999999999901,"NO SATISFACTORIO"]
[65,null,null,null,null,null,null,null,null,null,null,null,null,null,null,"2016-11-10",null,null,null,null,null,null,307,null,null,null,32.599999999999902,"NO SATISFACTORIO"]
[66,null,null,null,null,null,null,null,null,null,null,null,null,null,null,"2016-11-11",null,null,null,null,null,null,308,null,null,null,32.699999999999903,"NO SATISFACTORIO"]
[67,null,null,null,null,null,null,null,null,null,null,null,null,null,null,"2016-11-12",null,null,null,null,null,null,309,null,null,null,32.799999999999898,"NO SATISFACTORIO"]
[68,null,null,null,null,null,null,null,null,null,null,null,null,null,null,"2016-11-13",null,null,null,null,null,null,310,null,null,null,32.899999999999899,"NO SATISFACTORIO"]
[69,null,null,null,null,null,null,null,null,null,null,null,null,null,null,"2016-11-14",null,null,null,null,null,null,311,null,null,null,32.999999999999901,"NO SATISFACTORIO"]
[70,null,null,null,null,null,null,null,null,null,null,null,null,null,null,"2016-11-15",null,null,null,null,null,null,312,null,null,null,33.099999999999902,"NO SATISFACTORIO"]
[71,null,null,null,null,null,null,null,null,null,null,null,null,null,null,"2016-11-16",null,null,null,null,null,null,313,null,null,null,33.199999999999903,"NO SATISFACTORIO"]
[72,null,null,null,null,null,null,null,null,null,null,null,null,null,null,"2016-11-17",null,null,null,null,null,null,314,null,null,null,33.299999999999898,"NO SATISFACTORIO"]
[73,null,null,null,null,null,null,null,null,null,null,null,null,null,null,"2016-11-18",null,null,null,null,null,null,315,null,null,null,33.399999999999899,"NO SATISFACTORIO"]
[74,null,null,null,null,null,null,null,null,null,null,null,null,null,null,"2016-11-19",null,null,null,null,null,null,316,null,null,null,33.499999999999901,"NO SATISFACTORIO"]
[75,null,null,null,null,null,null,null,null,null,null,null,null,null,null,"2016-11-20",null,null,null,null,null,null,317,null,null,null,33.599999999999902,"NO SATISFACTORIO"]
[76,null,null,null,null,null,null,null,null,null,null,null,null,null,null,"2016-11-21",null,null,null,null,null,null,318,null,null,null,33.699999999999903,"NO SATISFACTORIO"]
[77,null,null,null,null,null,null,null,null,null,null,null,null,null,null,"2016-11-22",null,null,null,null,null,null,319,null,null,null,33.799999999999898,"NO SATISFACTORIO"]
[78,null,null,null,null,null,null,null,null,null,null,null,null,null,null,"2016-11-23",null,null,null,null,null,null,320,null,null,null,33.899999999999899,"NO SATISFACTORIO"]
[79,null,null,null,null,null,null,null,null,null,null,null,null,null,null,"2016-11-24",null,null,null,null,null,null,321,null,null,null,33.999999999999901,"NO SATISFACTORIO"]
[80,null,null,null,null,null,null,null,null,null,null,null,null,null,null,"2016-11-25",null,null,null,null,null,null,322,null,null,null,34.099999999999902,"NO SATISFACTORIO"]
[81,null,null,null,null,null,null,null,null,null,null,null,null,null,null,"2016-11-26",null,null,null,null,null,null,323,null,null,null,34.199999999999903,"NO SATISFACTORIO"]
[82,null,null,null,null,null,null,null,null,null,null,null,null,null,null,"2016-11-27",null,null,null,null,null,null,324,null,null,null,34.299999999999898,"NO SATISFACTORIO"]
[83,null,null,null,null,null,null,null,null,null,null,null,null,null,null,"2016-11-28",null,null,null,null,null,null,325,null,null,null,34.399999999999899,"NO SATISFACTORIO"]
[84,null,null,null,null,null,null,null,null,null,null,null,null,null,null,"2016-11-29",null,null,null,null,null,null,326,null,null,null,34.499999999999901,"NO SATISFACTORIO"]
[85,null,null,null,null,null,null,null,null,null,null,null,null,null,null,"2016-11-30",null,null,null,null,null,null,327,null,null,null,34.599999999999902,"NO SATISFACTORIO"]
[86,null,null,null,null,null,null,null,null,null,null,null,null,null,null,"2016-12-01",null,null,null,null,null,null,328,null,null,null,34.699999999999903,"NO SATISFACTORIO"]
[87,null,null,null,null,null,null,null,null,null,null,null,null,null,null,"2016-12-02",null,null,null,null,null,null,329,null,null,null,34.799999999999898,"NO SATISFACTORIO"]
[88,null,null,null,null,null,null,null,null,null,null,null,null,null,null,"2016-12-03",null,null,null,null,null,null,330,null,null,null,34.899999999999899,"NO SATISFACTORIO"]
[89,null,null,null,null,null,null,null,null,null,null,null,null,null,null,"2016-12-04",null,null,null,null,null,null,331,null,null,null,34.999999999999901,"NO SATISFACTORIO"]
[90,null,null,null,null,null,null,null,null,null,null,null,null,null,null,"2016-12-05",null,null,null,null,null,null,332,null,null,null,35.099999999999902,"NO SATISFACTORIO"]
[91,null,null,null,null,null,null,null,null,null,null,null,null,null,null,"2016-12-06",null,null,null,null,null,null,333,null,null,null,35.199999999999903,"NO SATISFACTORIO"]
[92,null,null,null,null,null,null,null,null,null,null,null,null,null,null,"2016-12-07",null,null,null,null,null,null,334,null,null,null,35.299999999999898,"NO SATISFACTORIO"]
[93,null,null,null,null,null,null,null,null,null,null,null,null,null,null,"2016-12-08",null,null,null,null,null,null,335,null,null,null,35.399999999999899,"NO SATISFACTORIO"]
[94,null,null,null,null,null,null,null,null,null,null,null,null,null,null,"2016-12-09",null,null,null,null,null,null,336,null,null,null,35.499999999999901,"NO SATISFACTORIO"]
[95,null,null,null,null,null,null,null,null,null,null,null,null,null,null,"2016-12-10",null,null,null,null,null,null,337,null,null,null,35.599999999999902,"NO SATISFACTORIO"]
[96,null,null,null,null,null,null,null,null,null,null,null,null,null,null,"2016-12-11",null,null,null,null,null,null,338,null,null,null,35.699999999999903,"NO SATISFACTORIO"]
[97,null,null,null,null,null,null,null,null,null,null,null,null,null,null,"2016-12-12",null,null,null,null,null,null,339,null,null,null,35.799999999999898,"NO SATISFACTORIO"]
[98,null,null,null,null,null,null,null,null,null,null,null,null,null,null,"2016-12-13",null,null,null,null,null,null,340,null,null,null,35.899999999999899,"NO SATISFACTORIO"]
[99,null,null,null,null,null,null,null,null,null,null,null,null,null,null,"2016-12-14",null,null,null,null,null,null,341,null,null,null,35.999999999999901,"NO SATISFACTORIO"]
[100,null,null,null,null,null,null,null,null,null,null,null,null,null,null,"2016-12-15",null,null,null,null,null,null,342,null,null,null,36.099999999999902,"NO SATISFACTORIO"]
[101,null,null,null,null,null,null,null,null,null,null,null,null,null,null,"2016-12-16",null,null,null,null,null,null,343,null,null,null,36.199999999999903,"NO SATISFACTORIO"]
[102,null,null,null,null,null,null,null,null,null,null,null,null,null,null,"2016-12-17",null,null,null,null,null,null,344,null,null,null,36.299999999999898,"NO SATISFACTORIO"]
[103,null,null,null,null,null,null,null,null,null,null,null,null,null,null,"2016-12-18",null,null,null,null,null,null,345,null,null,null,36.399999999999899,"NO SATISFACTORIO"]
[104,null,null,null,null,null,null,null,null,null,null,null,null,null,null,"2016-12-19",null,null,null,null,null,null,346,null,null,null,36.499999999999901,"NO SATISFACTORIO"]
[105,null,null,null,null,null,null,null,null,null,null,null,null,null,null,"2016-12-20",null,null,null,null,null,null,347,null,null,null,36.599999999999902,"NO SATISFACTORIO"]
[106,null,null,null,null,null,null,null,null,null,null,null,null,null,null,"2016-12-21",null,null,null,null,null,null,348,null,null,null,36.699999999999903,"NO SATISFACTORIO"]
[107,null,null,null,null,null,null,null,null,null,null,null,null,null,null,"2016-12-22",null,null,null,null,null,null,349,null,null,null,36.799999999999898,"NO SATISFACTORIO"]
[108,null,null,null,null,null,null,null,null,null,null,null,null,null,null,"2016-12-23",null,null,null,null,null,null,350,null,null,null,36.899999999999899,"NO SATISFACTORIO"]
[109,null,null,null,null,null,null,null,null,null,null,null,null,null,null,"2016-12-24",null,null,null,null,null,null,351,null,null,null,36.999999999999901,"NO SATISFACTORIO"]
[110,null,null,null,null,null,null,null,null,null,null,null,null,null,null,"2016-12-25",null,null,null,null,null,null,352,null,null,null,37.099999999999902,"NO SATISFACTORIO"]
[111,null,null,null,null,null,null,null,null,null,null,null,null,null,null,"2016-12-26",null,null,null,null,null,null,353,null,null,null,37.199999999999903,"NO SATISFACTORIO"]
[112,null,null,null,null,null,null,null,null,null,null,null,null,null,null,"2016-12-27",null,null,null,null,null,null,354,null,null,null,37.299999999999898,"NO SATISFACTORIO"]
[113,null,null,null,null,null,null,null,null,null,null,null,null,null,null,"2016-12-28",null,null,null,null,null,null,355,null,null,null,37.399999999999899,"NO SATISFACTORIO"]
[114,null,null,null,null,null,null,null,null,null,null,null,null,null,null,"2016-12-29",null,null,null,null,null,null,356,null,null,null,37.499999999999901,"NO SATISFACTORIO"]
[115,null,null,null,null,null,null,null,null,null,null,null,null,null,null,"2016-12-30",null,null,null,null,null,null,357,null,null,null,37.599999999999902,"NO SATISFACTORIO"]
[116,null,null,null,null,null,null,null,null,null,null,null,null,null,null,"2016-12-31",null,null,null,null,null,null,358,null,null,null,37.699999999999903,"NO SATISFACTORIO"]
[117,null,null,null,null,null,null,null,null,null,null,null,null,null,null,"2017-01-01",null,null,null,null,null,null,359,null,null,null,37.799999999999898,"NO SATISFACTORIO"]
[118,null,null,null,null,null,null,null,null,null,null,null,null,null,null,"2017-01-02",null,null,null,null,null,null,360,null,null,null,37.899999999999899,"NO SATISFACTORIO"]
[119,null,null,null,null,null,null,null,null,null,null,null,null,null,null,"2017-01-03",null,null,null,null,null,null,null,null,null,null,37.999999999999901,"NO SATISFACTORIO"]
[120,null,null,null,null,null,null,null,null,null,null,null,null,null,null,"2017-01-04",null,null,null,null,null,null,null,null,null,null,38.099999999999902,"NO SATISFACTORIO"]
[121,null,null,null,null,null,null,null,null,null,null,null,null,null,null,"2017-01-05",null,null,null,null,null,null,null,null,null,null,38.199999999999903,"NO SATISFACTORIO"]
[122,null,null,null,null,null,null,null,null,null,null,null,null,null,null,"2017-01-06",null,null,null,null,null,null,null,null,null,null,38.299999999999898,"NO SATISFACTORIO"]
[123,null,null,null,null,null,null,null,null,null,null,null,null,null,null,"2017-01-07",null,null,null,null,null,null,null,null,null,null,38.399999999999899,"NO SATISFACTORIO"]
[124,null,null,null,null,null,null,null,null,null,null,null,null,null,null,"2017-01-08",null,null,null,null,null,null,null,null,null,null,38.499999999999901,"NO SATISFACTORIO"]
[125,null,null,null,null,null,null,null,null,null,null,null,null,null,null,"2017-01-09",null,null,null,null,null,null,null,null,null,null,38.599999999999902,"NO SATISFACTORIO"]
[126,null,null,null,null,null,null,null,null,null,null,null,null,null,null,"2017-01-10",null,null,null,null,null,null,null,null,null,null,38.699999999999903,"NO SATISFACTORIO"]
[127,null,null,null,null,null,null,null,null,null,null,null,null,null,null,"2017-01-11",null,null,null,null,null,null,null,null,null,null,38.799999999999898,"NO SATISFACTORIO"]
[128,null,null,null,null,null,null,null,null,null,null,null,null,null,null,"2017-01-12",null,null,null,null,null,null,null,null,null,null,38.899999999999899,"NO SATISFACTORIO"]
[129,null,null,null,null,null,null,null,null,null,null,null,null,null,null,"2017-01-13",null,null,null,null,null,null,null,null,null,null,38.999999999999901,"NO SATISFACTORIO"]
[130,null,null,null,null,null,null,null,null,null,null,null,null,null,null,"2017-01-14",null,null,null,null,null,null,null,null,null,null,39.099999999999902,"NO SATISFACTORIO"]
[131,null,null,null,null,null,null,null,null,null,null,null,null,null,null,"2017-01-15",null,null,null,null,null,null,null,null,null,null,39.199999999999903,"NO SATISFACTORIO"]
[132,null,null,null,null,null,null,null,null,null,null,null,null,null,null,"2017-01-16",null,null,null,null,null,null,null,null,null,null,39.299999999999898,"NO SATISFACTORIO"]
[133,null,null,null,null,null,null,null,null,null,null,null,null,null,null,"2017-01-17",null,null,null,null,null,null,null,null,null,null,39.399999999999899,"NO SATISFACTORIO"]
[134,null,null,null,null,null,null,null,null,null,null,null,null,null,null,"2017-01-18",null,null,null,null,null,null,null,null,null,null,39.499999999999901,"NO SATISFACTORIO"]
[135,null,null,null,null,null,null,null,null,null,null,null,null,null,null,"2017-01-19",null,null,null,null,null,null,null,null,null,null,39.599999999999902,"NO SATISFACTORIO"]
[136,null,null,null,null,null,null,null,null,null,null,null,null,null,null,"2017-01-20",null,null,null,null,null,null,null,null,null,null,39.699999999999903,"NO SATISFACTORIO"]
[137,null,null,null,null,null,null,null,null,null,null,null,null,null,null,"2017-01-21",null,null,null,null,null,null,null,null,null,null,39.799999999999898,"NO SATISFACTORIO"]
[138,null,null,null,null,null,null,null,null,null,null,null,null,null,null,"2017-01-22",null,null,null,null,null,null,null,null,null,null,39.899999999999899,"NO SATISFACTORIO"]
[139,null,null,null,null,null,null,null,null,null,null,null,null,null,null,"2017-01-23",null,null,null,null,null,null,null,null,null,null,39.999999999999901,"NO SATISFACTORIO"]
[140,null,null,null,null,null,null,null,null,null,null,null,null,null,null,"2017-01-24",null,null,null,null,null,null,null,null,null,null,40.099999999999902,"NO SATISFACTORIO"]
[141,null,null,null,null,null,null,null,null,null,null,null,null,null,null,"2017-01-25",null,null,null,null,null,null,null,null,null,null,40.199999999999903,"NO SATISFACTORIO"]
[142,null,null,null,null,null,null,null,null,null,null,null,null,null,null,"2017-01-26",null,null,null,null,null,null,null,null,null,null,40.299999999999898,"NO SATISFACTORIO"]
[143,null,null,null,null,null,null,null,null,null,null,null,null,null,null,"2017-01-27",null,null,null,null,null,null,null,null,null,null,40.399999999999899,"NO SATISFACTORIO"]
[144,null,null,null,null,null,null,null,null,null,null,null,null,null,null,"2017-01-28",null,null,null,null,null,null,null,null,null,null,40.499999999999901,"NO SATISFACTORIO"]
[145,null,null,null,null,null,null,null,null,null,null,null,null,null,null,"2017-01-29",null,null,null,null,null,null,null,null,null,null,40.599999999999902,"NO SATISFACTORIO"]
[146,null,null,null,null,null,null,null,null,null,null,null,null,null,null,"2017-01-30",null,null,null,null,null,null,null,null,null,null,40.699999999999903,"NO SATISFACTORIO"]
[147,null,null,null,null,null,null,null,null,null,null,null,null,null,null,"2017-01-31",null,null,null,null,null,null,null,null,null,null,40.799999999999898,"NO SATISFACTORIO"]
[148,null,null,null,null,null,null,null,null,null,null,null,null,null,null,"2017-02-01",null,null,null,null,null,null,null,null,null,null,40.899999999999899,"NO SATISFACTORIO"]
[149,null,null,null,null,null,null,null,null,null,null,null,null,null,null,"2017-02-02",null,null,null,null,null,null,null,null,null,null,40.999999999999901,"NO SATISFACTORIO"]
[150,null,null,null,null,null,null,null,null,null,null,null,null,null,null,"2017-02-03",null,null,null,null,null,null,null,null,null,null,41.099999999999902,"NO SATISFACTORIO"]
[151,null,null,null,null,null,null,null,null,null,null,null,null,null,null,"2017-02-04",null,null,null,null,null,null,null,null,null,null,41.199999999999903,"NO SATISFACTORIO"]
[152,null,null,null,null,null,null,null,null,null,null,null,null,null,null,"2017-02-05",null,null,null,null,null,null,null,null,null,null,41.299999999999898,"NO SATISFACTORIO"]
[153,null,null,null,null,null,null,null,null,null,null,null,null,null,null,"2017-02-06",null,null,null,null,null,null,null,null,null,null,41.399999999999899,"NO SATISFACTORIO"]
[154,null,null,null,null,null,null,null,null,null,null,null,null,null,null,"2017-02-07",null,null,null,null,null,null,null,null,null,null,41.499999999999901,"NO SATISFACTORIO"]
[155,null,null,null,null,null,null,null,null,null,null,null,null,null,null,"2017-02-08",null,null,null,null,null,null,null,null,null,null,41.599999999999902,"NO SATISFACTORIO"]
[156,null,null,null,null,null,null,null,null,null,null,null,null,null,null,"2017-02-09",null,null,null,null,null,null,null,null,null,null,41.699999999999903,"NO SATISFACTORIO"]
[157,null,null,null,null,null,null,null,null,null,null,null,null,null,null,"2017-02-10",null,null,null,null,null,null,null,null,null,null,41.799999999999898,"NO SATISFACTORIO"]
[158,null,null,null,null,null,null,null,null,null,null,null,null,null,null,"2017-02-11",null,null,null,null,null,null,null,null,null,null,41.899999999999899,"NO SATISFACTORIO"]
[159,null,null,null,null,null,null,null,null,null,null,null,null,null,null,"2017-02-12",null,null,null,null,null,null,null,null,null,null,41.999999999999901,"NO SATISFACTORIO"]
[160,null,null,null,null,null,null,null,null,null,null,null,null,null,null,"2017-02-13",null,null,null,null,null,null,null,null,null,null,42.099999999999902,"NO SATISFACTORIO"]
[161,null,null,null,null,null,null,null,null,null,null,null,null,null,null,"2017-02-14",null,null,null,null,null,null,null,null,null,null,42.199999999999903,"NO SATISFACTORIO"]
[162,null,null,null,null,null,null,null,null,null,null,null,null,null,null,"2017-02-15",null,null,null,null,null,null,null,null,null,null,42.299999999999898,"NO SATISFACTORIO"]
[163,null,null,null,null,null,null,null,null,null,null,null,null,null,null,"2017-02-16",null,null,null,null,null,null,null,null,null,null,42.399999999999899,"NO SATISFACTORIO"]
[164,null,null,null,null,null,null,null,null,null,null,null,null,null,null,"2017-02-17",null,null,null,null,null,null,null,null,null,null,42.499999999999901,"NO SATISFACTORIO"]
[165,null,null,null,null,null,null,null,null,null,null,null,null,null,null,"2017-02-18",null,null,null,null,null,null,null,null,null,null,42.599999999999902,"NO SATISFACTORIO"]
[166,null,null,null,null,null,null,null,null,null,null,null,null,null,null,"2017-02-19",null,null,null,null,null,null,null,null,null,null,42.699999999999903,"NO SATISFACTORIO"]
[167,null,null,null,null,null,null,null,null,null,null,null,null,null,null,"2017-02-20",null,null,null,null,null,null,null,null,null,null,42.799999999999898,"NO SATISFACTORIO"]
[168,null,null,null,null,null,null,null,null,null,null,null,null,null,null,"2017-02-21",null,null,null,null,null,null,null,null,null,null,42.899999999999899,"NO SATISFACTORIO"]
[169,null,null,null,null,null,null,null,null,null,null,null,null,null,null,"2017-02-22",null,null,null,null,null,null,null,null,null,null,42.999999999999901,"NO SATISFACTORIO"]
[170,null,null,null,null,null,null,null,null,null,null,null,null,null,null,"2017-02-23",null,null,null,null,null,null,null,null,null,null,43.099999999999902,"NO SATISFACTORIO"]
[171,null,null,null,null,null,null,null,null,null,null,null,null,null,null,"2017-02-24",null,null,null,null,null,null,null,null,null,null,43.199999999999903,"NO SATISFACTORIO"]
[172,null,null,null,null,null,null,null,null,null,null,null,null,null,null,"2017-02-25",null,null,null,null,null,null,null,null,null,null,43.299999999999898,"NO SATISFACTORIO"]
[173,null,null,null,null,null,null,null,null,null,null,null,null,null,null,"2017-02-26",null,null,null,null,null,null,null,null,null,null,43.399999999999899,"NO SATISFACTORIO"]
[174,null,null,null,null,null,null,null,null,null,null,null,null,null,null,"2017-02-27",null,null,null,null,null,null,null,null,null,null,43.499999999999901,"NO SATISFACTORIO"]
[175,null,null,null,null,null,null,null,null,null,null,null,null,null,null,"2017-02-28",null,null,null,null,null,null,null,null,null,null,43.599999999999902,"NO SATISFACTORIO"]
[176,null,null,null,null,null,null,null,null,null,null,null,null,null,null,"2017-03-01",null,null,null,null,null,null,null,null,null,null,43.699999999999903,"NO SATISFACTORIO"]
[177,null,null,null,null,null,null,null,null,null,null,null,null,null,null,"2017-03-02",null,null,null,null,null,null,null,null,null,null,43.799999999999898,"NO SATISFACTORIO"]
[null,null,null,null,null,null,null,null,null,null,null,null,null,null,null,"2017-03-03",null,null,null,null,null,null,null,null,null,null,43.899999999999899,"NO SATISFACTORIO"]
["COMPROMISO LABORAL",null,null,null,null,null,null,null,null,null,null,null,null,null,null,"2017-03-04",null,null,null,null,null,null,null,null,null,null,43.999999999999901,"NO SATISFACTORIO"]
["COMPETENCIA COMPORTAMENTAL",null,null,null,null,null,null,null,null,null,null,null,null,null,null,"2017-03-05",null,null,null,null,null,null,null,null,null,null,44.099999999999902,"NO SATISFACTORIO"]
[null,null,null,null,null,null,null,null,null,null,null,null,null,null,null,"2017-03-06",null,null,null,null,null,null,null,null,null,null,44.199999999999903,"NO SATISFACTORIO"]
["SEGUIMIENTO",null,null,null,null,null,null,null,null,null,null,null,null,null,null,"2017-03-07",null,null,null,null,null,null,null,null,null,null,44.299999999999898,"NO SATISFACTORIO"]
["EXTRAORDINARIA",null,null,null,null,null,null,null,null,null,null,null,null,null,null,"2017-03-08",null,null,null,null,null,null,null,null,null,null,44.399999999999899,"NO SATISFACTORIO"]
["EVENTUAL",null,null,null,null,null,null,null,null,null,null,null,null,null,null,"2017-03-09",null,null,null,null,null,null,null,null,null,null,44.499999999999901,"NO SATISFACTORIO"]
["1. PARCIAL SEMESTRAL",null,null,null,null,null,null,null,null,null,null,null,null,null,null,"2017-03-10",null,null,null,null,null,null,null,null,null,null,44.599999999999902,"NO SATISFACTORIO"]
["EVA. INF. A 1 AÑO",null,null,null,null,null,null,null,null,null,null,null,null,null,null,"2017-03-11",null,null,null,null,null,null,null,null,null,null,44.699999999999903,"NO SATISFACTORIO"]
["2. PARCIAL SEMESTRAL",null,null,null,null,null,null,null,null,null,null,null,null,null,null,"2017-03-12",null,null,null,null,null,null,null,null,null,null,44.799999999999898,"NO SATISFACTORIO"]
["PERÍODO DE PRUEBA",null,null,null,null,null,null,null,null,null,null,null,null,null,null,"2017-03-13",null,null,null,null,null,null,null,null,null,null,44.899999999999899,"NO SATISFACTORIO"]
[null,null,null,null,null,null,null,null,null,null,null,null,null,null,null,"2017-03-14",null,null,null,null,null,null,null,null,null,null,44.999999999999901,"NO SATISFACTORIO"]
[null,null,null,null,null,null,null,null,null,null,null,null,null,null,null,"2017-03-15",null,null,null,null,null,null,null,null,null,null,45.099999999999902,"NO SATISFACTORIO"]
[null,null,null,null,null,null,null,null,null,null,null,null,null,null,null,"2017-03-16",null,null,null,null,null,null,null,null,null,null,45.199999999999903,"NO SATISFACTORIO"]
[null,null,null,null,null,null,null,null,null,null,null,null,null,null,null,"2017-03-17",null,null,null,null,null,null,null,null,null,null,45.299999999999898,"NO SATISFACTORIO"]
[null,null,null,null,null,null,null,null,null,null,null,null,null,null,null,"2017-03-18",null,null,null,null,null,null,null,null,null,null,45.399999999999899,"NO SATISFACTORIO"]
[null,null,null,null,null,null,null,null,null,null,null,null,null,null,null,"2017-03-19",null,null,null,null,null,null,null,null,null,null,45.499999999999901,"NO SATISFACTORIO"]
[null,null,null,null,null,null,null,null,null,null,null,null,null,null,null,"2017-03-20",null,null,null,null,null,null,null,null,null,null,45.599999999999902,"NO SATISFACTORIO"]
[null,null,null,null,null,null,null,null,null,null,null,null,null,null,null,"2017-03-21",null,null,null,null,null,null,null,null,null,null,45.699999999999903,"NO SATISFACTORIO"]
[null,null,null,null,null,null,null,null,null,null,null,null,null,null,null,"2017-03-22",null,null,null,null,null,null,null,null,null,null,45.799999999999898,"NO SATISFACTORIO"]
[null,null,null,null,null,null,null,null,null,null,null,null,null,null,null,"2017-03-23",null,null,null,null,null,null,null,null,null,null,45.899999999999899,"NO SATISFACTORIO"]
[null,null,null,null,null,null,null,null,null,null,null,null,null,null,null,"2017-03-24",null,null,null,null,null,null,null,null,null,null,45.999999999999901,"NO SATISFACTORIO"]
["NO EVALUADO",0,null,null,null,null,null,null,null,null,null,null,null,null,null,"2017-03-25",null,null,null,null,null,null,null,null,null,null,46.099999999999902,"NO SATISFACTORIO"]
["BAJO",6,4,null,null,null,null,null,null,null,null,null,null,null,null,"2017-03-26",null,null,null,null,null,null,null,null,null,null,46.199999999999903,"NO SATISFACTORIO"]
["ACEPTABLE",9,6,null,null,null,null,null,null,null,null,null,null,null,null,"2017-03-27",null,null,null,null,null,null,null,null,null,null,46.299999999999898,"NO SATISFACTORIO"]
["ALTO",12,8,null,null,null,null,null,null,null,null,null,null,null,null,"2017-03-28",null,null,null,null,null,null,null,null,null,null,46.399999999999899,"NO SATISFACTORIO"]
["MUY ALTO",15,10,null,null,null,null,null,null,null,null,null,null,null,null,"2017-03-29",null,null,null,null,null,null,null,null,null,null,46.499999999999901,"NO SATISFACTORIO"]
[null,null,null,null,null,null,null,null,null,null,null,null,null,null,null,"2017-03-30",null,null,null,null,null,null,null,null,null,null,46.599999999999902,"NO SATISFACTORIO"]
[null,null,null,null,null,null,null,null,null,null,null,null,null,null,null,"2017-03-31",null,null,null,null,null,null,null,null,null,null,46.699999999999903,"NO SATISFACTORIO"]
["Período anual u ordinario- Compromiso 1",{"$f":"'F2. COMP. LAB Y COM COMPOR'!H37","v":0},null,null,null,null,null,null,null,null,null,null,null,null,null,"2017-04-01",null,null,null,null,null,null,null,null,null,null,46.799999999999898,"NO SATISFACTORIO"]
["Período anual u ordinario- Compromiso 2",{"$f":"'F2. COMP. LAB Y COM COMPOR'!H39","v":0},null,null,null,null,null,null,null,null,null,null,null,null,null,"2017-04-02",null,null,null,null,null,null,null,null,null,null,46.899999999999899,"NO SATISFACTORIO"]
["Período anual u ordinario- Compromiso 3",{"$f":"'F2. COMP. LAB Y COM COMPOR'!H41","v":0},null,null,null,null,null,null,null,null,null,null,null,null,null,"2017-04-03",null,null,null,null,null,null,null,null,null,null,46.999999999999901,"NO SATISFACTORIO"]
["Período anual u ordinario- Compromiso 4",{"$f":"'F2. COMP. LAB Y COM COMPOR'!H43","v":0},null,null,null,null,null,null,null,null,null,null,null,null,null,"2017-04-04",null,null,null,null,null,null,null,null,null,null,47.099999999999902,"NO SATISFACTORIO"]
["Período anual u ordinario- Compromiso 5",{"$f":"'F2. COMP. LAB Y COM COMPOR'!H45","v":0},null,null,null,null,null,null,null,null,null,null,null,null,null,"2017-04-05",null,null,null,null,null,null,null,null,null,null,47.199999999999903,"NO SATISFACTORIO"]
["Período anual u ordinario- Competencia 1",{"$f":"'F2. COMP. LAB Y COM COMPOR'!B51","v":0},null,null,null,null,null,null,null,null,null,null,null,null,null,"2017-04-06",null,null,null,null,null,null,null,null,null,null,47.299999999999898,"NO SATISFACTORIO"]
["Período anual u ordinario- Competencia 2",{"$f":"'F2. COMP. LAB Y COM COMPOR'!B53","v":0},null,null,null,null,null,null,null,null,null,null,null,null,null,"2017-04-08",null,null,null,null,null,null,null,null,null,null,47.399999999999899,"NO SATISFACTORIO"]
["Período anual u ordinario- Competencia 3",{"$f":"'F2. COMP. LAB Y COM COMPOR'!B55","v":0},null,null,null,null,null,null,null,null,null,null,null,null,null,"2017-04-09",null,null,null,null,null,null,null,null,null,null,47.499999999999901,"NO SATISFACTORIO"]
["Período anual u ordinario- Competencia 4",{"$f":"'F2. COMP. LAB Y COM COMPOR'!B57","v":0},null,null,null,null,null,null,null,null,null,null,null,null,null,"2017-04-10",null,null,null,null,null,null,null,null,null,null,47.599999999999902,"NO SATISFACTORIO"]
["Período de prueba- Compromiso 1",{"$f":"'F11. EVA P. PRUEBA'!F37","v":"C 1"},null,null,null,null,null,null,null,null,null,null,null,null,null,"2017-04-11",null,null,null,null,null,null,null,null,null,null,47.699999999999903,"NO SATISFACTORIO"]
["Período de prueba- Compromiso 2",{"$f":"'F11. EVA P. PRUEBA'!F38","v":"C 2"},null,null,null,null,null,null,null,null,null,null,null,null,null,"2017-04-12",null,null,null,null,null,null,null,null,null,null,47.799999999999898,"NO SATISFACTORIO"]
["Período de prueba- Compromiso 3",{"$f":"'F11. EVA P. PRUEBA'!F39","v":"C 3"},null,null,null,null,null,null,null,null,null,null,null,null,null,"2017-04-13",null,null,null,null,null,null,null,null,null,null,47.899999999999899,"NO SATISFACTORIO"]
["Período de prueba- Competencia 1",{"$f":"'F11. EVA P. PRUEBA'!A46","v":"Aprendizaje Continuo"},null,null,null,null,null,null,null,null,null,null,null,null,null,"2017-04-14",null,null,null,null,null,null,null,null,null,null,47.999999999999901,"NO SATISFACTORIO"]
["Período de prueba- Competencia 2",{"$f":"'F11. EVA P. PRUEBA'!A48","v":"Compromiso con la Organización"},null,null,null,null,null,null,null,null,null,null,null,null,null,"2017-04-15",null,null,null,null,null,null,null,null,null,null,48.099999999999902,"NO SATISFACTORIO"]
["Período de prueba- Competencia 3",{"$f":"'F11. EVA P. PRUEBA'!A50","v":"Creatividad e Innovación"},null,null,null,null,null,null,null,null,null,null,null,null,null,"2017-04-16",null,null,null,null,null,null,null,null,null,null,48.199999999999903,"NO SATISFACTORIO"]
["Período de prueba- Competencia 4",{"$f":"'F11. EVA P. PRUEBA'!A52","v":"Orientación al usuario y al ciudadano"},null,null,null,null,null,null,null,null,null,null,null,null,null,"2017-04-18",null,null,null,null,null,null,null,null,null,null,48.299999999999898,"NO SATISFACTORIO"]
[null,null,null,null,null,null,null,null,null,null,null,null,null,null,null,"2017-04-19",null,null,null,null,null,null,null,null,null,null,48.399999999999899,"NO SATISFACTORIO"]
[null,null,null,null,null,null,null,null,null,null,null,null,null,null,null,"2017-04-20",null,null,null,null,null,null,null,null,null,null,48.499999999999901,"NO SATISFACTORIO"]
["Período de prueba",null,null,null,null,null,null,null,null,null,null,null,null,null,null,"2017-04-21",null,null,null,null,null,null,null,null,null,null,48.599999999999902,"NO SATISFACTORIO"]
["Período anual u ordinario",null,null,null,null,null,null,null,null,null,null,null,null,null,null,"2017-04-22",null,null,null,null,null,null,null,null,null,null,48.699999999999903,"NO SATISFACTORIO"]
[null,null,null,null,null,null,null,null,null,null,null,null,null,null,null,"2017-04-23",null,null,null,null,null,null,null,null,null,null,48.799999999999898,"NO SATISFACTORIO"]
[null,null,null,null,null,null,null,null,null,null,null,null,null,null,null,"2017-04-24",null,null,null,null,null,null,null,null,null,null,48.899999999999899,"NO SATISFACTORIO"]
[null,null,null,null,null,null,null,null,null,null,null,null,null,null,null,"2017-04-25",null,null,null,null,null,null,null,null,null,null,48.999999999999901,"NO SATISFACTORIO"]
["EVALUACION EXTRAORDINARIA",null,null,null,null,null,null,null,null,null,null,null,null,null,null,"2017-04-26",null,null,null,null,null,null,null,null,null,null,49.099999999999902,"NO SATISFACTORIO"]
["SUMA EVALUACION PREVIA","SUMA EVALUACION ULTIMO PERIODO",null,null,null,null,null,null,null,null,null,null,null,null,null,"2017-04-27",null,null,null,null,null,null,null,null,null,null,49.199999999999903,"NO SATISFACTORIO"]
[{"$f":"IF('F9. EV. EXTRAORDINARIA'!F51=\"\",0,VLOOKUP('F9. EV. EXTRAORDINARIA'!F51,Hoja4!$A$461:$B$464,2,FALSE))","v":0},{"$f":"IF('F9. EV. EXTRAORDINARIA'!H51=\"\",0,VLOOKUP('F9. EV. EXTRAORDINARIA'!H51,Hoja4!$A$461:$B$464,2,FALSE))","v":0},null,null,null,null,null,null,null,null,null,null,null,null,null,"2017-04-28",null,null,null,null,null,null,null,null,null,null,49.299999999999898,"NO SATISFACTORIO"]
[{"$f":"IF('F9. EV. EXTRAORDINARIA'!F52=\"\",0,VLOOKUP('F9. EV. EXTRAORDINARIA'!F52,Hoja4!$A$461:$B$464,2,FALSE))","v":0},{"$f":"IF('F9. EV. EXTRAORDINARIA'!H52=\"\",0,VLOOKUP('F9. EV. EXTRAORDINARIA'!H52,Hoja4!$A$461:$B$464,2,FALSE))","v":0},null,null,null,null,null,null,null,null,null,null,null,null,null,"2017-04-29",null,null,null,null,null,null,null,null,null,null,49.399999999999899,"NO SATISFACTORIO"]
[{"$f":"IF('F9. EV. EXTRAORDINARIA'!F53=\"\",0,VLOOKUP('F9. EV. EXTRAORDINARIA'!F53,Hoja4!$A$461:$B$464,2,FALSE))","v":0},{"$f":"IF('F9. EV. EXTRAORDINARIA'!H53=\"\",0,VLOOKUP('F9. EV. EXTRAORDINARIA'!H53,Hoja4!$A$461:$B$464,2,FALSE))","v":0},null,null,null,null,null,null,null,null,null,null,null,null,null,"2017-04-30",null,null,null,null,null,null,null,null,null,null,49.499999999999901,"NO SATISFACTORIO"]
[{"$f":"IF('F9. EV. EXTRAORDINARIA'!F54=\"\",0,VLOOKUP('F9. EV. EXTRAORDINARIA'!F54,Hoja4!$A$461:$B$464,2,FALSE))","v":0},{"$f":"IF('F9. EV. EXTRAORDINARIA'!H54=\"\",0,VLOOKUP('F9. EV. EXTRAORDINARIA'!H54,Hoja4!$A$461:$B$464,2,FALSE))","v":0},null,null,null,null,null,null,null,null,null,null,null,null,null,"2017-05-01",null,null,null,null,null,null,null,null,null,null,49.599999999999902,"NO SATISFACTORIO"]
[{"$f":"SUBTOTAL(9,A492:A495)","v":0},{"$f":"SUBTOTAL(9,B492:B495)","v":0},null,null,null,null,null,null,null,null,null,null,null,null,null,"2017-05-02",null,null,null,null,null,null,null,null,null,null,49.699999999999903,"NO SATISFACTORIO"]
[null,null,null,null,null,null,null,null,null,null,null,null,null,null,null,"2017-05-03",null,null,null,null,null,null,null,null,null,null,49.799999999999898,"NO SATISFACTORIO"]
[null,null,null,null,null,null,null,null,null,null,null,null,null,null,null,"2017-05-04",null,null,null,null,null,null,null,null,null,null,49.899999999999899,"NO SATISFACTORIO"]
[null,null,null,null,null,null,null,null,null,null,null,null,null,null,null,"2017-05-05",null,null,null,null,null,null,null,null,null,null,49.999999999999901,"NO SATISFACTORIO"]
[null,null,null,null,null,null,null,null,null,null,null,null,null,null,null,"2017-05-06",null,null,null,null,null,null,null,null,null,null,50.099999999999902,"NO SATISFACTORIO"]
[null,null,null,null,null,null,null,null,null,null,null,null,null,null,null,"2017-05-07",null,null,null,null,null,null,null,null,null,null,50.199999999999903,"NO SATISFACTORIO"]
["EVALUACION INFERIOR A 1 AÑO",null,null,null,null,null,null,null,null,null,null,null,null,null,null,"2017-05-08",null,null,null,null,null,null,null,null,null,null,50.299999999999898,"NO SATISFACTORIO"]
["SUMA EVALUACION PREVIA","SUMA EVALUACION ULTIMO PERIODO",null,null,null,null,null,null,null,null,null,null,null,null,null,"2017-05-09",null,null,null,null,null,null,null,null,null,null,50.399999999999899,"NO SATISFACTORIO"]
[{"$f":"IF('F10. EVA. INFERIOR A 1 AÑO'!F51=\"\",0,VLOOKUP('F10. EVA. INFERIOR A 1 AÑO'!F51,Hoja4!$A$461:$C$464,3,FALSE))","v":0},{"$f":"IF('F10. EVA. INFERIOR A 1 AÑO'!H51=\"\",0,VLOOKUP('F10. EVA. INFERIOR A 1 AÑO'!H51,Hoja4!$A$461:$C$464,3,FALSE))","v":0},null,null,null,null,null,null,null,null,null,null,null,null,null,"2017-05-10",null,null,null,null,null,null,null,null,null,null,50.499999999999901,"NO SATISFACTORIO"]
[{"$f":"IF('F10. EVA. INFERIOR A 1 AÑO'!F52=\"\",0,VLOOKUP('F10. EVA. INFERIOR A 1 AÑO'!F52,Hoja4!$A$461:$C$464,3,FALSE))","v":0},{"$f":"IF('F10. EVA. INFERIOR A 1 AÑO'!H52=\"\",0,VLOOKUP('F10. EVA. INFERIOR A 1 AÑO'!H52,Hoja4!$A$461:$C$464,3,FALSE))","v":0},null,null,null,null,null,null,null,null,null,null,null,null,null,"2017-05-11",null,null,null,null,null,null,null,null,null,null,50.599999999999902,"NO SATISFACTORIO"]
[{"$f":"IF('F10. EVA. INFERIOR A 1 AÑO'!F53=\"\",0,VLOOKUP('F10. EVA. INFERIOR A 1 AÑO'!F53,Hoja4!$A$461:$C$464,3,FALSE))","v":0},{"$f":"IF('F10. EVA. INFERIOR A 1 AÑO'!H53=\"\",0,VLOOKUP('F10. EVA. INFERIOR A 1 AÑO'!H53,Hoja4!$A$461:$C$464,3,FALSE))","v":0},null,null,null,null,null,null,null,null,null,null,null,null,null,"2017-05-12",null,null,null,null,null,null,null,null,null,null,50.699999999999903,"NO SATISFACTORIO"]
[{"$f":"IF('F10. EVA. INFERIOR A 1 AÑO'!F54=\"\",0,VLOOKUP('F10. EVA. INFERIOR A 1 AÑO'!F54,Hoja4!$A$461:$C$464,3,FALSE))","v":0},{"$f":"IF('F10. EVA. INFERIOR A 1 AÑO'!H54=\"\",0,VLOOKUP('F10. EVA. INFERIOR A 1 AÑO'!H54,Hoja4!$A$461:$C$464,3,FALSE))","v":0},null,null,null,null,null,null,null,null,null,null,null,null,null,"2017-05-13",null,null,null,null,null,null,null,null,null,null,50.799999999999898,"NO SATISFACTORIO"]
[{"$f":"SUBTOTAL(9,A504:A507)","v":0},{"$f":"SUBTOTAL(9,B504:B507)","v":0},null,null,null,null,null,null,null,null,null,null,null,null,null,"2017-05-14",null,null,null,null,null,null,null,null,null,null,50.899999999999899,"NO SATISFACTORIO"]
[null,null,null,null,null,null,null,null,null,null,null,null,null,null,null,"2017-05-15",null,null,null,null,null,null,null,null,null,null,50.999999999999901,"NO SATISFACTORIO"]
[null,null,null,null,null,null,null,null,null,null,null,null,null,null,null,"2017-05-16",null,null,null,null,null,null,null,null,null,null,51.099999999999902,"NO SATISFACTORIO"]
[null,null,null,null,null,null,null,null,null,null,null,null,null,null,null,"2017-05-17",null,null,null,null,null,null,null,null,null,null,51.199999999999903,"NO SATISFACTORIO"]
["Ajuste de compromisos","Cambio de evaluador",null,null,null,null,null,null,null,null,null,null,null,null,null,"2017-05-18",null,null,null,null,null,null,null,null,null,null,51.299999999999898,"NO SATISFACTORIO"]
["Cambio de evaluador","Interrupción del período de prueba por más de 20 días calendario",null,null,null,null,null,null,null,null,null,null,null,null,null,"2017-05-19",null,null,null,null,null,null,null,null,null,null,51.399999999999899,"NO SATISFACTORIO"]
["Cambio del empleo","Lapso entre la última evaluación y el final del período",null,null,null,null,null,null,null,null,null,null,null,null,null,"2017-05-20",null,null,null,null,null,null,null,null,null,null,51.499999999999901,"NO SATISFACTORIO"]
["Lapso entre la última evaluación y el final del período",null,null,null,null,null,null,null,null,null,null,null,null,null,null,"2017-05-21",null,null,null,null,null,null,null,null,null,null,51.599999999999902,"NO SATISFACTORIO"]
["Por período de prueba en otro empleo",null,null,null,null,null,null,null,null,null,null,null,null,null,null,"2017-05-22",null,null,null,null,null,null,null,null,null,null,51.699999999999903,"NO SATISFACTORIO"]
["Separación temporal del empleo por más de 30 días calendario",null,null,null,null,null,null,null,null,null,null,null,null,null,null,"2017-05-23",null,null,null,null,null,null,null,null,null,null,51.799999999999898,"NO SATISFACTORIO"]
[null,null,null,null,null,null,null,null,null,null,null,null,null,null,null,"2017-05-24",null,null,null,null,null,null,null,null,null,null,51.8999999999998,"NO SATISFACTORIO"]
[null,null,null,null,null,null,null,null,null,null,null,null,null,null,null,"2017-05-25",null,null,null,null,null,null,null,null,null,null,51.999999999999901,"NO SATISFACTORIO"]
[null,null,null,null,null,null,null,null,null,null,null,null,null,null,null,"2017-05-26",null,null,null,null,null,null,null,null,null,null,52.099999999999902,"NO SATISFACTORIO"]
[null,null,null,null,null,null,null,null,null,null,null,null,null,null,null,"2017-05-27",null,null,null,null,null,null,null,null,null,null,52.199999999999903,"NO SATISFACTORIO"]
[null,null,null,null,null,null,null,null,null,null,null,null,null,null,null,"2017-05-28",null,null,null,null,null,null,null,null,null,null,52.299999999999898,"NO SATISFACTORIO"]
[null,null,null,null,null,null,null,null,null,null,null,null,null,null,null,"2017-05-29",null,null,null,null,null,null,null,null,null,null,52.3999999999998,"NO SATISFACTORIO"]
[null,null,null,null,null,null,null,null,null,null,null,null,null,null,null,"2017-05-30",null,null,null,null,null,null,null,null,null,null,52.499999999999901,"NO SATISFACTORIO"]
["PERIODO SEMESTRAL","CALIFICACION LABORALES","TIEMPO","% TOTAL TIEMPO","CALIFICACIÓN COMPORTAMENTALES",null,null,null,null,null,null,null,null,null,null,"2017-05-31",null,null,null,null,null,null,null,null,null,null,52.599999999999902,"NO SATISFACTORIO"]
["PRIMER SEMESTRE",{"$f":"'F1. INF. GENERAL'!O43","v":0},{"$f":"'F1. INF. GENERAL'!L44","v":0},{"$f":"+C526/C528","v":{"$error":"#DIV/0!"}},{"$f":"'F1. INF. GENERAL'!F58","v":"CALIFIQUE 4 COMPETENCIAS"},null,null,null,null,null,null,null,null,null,null,"2017-06-01",null,null,null,null,null,null,null,null,null,null,52.699999999999797,"NO SATISFACTORIO"]
["SEGUNDO SEMESTRE",{"$f":"'F1. INF. GENERAL'!S43","v":0},{"$f":"'F1. INF. GENERAL'!P44","v":0},{"$f":"+C527/C529","v":{"$error":"#DIV/0!"}},{"$f":"'F1. INF. GENERAL'!H58","v":"CALIFIQUE 4 COMPETENCIAS"},null,null,null,null,null,null,null,null,null,null,"2017-06-02",null,null,null,null,null,null,null,null,null,null,52.799999999999798,"NO SATISFACTORIO"]
[null,null,{"$f":"SUM(C526:C527)","v":0},1]
[]
[]
[null,null,null,null,null,null,null,null,null,null,null,null,null,null,null,"2017-06-03",null,null,null,null,null,null,null,null,null,null,52.8999999999998,"NO SATISFACTORIO"]
["PARCIALES EVENTAULES","CALIFICACION LABORALES","TIEMPO",null,"CALIFICACIÓN COMPORTAMENTALES",null,null,null,null,null,null,null,null,null,null,"2017-06-04",null,null,null,null,null,null,null,null,null,null,52.999999999999901,"NO SATISFACTORIO"]
["PRIMER SEMESTRE",{"$f":"'F8. EVA. EVENTUAL (Semestre 1)'!K48","v":0},{"$f":"'F8. EVA. EVENTUAL (Semestre 1)'!L46","v":"No Aplica"},{"$f":"+C533/C535","v":{"$error":"#VALUE!"}},{"$f":"'F8. EVA. EVENTUAL (Semestre 1)'!M62","v":0},null,null,null,null,null,null,null,null,null,null,"2017-06-05",null,null,null,null,null,null,null,null,null,null,53.099999999999902,"NO SATISFACTORIO"]
["SEGUNDO SEMESTRE",{"$f":"'F8. EVA. EVENTUAL (Semestre 2)'!K47","v":0},{"$f":"'F8. EVA. EVENTUAL (Semestre 2)'!L45","v":"No Aplica"},{"$f":"+C534/C535","v":{"$error":"#VALUE!"}},{"$f":"'F8. EVA. EVENTUAL (Semestre 2)'!M61","v":0},null,null,null,null,null,null,null,null,null,null,"2017-06-06",null,null,null,null,null,null,null,null,null,null,53.199999999999797,"NO SATISFACTORIO"]
[null,null,{"$f":"SUM(C533:C534)","v":0},1,null,null,null,null,null,null,null,null,null,null,null,"2017-06-07",null,null,null,null,null,null,null,null,null,null,53.299999999999798,"NO SATISFACTORIO"]
[null,null,null,null,null,null,null,null,null,null,null,null,null,null,null,"2017-06-08",null,null,null,null,null,null,null,null,null,null,53.3999999999998,"NO SATISFACTORIO"]
[null,null,null,null,null,null,null,null,null,null,null,null,null,null,null,"2017-06-09",null,null,null,null,null,null,null,null,null,null,53.499999999999801,"NO SATISFACTORIO"]
[null,null,"TIEMPO",null,null,null,null,null,null,null,null,null,null,null,null,"2017-06-10",null,null,null,null,null,null,null,null,null,null,53.599999999999802,"NO SATISFACTORIO"]
[null,"Primer Semestre",{"$f":"IF(C533=\"No Aplica\",C526,C533)","v":0},{"$f":"+C539/$C$541","v":{"$error":"#DIV/0!"}},null,null,null,null,null,null,null,null,null,null,null,"2017-06-11",null,null,null,null,null,null,null,null,null,null,53.699999999999797,"NO SATISFACTORIO"]
[null,"Segundo Semestre",{"$f":"IF(C534=\"No Aplica\",C527,C534)","v":0},{"$f":"+C540/$C$541","v":{"$error":"#DIV/0!"}},null,null,null,null,null,null,null,null,null,null,null,"2017-06-12",null,null,null,null,null,null,null,null,null,null,53.799999999999798,"NO SATISFACTORIO"]
[null,"TOTAL TIEMPO",{"$f":"SUM(C539:C540)","v":0},null,null,null,null,null,null,null,null,null,null,null,null,"2017-06-13",null,null,null,null,null,null,null,null,null,null,53.8999999999998,"NO SATISFACTORIO"]
[null,null,null,null,null,null,null,null,null,null,null,null,null,null,null,"2017-06-14",null,null,null,null,null,null,null,null,null,null,53.999999999999801,"NO SATISFACTORIO"]
[null,null,null,null,null,null,null,null,null,null,null,null,null,null,null,"2017-06-15",null,null,null,null,null,null,null,null,null,null,54.099999999999802,"NO SATISFACTORIO"]
[null,null,null,null,null,null,null,null,null,null,null,null,null,null,null,"2017-06-16",null,null,null,null,null,null,null,null,null,null,54.199999999999797,"NO SATISFACTORIO"]
[null,null,null,null,null,null,null,null,null,null,null,null,null,null,null,"2017-06-17",null,null,null,null,null,null,null,null,null,null,54.299999999999798,"NO SATISFACTORIO"]
[null,null,null,null,null,null,null,null,null,null,null,null,null,null,null,"2017-06-18",null,null,null,null,null,null,null,null,null,null,54.3999999999998,"NO SATISFACTORIO"]
[null,null,null,null,null,null,null,null,null,null,null,null,null,null,null,"2017-06-19",null,null,null,null,null,null,null,null,null,null,54.499999999999801,"NO SATISFACTORIO"]
[null,null,null,null,null,null,null,null,null,null,null,null,null,null,null,"2017-06-20",null,null,null,null,null,null,null,null,null,null,54.599999999999802,"NO SATISFACTORIO"]
[null,null,null,null,null,null,null,null,null,null,null,null,null,null,null,"2017-06-21",null,null,null,null,null,null,null,null,null,null,54.699999999999797,"NO SATISFACTORIO"]
[null,null,null,null,null,null,null,null,null,null,null,null,null,null,null,"2017-06-22",null,null,null,null,null,null,null,null,null,null,54.799999999999798,"NO SATISFACTORIO"]
[null,null,null,null,null,null,null,null,null,null,null,null,null,null,null,"2017-06-23",null,null,null,null,null,null,null,null,null,null,54.8999999999998,"NO SATISFACTORIO"]
[null,null,null,null,null,null,null,null,null,null,null,null,null,null,null,"2017-06-24",null,null,null,null,null,null,null,null,null,null,54.999999999999801,"NO SATISFACTORIO"]
[null,null,null,null,null,null,null,null,null,null,null,null,null,null,null,"2017-06-25",null,null,null,null,null,null,null,null,null,null,55.099999999999802,"NO SATISFACTORIO"]
[null,null,null,null,null,null,null,null,null,null,null,null,null,null,null,"2017-06-26",null,null,null,null,null,null,null,null,null,null,55.199999999999797,"NO SATISFACTORIO"]
[null,null,null,null,null,null,null,null,null,null,null,null,null,null,null,"2017-06-27",null,null,null,null,null,null,null,null,null,null,55.299999999999798,"NO SATISFACTORIO"]
[null,null,null,null,null,null,null,null,null,null,null,null,null,null,null,"2017-06-28",null,null,null,null,null,null,null,null,null,null,55.3999999999998,"NO SATISFACTORIO"]
[null,null,null,null,null,null,null,null,null,null,null,null,null,null,null,"2017-06-29",null,null,null,null,null,null,null,null,null,null,55.499999999999801,"NO SATISFACTORIO"]
[null,null,null,null,null,null,null,null,null,null,null,null,null,null,null,"2017-06-30",null,null,null,null,null,null,null,null,null,null,55.599999999999802,"NO SATISFACTORIO"]
[null,null,null,null,null,null,null,null,null,null,null,null,null,null,null,"2017-07-01",null,null,null,null,null,null,null,null,null,null,55.699999999999797,"NO SATISFACTORIO"]
[null,null,null,null,null,null,null,null,null,null,null,null,null,null,null,"2017-07-02",null,null,null,null,null,null,null,null,null,null,55.799999999999798,"NO SATISFACTORIO"]
[null,null,null,null,null,null,null,null,null,null,null,null,null,null,null,"2017-07-03",null,null,null,null,null,null,null,null,null,null,55.8999999999998,"NO SATISFACTORIO"]
[null,null,null,null,null,null,null,null,null,null,null,null,null,null,null,"2017-07-04",null,null,null,null,null,null,null,null,null,null,55.999999999999801,"NO SATISFACTORIO"]
[null,null,null,null,null,null,null,null,null,null,null,null,null,null,null,"2017-07-05",null,null,null,null,null,null,null,null,null,null,56.099999999999802,"NO SATISFACTORIO"]
[null,null,null,null,null,null,null,null,null,null,null,null,null,null,null,"2017-07-06",null,null,null,null,null,null,null,null,null,null,56.199999999999797,"NO SATISFACTORIO"]
[null,null,null,null,null,null,null,null,null,null,null,null,null,null,null,"2017-07-07",null,null,null,null,null,null,null,null,null,null,56.299999999999798,"NO SATISFACTORIO"]
[null,null,null,null,null,null,null,null,null,null,null,null,null,null,null,"2017-07-08",null,null,null,null,null,null,null,null,null,null,56.3999999999998,"NO SATISFACTORIO"]
[null,null,null,null,null,null,null,null,null,null,null,null,null,null,null,"2017-07-09",null,null,null,null,null,null,null,null,null,null,56.499999999999801,"NO SATISFACTORIO"]
[null,null,null,null,null,null,null,null,null,null,null,null,null,null,null,"2017-07-10",null,null,null,null,null,null,null,null,null,null,56.599999999999802,"NO SATISFACTORIO"]
[null,null,null,null,null,null,null,null,null,null,null,null,null,null,null,"2017-07-11",null,null,null,null,null,null,null,null,null,null,56.699999999999797,"NO SATISFACTORIO"]
[null,null,null,null,null,null,null,null,null,null,null,null,null,null,null,"2017-07-12",null,null,null,null,null,null,null,null,null,null,56.799999999999798,"NO SATISFACTORIO"]
[null,null,null,null,null,null,null,null,null,null,null,null,null,null,null,"2017-07-13",null,null,null,null,null,null,null,null,null,null,56.8999999999998,"NO SATISFACTORIO"]
[null,null,null,null,null,null,null,null,null,null,null,null,null,null,null,"2017-07-14",null,null,null,null,null,null,null,null,null,null,56.999999999999801,"NO SATISFACTORIO"]
[null,null,null,null,null,null,null,null,null,null,null,null,null,null,null,"2017-07-15",null,null,null,null,null,null,null,null,null,null,57.099999999999802,"NO SATISFACTORIO"]
[null,null,null,null,null,null,null,null,null,null,null,null,null,null,null,"2017-07-16",null,null,null,null,null,null,null,null,null,null,57.199999999999797,"NO SATISFACTORIO"]
[null,null,null,null,null,null,null,null,null,null,null,null,null,null,null,"2017-07-17",null,null,null,null,null,null,null,null,null,null,57.299999999999798,"NO SATISFACTORIO"]
[null,null,null,null,null,null,null,null,null,null,null,null,null,null,null,"2017-07-18",null,null,null,null,null,null,null,null,null,null,57.3999999999998,"NO SATISFACTORIO"]
[null,null,null,null,null,null,null,null,null,null,null,null,null,null,null,"2017-07-19",null,null,null,null,null,null,null,null,null,null,57.499999999999801,"NO SATISFACTORIO"]
[null,null,null,null,null,null,null,null,null,null,null,null,null,null,null,"2017-07-20",null,null,null,null,null,null,null,null,null,null,57.599999999999802,"NO SATISFACTORIO"]
[null,null,null,null,null,null,null,null,null,null,null,null,null,null,null,"2017-07-21",null,null,null,null,null,null,null,null,null,null,57.699999999999797,"NO SATISFACTORIO"]
[null,null,null,null,null,null,null,null,null,null,null,null,null,null,null,"2017-07-22",null,null,null,null,null,null,null,null,null,null,57.799999999999798,"NO SATISFACTORIO"]
[null,null,null,null,null,null,null,null,null,null,null,null,null,null,null,"2017-07-23",null,null,null,null,null,null,null,null,null,null,57.8999999999998,"NO SATISFACTORIO"]
[null,null,null,null,null,null,null,null,null,null,null,null,null,null,null,"2017-07-24",null,null,null,null,null,null,null,null,null,null,57.999999999999801,"NO SATISFACTORIO"]
[null,null,null,null,null,null,null,null,null,null,null,null,null,null,null,"2017-07-25",null,null,null,null,null,null,null,null,null,null,58.099999999999802,"NO SATISFACTORIO"]
[null,null,null,null,null,null,null,null,null,null,null,null,null,null,null,"2017-07-26",null,null,null,null,null,null,null,null,null,null,58.199999999999797,"NO SATISFACTORIO"]
[null,null,null,null,null,null,null,null,null,null,null,null,null,null,null,"2017-07-27",null,null,null,null,null,null,null,null,null,null,58.299999999999798,"NO SATISFACTORIO"]
[null,null,null,null,null,null,null,null,null,null,null,null,null,null,null,"2017-07-28",null,null,null,null,null,null,null,null,null,null,58.3999999999998,"NO SATISFACTORIO"]
[null,null,null,null,null,null,null,null,null,null,null,null,null,null,null,"2017-07-29",null,null,null,null,null,null,null,null,null,null,58.499999999999801,"NO SATISFACTORIO"]
[null,null,null,null,null,null,null,null,null,null,null,null,null,null,null,"2017-07-30",null,null,null,null,null,null,null,null,null,null,58.599999999999802,"NO SATISFACTORIO"]
[null,null,null,null,null,null,null,null,null,null,null,null,null,null,null,"2017-07-31",null,null,null,null,null,null,null,null,null,null,58.699999999999797,"NO SATISFACTORIO"]
[null,null,null,null,null,null,null,null,null,null,null,null,null,null,null,"2017-08-01",null,null,null,null,null,null,null,null,null,null,58.799999999999798,"NO SATISFACTORIO"]
[null,null,null,null,null,null,null,null,null,null,null,null,null,null,null,"2017-08-02",null,null,null,null,null,null,null,null,null,null,58.8999999999998,"NO SATISFACTORIO"]
[null,null,null,null,null,null,null,null,null,null,null,null,null,null,null,"2017-08-03",null,null,null,null,null,null,null,null,null,null,58.999999999999801,"NO SATISFACTORIO"]
[null,null,null,null,null,null,null,null,null,null,null,null,null,null,null,"2017-08-04",null,null,null,null,null,null,null,null,null,null,59.099999999999802,"NO SATISFACTORIO"]
[null,null,null,null,null,null,null,null,null,null,null,null,null,null,null,"2017-08-05",null,null,null,null,null,null,null,null,null,null,59.199999999999797,"NO SATISFACTORIO"]
[null,null,null,null,null,null,null,null,null,null,null,null,null,null,null,"2017-08-06",null,null,null,null,null,null,null,null,null,null,59.299999999999798,"NO SATISFACTORIO"]
[null,null,null,null,null,null,null,null,null,null,null,null,null,null,null,"2017-08-07",null,null,null,null,null,null,null,null,null,null,59.3999999999998,"NO SATISFACTORIO"]
[null,null,null,null,null,null,null,null,null,null,null,null,null,null,null,"2017-08-08",null,null,null,null,null,null,null,null,null,null,59.499999999999801,"NO SATISFACTORIO"]
[null,null,null,null,null,null,null,null,null,null,null,null,null,null,null,"2017-08-09",null,null,null,null,null,null,null,null,null,null,59.599999999999802,"NO SATISFACTORIO"]
[null,null,null,null,null,null,null,null,null,null,null,null,null,null,null,"2017-08-10",null,null,null,null,null,null,null,null,null,null,59.699999999999797,"NO SATISFACTORIO"]
["NIVEL","Competencia","Concatenar","Definición de la competencia","Conductas asociadas",null,null,null,null,null,null,null,null,null,null,"2017-08-11",null,null,null,null,null,null,null,null,null,null,59.799999999999798,"NO SATISFACTORIO"]
["ASESOR","Orientación a resultados ",{"$f":"A601&B601","v":"ASESOROrientación a resultados "},"Realizar las funciones y cumplir los compromisos organizacionales con eficacia y calidad. ","▪ Cumple con oportunidad en función de estándares, objetivos y metas establecidas por la entidad, las funciones que le son asignadas.\n▪ Asume la responsabilidad por sus resultados.\n▪ Compromete recursos y tiempos para mejorar la productividad tomando las medidas necesarias para minimizar los riesgos.\n▪ Realiza todas las acciones necesarias para alcanzar los objetivos propuestos enfrentando los obstáculos que se presentan.",null,null,null,null,null,null,null,null,null,null,"2017-08-12",null,null,null,null,null,null,null,null,null,null,59.8999999999998,"NO SATISFACTORIO"]
["ASESOR","Orientación al usuario y al ciudadano",{"$f":"A602&B602","v":"ASESOROrientación al usuario y al ciudadano"},"Dirigir las decisiones y acciones a la satisfacción de las necesidades e intereses de los usuarios internos y externos, de conformidad con las responsabilidades públicas asignadas a la entidad.","▪ Atiende y valora las necesidades y peticiones de los usuarios y de ciudadanos en general.\n▪Considera las necesidades de los usuarios al diseñar proyectos o servicios.\n▪Da respuesta oportuna a las necesidades de los usuarios de conformidad con el servicio que ofrece la entidad.\n▪Establece diferentes canales de comunicación con el usuario para conocer sus necesidades y propuestas y responde a las mismas.\n▪Reconoce la interdependencia entre su trabajo y el de otros.",null,null,null,null,null,null,null,null,null,null,"2017-08-13",null,null,null,null,null,null,null,null,null,null,59.999999999999801,"NO SATISFACTORIO"]
["ASESOR","Compromiso con la Organización","ASESORCompromiso con la Organización","Alinear el propio comportamiento a las necesidades, prioridades y metas organizacionales.","▪Promueve las metas de la organización y respeta sus normas.\n▪Antepone las necesidades de la organización a sus propias necesidades.\n▪Apoya a la organización en situaciones difíciles.\n▪Demuestra sentido de pertenencia en todas sus actuaciones.",null,null,null,null,null,null,null,null,null,null,"2017-08-14",null,null,null,null,null,null,null,null,null,null,60.099999999999802,"NO SATISFACTORIO"]
["ASESOR","Experticia profesional","ASESORExperticia profesional","Aplicar el conocimiento profesional","▪Orienta el desarrollo de proyectos especiales para el logro de resultados de la alta dirección.\n▪Aconseja y orienta la toma de decisiones en los temas que le han sido asignados.\n▪Asesora en materias propias de su campo de conocimiento, emitiendo conceptos, juicios o propuestas ajustados a lineamientos teóricos y técnicos.\n▪Se comunica de modo lógico, claro, efectivo y seguro.",null,null,null,null,null,null,null,null,null,null,"2017-08-15",null,null,null,null,null,null,null,null,null,null,60.199999999999797,"NO SATISFACTORIO"]
["ASESOR","Conocimiento del entorno","ASESORConocimiento del entorno","Conocer e interpretar la organización, su funcionamiento y sus relaciones políticas y administrativas.","▪Comprende el entorno organizacional que enmarca las situaciones objeto de asesoría y lo toma como referente obligado para emitir juicios, conceptos o propuestas a desarrollar.\n▪Se informa permanentemente sobre políticas gubernamentales, problemas y demandas del entorno.",null,null,null,null,null,null,null,null,null,null,"2017-08-16",null,null,null,null,null,null,null,null,null,null,60.299999999999798,"NO SATISFACTORIO"]
["ASESOR","Construcción de relaciones","ASESORConstrucción de relaciones","Establecer y mantener relaciones cordiales y recíprocas con redes o grupos de personas internas y externas a la organización que faciliten la consecución de los objetivos institucionales.","▪Utiliza sus contactos para conseguir objetivos.\n▪Comparte información para establecer lazos.\n▪Interactúa con otros de un modo efectivo y adecuado.",null,null,null,null,null,null,null,null,null,null,"2017-08-17",null,null,null,null,null,null,null,null,null,null,60.3999999999998,"NO SATISFACTORIO"]
["ASESOR","Iniciativa","ASESORIniciativa","Anticiparse a los problemas iniciando acciones para superar los obstáculos y alcanzar metas concretas","▪Prevé situaciones y alternativas de solución que orientan la toma de decisiones de la alta dirección.\n▪Enfrenta los problemas y propone acciones concretas para solucionarlos.\n▪Reconoce y hace viables las oportunidades.",null,null,null,null,null,null,null,null,null,null,"2017-08-18",null,null,null,null,null,null,null,null,null,null,60.499999999999801,"NO SATISFACTORIO"]
["PROFESIONAL","Orientación a resultados ","PROFESIONALOrientación a resultados ","Realizar las funciones y cumplir los compromisos organizacionales con eficacia y calidad. ","▪ Cumple con oportunidad en función de estándares, objetivos y metas establecidas por la entidad, las funciones que le son asignadas.\n▪ Asume la responsabilidad por sus resultados.\n▪ Compromete recursos y tiempos para mejorar la productividad tomando las medidas necesarias para minimizar los riesgos.\n▪ Realiza todas las acciones necesarias para alcanzar los objetivos propuestos enfrentando los obstáculos que se presentan.",null,null,null,null,null,null,null,null,null,null,"2017-08-19",null,null,null,null,null,null,null,null,null,null,60.599999999999802,"NO SATISFACTORIO"]
["PROFESIONAL","Orientación al usuario y al ciudadano","PROFESIONALOrientación al usuario y al ciudadano","Dirigir las decisiones y acciones a la satisfacción de las necesidades e intereses de los usuarios internos y externos, de conformidad con las responsabilidades públicas asignadas a la entidad.","▪ Atiende y valora las necesidades y peticiones de los usuarios y de ciudadanos en general.\n▪Considera las necesidades de los usuarios al diseñar proyectos o servicios.\n▪Da respuesta oportuna a las necesidades de los usuarios de conformidad con el servicio que ofrece la entidad.\n▪Establece diferentes canales de comunicación con el usuario para conocer sus necesidades y propuestas y responde a las mismas.\n▪Reconoce la interdependencia entre su trabajo y el de otros.",null,null,null,null,null,null,null,null,null,null,"2017-08-20",null,null,null,null,null,null,null,null,null,null,60.699999999999797,"NO SATISFACTORIO"]
["PROFESIONAL","Compromiso con la Organización","PROFESIONALCompromiso con la Organización","Alinear el propio comportamiento a las necesidades, prioridades y metas organizacionales.","▪Promueve las metas de la organización y respeta sus normas.\n▪Antepone las necesidades de la organización a sus propias necesidades.\n▪Apoya a la organización en situaciones difíciles.\n▪Demuestra sentido de pertenencia en todas sus actuaciones.",null,null,null,null,null,null,null,null,null,null,"2017-08-21",null,null,null,null,null,null,null,null,null,null,60.799999999999798,"NO SATISFACTORIO"]
["PROFESIONAL","Aprendizaje Continuo","PROFESIONALAprendizaje Continuo","Adquirir y desarrollar permanentemente conocimientos, destrezas y habilidades, con el fin de mantener altos estándares de eficacia organizacional.","▪Aprende de la experiencia de otros y de la propia.\n▪Se adapta y aplica nuevas tecnologías que se implanten en la organización.\n▪Aplica los conocimientos adquiridos a los desafíos que se presentan en el desarrollo del trabajo.\n▪Investiga, indaga y profundiza en los temas de su entorno área de desempeño.\n▪Reconoce las propias limitaciones y las necesidades de mejorar su preparación.\n▪Asimila nueva información y la aplica correctamente.",null,null,null,null,null,null,null,null,null,null,"2017-08-22",null,null,null,null,null,null,null,null,null,null,60.8999999999998,"NO SATISFACTORIO"]
["PROFESIONAL","Experticia profesional","PROFESIONALExperticia profesional","Aplicar el conocimiento profesional en la resolución de problemas y transferirlo a su entorno laboral.","▪Analiza de un modo sistemático y racional los aspectos del trabajo, basándose en la información relevante.\n▪Aplica reglas básicas y conceptos complejos aprendidos\n▪Identifica y reconoce con facilidad las causas de los problemas y sus soluciones.\n▪Clarifica datos o situaciones complejas.\n▪Planea, organiza y ejecuta múltiples tareas tendientes a alcanzar resultados institucionales.",null,null,null,null,null,null,null,null,null,null,"2017-08-23",null,null,null,null,null,null,null,null,null,null,60.999999999999801,"NO SATISFACTORIO"]
["PROFESIONAL","Trabajo en equipo y Colaboración","PROFESIONALTrabajo en equipo y Colaboración","Trabajar con otros de forma conjunta y de manera participativa, integrando esfuerzos para la consecución de metas institucionales comunes.","▪Coopera en distintas situaciones y comparte información.\n▪Aporta sugerencias, ideas y opiniones.\n▪Expresa expectativas positivas del equipo o de los miembros del mismo.\n▪Planifica las propias acciones teniendo en cuenta la repercusión de las mismas para la consecución de los objetivos grupales.\n▪Establece diálogo directo con los miembros del equipo que permita compartir información e ideas en condiciones de respeto y cordialidad.\n▪Respeta criterios dispares y distintas opiniones del equipo.",null,null,null,null,null,null,null,null,null,null,"2017-08-24",null,null,null,null,null,null,null,null,null,null,61.099999999999802,"NO SATISFACTORIO"]
["PROFESIONAL","Creatividad e Innovación","PROFESIONALCreatividad e Innovación","Generar y desarrollar nuevas ideas, conceptos, métodos y soluciones.","▪Ofrece respuestas alternativas.\n▪Aprovecha las oportunidades y problemas para dar soluciones novedosas.\n▪Desarrolla nuevas formas de hacer y tecnologías.\n▪Busca nuevas alternativas de solución y se arriesga a romper esquemas tradicionales.\n▪Inicia acciones para superar los obstáculos y alcanzar metas específicas.",null,null,null,null,null,null,null,null,null,null,"2017-08-25",null,null,null,null,null,null,null,null,null,null,61.199999999999797,"NO SATISFACTORIO"]
["PROFESIONAL","Liderazgo de Grupos de Trabajo (personal a cargo)","PROFESIONALLiderazgo de Grupos de Trabajo (personal a cargo)","Asumir el rol de orientar y guía de un grupo o equipo de trabajo, utilizando la autoridad con arreglo a las normas y promoviendo la Efectividad en la consecución de objetivos y metas institucionales.","▪Establece los objetivos del grupo de forma clara y equilibrada.\n▪Asegura que los integrantes del grupo compartan planes, programas y proyectos institucionales.\n▪Orienta y coordina el trabajo del grupo para la identificación de planes y actividades a seguir.\n▪Facilita la colaboración con otras áreas y dependencias.\n▪Escucha y tiene en cuenta las opiniones de los integrantes del grupo.\n▪Gestiona los recursos necesarios para poder cumplir con las metas propuestas.\n▪Garantiza los recursos necesarios para poder cumplir con las metas propuestas.\n▪Garantiza que el grupo tenga la información necesaria.\n▪Explica las razones de las decisiones.",null,null,null,null,null,null,null,null,null,null,"2017-08-26",null,null,null,null,null,null,null,null,null,null,61.299999999999798,"NO SATISFACTORIO"]
["PROFESIONAL","Toma de decisiones (personal a cargo)","PROFESIONALToma de decisiones (personal a cargo)","Elegir entre una o varias alternativas para solucionar un problema y tomar las acciones concretas y consecuentes con la elección realizada.","▪Elige alternativas de solución efectiva y suficiente para atender los asuntos encomendados.\n▪Decide y establece prioridades para el trabajo del grupo.\n▪Asume posiciones concretas para el manejo de temas o situaciones que demandan su atención.\n▪Efectúa cambios en las actividades o en la manera de desarrollar sus responsabilidades cuando detecta dificultades para su realización o mejores prácticas que pueden optimizar el desempeño.\n▪Asume las consecuencias de las decisiones adoptadas.\n▪Fomenta la participación en la toma de decisiones.",null,null,null,null,null,null,null,null,null,null,"2017-08-27",null,null,null,null,null,null,null,null,null,null,61.3999999999998,"NO SATISFACTORIO"]
["TECNICO","Orientación a resultados ","TECNICOOrientación a resultados ","Realizar las funciones y cumplir los compromisos organizacionales con eficacia y calidad. ","▪ Cumple con oportunidad en función de estándares, objetivos y metas establecidas por la entidad, las funciones que le son asignadas.\n▪ Asume la responsabilidad por sus resultados.\n▪ Compromete recursos y tiempos para mejorar la productividad tomando las medidas necesarias para minimizar los riesgos.\n▪ Realiza todas las acciones necesarias para alcanzar los objetivos propuestos enfrentando los obstáculos que se presentan.",null,null,null,null,null,null,null,null,null,null,"2017-08-28",null,null,null,null,null,null,null,null,null,null,61.499999999999801,"NO SATISFACTORIO"]
["TECNICO","Orientación al usuario y al ciudadano","TECNICOOrientación al usuario y al ciudadano","Dirigir las decisiones y acciones a la satisfacción de las necesidades e intereses de los usuarios internos y externos, de conformidad con las responsabilidades públicas asignadas a la entidad.","▪ Atiende y valora las necesidades y peticiones de los usuarios y de ciudadanos en general.\n▪Considera las necesidades de los usuarios al diseñar proyectos o servicios.\n▪Da respuesta oportuna a las necesidades de los usuarios de conformidad con el servicio que ofrece la entidad.\n▪Establece diferentes canales de comunicación con el usuario para conocer sus necesidades y propuestas y responde a las mismas.\n▪Reconoce la interdependencia entre su trabajo y el de otros.",null,null,null,null,null,null,null,null,null,null,"2017-08-29",null,null,null,null,null,null,null,null,null,null,61.599999999999802,"NO SATISFACTORIO"]
["TECNICO","Compromiso con la Organización","TECNICOCompromiso con la Organización","Alinear el propio comportamiento a las necesidades, prioridades y metas organizacionales.","▪Promueve las metas de la organización y respeta sus normas.\n▪Antepone las necesidades de la organización a sus propias necesidades.\n▪Apoya a la organización en situaciones difíciles.\n▪Demuestra sentido de pertenencia en todas sus actuaciones.",null,null,null,null,null,null,null,null,null,null,"2017-08-30",null,null,null,null,null,null,null,null,null,null,61.699999999999797,"NO SATISFACTORIO"]
["TECNICO","Experticia Técnica","TECNICOExperticia Técnica","Entender y aplicar los conocimientos técnicos del área de desempeño y mantenerlos actualizados","▪Capta y asimila con facilidad conceptos e información.\n▪Aplica el conocimiento técnico a las actividades cotidianas.\n▪Analiza la información de acuerdo con las necesidades de la organización.\n▪Comprende los aspectos técnicos y los aplica al desarrollo de procesos y procedimientos en los que está involucrado.\n▪Resuelve problemas utilizando sus conocimientos técnicos de su especialidad y garantizando indicadores y estándares establecidos.",null,null,null,null,null,null,null,null,null,null,"2017-08-31",null,null,null,null,null,null,null,null,null,null,61.799999999999798,"NO SATISFACTORIO"]
["TECNICO","Trabajo en equipo","TECNICOTrabajo en equipo","Trabajar con otros para conseguir metas comunes","▪Identifica claramente los objetivos del grupo y orienta su trabajo a la consecución de los mismos.\n▪Colabora con otros para la realización de actividades y metas grupales.",null,null,null,null,null,null,null,null,null,null,"2017-09-01",null,null,null,null,null,null,null,null,null,null,61.8999999999998,"NO SATISFACTORIO"]
["TECNICO","Creatividad e innovación","TECNICOCreatividad e innovación","Presentar ideas y métodos novedosos y concretarlos en acciones","▪Propone y encuentra formas nuevas y eficaces de hacer las cosas.\n▪Es recursivo.\n▪Es práctico.\n▪Busca nuevas alternativas de solución.\n▪Revisa permanentemente los procesos y procedimientos para optimizar los resultados.",null,null,null,null,null,null,null,null,null,null,"2017-09-02",null,null,null,null,null,null,null,null,null,null,61.999999999999801,"NO SATISFACTORIO"]
["ASISTENCIAL","Orientación a resultados ","ASISTENCIALOrientación a resultados ","Realizar las funciones y cumplir los compromisos organizacionales con eficacia y calidad. ","▪ Cumple con oportunidad en función de estándares, objetivos y metas establecidas por la entidad, las funciones que le son asignadas.\n▪ Asume la responsabilidad por sus resultados.\n▪ Compromete recursos y tiempos para mejorar la productividad tomando las medidas necesarias para minimizar los riesgos.\n▪ Realiza todas las acciones necesarias para alcanzar los objetivos propuestos enfrentando los obstáculos que se presentan.",null,null,null,null,null,null,null,null,null,null,"2017-09-03",null,null,null,null,null,null,null,null,null,null,62.099999999999802,"NO SATISFACTORIO"]
["ASISTENCIAL","Orientación al usuario y al ciudadano","ASISTENCIALOrientación al usuario y al ciudadano","Dirigir las decisiones y acciones a la satisfacción de las necesidades e intereses de los usuarios internos y externos, de conformidad con las responsabilidades públicas asignadas a la entidad.","▪ Atiende y valora las necesidades y peticiones de los usuarios y de ciudadanos en general.\n▪Considera las necesidades de los usuarios al diseñar proyectos o servicios.\n▪Da respuesta oportuna a las necesidades de los usuarios de conformidad con el servicio que ofrece la entidad.\n▪Establece diferentes canales de comunicación con el usuario para conocer sus necesidades y propuestas y responde a las mismas.\n▪Reconoce la interdependencia entre su trabajo y el de otros.",null,null,null,null,null,null,null,null,null,null,"2017-09-04",null,null,null,null,null,null,null,null,null,null,62.199999999999797,"NO SATISFACTORIO"]
["ASISTENCIAL","Compromiso con la Organización","ASISTENCIALCompromiso con la Organización","Alinear el propio comportamiento a las necesidades, prioridades y metas organizacionales.","▪Promueve las metas de la organización y respeta sus normas.\n▪Antepone las necesidades de la organización a sus propias necesidades.\n▪Apoya a la organización en situaciones difíciles.\n▪Demuestra sentido de pertenencia en todas sus actuaciones.",null,null,null,null,null,null,null,null,null,null,"2017-09-05",null,null,null,null,null,null,null,null,null,null,62.299999999999798,"NO SATISFACTORIO"]
["ASISTENCIAL","Manejo de la información","ASISTENCIALManejo de la información","Manejar con respeto las informaciones personales e institucionales de que dispone.","▪Evade temas que indagan sobre información confidencial.\n▪Recoge sólo información imprescindible para el desarrollo de la tarea.\n▪Organiza y guarda de forma adecuada la información a su cuidado, teniendo en cuenta las normas legales y de la organización.\n▪No hace pública información laboral o de las personas que pueda afectar la organización o las personas.",null,null,null,null,null,null,null,null,null,null,"2017-09-06",null,null,null,null,null,null,null,null,null,null,62.3999999999998,"NO SATISFACTORIO"]
["ASISTENCIAL","Adaptación al cambio","ASISTENCIALAdaptación al cambio","Enfrentarse con flexibilidad y versatilidad a situaciones nuevas para aceptar los cambios positiva y constructivamente.","▪Acepta y se adapta fácilmente los cambios.\n▪Responde al cambio con flexibilidad.\n▪Promueve el cambio.",null,null,null,null,null,null,null,null,null,null,"2017-09-07",null,null,null,null,null,null,null,null,null,null,62.499999999999801,"NO SATISFACTORIO"]
["ASISTENCIAL","Disciplina","ASISTENCIALDisciplina","Adaptarse a las políticas institucionales y buscar información de los cambios en la autoridad competente.","▪Acepta instrucciones aunque se difiera de ellas.\n▪Realiza los cometidos y tareas del puesto de trabajo.\n▪Acepta la supervisión constante.\n▪Realiza funciones orientadas a apoyar la acción de otros miembros de la organización.",null,null,null,null,null,null,null,null,null,null,"2017-09-08",null,null,null,null,null,null,null,null,null,null,62.599999999999802,"NO SATISFACTORIO"]
["ASISTENCIAL","Relaciones Interpersonales","ASISTENCIALRelaciones Interpersonales","Establecer y mantener relaciones de trabajo amistosas y positivas, basadas en la comunicación abierta y fluida y en el respeto por los demás.","▪Escucha con interés a las personas y capta las preocupaciones, intereses y necesidades de los demás.\n▪Transmite eficazmente las ideas, sentimientos e información impidiendo con ello malos entendidos o situaciones confusas que puedan generar conflictos.",null,null,null,null,null,null,null,null,null,null,"2017-09-09",null,null,null,null,null,null,null,null,null,null,62.699999999999797,"NO SATISFACTORIO"]
["ASISTENCIAL","Colaboración","ASISTENCIALColaboración","Cooperar con los demás con el fin de alcanzar los objetivos institucionales","▪Ayuda al logro de los objetivos articulando sus actuaciones con los demás.\n▪Cumple los compromisos que adquiere.\n▪Facilita la labor de sus superiores y compañeros de trabajo.",null,null,null,null,null,null,null,null,null,null,"2017-09-10",null,null,null,null,null,null,null,null,null,null,62.799999999999798,"NO SATISFACTORIO"]
["DIRECTIVO","Orientación a resultados ",{"$f":"A631&B631","v":"DIRECTIVOOrientación a resultados "},"Realizar las funciones y cumplir los compromisos organizacionales con eficacia y calidad. ","▪ Cumple con oportunidad en función de estándares, objetivos y metas establecidas por la entidad, las funciones que le son asignadas.\n▪ Asume la responsabilidad por sus resultados.\n▪ Compromete recursos y tiempos para mejorar la productividad tomando las medidas necesarias para minimizar los riesgos.\n▪ Realiza todas las acciones necesarias para alcanzar los objetivos propuestos enfrentando los obstáculos que se presentan.",null,null,null,null,null,null,null,null,null,null,"2017-09-11",null,null,null,null,null,null,null,null,null,null,62.8999999999998,"NO SATISFACTORIO"]
["DIRECTIVO","Orientación al usuario y al ciudadano",{"$f":"A632&B632","v":"DIRECTIVOOrientación al usuario y al ciudadano"},"Dirigir las decisiones y acciones a la satisfacción de las necesidades e intereses de los usuarios internos y externos, de conformidad con las responsabilidades públicas asignadas a la entidad.","▪ Atiende y valora las necesidades y peticiones de los usuarios y de ciudadanos en general.\n▪Considera las necesidades de los usuarios al diseñar proyectos o servicios.\n▪Da respuesta oportuna a las necesidades de los usuarios de conformidad con el servicio que ofrece la entidad.\n▪Establece diferentes canales de comunicación con el usuario para conocer sus necesidades y propuestas y responde a las mismas.\n▪Reconoce la interdependencia entre su trabajo y el de otros.",null,null,null,null,null,null,null,null,null,null,"2017-09-12",null,null,null,null,null,null,null,null,null,null,62.999999999999801,"NO SATISFACTORIO"]
["DIRECTIVO","Compromiso con la Organización","DIRECTIVOCompromiso con la Organización","Alinear el propio comportamiento a las necesidades, prioridades y metas organizacionales.","▪Promueve las metas de la organización y respeta sus normas.\n▪Antepone las necesidades de la organización a sus propias necesidades.\n▪Apoya a la organización en situaciones difíciles.\n▪Demuestra sentido de pertenencia en todas sus actuaciones.",null,null,null,null,null,null,null,null,null,null,"2017-09-13",null,null,null,null,null,null,null,null,null,null,63.099999999999802,"NO SATISFACTORIO"]
["DIRECTIVO","Liderazgo","DIRECTIVOLiderazgo","Guiar y dirigir grupos y establecer y mantener la cohesión de grupo necesaria para alcanzar los objetivos organizacionales.","• Mantiene a sus colaboradores motivados.\n• Fomenta la comunicación clara, directa y concreta.\n• Constituye y mantiene grupos de trabajo con un desempeño conforme a los estándares.\n• Promueve la eficacia del equipo.\n• Genera un clima positivo y de seguridad en sus colaboradores.\n• Fomenta la participación de todos en los procesos de reflexión y de toma de decisiones.\n• Unifica esfuerzos hacia objetivos y metas institucionales.",null,null,null,null,null,null,null,null,null,null,"2017-09-14",null,null,null,null,null,null,null,null,null,null,63.199999999999797,"NO SATISFACTORIO"]
["DIRECTIVO","Planeación","DIRECTIVOPlaneación","Determinar eficazmente las metas y prioridades institucionales, identificando las acciones, los responsables, los plazos y los recursos requeridos para alcanzarlas.","• Anticipa situaciones y escenarios futuros con acierto.\n• Establece objetivos claros y concisos, estructurados y coherentes con las metas organizacionales.\n• Traduce los objetivos estratégicos en planes prácticos y factibles.\n• Busca soluciones a los problemas.\n• Distribuye el tiempo con eficiencia.\n• Establece planes alternativos de acción.",null,null,null,null,null,null,null,null,null,null,"2017-09-15",null,null,null,null,null,null,null,null,null,null,63.299999999999798,"NO SATISFACTORIO"]
["DIRECTIVO","Toma de decisiones","DIRECTIVOToma de decisiones","Elegir entre una o varias alternativas para solucionar un problema o atender una situación, comprometiéndose con acciones concretas y consecuentes con la decisión.","• Elige con oportunidad, entre muchas alternativas, los proyectos a realizar.\n• Efectúa cambios complejos y comprometidos en sus actividades o en las funciones que tiene asignadas cuando detecta problemas o dificultades para su realización.\n• Decide bajo presión.\n• Decide en situaciones de alta complejidad e incertidumbre.",null,null,null,null,null,null,null,null,null,null,"2017-09-16",null,null,null,null,null,null,null,null,null,null,63.3999999999998,"NO SATISFACTORIO"]
["DIRECTIVO","Dirección y Desarrollo de Personal","DIRECTIVODirección y Desarrollo de Personal","Favorecer el aprendizaje y desarrollo de sus colaboradores, articulando las potencialidades y necesidades individuales con las de la organización para optimizar la calidad de las contribuciones de los equipos de trabajo y de las personas, en el cumplimiento de los objetivos y metas organizacionales presentes y futuras.","• Identifica necesidades de formación y capacitación y propone acciones para satisfacerlas.\n• Permite niveles de autonomía con el fin de estimular el desarrollo integral del empleado.\n• Delega de manera efectiva sabiendo cuando intervenir y cuando no hacerlo.\n• Hace uso de las habilidades y recurso de su grupo de trabajo para alcanzar las metas y los estándares de productividad.\n• Establece espacios regulares de retroalimentación y reconocimiento del desempeño y sabe manejar hábilmente el bajo desempeño.\n• Tiene en cuenta las opiniones de sus colaboradores.\n• Mantiene con sus colaboradores relaciones de respeto.",null,null,null,null,null,null,null,null,null,null,"2017-09-17",null,null,null,null,null,null,null,null,null,null,63.499999999999801,"NO SATISFACTORIO"]
["DIRECTIVO","Conocimiento del entorno","DIRECTIVOConocimiento del entorno","Estar al tanto de las circunstancias y las relaciones de poder que influyen en el entorno organizacional","• Es consciente de las condiciones específicas del entorno organizacional.\n• Está al día en los acontecimientos claves del sector y del Estado.\n• Conoce y hace seguimiento a las políticas gubernamentales.\n• Identifica las fuerzas políticas que afectan la organización y las posibles alianzas para cumplir con los propósitos organizacionales.",null,null,null,null,null,null,null,null,null,null,"2017-09-18",null,null,null,null,null,null,null,null,null,null,63.599999999999802,"NO SATISFACTORIO"]
[null,null,null,null,null,null,null,null,null,null,null,null,null,null,null,"2017-09-19",null,null,null,null,null,null,null,null,null,null,63.699999999999797,"NO SATISFACTORIO"]
[null,null,null,null,null,null,null,null,null,null,null,null,null,null,null,"2017-09-20",null,null,null,null,null,null,null,null,null,null,63.799999999999798,"NO SATISFACTORIO"]
[null,null,null,null,null,null,null,null,null,null,null,null,null,null,null,"2017-09-21",null,null,null,null,null,null,null,null,null,null,63.8999999999998,"NO SATISFACTORIO"]
[null,null,null,null,null,null,null,null,null,null,null,null,null,null,null,"2017-09-22",null,null,null,null,null,null,null,null,null,null,63.999999999999801,"NO SATISFACTORIO"]
[null,null,null,null,null,null,null,null,null,null,null,null,null,null,null,"2017-09-23",null,null,null,null,null,null,null,null,null,null,64.099999999999795,"NO SATISFACTORIO"]
[null,null,null,null,null,null,null,null,null,null,null,null,null,null,null,"2017-09-24",null,null,null,null,null,null,null,null,null,null,64.199999999999804,"NO SATISFACTORIO"]
[null,null,null,null,null,null,null,null,null,null,null,null,null,null,null,"2017-09-25",null,null,null,null,null,null,null,null,null,null,64.299999999999798,"NO SATISFACTORIO"]
[null,null,null,null,null,null,null,null,null,null,null,null,null,null,null,"2017-09-26",null,null,null,null,null,null,null,null,null,null,64.399999999999807,"NO SATISFACTORIO"]
[null,null,null,null,null,null,null,null,null,null,null,null,null,null,null,"2017-09-27",null,null,null,null,null,null,null,null,null,null,64.499999999999801,"NO SATISFACTORIO"]
[null,null,null,null,null,null,null,null,null,null,null,null,null,null,null,"2017-09-28",null,null,null,null,null,null,null,null,null,null,64.599999999999795,"NO SATISFACTORIO"]
[null,null,null,null,null,null,null,null,null,null,null,null,null,null,null,"2017-09-29",null,null,null,null,null,null,null,null,null,null,64.699999999999804,"NO SATISFACTORIO"]
[null,null,null,null,null,null,null,null,null,null,null,null,null,null,null,"2017-09-30",null,null,null,null,null,null,null,null,null,null,64.799999999999798,"NO SATISFACTORIO"]
[null,null,null,null,null,null,null,null,null,null,null,null,null,null,null,"2017-10-01",null,null,null,null,null,null,null,null,null,null,64.899999999999807,"NO SATISFACTORIO"]
[null,null,null,null,null,null,null,null,null,null,null,null,null,null,null,"2017-10-02",null,null,null,null,null,null,null,null,null,null,64.999999999999801,"NO SATISFACTORIO"]
[null,null,null,null,null,null,null,null,null,null,null,null,null,null,null,"2017-10-03",null,null,null,null,null,null,null,null,null,null,65.010000000000005,"SATISFACTORIO"]
[null,null,null,null,null,null,null,null,null,null,null,null,null,null,null,"2017-10-04",null,null,null,null,null,null,null,null,null,null,65.199999999999804,"SATISFACTORIO"]
[null,null,null,null,null,null,null,null,null,null,null,null,null,null,null,"2017-10-05",null,null,null,null,null,null,null,null,null,null,65.299999999999798,"SATISFACTORIO"]
[null,null,null,null,null,null,null,null,null,null,null,null,null,null,null,"2017-10-06",null,null,null,null,null,null,null,null,null,null,65.399999999999807,"SATISFACTORIO"]
[null,null,null,null,null,null,null,null,null,null,null,null,null,null,null,"2017-10-07",null,null,null,null,null,null,null,null,null,null,65.499999999999801,"SATISFACTORIO"]
[null,null,null,null,null,null,null,null,null,null,null,null,null,null,null,"2017-10-08",null,null,null,null,null,null,null,null,null,null,65.599999999999795,"SATISFACTORIO"]
[null,null,null,null,null,null,null,null,null,null,null,null,null,null,null,"2017-10-09",null,null,null,null,null,null,null,null,null,null,65.699999999999804,"SATISFACTORIO"]
[null,null,null,null,null,null,null,null,null,null,null,null,null,null,null,"2017-10-10",null,null,null,null,null,null,null,null,null,null,65.799999999999798,"SATISFACTORIO"]
[null,null,null,null,null,null,null,null,null,null,null,null,null,null,null,"2017-10-11",null,null,null,null,null,null,null,null,null,null,65.899999999999807,"SATISFACTORIO"]
[null,null,null,null,null,null,null,null,null,null,null,null,null,null,null,"2017-10-12",null,null,null,null,null,null,null,null,null,null,65.999999999999801,"SATISFACTORIO"]
[null,null,null,null,null,null,null,null,null,null,null,null,null,null,null,"2017-10-13",null,null,null,null,null,null,null,null,null,null,66.099999999999795,"SATISFACTORIO"]
[null,null,null,null,null,null,null,null,null,null,null,null,null,null,null,"2017-10-14",null,null,null,null,null,null,null,null,null,null,66.199999999999804,"SATISFACTORIO"]
[null,null,null,null,null,null,null,null,null,null,null,null,null,null,null,"2017-10-15",null,null,null,null,null,null,null,null,null,null,66.299999999999798,"SATISFACTORIO"]
[null,null,null,null,null,null,null,null,null,null,null,null,null,null,null,"2017-10-16",null,null,null,null,null,null,null,null,null,null,66.399999999999807,"SATISFACTORIO"]
[null,null,null,null,null,null,null,null,null,null,null,null,null,null,null,"2017-10-17",null,null,null,null,null,null,null,null,null,null,66.499999999999801,"SATISFACTORIO"]
[null,null,null,null,null,null,null,null,null,null,null,null,null,null,null,"2017-10-18",null,null,null,null,null,null,null,null,null,null,66.599999999999795,"SATISFACTORIO"]
[null,null,null,null,null,null,null,null,null,null,null,null,null,null,null,"2017-10-19",null,null,null,null,null,null,null,null,null,null,66.699999999999804,"SATISFACTORIO"]
[null,null,null,null,null,null,null,null,null,null,null,null,null,null,null,"2017-10-20",null,null,null,null,null,null,null,null,null,null,66.799999999999798,"SATISFACTORIO"]
[null,null,null,null,null,null,null,null,null,null,null,null,null,null,null,"2017-10-21",null,null,null,null,null,null,null,null,null,null,66.899999999999807,"SATISFACTORIO"]
[null,null,null,null,null,null,null,null,null,null,null,null,null,null,null,"2017-10-22",null,null,null,null,null,null,null,null,null,null,66.999999999999801,"SATISFACTORIO"]
[null,null,null,null,null,null,null,null,null,null,null,null,null,null,null,"2017-10-23",null,null,null,null,null,null,null,null,null,null,67.099999999999795,"SATISFACTORIO"]
[null,null,null,null,null,null,null,null,null,null,null,null,null,null,null,"2017-10-24",null,null,null,null,null,null,null,null,null,null,67.199999999999804,"SATISFACTORIO"]
[null,null,null,null,null,null,null,null,null,null,null,null,null,null,null,"2017-10-25",null,null,null,null,null,null,null,null,null,null,67.299999999999798,"SATISFACTORIO"]
[null,null,null,null,null,null,null,null,null,null,null,null,null,null,null,"2017-10-26",null,null,null,null,null,null,null,null,null,null,67.399999999999807,"SATISFACTORIO"]
[null,null,null,null,null,null,null,null,null,null,null,null,null,null,null,"2017-10-27",null,null,null,null,null,null,null,null,null,null,67.499999999999801,"SATISFACTORIO"]
[null,null,null,null,null,null,null,null,null,null,null,null,null,null,null,"2017-10-28",null,null,null,null,null,null,null,null,null,null,67.599999999999795,"SATISFACTORIO"]
[null,null,null,null,null,null,null,null,null,null,null,null,null,null,null,"2017-10-29",null,null,null,null,null,null,null,null,null,null,67.699999999999804,"SATISFACTORIO"]
[null,null,null,null,null,null,null,null,null,null,null,null,null,null,null,"2017-10-30",null,null,null,null,null,null,null,null,null,null,67.799999999999798,"SATISFACTORIO"]
[null,null,null,null,null,null,null,null,null,null,null,null,null,null,null,"2017-10-31",null,null,null,null,null,null,null,null,null,null,67.899999999999807,"SATISFACTORIO"]
[null,null,null,null,null,null,null,null,null,null,null,null,null,null,null,"2017-11-01",null,null,null,null,null,null,null,null,null,null,67.999999999999801,"SATISFACTORIO"]
[null,null,null,null,null,null,null,null,null,null,null,null,null,null,null,"2017-11-02",null,null,null,null,null,null,null,null,null,null,68.099999999999795,"SATISFACTORIO"]
[null,null,null,null,null,null,null,null,null,null,null,null,null,null,null,"2017-11-03",null,null,null,null,null,null,null,null,null,null,68.199999999999804,"SATISFACTORIO"]
[null,null,null,null,null,null,null,null,null,null,null,null,null,null,null,"2017-11-04",null,null,null,null,null,null,null,null,null,null,68.299999999999798,"SATISFACTORIO"]
[null,null,null,null,null,null,null,null,null,null,null,null,null,null,null,"2017-11-05",null,null,null,null,null,null,null,null,null,null,68.399999999999807,"SATISFACTORIO"]
[null,null,null,null,null,null,null,null,null,null,null,null,null,null,null,"2017-11-06",null,null,null,null,null,null,null,null,null,null,68.499999999999801,"SATISFACTORIO"]
[null,null,null,null,null,null,null,null,null,null,null,null,null,null,null,"2017-11-07",null,null,null,null,null,null,null,null,null,null,68.599999999999795,"SATISFACTORIO"]
[null,null,null,null,null,null,null,null,null,null,null,null,null,null,null,"2017-11-08",null,null,null,null,null,null,null,null,null,null,68.699999999999804,"SATISFACTORIO"]
[null,null,null,null,null,null,null,null,null,null,null,null,null,null,null,"2017-11-09",null,null,null,null,null,null,null,null,null,null,68.799999999999798,"SATISFACTORIO"]
[null,null,null,null,null,null,null,null,null,null,null,null,null,null,null,"2017-11-10",null,null,null,null,null,null,null,null,null,null,68.899999999999807,"SATISFACTORIO"]
[null,null,null,null,null,null,null,null,null,null,null,null,null,null,null,"2017-11-11",null,null,null,null,null,null,null,null,null,null,68.999999999999801,"SATISFACTORIO"]
[null,null,null,null,null,null,null,null,null,null,null,null,null,null,null,"2017-11-12",null,null,null,null,null,null,null,null,null,null,69.099999999999795,"SATISFACTORIO"]
[null,null,null,null,null,null,null,null,null,null,null,null,null,null,null,"2017-11-13",null,null,null,null,null,null,null,null,null,null,69.199999999999804,"SATISFACTORIO"]
[null,null,null,null,null,null,null,null,null,null,null,null,null,null,null,"2017-11-14",null,null,null,null,null,null,null,null,null,null,69.299999999999798,"SATISFACTORIO"]
[null,null,null,null,null,null,null,null,null,null,null,null,null,null,null,"2017-11-15",null,null,null,null,null,null,null,null,null,null,69.399999999999807,"SATISFACTORIO"]
[null,null,null,null,null,null,null,null,null,null,null,null,null,null,null,"2017-11-16",null,null,null,null,null,null,null,null,null,null,69.499999999999801,"SATISFACTORIO"]
[null,null,null,null,null,null,null,null,null,null,null,null,null,null,null,"2017-11-17",null,null,null,null,null,null,null,null,null,null,69.599999999999795,"SATISFACTORIO"]
[null,null,null,null,null,null,null,null,null,null,null,null,null,null,null,"2017-11-18",null,null,null,null,null,null,null,null,null,null,69.699999999999804,"SATISFACTORIO"]
[null,null,null,null,null,null,null,null,null,null,null,null,null,null,null,"2017-11-19",null,null,null,null,null,null,null,null,null,null,69.799999999999798,"SATISFACTORIO"]
[null,null,null,null,null,null,null,null,null,null,null,null,null,null,null,"2017-11-20",null,null,null,null,null,null,null,null,null,null,69.899999999999807,"SATISFACTORIO"]
[null,null,null,null,null,null,null,null,null,null,null,null,null,null,null,"2017-11-21",null,null,null,null,null,null,null,null,null,null,69.999999999999801,"SATISFACTORIO"]
[null,null,null,null,null,null,null,null,null,null,null,null,null,null,null,"2017-11-22",null,null,null,null,null,null,null,null,null,null,70.099999999999795,"SATISFACTORIO"]
[null,null,null,null,null,null,null,null,null,null,null,null,null,null,null,"2017-11-23",null,null,null,null,null,null,null,null,null,null,70.199999999999804,"SATISFACTORIO"]
[null,null,null,null,null,null,null,null,null,null,null,null,null,null,null,"2017-11-24",null,null,null,null,null,null,null,null,null,null,70.299999999999798,"SATISFACTORIO"]
[null,null,null,null,null,null,null,null,null,null,null,null,null,null,null,"2017-11-25",null,null,null,null,null,null,null,null,null,null,70.399999999999807,"SATISFACTORIO"]
[null,null,null,null,null,null,null,null,null,null,null,null,null,null,null,"2017-11-26",null,null,null,null,null,null,null,null,null,null,70.499999999999801,"SATISFACTORIO"]
[null,null,null,null,null,null,null,null,null,null,null,null,null,null,null,"2017-11-27",null,null,null,null,null,null,null,null,null,null,70.599999999999795,"SATISFACTORIO"]
[null,null,null,null,null,null,null,null,null,null,null,null,null,null,null,"2017-11-28",null,null,null,null,null,null,null,null,null,null,70.699999999999804,"SATISFACTORIO"]
[null,null,null,null,null,null,null,null,null,null,null,null,null,null,null,"2017-11-29",null,null,null,null,null,null,null,null,null,null,70.799999999999798,"SATISFACTORIO"]
[null,null,null,null,null,null,null,null,null,null,null,null,null,null,null,"2017-11-30",null,null,null,null,null,null,null,null,null,null,70.899999999999807,"SATISFACTORIO"]
[null,null,null,null,null,null,null,null,null,null,null,null,null,null,null,"2017-12-01",null,null,null,null,null,null,null,null,null,null,70.999999999999801,"SATISFACTORIO"]
[null,null,null,null,null,null,null,null,null,null,null,null,null,null,null,"2017-12-02",null,null,null,null,null,null,null,null,null,null,71.099999999999795,"SATISFACTORIO"]
[null,null,null,null,null,null,null,null,null,null,null,null,null,null,null,"2017-12-03",null,null,null,null,null,null,null,null,null,null,71.199999999999804,"SATISFACTORIO"]
[null,null,null,null,null,null,null,null,null,null,null,null,null,null,null,"2017-12-04",null,null,null,null,null,null,null,null,null,null,71.299999999999798,"SATISFACTORIO"]
[null,null,null,null,null,null,null,null,null,null,null,null,null,null,null,"2017-12-05",null,null,null,null,null,null,null,null,null,null,71.399999999999807,"SATISFACTORIO"]
[null,null,null,null,null,null,null,null,null,null,null,null,null,null,null,"2017-12-06",null,null,null,null,null,null,null,null,null,null,71.499999999999801,"SATISFACTORIO"]
[null,null,null,null,null,null,null,null,null,null,null,null,null,null,null,"2017-12-07",null,null,null,null,null,null,null,null,null,null,71.599999999999795,"SATISFACTORIO"]
[null,null,null,null,null,null,null,null,null,null,null,null,null,null,null,"2017-12-08",null,null,null,null,null,null,null,null,null,null,71.699999999999804,"SATISFACTORIO"]
[null,null,null,null,null,null,null,null,null,null,null,null,null,null,null,"2017-12-09",null,null,null,null,null,null,null,null,null,null,71.799999999999798,"SATISFACTORIO"]
[null,null,null,null,null,null,null,null,null,null,null,null,null,null,null,"2017-12-10",null,null,null,null,null,null,null,null,null,null,71.899999999999807,"SATISFACTORIO"]
[null,null,null,null,null,null,null,null,null,null,null,null,null,null,null,"2017-12-11",null,null,null,null,null,null,null,null,null,null,71.999999999999801,"SATISFACTORIO"]
[null,null,null,null,null,null,null,null,null,null,null,null,null,null,null,"2017-12-12",null,null,null,null,null,null,null,null,null,null,72.099999999999795,"SATISFACTORIO"]
[null,null,null,null,null,null,null,null,null,null,null,null,null,null,null,"2017-12-13",null,null,null,null,null,null,null,null,null,null,72.199999999999804,"SATISFACTORIO"]
[null,null,null,null,null,null,null,null,null,null,null,null,null,null,null,"2017-12-14",null,null,null,null,null,null,null,null,null,null,72.299999999999798,"SATISFACTORIO"]
[null,null,null,null,null,null,null,null,null,null,null,null,null,null,null,"2017-12-15",null,null,null,null,null,null,null,null,null,null,72.399999999999807,"SATISFACTORIO"]
[null,null,null,null,null,null,null,null,null,null,null,null,null,null,null,"2017-12-16",null,null,null,null,null,null,null,null,null,null,72.499999999999801,"SATISFACTORIO"]
[null,null,null,null,null,null,null,null,null,null,null,null,null,null,null,"2017-12-17",null,null,null,null,null,null,null,null,null,null,72.599999999999795,"SATISFACTORIO"]
[null,null,null,null,null,null,null,null,null,null,null,null,null,null,null,"2017-12-18",null,null,null,null,null,null,null,null,null,null,72.699999999999804,"SATISFACTORIO"]
[null,null,null,null,null,null,null,null,null,null,null,null,null,null,null,"2017-12-19",null,null,null,null,null,null,null,null,null,null,72.799999999999798,"SATISFACTORIO"]
[null,null,null,null,null,null,null,null,null,null,null,null,null,null,null,"2017-12-20",null,null,null,null,null,null,null,null,null,null,72.899999999999807,"SATISFACTORIO"]
[null,null,null,null,null,null,null,null,null,null,null,null,null,null,null,"2017-12-21",null,null,null,null,null,null,null,null,null,null,72.999999999999801,"SATISFACTORIO"]
[null,null,null,null,null,null,null,null,null,null,null,null,null,null,null,"2017-12-22",null,null,null,null,null,null,null,null,null,null,73.099999999999795,"SATISFACTORIO"]
[null,null,null,null,null,null,null,null,null,null,null,null,null,null,null,"2017-12-23",null,null,null,null,null,null,null,null,null,null,73.199999999999804,"SATISFACTORIO"]
[null,null,null,null,null,null,null,null,null,null,null,null,null,null,null,"2017-12-24",null,null,null,null,null,null,null,null,null,null,73.299999999999798,"SATISFACTORIO"]
[null,null,null,null,null,null,null,null,null,null,null,null,null,null,null,"2017-12-25",null,null,null,null,null,null,null,null,null,null,73.399999999999807,"SATISFACTORIO"]
[null,null,null,null,null,null,null,null,null,null,null,null,null,null,null,"2017-12-26",null,null,null,null,null,null,null,null,null,null,73.499999999999801,"SATISFACTORIO"]
[null,null,null,null,null,null,null,null,null,null,null,null,null,null,null,"2017-12-27",null,null,null,null,null,null,null,null,null,null,73.599999999999795,"SATISFACTORIO"]
[null,null,null,null,null,null,null,null,null,null,null,null,null,null,null,"2017-12-28",null,null,null,null,null,null,null,null,null,null,73.699999999999804,"SATISFACTORIO"]
[null,null,null,null,null,null,null,null,null,null,null,null,null,null,null,"2017-12-29",null,null,null,null,null,null,null,null,null,null,73.799999999999798,"SATISFACTORIO"]
[null,null,null,null,null,null,null,null,null,null,null,null,null,null,null,"2017-12-30",null,null,null,null,null,null,null,null,null,null,73.899999999999807,"SATISFACTORIO"]
[null,null,null,null,null,null,null,null,null,null,null,null,null,null,null,"2017-12-31",null,null,null,null,null,null,null,null,null,null,73.999999999999801,"SATISFACTORIO"]
[null,null,null,null,null,null,null,null,null,null,null,null,null,null,null,"2018-01-01",null,null,null,null,null,null,null,null,null,null,74.099999999999795,"SATISFACTORIO"]
[null,null,null,null,null,null,null,null,null,null,null,null,null,null,null,"2018-01-02",null,null,null,null,null,null,null,null,null,null,74.199999999999804,"SATISFACTORIO"]
[null,null,null,null,null,null,null,null,null,null,null,null,null,null,null,"2018-01-03",null,null,null,null,null,null,null,null,null,null,74.299999999999798,"SATISFACTORIO"]
[null,null,null,null,null,null,null,null,null,null,null,null,null,null,null,"2018-01-04",null,null,null,null,null,null,null,null,null,null,74.399999999999807,"SATISFACTORIO"]
[null,null,null,null,null,null,null,null,null,null,null,null,null,null,null,"2018-01-05",null,null,null,null,null,null,null,null,null,null,74.499999999999801,"SATISFACTORIO"]
[null,null,null,null,null,null,null,null,null,null,null,null,null,null,null,"2018-01-06",null,null,null,null,null,null,null,null,null,null,74.599999999999795,"SATISFACTORIO"]
[null,null,null,null,null,null,null,null,null,null,null,null,null,null,null,"2018-01-07",null,null,null,null,null,null,null,null,null,null,74.699999999999804,"SATISFACTORIO"]
[null,null,null,null,null,null,null,null,null,null,null,null,null,null,null,"2018-01-08",null,null,null,null,null,null,null,null,null,null,74.799999999999798,"SATISFACTORIO"]
[null,null,null,null,null,null,null,null,null,null,null,null,null,null,null,"2018-01-09",null,null,null,null,null,null,null,null,null,null,74.899999999999807,"SATISFACTORIO"]
[null,null,null,null,null,null,null,null,null,null,null,null,null,null,null,"2018-01-10",null,null,null,null,null,null,null,null,null,null,74.999999999999801,"SATISFACTORIO"]
[null,null,null,null,null,null,null,null,null,null,null,null,null,null,null,"2018-01-11",null,null,null,null,null,null,null,null,null,null,75.099999999999795,"SATISFACTORIO"]
[null,null,null,null,null,null,null,null,null,null,null,null,null,null,null,"2018-01-12",null,null,null,null,null,null,null,null,null,null,75.199999999999804,"SATISFACTORIO"]
[null,null,null,null,null,null,null,null,null,null,null,null,null,null,null,"2018-01-13",null,null,null,null,null,null,null,null,null,null,75.299999999999798,"SATISFACTORIO"]
[null,null,null,null,null,null,null,null,null,null,null,null,null,null,null,"2018-01-14",null,null,null,null,null,null,null,null,null,null,75.399999999999807,"SATISFACTORIO"]
[null,null,null,null,null,null,null,null,null,null,null,null,null,null,null,"2018-01-15",null,null,null,null,null,null,null,null,null,null,75.499999999999801,"SATISFACTORIO"]
[null,null,null,null,null,null,null,null,null,null,null,null,null,null,null,"2018-01-16",null,null,null,null,null,null,null,null,null,null,75.599999999999795,"SATISFACTORIO"]
[null,null,null,null,null,null,null,null,null,null,null,null,null,null,null,"2018-01-17",null,null,null,null,null,null,null,null,null,null,75.699999999999804,"SATISFACTORIO"]
[null,null,null,null,null,null,null,null,null,null,null,null,null,null,null,"2018-01-18",null,null,null,null,null,null,null,null,null,null,75.799999999999798,"SATISFACTORIO"]
[null,null,null,null,null,null,null,null,null,null,null,null,null,null,null,"2018-01-19",null,null,null,null,null,null,null,null,null,null,75.899999999999807,"SATISFACTORIO"]
[null,null,null,null,null,null,null,null,null,null,null,null,null,null,null,"2018-01-20",null,null,null,null,null,null,null,null,null,null,75.999999999999801,"SATISFACTORIO"]
[null,null,null,null,null,null,null,null,null,null,null,null,null,null,null,"2018-01-21",null,null,null,null,null,null,null,null,null,null,76.099999999999795,"SATISFACTORIO"]
[null,null,null,null,null,null,null,null,null,null,null,null,null,null,null,"2018-01-22",null,null,null,null,null,null,null,null,null,null,76.199999999999804,"SATISFACTORIO"]
[null,null,null,null,null,null,null,null,null,null,null,null,null,null,null,"2018-01-23",null,null,null,null,null,null,null,null,null,null,76.299999999999798,"SATISFACTORIO"]
[null,null,null,null,null,null,null,null,null,null,null,null,null,null,null,"2018-01-24",null,null,null,null,null,null,null,null,null,null,76.399999999999807,"SATISFACTORIO"]
[null,null,null,null,null,null,null,null,null,null,null,null,null,null,null,"2018-01-25",null,null,null,null,null,null,null,null,null,null,76.499999999999801,"SATISFACTORIO"]
[null,null,null,null,null,null,null,null,null,null,null,null,null,null,null,"2018-01-26",null,null,null,null,null,null,null,null,null,null,76.599999999999795,"SATISFACTORIO"]
[null,null,null,null,null,null,null,null,null,null,null,null,null,null,null,"2018-01-27",null,null,null,null,null,null,null,null,null,null,76.699999999999804,"SATISFACTORIO"]
[null,null,null,null,null,null,null,null,null,null,null,null,null,null,null,"2018-01-28",null,null,null,null,null,null,null,null,null,null,76.799999999999798,"SATISFACTORIO"]
[null,null,null,null,null,null,null,null,null,null,null,null,null,null,null,"2018-01-29",null,null,null,null,null,null,null,null,null,null,76.899999999999807,"SATISFACTORIO"]
[null,null,null,null,null,null,null,null,null,null,null,null,null,null,null,"2018-01-30",null,null,null,null,null,null,null,null,null,null,76.999999999999801,"SATISFACTORIO"]
[null,null,null,null,null,null,null,null,null,null,null,null,null,null,null,"2018-01-31",null,null,null,null,null,null,null,null,null,null,77.099999999999795,"SATISFACTORIO"]
[null,null,null,null,null,null,null,null,null,null,null,null,null,null,null,"2018-02-01",null,null,null,null,null,null,null,null,null,null,77.199999999999804,"SATISFACTORIO"]
[null,null,null,null,null,null,null,null,null,null,null,null,null,null,null,"2018-02-02",null,null,null,null,null,null,null,null,null,null,77.299999999999798,"SATISFACTORIO"]
[null,null,null,null,null,null,null,null,null,null,null,null,null,null,null,"2018-02-03",null,null,null,null,null,null,null,null,null,null,77.399999999999807,"SATISFACTORIO"]
[null,null,null,null,null,null,null,null,null,null,null,null,null,null,null,"2018-02-04",null,null,null,null,null,null,null,null,null,null,77.499999999999801,"SATISFACTORIO"]
[null,null,null,null,null,null,null,null,null,null,null,null,null,null,null,"2018-02-05",null,null,null,null,null,null,null,null,null,null,77.599999999999795,"SATISFACTORIO"]
[null,null,null,null,null,null,null,null,null,null,null,null,null,null,null,"2018-02-06",null,null,null,null,null,null,null,null,null,null,77.699999999999804,"SATISFACTORIO"]
[null,null,null,null,null,null,null,null,null,null,null,null,null,null,null,"2018-02-07",null,null,null,null,null,null,null,null,null,null,77.799999999999798,"SATISFACTORIO"]
[null,null,null,null,null,null,null,null,null,null,null,null,null,null,null,"2018-02-08",null,null,null,null,null,null,null,null,null,null,77.899999999999807,"SATISFACTORIO"]
[null,null,null,null,null,null,null,null,null,null,null,null,null,null,null,"2018-02-09",null,null,null,null,null,null,null,null,null,null,77.999999999999801,"SATISFACTORIO"]
[null,null,null,null,null,null,null,null,null,null,null,null,null,null,null,"2018-02-10",null,null,null,null,null,null,null,null,null,null,78.099999999999795,"SATISFACTORIO"]
[null,null,null,null,null,null,null,null,null,null,null,null,null,null,null,"2018-02-11",null,null,null,null,null,null,null,null,null,null,78.199999999999804,"SATISFACTORIO"]
[null,null,null,null,null,null,null,null,null,null,null,null,null,null,null,"2018-02-12",null,null,null,null,null,null,null,null,null,null,78.299999999999798,"SATISFACTORIO"]
[null,null,null,null,null,null,null,null,null,null,null,null,null,null,null,"2018-02-13",null,null,null,null,null,null,null,null,null,null,78.399999999999807,"SATISFACTORIO"]
[null,null,null,null,null,null,null,null,null,null,null,null,null,null,null,"2018-02-14",null,null,null,null,null,null,null,null,null,null,78.499999999999801,"SATISFACTORIO"]
[null,null,null,null,null,null,null,null,null,null,null,null,null,null,null,"2018-02-15",null,null,null,null,null,null,null,null,null,null,78.599999999999795,"SATISFACTORIO"]
[null,null,null,null,null,null,null,null,null,null,null,null,null,null,null,"2018-02-16",null,null,null,null,null,null,null,null,null,null,78.699999999999804,"SATISFACTORIO"]
[null,null,null,null,null,null,null,null,null,null,null,null,null,null,null,"2018-02-17",null,null,null,null,null,null,null,null,null,null,78.799999999999798,"SATISFACTORIO"]
[null,null,null,null,null,null,null,null,null,null,null,null,null,null,null,"2018-02-18",null,null,null,null,null,null,null,null,null,null,78.899999999999693,"SATISFACTORIO"]
[null,null,null,null,null,null,null,null,null,null,null,null,null,null,null,"2018-02-19",null,null,null,null,null,null,null,null,null,null,78.999999999999801,"SATISFACTORIO"]
[null,null,null,null,null,null,null,null,null,null,null,null,null,null,null,"2018-02-20",null,null,null,null,null,null,null,null,null,null,79.099999999999795,"SATISFACTORIO"]
[null,null,null,null,null,null,null,null,null,null,null,null,null,null,null,"2018-02-21",null,null,null,null,null,null,null,null,null,null,79.199999999999804,"SATISFACTORIO"]
[null,null,null,null,null,null,null,null,null,null,null,null,null,null,null,"2018-02-22",null,null,null,null,null,null,null,null,null,null,79.299999999999798,"SATISFACTORIO"]
[null,null,null,null,null,null,null,null,null,null,null,null,null,null,null,"2018-02-23",null,null,null,null,null,null,null,null,null,null,79.399999999999693,"SATISFACTORIO"]
[null,null,null,null,null,null,null,null,null,null,null,null,null,null,null,"2018-02-24",null,null,null,null,null,null,null,null,null,null,79.499999999999801,"SATISFACTORIO"]
[null,null,null,null,null,null,null,null,null,null,null,null,null,null,null,"2018-02-25",null,null,null,null,null,null,null,null,null,null,79.599999999999795,"SATISFACTORIO"]
[null,null,null,null,null,null,null,null,null,null,null,null,null,null,null,"2018-02-26",null,null,null,null,null,null,null,null,null,null,79.699999999999804,"SATISFACTORIO"]
[null,null,null,null,null,null,null,null,null,null,null,null,null,null,null,"2018-02-27",null,null,null,null,null,null,null,null,null,null,79.799999999999798,"SATISFACTORIO"]
[null,null,null,null,null,null,null,null,null,null,null,null,null,null,null,"2018-02-28",null,null,null,null,null,null,null,null,null,null,79.899999999999693,"SATISFACTORIO"]
[null,null,null,null,null,null,null,null,null,null,null,null,null,null,null,"2018-03-01",null,null,null,null,null,null,null,null,null,null,79.999999999999801,"SATISFACTORIO"]
[null,null,null,null,null,null,null,null,null,null,null,null,null,null,null,"2018-03-02",null,null,null,null,null,null,null,null,null,null,80.099999999999795,"SATISFACTORIO"]
[null,null,null,null,null,null,null,null,null,null,null,null,null,null,null,"2018-03-03",null,null,null,null,null,null,null,null,null,null,80.199999999999704,"SATISFACTORIO"]
[null,null,null,null,null,null,null,null,null,null,null,null,null,null,null,"2018-03-04",null,null,null,null,null,null,null,null,null,null,80.299999999999798,"SATISFACTORIO"]
[null,null,null,null,null,null,null,null,null,null,null,null,null,null,null,"2018-03-05",null,null,null,null,null,null,null,null,null,null,80.399999999999693,"SATISFACTORIO"]
[null,null,null,null,null,null,null,null,null,null,null,null,null,null,null,"2018-03-06",null,null,null,null,null,null,null,null,null,null,80.499999999999702,"SATISFACTORIO"]
[null,null,null,null,null,null,null,null,null,null,null,null,null,null,null,"2018-03-07",null,null,null,null,null,null,null,null,null,null,80.599999999999795,"SATISFACTORIO"]
[null,null,null,null,null,null,null,null,null,null,null,null,null,null,null,"2018-03-08",null,null,null,null,null,null,null,null,null,null,80.699999999999704,"SATISFACTORIO"]
[null,null,null,null,null,null,null,null,null,null,null,null,null,null,null,"2018-03-09",null,null,null,null,null,null,null,null,null,null,80.799999999999798,"SATISFACTORIO"]
[null,null,null,null,null,null,null,null,null,null,null,null,null,null,null,"2018-03-10",null,null,null,null,null,null,null,null,null,null,80.899999999999693,"SATISFACTORIO"]
[null,null,null,null,null,null,null,null,null,null,null,null,null,null,null,"2018-03-11",null,null,null,null,null,null,null,null,null,null,80.999999999999702,"SATISFACTORIO"]
[null,null,null,null,null,null,null,null,null,null,null,null,null,null,null,"2018-03-12",null,null,null,null,null,null,null,null,null,null,81.099999999999795,"SATISFACTORIO"]
[null,null,null,null,null,null,null,null,null,null,null,null,null,null,null,"2018-03-13",null,null,null,null,null,null,null,null,null,null,81.199999999999704,"SATISFACTORIO"]
[null,null,null,null,null,null,null,null,null,null,null,null,null,null,null,"2018-03-14",null,null,null,null,null,null,null,null,null,null,81.299999999999798,"SATISFACTORIO"]
[null,null,null,null,null,null,null,null,null,null,null,null,null,null,null,"2018-03-15",null,null,null,null,null,null,null,null,null,null,81.399999999999693,"SATISFACTORIO"]
[null,null,null,null,null,null,null,null,null,null,null,null,null,null,null,"2018-03-16",null,null,null,null,null,null,null,null,null,null,81.499999999999702,"SATISFACTORIO"]
[null,null,null,null,null,null,null,null,null,null,null,null,null,null,null,"2018-03-17",null,null,null,null,null,null,null,null,null,null,81.599999999999795,"SATISFACTORIO"]
[null,null,null,null,null,null,null,null,null,null,null,null,null,null,null,"2018-03-18",null,null,null,null,null,null,null,null,null,null,81.699999999999704,"SATISFACTORIO"]
[null,null,null,null,null,null,null,null,null,null,null,null,null,null,null,"2018-03-19",null,null,null,null,null,null,null,null,null,null,81.799999999999699,"SATISFACTORIO"]
[null,null,null,null,null,null,null,null,null,null,null,null,null,null,null,"2018-03-20",null,null,null,null,null,null,null,null,null,null,81.899999999999693,"SATISFACTORIO"]
[null,null,null,null,null,null,null,null,null,null,null,null,null,null,null,"2018-03-21",null,null,null,null,null,null,null,null,null,null,81.999999999999702,"SATISFACTORIO"]
[null,null,null,null,null,null,null,null,null,null,null,null,null,null,null,"2018-03-22",null,null,null,null,null,null,null,null,null,null,82.099999999999696,"SATISFACTORIO"]
[null,null,null,null,null,null,null,null,null,null,null,null,null,null,null,"2018-03-23",null,null,null,null,null,null,null,null,null,null,82.199999999999704,"SATISFACTORIO"]
[null,null,null,null,null,null,null,null,null,null,null,null,null,null,null,"2018-03-24",null,null,null,null,null,null,null,null,null,null,82.299999999999699,"SATISFACTORIO"]
[null,null,null,null,null,null,null,null,null,null,null,null,null,null,null,"2018-03-25",null,null,null,null,null,null,null,null,null,null,82.399999999999693,"SATISFACTORIO"]
[null,null,null,null,null,null,null,null,null,null,null,null,null,null,null,"2018-03-26",null,null,null,null,null,null,null,null,null,null,82.499999999999702,"SATISFACTORIO"]
[null,null,null,null,null,null,null,null,null,null,null,null,null,null,null,"2018-03-27",null,null,null,null,null,null,null,null,null,null,82.599999999999696,"SATISFACTORIO"]
[null,null,null,null,null,null,null,null,null,null,null,null,null,null,null,"2018-03-28",null,null,null,null,null,null,null,null,null,null,82.699999999999704,"SATISFACTORIO"]
[null,null,null,null,null,null,null,null,null,null,null,null,null,null,null,"2018-03-29",null,null,null,null,null,null,null,null,null,null,82.799999999999699,"SATISFACTORIO"]
[null,null,null,null,null,null,null,null,null,null,null,null,null,null,null,"2018-03-30",null,null,null,null,null,null,null,null,null,null,82.899999999999693,"SATISFACTORIO"]
[null,null,null,null,null,null,null,null,null,null,null,null,null,null,null,"2018-03-31",null,null,null,null,null,null,null,null,null,null,82.999999999999702,"SATISFACTORIO"]
[null,null,null,null,null,null,null,null,null,null,null,null,null,null,null,"2018-04-01",null,null,null,null,null,null,null,null,null,null,83.099999999999696,"SATISFACTORIO"]
[null,null,null,null,null,null,null,null,null,null,null,null,null,null,null,"2018-04-02",null,null,null,null,null,null,null,null,null,null,83.199999999999704,"SATISFACTORIO"]
[null,null,null,null,null,null,null,null,null,null,null,null,null,null,null,"2018-04-03",null,null,null,null,null,null,null,null,null,null,83.299999999999699,"SATISFACTORIO"]
[null,null,null,null,null,null,null,null,null,null,null,null,null,null,null,"2018-04-04",null,null,null,null,null,null,null,null,null,null,83.399999999999693,"SATISFACTORIO"]
[null,null,null,null,null,null,null,null,null,null,null,null,null,null,null,"2018-04-05",null,null,null,null,null,null,null,null,null,null,83.499999999999702,"SATISFACTORIO"]
[null,null,null,null,null,null,null,null,null,null,null,null,null,null,null,"2018-04-06",null,null,null,null,null,null,null,null,null,null,83.599999999999696,"SATISFACTORIO"]
[null,null,null,null,null,null,null,null,null,null,null,null,null,null,null,"2018-04-07",null,null,null,null,null,null,null,null,null,null,83.699999999999704,"SATISFACTORIO"]
[null,null,null,null,null,null,null,null,null,null,null,null,null,null,null,"2018-04-08",null,null,null,null,null,null,null,null,null,null,83.799999999999699,"SATISFACTORIO"]
[null,null,null,null,null,null,null,null,null,null,null,null,null,null,null,"2018-04-09",null,null,null,null,null,null,null,null,null,null,83.899999999999693,"SATISFACTORIO"]
[null,null,null,null,null,null,null,null,null,null,null,null,null,null,null,"2018-04-10",null,null,null,null,null,null,null,null,null,null,83.999999999999702,"SATISFACTORIO"]
[null,null,null,null,null,null,null,null,null,null,null,null,null,null,null,"2018-04-11",null,null,null,null,null,null,null,null,null,null,84.099999999999696,"SATISFACTORIO"]
[null,null,null,null,null,null,null,null,null,null,null,null,null,null,null,"2018-04-12",null,null,null,null,null,null,null,null,null,null,84.199999999999704,"SATISFACTORIO"]
[null,null,null,null,null,null,null,null,null,null,null,null,null,null,null,"2018-04-13",null,null,null,null,null,null,null,null,null,null,84.299999999999699,"SATISFACTORIO"]
[null,null,null,null,null,null,null,null,null,null,null,null,null,null,null,"2018-04-14",null,null,null,null,null,null,null,null,null,null,84.399999999999693,"SATISFACTORIO"]
[null,null,null,null,null,null,null,null,null,null,null,null,null,null,null,"2018-04-15",null,null,null,null,null,null,null,null,null,null,84.499999999999702,"SATISFACTORIO"]
[null,null,null,null,null,null,null,null,null,null,null,null,null,null,null,"2018-04-16",null,null,null,null,null,null,null,null,null,null,84.599999999999696,"SATISFACTORIO"]
[null,null,null,null,null,null,null,null,null,null,null,null,null,null,null,"2018-04-17",null,null,null,null,null,null,null,null,null,null,84.699999999999704,"SATISFACTORIO"]
[null,null,null,null,null,null,null,null,null,null,null,null,null,null,null,"2018-04-18",null,null,null,null,null,null,null,null,null,null,84.799999999999699,"SATISFACTORIO"]
[null,null,null,null,null,null,null,null,null,null,null,null,null,null,null,"2018-04-19",null,null,null,null,null,null,null,null,null,null,84.899999999999693,"SATISFACTORIO"]
[null,null,null,null,null,null,null,null,null,null,null,null,null,null,null,"2018-04-20",null,null,null,null,null,null,null,null,null,null,84.999999999999702,"SATISFACTORIO"]
[null,null,null,null,null,null,null,null,null,null,null,null,null,null,null,"2018-04-21",null,null,null,null,null,null,null,null,null,null,85.099999999999696,"SATISFACTORIO"]
[null,null,null,null,null,null,null,null,null,null,null,null,null,null,null,"2018-04-22",null,null,null,null,null,null,null,null,null,null,85.199999999999704,"SATISFACTORIO"]
[null,null,null,null,null,null,null,null,null,null,null,null,null,null,null,"2018-04-23",null,null,null,null,null,null,null,null,null,null,85.299999999999699,"SATISFACTORIO"]
[null,null,null,null,null,null,null,null,null,null,null,null,null,null,null,"2018-04-24",null,null,null,null,null,null,null,null,null,null,85.399999999999693,"SATISFACTORIO"]
[null,null,null,null,null,null,null,null,null,null,null,null,null,null,null,"2018-04-25",null,null,null,null,null,null,null,null,null,null,85.499999999999702,"SATISFACTORIO"]
[null,null,null,null,null,null,null,null,null,null,null,null,null,null,null,"2018-04-26",null,null,null,null,null,null,null,null,null,null,85.599999999999696,"SATISFACTORIO"]
[null,null,null,null,null,null,null,null,null,null,null,null,null,null,null,"2018-04-27",null,null,null,null,null,null,null,null,null,null,85.699999999999704,"SATISFACTORIO"]
[null,null,null,null,null,null,null,null,null,null,null,null,null,null,null,"2018-04-28",null,null,null,null,null,null,null,null,null,null,85.799999999999699,"SATISFACTORIO"]
[null,null,null,null,null,null,null,null,null,null,null,null,null,null,null,"2018-04-29",null,null,null,null,null,null,null,null,null,null,85.899999999999693,"SATISFACTORIO"]
[null,null,null,null,null,null,null,null,null,null,null,null,null,null,null,"2018-04-30",null,null,null,null,null,null,null,null,null,null,85.999999999999702,"SATISFACTORIO"]
[null,null,null,null,null,null,null,null,null,null,null,null,null,null,null,"2018-05-01",null,null,null,null,null,null,null,null,null,null,86.099999999999696,"SATISFACTORIO"]
[null,null,null,null,null,null,null,null,null,null,null,null,null,null,null,"2018-05-02",null,null,null,null,null,null,null,null,null,null,86.199999999999704,"SATISFACTORIO"]
[null,null,null,null,null,null,null,null,null,null,null,null,null,null,null,"2018-05-03",null,null,null,null,null,null,null,null,null,null,86.299999999999699,"SATISFACTORIO"]
[null,null,null,null,null,null,null,null,null,null,null,null,null,null,null,"2018-05-04",null,null,null,null,null,null,null,null,null,null,86.399999999999693,"SATISFACTORIO"]
[null,null,null,null,null,null,null,null,null,null,null,null,null,null,null,"2018-05-05",null,null,null,null,null,null,null,null,null,null,86.499999999999702,"SATISFACTORIO"]
[null,null,null,null,null,null,null,null,null,null,null,null,null,null,null,"2018-05-06",null,null,null,null,null,null,null,null,null,null,86.599999999999696,"SATISFACTORIO"]
[null,null,null,null,null,null,null,null,null,null,null,null,null,null,null,"2018-05-07",null,null,null,null,null,null,null,null,null,null,86.699999999999704,"SATISFACTORIO"]
[null,null,null,null,null,null,null,null,null,null,null,null,null,null,null,"2018-05-08",null,null,null,null,null,null,null,null,null,null,86.799999999999699,"SATISFACTORIO"]
[null,null,null,null,null,null,null,null,null,null,null,null,null,null,null,"2018-05-09",null,null,null,null,null,null,null,null,null,null,86.899999999999693,"SATISFACTORIO"]
[null,null,null,null,null,null,null,null,null,null,null,null,null,null,null,"2018-05-10",null,null,null,null,null,null,null,null,null,null,86.999999999999702,"SATISFACTORIO"]
[null,null,null,null,null,null,null,null,null,null,null,null,null,null,null,"2018-05-11",null,null,null,null,null,null,null,null,null,null,87.099999999999696,"SATISFACTORIO"]
[null,null,null,null,null,null,null,null,null,null,null,null,null,null,null,"2018-05-12",null,null,null,null,null,null,null,null,null,null,87.199999999999704,"SATISFACTORIO"]
[null,null,null,null,null,null,null,null,null,null,null,null,null,null,null,"2018-05-13",null,null,null,null,null,null,null,null,null,null,87.299999999999699,"SATISFACTORIO"]
[null,null,null,null,null,null,null,null,null,null,null,null,null,null,null,"2018-05-14",null,null,null,null,null,null,null,null,null,null,87.399999999999693,"SATISFACTORIO"]
[null,null,null,null,null,null,null,null,null,null,null,null,null,null,null,"2018-05-15",null,null,null,null,null,null,null,null,null,null,87.499999999999702,"SATISFACTORIO"]
[null,null,null,null,null,null,null,null,null,null,null,null,null,null,null,"2018-05-16",null,null,null,null,null,null,null,null,null,null,87.599999999999696,"SATISFACTORIO"]
[null,null,null,null,null,null,null,null,null,null,null,null,null,null,null,"2018-05-17",null,null,null,null,null,null,null,null,null,null,87.699999999999704,"SATISFACTORIO"]
[null,null,null,null,null,null,null,null,null,null,null,null,null,null,null,"2018-05-18",null,null,null,null,null,null,null,null,null,null,87.799999999999699,"SATISFACTORIO"]
[null,null,null,null,null,null,null,null,null,null,null,null,null,null,null,"2018-05-19",null,null,null,null,null,null,null,null,null,null,87.899999999999693,"SATISFACTORIO"]
[null,null,null,null,null,null,null,null,null,null,null,null,null,null,null,"2018-05-20",null,null,null,null,null,null,null,null,null,null,87.999999999999702,"SATISFACTORIO"]
[null,null,null,null,null,null,null,null,null,null,null,null,null,null,null,"2018-05-21",null,null,null,null,null,null,null,null,null,null,88.099999999999696,"SATISFACTORIO"]
[null,null,null,null,null,null,null,null,null,null,null,null,null,null,null,"2018-05-22",null,null,null,null,null,null,null,null,null,null,88.199999999999704,"SATISFACTORIO"]
[null,null,null,null,null,null,null,null,null,null,null,null,null,null,null,"2018-05-23",null,null,null,null,null,null,null,null,null,null,88.299999999999699,"SATISFACTORIO"]
[null,null,null,null,null,null,null,null,null,null,null,null,null,null,null,"2018-05-24",null,null,null,null,null,null,null,null,null,null,88.399999999999693,"SATISFACTORIO"]
[null,null,null,null,null,null,null,null,null,null,null,null,null,null,null,"2018-05-25",null,null,null,null,null,null,null,null,null,null,88.499999999999702,"SATISFACTORIO"]
[null,null,null,null,null,null,null,null,null,null,null,null,null,null,null,"2018-05-26",null,null,null,null,null,null,null,null,null,null,88.599999999999696,"SATISFACTORIO"]
[null,null,null,null,null,null,null,null,null,null,null,null,null,null,null,"2018-05-27",null,null,null,null,null,null,null,null,null,null,88.699999999999704,"SATISFACTORIO"]
[null,null,null,null,null,null,null,null,null,null,null,null,null,null,null,"2018-05-28",null,null,null,null,null,null,null,null,null,null,88.799999999999699,"SATISFACTORIO"]
[null,null,null,null,null,null,null,null,null,null,null,null,null,null,null,"2018-05-29",null,null,null,null,null,null,null,null,null,null,88.899999999999693,"SATISFACTORIO"]
[null,null,null,null,null,null,null,null,null,null,null,null,null,null,null,"2018-05-30",null,null,null,null,null,null,null,null,null,null,88.999999999999702,"SATISFACTORIO"]
[null,null,null,null,null,null,null,null,null,null,null,null,null,null,null,"2018-05-31",null,null,null,null,null,null,null,null,null,null,89.099999999999696,"SATISFACTORIO"]
[null,null,null,null,null,null,null,null,null,null,null,null,null,null,null,"2018-06-01",null,null,null,null,null,null,null,null,null,null,89.199999999999704,"SATISFACTORIO"]
[null,null,null,null,null,null,null,null,null,null,null,null,null,null,null,"2018-06-02",null,null,null,null,null,null,null,null,null,null,89.299999999999699,"SATISFACTORIO"]
[null,null,null,null,null,null,null,null,null,null,null,null,null,null,null,"2018-06-03",null,null,null,null,null,null,null,null,null,null,89.399999999999693,"SATISFACTORIO"]
[null,null,null,null,null,null,null,null,null,null,null,null,null,null,null,"2018-06-04",null,null,null,null,null,null,null,null,null,null,89.499999999999702,"SATISFACTORIO"]
[null,null,null,null,null,null,null,null,null,null,null,null,null,null,null,"2018-06-05",null,null,null,null,null,null,null,null,null,null,89.599999999999696,"SATISFACTORIO"]
[null,null,null,null,null,null,null,null,null,null,null,null,null,null,null,"2018-06-06",null,null,null,null,null,null,null,null,null,null,89.699999999999704,"SATISFACTORIO"]
[null,null,null,null,null,null,null,null,null,null,null,null,null,null,null,"2018-06-07",null,null,null,null,null,null,null,null,null,null,89.799999999999699,"SATISFACTORIO"]
[null,null,null,null,null,null,null,null,null,null,null,null,null,null,null,"2018-06-08",null,null,null,null,null,null,null,null,null,null,89.899999999999693,"SATISFACTORIO"]
[null,null,null,null,null,null,null,null,null,null,null,null,null,null,null,"2018-06-09",null,null,null,null,null,null,null,null,null,null,89.999999999999702,"SATISFACTORIO"]
[null,null,null,null,null,null,null,null,null,null,null,null,null,null,null,"2018-06-10",null,null,null,null,null,null,null,null,null,null,90.099999999999696,"SATISFACTORIO"]
[null,null,null,null,null,null,null,null,null,null,null,null,null,null,null,"2018-06-11",null,null,null,null,null,null,null,null,null,null,90.199999999999704,"SATISFACTORIO"]
[null,null,null,null,null,null,null,null,null,null,null,null,null,null,null,"2018-06-12",null,null,null,null,null,null,null,null,null,null,90.299999999999699,"SATISFACTORIO"]
[null,null,null,null,null,null,null,null,null,null,null,null,null,null,null,"2018-06-13",null,null,null,null,null,null,null,null,null,null,90.399999999999693,"SATISFACTORIO"]
[null,null,null,null,null,null,null,null,null,null,null,null,null,null,null,"2018-06-14",null,null,null,null,null,null,null,null,null,null,90.499999999999702,"SATISFACTORIO"]
[null,null,null,null,null,null,null,null,null,null,null,null,null,null,null,"2018-06-15",null,null,null,null,null,null,null,null,null,null,90.599999999999696,"SATISFACTORIO"]
[null,null,null,null,null,null,null,null,null,null,null,null,null,null,null,"2018-06-16",null,null,null,null,null,null,null,null,null,null,90.699999999999704,"SATISFACTORIO"]
[null,null,null,null,null,null,null,null,null,null,null,null,null,null,null,"2018-06-17",null,null,null,null,null,null,null,null,null,null,90.799999999999699,"SATISFACTORIO"]
[null,null,null,null,null,null,null,null,null,null,null,null,null,null,null,"2018-06-18",null,null,null,null,null,null,null,null,null,null,90.899999999999693,"SATISFACTORIO"]
[null,null,null,null,null,null,null,null,null,null,null,null,null,null,null,"2018-06-19",null,null,null,null,null,null,null,null,null,null,90.999999999999702,"SATISFACTORIO"]
[null,null,null,null,null,null,null,null,null,null,null,null,null,null,null,"2018-06-20",null,null,null,null,null,null,null,null,null,null,91.099999999999696,"SATISFACTORIO"]
[null,null,null,null,null,null,null,null,null,null,null,null,null,null,null,"2018-06-21",null,null,null,null,null,null,null,null,null,null,91.199999999999704,"SATISFACTORIO"]
[null,null,null,null,null,null,null,null,null,null,null,null,null,null,null,"2018-06-22",null,null,null,null,null,null,null,null,null,null,91.299999999999699,"SATISFACTORIO"]
[null,null,null,null,null,null,null,null,null,null,null,null,null,null,null,"2018-06-23",null,null,null,null,null,null,null,null,null,null,91.399999999999693,"SATISFACTORIO"]
[null,null,null,null,null,null,null,null,null,null,null,null,null,null,null,"2018-06-24",null,null,null,null,null,null,null,null,null,null,91.499999999999702,"SATISFACTORIO"]
[null,null,null,null,null,null,null,null,null,null,null,null,null,null,null,"2018-06-25",null,null,null,null,null,null,null,null,null,null,91.599999999999696,"SATISFACTORIO"]
[null,null,null,null,null,null,null,null,null,null,null,null,null,null,null,"2018-06-26",null,null,null,null,null,null,null,null,null,null,91.699999999999704,"SATISFACTORIO"]
[null,null,null,null,null,null,null,null,null,null,null,null,null,null,null,"2018-06-27",null,null,null,null,null,null,null,null,null,null,91.799999999999699,"SATISFACTORIO"]
[null,null,null,null,null,null,null,null,null,null,null,null,null,null,null,"2018-06-28",null,null,null,null,null,null,null,null,null,null,91.899999999999693,"SATISFACTORIO"]
[null,null,null,null,null,null,null,null,null,null,null,null,null,null,null,"2018-06-29",null,null,null,null,null,null,null,null,null,null,91.999999999999702,"SATISFACTORIO"]
[null,null,null,null,null,null,null,null,null,null,null,null,null,null,null,"2018-06-30",null,null,null,null,null,null,null,null,null,null,92.099999999999696,"SATISFACTORIO"]
[null,null,null,null,null,null,null,null,null,null,null,null,null,null,null,"2018-07-01",null,null,null,null,null,null,null,null,null,null,92.199999999999704,"SATISFACTORIO"]
[null,null,null,null,null,null,null,null,null,null,null,null,null,null,null,"2018-07-02",null,null,null,null,null,null,null,null,null,null,92.299999999999699,"SATISFACTORIO"]
[null,null,null,null,null,null,null,null,null,null,null,null,null,null,null,"2018-07-03",null,null,null,null,null,null,null,null,null,null,92.399999999999693,"SATISFACTORIO"]
[null,null,null,null,null,null,null,null,null,null,null,null,null,null,null,"2018-07-04",null,null,null,null,null,null,null,null,null,null,92.499999999999702,"SATISFACTORIO"]
[null,null,null,null,null,null,null,null,null,null,null,null,null,null,null,"2018-07-05",null,null,null,null,null,null,null,null,null,null,92.599999999999696,"SATISFACTORIO"]
[null,null,null,null,null,null,null,null,null,null,null,null,null,null,null,"2018-07-06",null,null,null,null,null,null,null,null,null,null,92.699999999999704,"SATISFACTORIO"]
[null,null,null,null,null,null,null,null,null,null,null,null,null,null,null,"2018-07-07",null,null,null,null,null,null,null,null,null,null,92.799999999999699,"SATISFACTORIO"]
[null,null,null,null,null,null,null,null,null,null,null,null,null,null,null,"2018-07-08",null,null,null,null,null,null,null,null,null,null,92.899999999999693,"SATISFACTORIO"]
[null,null,null,null,null,null,null,null,null,null,null,null,null,null,null,"2018-07-09",null,null,null,null,null,null,null,null,null,null,92.999999999999702,"SATISFACTORIO"]
[null,null,null,null,null,null,null,null,null,null,null,null,null,null,null,"2018-07-10",null,null,null,null,null,null,null,null,null,null,93.099999999999696,"SATISFACTORIO"]
[null,null,null,null,null,null,null,null,null,null,null,null,null,null,null,"2018-07-11",null,null,null,null,null,null,null,null,null,null,93.199999999999704,"SATISFACTORIO"]
[null,null,null,null,null,null,null,null,null,null,null,null,null,null,null,"2018-07-12",null,null,null,null,null,null,null,null,null,null,93.299999999999699,"SATISFACTORIO"]
[null,null,null,null,null,null,null,null,null,null,null,null,null,null,null,"2018-07-13",null,null,null,null,null,null,null,null,null,null,93.399999999999693,"SATISFACTORIO"]
[null,null,null,null,null,null,null,null,null,null,null,null,null,null,null,"2018-07-14",null,null,null,null,null,null,null,null,null,null,93.499999999999702,"SATISFACTORIO"]
[null,null,null,null,null,null,null,null,null,null,null,null,null,null,null,"2018-07-15",null,null,null,null,null,null,null,null,null,null,93.599999999999696,"SATISFACTORIO"]
[null,null,null,null,null,null,null,null,null,null,null,null,null,null,null,"2018-07-16",null,null,null,null,null,null,null,null,null,null,93.699999999999704,"SATISFACTORIO"]
[null,null,null,null,null,null,null,null,null,null,null,null,null,null,null,"2018-07-17",null,null,null,null,null,null,null,null,null,null,93.799999999999699,"SATISFACTORIO"]
[null,null,null,null,null,null,null,null,null,null,null,null,null,null,null,"2018-07-18",null,null,null,null,null,null,null,null,null,null,93.899999999999693,"SATISFACTORIO"]
[null,null,null,null,null,null,null,null,null,null,null,null,null,null,null,"2018-07-19",null,null,null,null,null,null,null,null,null,null,93.999999999999702,"SATISFACTORIO"]
[null,null,null,null,null,null,null,null,null,null,null,null,null,null,null,"2018-07-20",null,null,null,null,null,null,null,null,null,null,94.099999999999696,"SATISFACTORIO"]
[null,null,null,null,null,null,null,null,null,null,null,null,null,null,null,"2018-07-21",null,null,null,null,null,null,null,null,null,null,94.199999999999704,"SATISFACTORIO"]
[null,null,null,null,null,null,null,null,null,null,null,null,null,null,null,"2018-07-22",null,null,null,null,null,null,null,null,null,null,94.299999999999699,"SATISFACTORIO"]
[null,null,null,null,null,null,null,null,null,null,null,null,null,null,null,"2018-07-23",null,null,null,null,null,null,null,null,null,null,94.399999999999693,"SATISFACTORIO"]
[null,null,null,null,null,null,null,null,null,null,null,null,null,null,null,"2018-07-24",null,null,null,null,null,null,null,null,null,null,94.499999999999702,"SATISFACTORIO"]
[null,null,null,null,null,null,null,null,null,null,null,null,null,null,null,"2018-07-25",null,null,null,null,null,null,null,null,null,null,94.599999999999696,"SATISFACTORIO"]
[null,null,null,null,null,null,null,null,null,null,null,null,null,null,null,"2018-07-26",null,null,null,null,null,null,null,null,null,null,94.699999999999704,"SATISFACTORIO"]
[null,null,null,null,null,null,null,null,null,null,null,null,null,null,null,"2018-07-27",null,null,null,null,null,null,null,null,null,null,94.799999999999699,"SATISFACTORIO"]
[null,null,null,null,null,null,null,null,null,null,null,null,null,null,null,"2018-07-28",null,null,null,null,null,null,null,null,null,null,94.899999999999693,"SATISFACTORIO"]
[null,null,null,null,null,null,null,null,null,null,null,null,null,null,null,"2018-07-29",null,null,null,null,null,null,null,null,null,null,94.999999999999702,"SOBRESALIENTE"]
[null,null,null,null,null,null,null,null,null,null,null,null,null,null,null,"2018-07-30",null,null,null,null,null,null,null,null,null,null,95.099999999999696,"SOBRESALIENTE"]
[null,null,null,null,null,null,null,null,null,null,null,null,null,null,null,"2018-07-31",null,null,null,null,null,null,null,null,null,null,95.199999999999704,"SOBRESALIENTE"]
[null,null,null,null,null,null,null,null,null,null,null,null,null,null,null,"2018-08-01",null,null,null,null,null,null,null,null,null,null,95.299999999999699,"SOBRESALIENTE"]
[null,null,null,null,null,null,null,null,null,null,null,null,null,null,null,"2018-08-02",null,null,null,null,null,null,null,null,null,null,95.399999999999693,"SOBRESALIENTE"]
[null,null,null,null,null,null,null,null,null,null,null,null,null,null,null,"2018-08-03",null,null,null,null,null,null,null,null,null,null,95.499999999999702,"SOBRESALIENTE"]
[null,null,null,null,null,null,null,null,null,null,null,null,null,null,null,"2018-08-04",null,null,null,null,null,null,null,null,null,null,95.599999999999696,"SOBRESALIENTE"]
[null,null,null,null,null,null,null,null,null,null,null,null,null,null,null,"2018-08-05",null,null,null,null,null,null,null,null,null,null,95.699999999999704,"SOBRESALIENTE"]
[null,null,null,null,null,null,null,null,null,null,null,null,null,null,null,"2018-08-06",null,null,null,null,null,null,null,null,null,null,95.799999999999699,"SOBRESALIENTE"]
[null,null,null,null,null,null,null,null,null,null,null,null,null,null,null,"2018-08-07",null,null,null,null,null,null,null,null,null,null,95.899999999999693,"SOBRESALIENTE"]
[null,null,null,null,null,null,null,null,null,null,null,null,null,null,null,"2018-08-08",null,null,null,null,null,null,null,null,null,null,95.999999999999702,"SOBRESALIENTE"]
[null,null,null,null,null,null,null,null,null,null,null,null,null,null,null,"2018-08-09",null,null,null,null,null,null,null,null,null,null,96.099999999999696,"SOBRESALIENTE"]
[null,null,null,null,null,null,null,null,null,null,null,null,null,null,null,"2018-08-10",null,null,null,null,null,null,null,null,null,null,96.199999999999704,"SOBRESALIENTE"]
[null,null,null,null,null,null,null,null,null,null,null,null,null,null,null,"2018-08-11",null,null,null,null,null,null,null,null,null,null,96.299999999999699,"SOBRESALIENTE"]
[null,null,null,null,null,null,null,null,null,null,null,null,null,null,null,"2018-08-12",null,null,null,null,null,null,null,null,null,null,96.399999999999693,"SOBRESALIENTE"]
[null,null,null,null,null,null,null,null,null,null,null,null,null,null,null,"2018-08-13",null,null,null,null,null,null,null,null,null,null,96.499999999999702,"SOBRESALIENTE"]
[null,null,null,null,null,null,null,null,null,null,null,null,null,null,null,"2018-08-14",null,null,null,null,null,null,null,null,null,null,96.599999999999696,"SOBRESALIENTE"]
[null,null,null,null,null,null,null,null,null,null,null,null,null,null,null,"2018-08-15",null,null,null,null,null,null,null,null,null,null,96.699999999999704,"SOBRESALIENTE"]
[null,null,null,null,null,null,null,null,null,null,null,null,null,null,null,"2018-08-16",null,null,null,null,null,null,null,null,null,null,96.799999999999699,"SOBRESALIENTE"]
[null,null,null,null,null,null,null,null,null,null,null,null,null,null,null,"2018-08-17",null,null,null,null,null,null,null,null,null,null,96.899999999999693,"SOBRESALIENTE"]
[null,null,null,null,null,null,null,null,null,null,null,null,null,null,null,"2018-08-18",null,null,null,null,null,null,null,null,null,null,96.999999999999702,"SOBRESALIENTE"]
[null,null,null,null,null,null,null,null,null,null,null,null,null,null,null,"2018-08-19",null,null,null,null,null,null,null,null,null,null,97.099999999999696,"SOBRESALIENTE"]
[null,null,null,null,null,null,null,null,null,null,null,null,null,null,null,"2018-08-20",null,null,null,null,null,null,null,null,null,null,97.199999999999704,"SOBRESALIENTE"]
[null,null,null,null,null,null,null,null,null,null,null,null,null,null,null,"2018-08-21",null,null,null,null,null,null,null,null,null,null,97.299999999999699,"SOBRESALIENTE"]
[null,null,null,null,null,null,null,null,null,null,null,null,null,null,null,"2018-08-22",null,null,null,null,null,null,null,null,null,null,97.399999999999693,"SOBRESALIENTE"]
[null,null,null,null,null,null,null,null,null,null,null,null,null,null,null,"2018-08-23",null,null,null,null,null,null,null,null,null,null,97.499999999999702,"SOBRESALIENTE"]
[null,null,null,null,null,null,null,null,null,null,null,null,null,null,null,"2018-08-24",null,null,null,null,null,null,null,null,null,null,97.599999999999696,"SOBRESALIENTE"]
[null,null,null,null,null,null,null,null,null,null,null,null,null,null,null,"2018-08-25",null,null,null,null,null,null,null,null,null,null,97.699999999999704,"SOBRESALIENTE"]
[null,null,null,null,null,null,null,null,null,null,null,null,null,null,null,"2018-08-26",null,null,null,null,null,null,null,null,null,null,97.799999999999699,"SOBRESALIENTE"]
[null,null,null,null,null,null,null,null,null,null,null,null,null,null,null,"2018-08-27",null,null,null,null,null,null,null,null,null,null,97.899999999999693,"SOBRESALIENTE"]
[null,null,null,null,null,null,null,null,null,null,null,null,null,null,null,"2018-08-28",null,null,null,null,null,null,null,null,null,null,97.999999999999702,"SOBRESALIENTE"]
[null,null,null,null,null,null,null,null,null,null,null,null,null,null,null,"2018-08-29",null,null,null,null,null,null,null,null,null,null,98.099999999999696,"SOBRESALIENTE"]
[null,null,null,null,null,null,null,null,null,null,null,null,null,null,null,"2018-08-30",null,null,null,null,null,null,null,null,null,null,98.199999999999704,"SOBRESALIENTE"]
[null,null,null,null,null,null,null,null,null,null,null,null,null,null,null,"2018-08-31",null,null,null,null,null,null,null,null,null,null,98.299999999999699,"SOBRESALIENTE"]
[null,null,null,null,null,null,null,null,null,null,null,null,null,null,null,"2018-09-01",null,null,null,null,null,null,null,null,null,null,98.399999999999693,"SOBRESALIENTE"]
[null,null,null,null,null,null,null,null,null,null,null,null,null,null,null,"2018-09-02",null,null,null,null,null,null,null,null,null,null,98.499999999999702,"SOBRESALIENTE"]
[null,null,null,null,null,null,null,null,null,null,null,null,null,null,null,"2018-09-03",null,null,null,null,null,null,null,null,null,null,98.599999999999696,"SOBRESALIENTE"]
[null,null,null,null,null,null,null,null,null,null,null,null,null,null,null,"2018-09-04",null,null,null,null,null,null,null,null,null,null,98.699999999999704,"SOBRESALIENTE"]
[null,null,null,null,null,null,null,null,null,null,null,null,null,null,null,"2018-09-05",null,null,null,null,null,null,null,null,null,null,98.799999999999699,"SOBRESALIENTE"]
[null,null,null,null,null,null,null,null,null,null,null,null,null,null,null,"2018-09-06",null,null,null,null,null,null,null,null,null,null,98.899999999999693,"SOBRESALIENTE"]
[null,null,null,null,null,null,null,null,null,null,null,null,null,null,null,"2018-09-07",null,null,null,null,null,null,null,null,null,null,98.999999999999702,"SOBRESALIENTE"]
[null,null,null,null,null,null,null,null,null,null,null,null,null,null,null,"2018-09-08",null,null,null,null,null,null,null,null,null,null,99.099999999999696,"SOBRESALIENTE"]
[null,null,null,null,null,null,null,null,null,null,null,null,null,null,null,"2018-09-09",null,null,null,null,null,null,null,null,null,null,99.199999999999704,"SOBRESALIENTE"]
[null,null,null,null,null,null,null,null,null,null,null,null,null,null,null,"2018-09-10",null,null,null,null,null,null,null,null,null,null,99.299999999999699,"SOBRESALIENTE"]
[null,null,null,null,null,null,null,null,null,null,null,null,null,null,null,"2018-09-11",null,null,null,null,null,null,null,null,null,null,99.399999999999693,"SOBRESALIENTE"]
[null,null,null,null,null,null,null,null,null,null,null,null,null,null,null,"2018-09-12",null,null,null,null,null,null,null,null,null,null,99.499999999999702,"SOBRESALIENTE"]
[null,null,null,null,null,null,null,null,null,null,null,null,null,null,null,"2018-09-13",null,null,null,null,null,null,null,null,null,null,99.599999999999696,"SOBRESALIENTE"]
[null,null,null,null,null,null,null,null,null,null,null,null,null,null,null,"2018-09-14",null,null,null,null,null,null,null,null,null,null,99.699999999999704,"SOBRESALIENTE"]
[null,null,null,null,null,null,null,null,null,null,null,null,null,null,null,"2018-09-15",null,null,null,null,null,null,null,null,null,null,99.799999999999699,"SOBRESALIENTE"]
[null,null,null,null,null,null,null,null,null,null,null,null,null,null,null,"2018-09-16",null,null,null,null,null,null,null,null,null,null,99.899999999999693,"SOBRESALIENTE"]
[null,null,null,null,null,null,null,null,null,null,null,null,null,null,null,"2018-09-17",null,null,null,null,null,null,null,null,null,null,99.999999999999702,"SOBRESALIENTE"]
[null,null,null,null,null,null,null,null,null,null,null,null,null,null,null,"2018-09-18"]
[null,null,null,null,null,null,null,null,null,null,null,null,null,null,null,"2018-09-19"]
[null,null,null,null,null,null,null,null,null,null,null,null,null,null,null,"2018-09-20"]
[null,null,null,null,null,null,null,null,null,null,null,null,null,null,null,"2018-09-21"]
[null,null,null,null,null,null,null,null,null,null,null,null,null,null,null,"2018-09-22"]
[null,null,null,null,null,null,null,null,null,null,null,null,null,null,null,"2018-09-23"]
[null,null,null,null,null,null,null,null,null,null,null,null,null,null,null,"2018-09-24"]
[null,null,null,null,null,null,null,null,null,null,null,null,null,null,null,"2018-09-25"]
[null,null,null,null,null,null,null,null,null,null,null,null,null,null,null,"2018-09-26"]
[null,null,null,null,null,null,null,null,null,null,null,null,null,null,null,"2018-09-27"]
[null,null,null,null,null,null,null,null,null,null,null,null,null,null,null,"2018-09-28"]
[null,null,null,null,null,null,null,null,null,null,null,null,null,null,null,"2018-09-29"]
[null,null,null,null,null,null,null,null,null,null,null,null,null,null,null,"2018-09-30"]
[null,null,null,null,null,null,null,null,null,null,null,null,null,null,null,"2018-10-01"]
[null,null,null,null,null,null,null,null,null,null,null,null,null,null,null,"2018-10-02"]
[null,null,null,null,null,null,null,null,null,null,null,null,null,null,null,"2018-10-03"]
[null,null,null,null,null,null,null,null,null,null,null,null,null,null,null,"2018-10-04"]
[null,null,null,null,null,null,null,null,null,null,null,null,null,null,null,"2018-10-05"]
[null,null,null,null,null,null,null,null,null,null,null,null,null,null,null,"2018-10-06"]
[null,null,null,null,null,null,null,null,null,null,null,null,null,null,null,"2018-10-07"]
[null,null,null,null,null,null,null,null,null,null,null,null,null,null,null,"2018-10-08"]
[null,null,null,null,null,null,null,null,null,null,null,null,null,null,null,"2018-10-09"]
[null,null,null,null,null,null,null,null,null,null,null,null,null,null,null,"2018-10-10"]
[null,null,null,null,null,null,null,null,null,null,null,null,null,null,null,"2018-10-11"]
[null,null,null,null,null,null,null,null,null,null,null,null,null,null,null,"2018-10-12"]
[null,null,null,null,null,null,null,null,null,null,null,null,null,null,null,"2018-10-13"]
[null,null,null,null,null,null,null,null,null,null,null,null,null,null,null,"2018-10-14"]
[null,null,null,null,null,null,null,null,null,null,null,null,null,null,null,"2018-10-15"]
[null,null,null,null,null,null,null,null,null,null,null,null,null,null,null,"2018-10-16"]
[null,null,null,null,null,null,null,null,null,null,null,null,null,null,null,"2018-10-17"]
[null,null,null,null,null,null,null,null,null,null,null,null,null,null,null,"2018-10-18"]
[null,null,null,null,null,null,null,null,null,null,null,null,null,null,null,"2018-10-19"]
[null,null,null,null,null,null,null,null,null,null,null,null,null,null,null,"2018-10-20"]
[null,null,null,null,null,null,null,null,null,null,null,null,null,null,null,"2018-10-21"]
[null,null,null,null,null,null,null,null,null,null,null,null,null,null,null,"2018-10-22"]
[null,null,null,null,null,null,null,null,null,null,null,null,null,null,null,"2018-10-23"]
[null,null,null,null,null,null,null,null,null,null,null,null,null,null,null,"2018-10-24"]
[null,null,null,null,null,null,null,null,null,null,null,null,null,null,null,"2018-10-25"]
[null,null,null,null,null,null,null,null,null,null,null,null,null,null,null,"2018-10-26"]
[null,null,null,null,null,null,null,null,null,null,null,null,null,null,null,"2018-10-27"]
[null,null,null,null,null,null,null,null,null,null,null,null,null,null,null,"2018-10-28"]
[null,null,null,null,null,null,null,null,null,null,null,null,null,null,null,"2018-10-29"]
[null,null,null,null,null,null,null,null,null,null,null,null,null,null,null,"2018-10-30"]
[null,null,null,null,null,null,null,null,null,null,null,null,null,null,null,"2018-10-31"]
[null,null,null,null,null,null,null,null,null,null,null,null,null,null,null,"2018-11-01"]
[null,null,null,null,null,null,null,null,null,null,null,null,null,null,null,"2018-11-02"]
[null,null,null,null,null,null,null,null,null,null,null,null,null,null,null,"2018-11-03"]
[null,null,null,null,null,null,null,null,null,null,null,null,null,null,null,"2018-11-04"]
[null,null,null,null,null,null,null,null,null,null,null,null,null,null,null,"2018-11-05"]
[null,null,null,null,null,null,null,null,null,null,null,null,null,null,null,"2018-11-06"]
[null,null,null,null,null,null,null,null,null,null,null,null,null,null,null,"2018-11-07"]
[null,null,null,null,null,null,null,null,null,null,null,null,null,null,null,"2018-11-08"]
[null,null,null,null,null,null,null,null,null,null,null,null,null,null,null,"2018-11-09"]
[null,null,null,null,null,null,null,null,null,null,null,null,null,null,null,"2018-11-10"]
[null,null,null,null,null,null,null,null,null,null,null,null,null,null,null,"2018-11-11"]
[null,null,null,null,null,null,null,null,null,null,null,null,null,null,null,"2018-11-12"]
[null,null,null,null,null,null,null,null,null,null,null,null,null,null,null,"2018-11-13"]
[null,null,null,null,null,null,null,null,null,null,null,null,null,null,null,"2018-11-14"]
[null,null,null,null,null,null,null,null,null,null,null,null,null,null,null,"2018-11-15"]
[null,null,null,null,null,null,null,null,null,null,null,null,null,null,null,"2018-11-16"]
[null,null,null,null,null,null,null,null,null,null,null,null,null,null,null,"2018-11-17"]
[null,null,null,null,null,null,null,null,null,null,null,null,null,null,null,"2018-11-18"]
[null,null,null,null,null,null,null,null,null,null,null,null,null,null,null,"2018-11-19"]
[null,null,null,null,null,null,null,null,null,null,null,null,null,null,null,"2018-11-20"]
[null,null,null,null,null,null,null,null,null,null,null,null,null,null,null,"2018-11-21"]
[null,null,null,null,null,null,null,null,null,null,null,null,null,null,null,"2018-11-22"]
[null,null,null,null,null,null,null,null,null,null,null,null,null,null,null,"2018-11-23"]
[null,null,null,null,null,null,null,null,null,null,null,null,null,null,null,"2018-11-24"]
[null,null,null,null,null,null,null,null,null,null,null,null,null,null,null,"2018-11-25"]
[null,null,null,null,null,null,null,null,null,null,null,null,null,null,null,"2018-11-26"]
[null,null,null,null,null,null,null,null,null,null,null,null,null,null,null,"2018-11-27"]
[null,null,null,null,null,null,null,null,null,null,null,null,null,null,null,"2018-11-28"]
[null,null,null,null,null,null,null,null,null,null,null,null,null,null,null,"2018-11-29"]
[null,null,null,null,null,null,null,null,null,null,null,null,null,null,null,"2018-11-30"]
[null,null,null,null,null,null,null,null,null,null,null,null,null,null,null,"2018-12-01"]
[null,null,null,null,null,null,null,null,null,null,null,null,null,null,null,"2018-12-02"]
[null,null,null,null,null,null,null,null,null,null,null,null,null,null,null,"2018-12-03"]
[null,null,null,null,null,null,null,null,null,null,null,null,null,null,null,"2018-12-04"]
[null,null,null,null,null,null,null,null,null,null,null,null,null,null,null,"2018-12-05"]
[null,null,null,null,null,null,null,null,null,null,null,null,null,null,null,"2018-12-06"]
[null,null,null,null,null,null,null,null,null,null,null,null,null,null,null,"2018-12-07"]
[null,null,null,null,null,null,null,null,null,null,null,null,null,null,null,"2018-12-08"]
[null,null,null,null,null,null,null,null,null,null,null,null,null,null,null,"2018-12-09"]
[null,null,null,null,null,null,null,null,null,null,null,null,null,null,null,"2018-12-10"]
[null,null,null,null,null,null,null,null,null,null,null,null,null,null,null,"2018-12-11"]
[null,null,null,null,null,null,null,null,null,null,null,null,null,null,null,"2018-12-12"]
[null,null,null,null,null,null,null,null,null,null,null,null,null,null,null,"2018-12-13"]
[null,null,null,null,null,null,null,null,null,null,null,null,null,null,null,"2018-12-14"]
[null,null,null,null,null,null,null,null,null,null,null,null,null,null,null,"2018-12-15"]
[null,null,null,null,null,null,null,null,null,null,null,null,null,null,null,"2018-12-16"]
[null,null,null,null,null,null,null,null,null,null,null,null,null,null,null,"2018-12-17"]
[null,null,null,null,null,null,null,null,null,null,null,null,null,null,null,"2018-12-18"]
[null,null,null,null,null,null,null,null,null,null,null,null,null,null,null,"2018-12-19"]
[null,null,null,null,null,null,null,null,null,null,null,null,null,null,null,"2018-12-20"]
[null,null,null,null,null,null,null,null,null,null,null,null,null,null,null,"2018-12-21"]
[null,null,null,null,null,null,null,null,null,null,null,null,null,null,null,"2018-12-22"]
[null,null,null,null,null,null,null,null,null,null,null,null,null,null,null,"2018-12-23"]
[null,null,null,null,null,null,null,null,null,null,null,null,null,null,null,"2018-12-24"]
[null,null,null,null,null,null,null,null,null,null,null,null,null,null,null,"2018-12-25"]
[null,null,null,null,null,null,null,null,null,null,null,null,null,null,null,"2018-12-26"]
[null,null,null,null,null,null,null,null,null,null,null,null,null,null,null,"2018-12-27"]
[null,null,null,null,null,null,null,null,null,null,null,null,null,null,null,"2018-12-28"]
[null,null,null,null,null,null,null,null,null,null,null,null,null,null,null,"2018-12-29"]
[null,null,null,null,null,null,null,null,null,null,null,null,null,null,null,"2018-12-30"]
[null,null,null,null,null,null,null,null,null,null,null,null,null,null,null,"2018-12-31"]
[null,null,null,null,null,null,null,null,null,null,null,null,null,null,null,"2019-01-01"]
[null,null,null,null,null,null,null,null,null,null,null,null,null,null,null,"2019-01-02"]
[null,null,null,null,null,null,null,null,null,null,null,null,null,null,null,"2019-01-03"]
[null,null,null,null,null,null,null,null,null,null,null,null,null,null,null,"2019-01-04"]
[null,null,null,null,null,null,null,null,null,null,null,null,null,null,null,"2019-01-05"]
[null,null,null,null,null,null,null,null,null,null,null,null,null,null,null,"2019-01-06"]
[null,null,null,null,null,null,null,null,null,null,null,null,null,null,null,"2019-01-07"]
[null,null,null,null,null,null,null,null,null,null,null,null,null,null,null,"2019-01-08"]
[null,null,null,null,null,null,null,null,null,null,null,null,null,null,null,"2019-01-09"]
[null,null,null,null,null,null,null,null,null,null,null,null,null,null,null,"2019-01-10"]
[null,null,null,null,null,null,null,null,null,null,null,null,null,null,null,"2019-01-11"]
[null,null,null,null,null,null,null,null,null,null,null,null,null,null,null,"2019-01-12"]
[null,null,null,null,null,null,null,null,null,null,null,null,null,null,null,"2019-01-13"]
[null,null,null,null,null,null,null,null,null,null,null,null,null,null,null,"2019-01-14"]
[null,null,null,null,null,null,null,null,null,null,null,null,null,null,null,"2019-01-15"]
[null,null,null,null,null,null,null,null,null,null,null,null,null,null,null,"2019-01-16"]
[null,null,null,null,null,null,null,null,null,null,null,null,null,null,null,"2019-01-17"]
[null,null,null,null,null,null,null,null,null,null,null,null,null,null,null,"2019-01-18"]
[null,null,null,null,null,null,null,null,null,null,null,null,null,null,null,"2019-01-19"]
[null,null,null,null,null,null,null,null,null,null,null,null,null,null,null,"2019-01-20"]
[null,null,null,null,null,null,null,null,null,null,null,null,null,null,null,"2019-01-21"]
[null,null,null,null,null,null,null,null,null,null,null,null,null,null,null,"2019-01-22"]
[null,null,null,null,null,null,null,null,null,null,null,null,null,null,null,"2019-01-23"]
[null,null,null,null,null,null,null,null,null,null,null,null,null,null,null,"2019-01-24"]
[null,null,null,null,null,null,null,null,null,null,null,null,null,null,null,"2019-01-25"]
[null,null,null,null,null,null,null,null,null,null,null,null,null,null,null,"2019-01-26"]
[null,null,null,null,null,null,null,null,null,null,null,null,null,null,null,"2019-01-27"]
[null,null,null,null,null,null,null,null,null,null,null,null,null,null,null,"2019-01-28"]
[null,null,null,null,null,null,null,null,null,null,null,null,null,null,null,"2019-01-29"]
[null,null,null,null,null,null,null,null,null,null,null,null,null,null,null,"2019-01-30"]
[null,null,null,null,null,null,null,null,null,null,null,null,null,null,null,"2019-01-31"]
[null,null,null,null,null,null,null,null,null,null,null,null,null,null,null,"2019-02-01"]
[null,null,null,null,null,null,null,null,null,null,null,null,null,null,null,"2019-02-02"]
[null,null,null,null,null,null,null,null,null,null,null,null,null,null,null,"2019-02-03"]
[null,null,null,null,null,null,null,null,null,null,null,null,null,null,null,"2019-02-04"]
[null,null,null,null,null,null,null,null,null,null,null,null,null,null,null,"2019-02-05"]
[null,null,null,null,null,null,null,null,null,null,null,null,null,null,null,"2019-02-06"]
[null,null,null,null,null,null,null,null,null,null,null,null,null,null,null,"2019-02-07"]
[null,null,null,null,null,null,null,null,null,null,null,null,null,null,null,"2019-02-08"]
[null,null,null,null,null,null,null,null,null,null,null,null,null,null,null,"2019-02-09"]
[null,null,null,null,null,null,null,null,null,null,null,null,null,null,null,"2019-02-10"]
[null,null,null,null,null,null,null,null,null,null,null,null,null,null,null,"2019-02-11"]
[null,null,null,null,null,null,null,null,null,null,null,null,null,null,null,"2019-02-12"]
[null,null,null,null,null,null,null,null,null,null,null,null,null,null,null,"2019-02-13"]
[null,null,null,null,null,null,null,null,null,null,null,null,null,null,null,"2019-02-14"]
[null,null,null,null,null,null,null,null,null,null,null,null,null,null,null,"2019-02-15"]
[null,null,null,null,null,null,null,null,null,null,null,null,null,null,null,"2019-02-16"]
[null,null,null,null,null,null,null,null,null,null,null,null,null,null,null,"2019-02-17"]
[null,null,null,null,null,null,null,null,null,null,null,null,null,null,null,"2019-02-18"]
[null,null,null,null,null,null,null,null,null,null,null,null,null,null,null,"2019-02-19"]
[null,null,null,null,null,null,null,null,null,null,null,null,null,null,null,"2019-02-20"]
[null,null,null,null,null,null,null,null,null,null,null,null,null,null,null,"2019-02-21"]
[null,null,null,null,null,null,null,null,null,null,null,null,null,null,null,"2019-02-22"]
[null,null,null,null,null,null,null,null,null,null,null,null,null,null,null,"2019-02-23"]
[null,null,null,null,null,null,null,null,null,null,null,null,null,null,null,"2019-02-24"]
[null,null,null,null,null,null,null,null,null,null,null,null,null,null,null,"2019-02-25"]
[null,null,null,null,null,null,null,null,null,null,null,null,null,null,null,"2019-02-26"]
[null,null,null,null,null,null,null,null,null,null,null,null,null,null,null,"2019-02-27"]
[null,null,null,null,null,null,null,null,null,null,null,null,null,null,null,"2019-02-28"]
[null,null,null,null,null,null,null,null,null,null,null,null,null,null,null,"2019-03-01"]
[null,null,null,null,null,null,null,null,null,null,null,null,null,null,null,"2019-03-02"]
[null,null,null,null,null,null,null,null,null,null,null,null,null,null,null,"2019-03-03"]
[null,null,null,null,null,null,null,null,null,null,null,null,null,null,null,"2019-03-04"]
[null,null,null,null,null,null,null,null,null,null,null,null,null,null,null,"2019-03-05"]
[null,null,null,null,null,null,null,null,null,null,null,null,null,null,null,"2019-03-06"]
[null,null,null,null,null,null,null,null,null,null,null,null,null,null,null,"2019-03-07"]
[null,null,null,null,null,null,null,null,null,null,null,null,null,null,null,"2019-03-08"]
[null,null,null,null,null,null,null,null,null,null,null,null,null,null,null,"2019-03-09"]
[null,null,null,null,null,null,null,null,null,null,null,null,null,null,null,"2019-03-10"]
[null,null,null,null,null,null,null,null,null,null,null,null,null,null,null,"2019-03-11"]
[null,null,null,null,null,null,null,null,null,null,null,null,null,null,null,"2019-03-12"]
[null,null,null,null,null,null,null,null,null,null,null,null,null,null,null,"2019-03-13"]
[null,null,null,null,null,null,null,null,null,null,null,null,null,null,null,"2019-03-14"]
[null,null,null,null,null,null,null,null,null,null,null,null,null,null,null,"2019-03-15"]
[null,null,null,null,null,null,null,null,null,null,null,null,null,null,null,"2019-03-16"]
[null,null,null,null,null,null,null,null,null,null,null,null,null,null,null,"2019-03-17"]
[null,null,null,null,null,null,null,null,null,null,null,null,null,null,null,"2019-03-18"]
[null,null,null,null,null,null,null,null,null,null,null,null,null,null,null,"2019-03-19"]
[null,null,null,null,null,null,null,null,null,null,null,null,null,null,null,"2019-03-20"]
[null,null,null,null,null,null,null,null,null,null,null,null,null,null,null,"2019-03-21"]
[null,null,null,null,null,null,null,null,null,null,null,null,null,null,null,"2019-03-22"]
[null,null,null,null,null,null,null,null,null,null,null,null,null,null,null,"2019-03-23"]
[null,null,null,null,null,null,null,null,null,null,null,null,null,null,null,"2019-03-24"]
[null,null,null,null,null,null,null,null,null,null,null,null,null,null,null,"2019-03-25"]
[null,null,null,null,null,null,null,null,null,null,null,null,null,null,null,"2019-03-26"]
[null,null,null,null,null,null,null,null,null,null,null,null,null,null,null,"2019-03-27"]
[null,null,null,null,null,null,null,null,null,null,null,null,null,null,null,"2019-03-28"]
[null,null,null,null,null,null,null,null,null,null,null,null,null,null,null,"2019-03-29"]
[null,null,null,null,null,null,null,null,null,null,null,null,null,null,null,"2019-03-30"]
[null,null,null,null,null,null,null,null,null,null,null,null,null,null,null,"2019-03-31"]
[null,null,null,null,null,null,null,null,null,null,null,null,null,null,null,"2019-04-01"]
[null,null,null,null,null,null,null,null,null,null,null,null,null,null,null,"2019-04-02"]

{"sheet":"F2. COMP. LAB Y COM COMPOR","index":3,"n_rows":66,"n_cols":19,"rows_kept":66,"cut":false,"hidden":false,"merged":[[46,0,46,15],[49,1,49,3],[49,4,49,10],[54,0,55,0],[52,0,53,0],[56,0,57,0],[50,0,51,0],[50,1,51,3],[54,4,55,10],[52,4,53,10],[50,4,51,10],[33,7,35,15],[36,7,37,15],[28,0,28,18],[29,0,30,4],[29,5,30,5],[29,6,30,9],[29,10,30,10],[29,11,30,12],[29,13,30,18],[33,0,35,6],[36,0,37,6],[32,0,32,18],[33,16,34,18],[36,16,37,16],[36,18,37,18],[27,0,27,5],[27,6,27,12],[27,13,27,14],[27,15,27,16],[27,17,27,18],[25,15,25,18],[26,0,26,5],[26,13,26,14],[26,15,26,16],[26,17,26,18],[25,0,25,1],[25,2,25,4],[25,5,25,7],[25,8,25,10],[25,11,25,14],[21,0,21,5],[21,6,21,12],[21,13,21,14],[21,15,21,16],[21,17,21,18],[20,0,20,5],[20,13,20,14],[23,17,23,18],[23,14,23,16],[3,4,4,14],[5,4,6,6],[6,7,6,8],[6,9,6,10],[10,0,10,18],[14,8,14,18],[14,0,14,7],[11,0,11,1],[11,2,11,4],[11,5,11,7],[11,8,11,10],[11,11,11,14],[13,0,13,7],[11,15,11,18],[12,0,12,1],[12,2,12,4],[12,5,12,7],[12,8,12,10],[12,11,12,14],[12,15,12,18],[6,11,6,12],[0,0,0,18],[7,0,7,14],[8,0,9,3],[8,7,9,8],[8,12,9,15],[1,0,6,3],[1,4,2,14],[1,15,7,18],[64,12,65,18],[60,0,60,3],[59,10,60,11],[59,12,59,14],[60,12,60,14],[61,0,63,5],[61,6,63,11],[64,0,64,3],[64,4,64,5],[64,6,65,11],[65,0,65,3],[65,4,65,5],[59,7,59,9],[59,15,59,16],[60,4,60,6],[60,7,60,9],[16,0,16,4],[16,5,16,6],[15,0,15,4],[15,5,15,6],[18,8,18,10],[18,11,18,14],[18,15,18,18],[19,0,19,1],[59,0,59,3],[59,4,59,6],[38,7,39,15],[40,7,41,15],[42,7,43,15],[44,7,45,15],[44,0,45,6],[47,0,48,18],[58,0,58,18],[52,1,53,3],[54,1,55,3],[56,1,57,3],[49,11,49,18],[50,11,51,18],[24,0,24,1],[24,2,24,4],[59,17,59,18],[60,17,60,18],[61,12,63,18],[60,15,60,16],[17,0,17,18],[18,0,18,1],[18,2,18,4],[18,5,18,7],[31,0,31,18],[52,11,53,18],[54,11,55,18],[56,11,57,18],[56,4,57,10],[38,0,39,6],[40,0,41,6],[42,0,43,6],[19,2,19,4],[19,5,19,7],[19,8,19,10],[19,11,19,14],[19,15,19,18],[22,0,22,18],[24,5,24,7],[24,8,24,10],[15,8,16,8],[15,9,16,18],[13,8,13,18],[20,6,20,12],[26,6,26,12],[6,13,6,14],[5,7,5,8],[5,9,5,10],[5,11,5,12],[5,13,5,14],[24,11,24,14],[24,15,24,18],[20,15,20,16],[20,17,20,18],[38,18,39,18],[40,18,41,18],[42,18,43,18],[44,18,45,18],[38,16,39,16],[40,16,41,16],[42,16,43,16],[44,16,45,16],[36,17,37,17],[38,17,39,17],[40,17,41,17],[42,17,43,17],[44,17,45,17]]}
[]
[null,null,null,null,"COMISIÓN NACIONAL DEL SERVICIO CIVIL"]
[]
[null,null,null,null,"FORMATO 2. COMPROMISOS LABORALES Y COMPETENCIAS COMPORTAMENTALES"]
[]
[null,null,null,null,"PROCESO: EVALUACIÓN DEL DESEMPEÑO LABORAL",null,null,"Código:  ",null,"F-ED-003",null,"Página",null,"1 de 1"]
[null,null,null,null,null,null,null,"Fecha de emisión: ",null,"2016-12-27",null,"Versión: ",null,"2.0"]
[]
["PERÍODO DE EVALUACIÓN",null,null,null,"DÍA","MES","AÑO","al",null,"DÍA","MES","AÑO","FECHA CONCERTACIÓN / FIJACIÓN O AJUSTE DE COMPROMISOS",null,null,null,"DÍA","MES","AÑO"]
[]
["I. IDENTIFICACIÓN DEL EVALUADO"]
["Tipo de Documento",null,"Número de identificación",null,null,"Primer apellido",null,null,"Segundo apellido",null,null,"Primer nombre",null,null,null,"Otros nombres"]
["CEDULA DE CIUDADANIA"]
["Dependencia o área a la que pertenece el evaluado",null,null,null,null,null,null,null,"Denominación del empleo"]
[null,null,null,null,null,null,null,null,"ddd"]
["Nivel jerárquico",null,null,null,null,"Código",null,"Grado","Propósito del empleo:"]
["DIRECTIVO"]
["II. IDENTIFICACIÓN DEL EVALUADOR (Jefe inmedidato)"]
["Tipo de documento",null,"Número de identificación",null,null,"Primer apellido",null,null,"Segundo apellido",null,null,"Primer nombre",null,null,null,"Otros nombres"]
["CEDULA DE CIUDADANIA",null,null,null,null,null,null,null,"  ",null,null,null,null,null,null,"  "]
[" Área o Dependencia a la que pertenece el evaluador",null,null,null,null,null,"Denominación del empleo",null,null,null,null,null,null,"Código",null,"Grado",null,"Nivel jerárquico"]
[]
["III. IDENTIFICACIÓN EVALUADOR (Servidor público de Libre Nombramiento y Remoción en caso de constituir Comisión Evaluadora)"]
[null,null,null,null,null,null,null,null,null,null,null,null,null,null,"Se requiere constituir Comisión Evaluadora",null,null,"NO"]
["Tipo de documento",null,"Número de identificación",null,null,"Primer apellido",null,null,"Segundo apellido",null,null,"Primer nombre",null,null,null,"Otros nombres"]
["CEDULA DE CIUDADANIA"]
["Dependencia o área a la que pertenece el evaluador",null,null,null,null,null,"Denominación del empleo",null,null,null,null,null,null,"Código",null,"Grado",null,"Nivel jerárquico"]
[]
[]
["CONCERTACIÓN / FIJACIÓN DE COMPROMISOS",null,null,null,null,null,"AJUSTE DE COMPROMISOS",null,null,null,null,"SELECCIONE LA RAZÓN DEL AJUSTE DE LOS COMPROMISOS"]
[]
["IV. CONCERTACIÓN DE COMPROMISOS LABORALES Y COMPETENCIAS COMPORTAMENTALES."]
["COMPROMISOS LABORALES"]
["Metas del Área o Dependencia a las cuales contribuye el empleo",null,null,null,null,null,null,"Compromisos Laborales.",null,null,null,null,null,null,null,null,"Peso porcentual del compromiso"]
[]
[null,null,null,null,null,null,null,null,null,null,null,null,null,null,null,null,"Semestre 1","Semestre 2","Total anual"]
[null,null,null,null,null,null,null,null,null,null,null,null,null,null,null,null,null,null,{"$f":"IF(COUNTA(Q37,R37)=2,AVERAGE(Q37:R38),\"\")","v":""}]
[]
[null,null,null,null,null,null,null,null,null,null,null,null,null,null,null,null,null,null,{"$f":"IF(COUNTA(Q39,R39)=2,AVERAGE(Q39:R40),\"\")","v":""}]
[]
[null,null,null,null,null,null,null,null,null,null,null,null,null,null,null,null,null,null,{"$f":"IF(COUNTA(Q41,R41)=2,AVERAGE(Q41:R42),\"\")","v":""}]
[]
[null,null,null,null,null,null,null,null,null,null,null,null,null,null,null,null,null,null,{"$f":"IF(COUNTA(Q43,R43)=2,AVERAGE(Q43:R44),\"\")","v":""}]
[]
[null,null,null,null,null,null,null,null,null,null,null,null,null,null,null,null,null,null,{"$f":"IF(COUNTA(Q45,R45)=2,AVERAGE(Q45:R46),\"\")","v":""}]
[]
[" PESO TOTAL PONDERADO DE LOS COMPROMISOS",null,null,null,null,null,null,null,null,null,null,null,null,null,null,null,{"$f":"IF(COUNT(Q37:Q46)<3,\"MÍNIMO TRES (03) COMPROMISOS\",IF(SUM(Q37:Q46)>1,CONCATENATE(\"ERROR!!: Sumatoria mayor a 100% (\",TEXT(SUM(Q37:Q46),\"0%)\")),IF(SUM(Q37:Q46)<1,CONCATENATE(\"ERROR!!: Sumatoria menor a 100% (\",TEXT(SUM(Q37:Q46),\"0%)\")),SUM(Q37:Q46))))","v":"MÍNIMO TRES (03) COMPROMISOS"},{"$f":"IF(COUNT(R37:R46)<3,\"MÍNIMO TRES (03) COMPROMISOS\",IF(SUM(R37:R46)>1,CONCATENATE(\"ERROR!!: Sumatoria mayor a 100% (\",TEXT(SUM(R37:R46),\"0%)\")),IF(SUM(R37:R46)<1,CONCATENATE(\"ERROR!!: Sumatoria menor a 100% (\",TEXT(SUM(R37:R46),\"0%)\")),SUM(R37:R46))))","v":"MÍNIMO TRES (03) COMPROMISOS"},{"$f":"IF(COUNT(S37:T46)<3,\"MÍNIMO TRES (03) COMPROMISOS\",IF(SUM(S37:T46)>1,CONCATENATE(\"ERROR!!: Sumatoria mayor a 100% (\",TEXT(SUM(S37:T46),\"0%)\")),IF(SUM(S37:T46)<1,CONCATENATE(\"ERROR!!: Sumatoria menor a 100% (\",TEXT(SUM(S37:T46),\"0%)\")),SUM(S37:T46))))","v":"MÍNIMO TRES (03) COMPROMISOS"}]
["V. FIJACIÓN DE COMPETENCIAS COMPORTAMENTALES"]
[]
["N°","COMPETENCIA",null,null,"DEFINICIÓN ",null,null,null,null,null,null,"CONDUCTAS ASOCIADAS"]
[{"$f":"IF(B51=\"\",\"1.  \",IF(AND(B51<>B53,B51<>B55,B51<>B57)=TRUE,\"1.  \",\"REPETIDA\"))","v":"1.  "},null,null,null,{"$f":"VLOOKUP($A$17&B51,Hoja4!C$601:E$638,2,FALSE)","v":{"$error":"#N/A"}},null,null,null,null,null,null,{"$f":"VLOOKUP($A$17&B51,Hoja4!C$601:E$638,3,FALSE)","v":{"$error":"#N/A"}}]
[]
[{"$f":"IF(B51=\"\",\"2.  \",IF(AND(B51<>B53,B53<>B55,B53<>B57)=TRUE,\"2.  \",\"REPETIDA\"))","v":"2.  "},null,null,null,{"$f":"VLOOKUP($A$17&B53,Hoja4!C$601:E$638,2,FALSE)","v":{"$error":"#N/A"}},null,null,null,null,null,null,{"$f":"VLOOKUP($A$17&B53,Hoja4!C$601:E$638,3,FALSE)","v":{"$error":"#N/A"}}]
[]
[{"$f":"IF(B51=\"\",\"3.  \",IF(AND(B55<>B51,B53<>B55,B55<>B57)=TRUE,\"3.  \",\"REPETIDA\"))","v":"3.  "},null,null,null,{"$f":"VLOOKUP($A$17&B55,Hoja4!C$601:E$638,2,FALSE)","v":{"$error":"#N/A"}},null,null,null,null,null,null,{"$f":"VLOOKUP($A$17&B55,Hoja4!C$601:E$638,3,FALSE)","v":{"$error":"#N/A"}}]
[]
[{"$f":"IF(B51=\"\",\"4.  \",IF(AND(B57<>B53,B57<>B55,B51<>B57)=TRUE,\"4.  \",\"REPETIDA\"))","v":"4.  "},null,null,null,{"$f":"VLOOKUP($A$17&B57,Hoja4!C$601:E$638,2,FALSE)","v":{"$error":"#N/A"}},null,null,null,null,null,null,{"$f":"VLOOKUP($A$17&B57,Hoja4!C$601:E$638,3,FALSE)","v":{"$error":"#N/A"}}]
[]
["VI. FIRMAS, RECLAMACIÓN U OBJECIÓN."]
["FIRMA DEL EVALUADO",null,null,null,"FIRMA DEL JEFE INMEDIATO",null,null,"FIRMA DEL EVALUADOR EN COMISIÓN EVALUADORA",null,null,"Renuencia del Evaluado para firmar la concertación  de compromisos",null,"DATOS DEL TESTIGO",null,null,"FIRMA DEL TESTIGO",null,"FECHA"]
[null,null,null,null,null,null,null,{"$f":"IF(R24<>\"SI\",\"NO APLICA\",\"\")","v":"NO APLICA"}]
["RECLAMACIÓN U OBJECIÓN EN ÚNICA INSTANCIA ANTE LA COMISIÓN DE PERSONAL (Parágrafo del articulo 22º, del Acuerdo 565 de 2016)",null,null,null,null,null,"DECISIÓN DE LA COMISIÓN DE PERSONAL",null,null,null,null,null,"MOTIVACIÓN DE LA DECISIÓN"]
[]
[]
["Número de Radicado"]
["Fecha Reclamación (dd/mm/aa)"]

{"sheet":"F3. EVIDENCIAS","index":4,"n_rows":85,"n_cols":18,"rows_kept":85,"cut":false,"hidden":false,"merged":[[81,5,81,9],[82,5,82,9],[84,5,84,9],[83,5,83,9],[84,12,84,14],[83,12,83,14],[81,12,82,14],[70,17,74,18],[75,17,79,18],[70,2,74,6],[75,15,79,15],[55,16,59,16],[60,16,64,16],[65,16,69,16],[60,2,64,6],[65,0,69,1],[40,17,44,18],[45,17,49,18],[50,17,54,18],[55,17,59,18],[60,17,64,18],[65,17,69,18],[65,2,69,6],[65,7,69,12],[65,13,69,14],[40,2,44,6],[45,2,49,6],[50,2,54,6],[55,2,59,6],[40,13,44,14],[45,13,49,14],[50,13,54,14],[55,13,59,14],[30,17,34,18],[35,16,39,16],[30,16,34,16],[30,2,34,6],[35,2,39,6],[17,15,17,18],[27,15,29,15],[45,16,49,16],[50,16,54,16],[21,0,21,18],[22,0,22,1],[22,2,22,4],[22,5,22,7],[22,8,22,10],[22,11,22,14],[22,15,22,18],[27,16,29,16],[25,0,25,5],[19,6,19,12],[17,2,17,4],[17,5,17,7],[17,8,17,10],[17,11,17,14],[19,15,19,16],[30,0,34,1],[35,0,39,1],[27,13,29,14],[30,13,34,14],[35,13,39,14],[27,7,29,12],[30,7,34,12],[35,7,39,12],[27,2,29,6],[27,0,29,1],[9,0,9,18],[10,0,10,1],[10,2,10,4],[10,5,10,7],[10,8,10,10],[10,11,10,14],[10,15,10,18],[11,0,11,1],[11,2,11,4],[11,5,11,7],[11,8,11,10],[11,11,11,14],[11,15,11,18],[12,0,12,7],[12,8,12,18],[13,0,13,7],[20,6,20,12],[20,13,20,14],[20,15,20,16],[14,0,14,4],[13,8,13,18],[19,13,19,14],[18,0,18,1],[18,2,18,4],[15,0,15,4],[15,5,15,6],[16,0,16,18],[14,5,14,6],[17,0,17,1],[20,0,20,5],[14,8,15,9],[14,10,15,18],[18,5,18,7],[18,8,18,10],[18,11,18,14],[18,15,18,18],[19,0,19,5],[0,0,0,18],[1,0,8,3],[3,4,4,15],[1,4,2,15],[1,16,8,18],[5,4,8,8],[8,9,8,13],[8,14,8,15],[5,9,5,15],[6,9,6,13],[7,9,7,13],[6,14,6,15],[7,14,7,15],[19,17,19,18],[81,0,84,1],[81,2,84,4],[81,16,84,18],[82,15,84,15],[81,10,81,11],[82,10,84,11],[75,16,79,16],[25,17,25,18],[23,0,23,1],[23,2,23,4],[23,5,23,7],[23,8,23,10],[23,11,23,14],[23,15,23,18],[24,0,24,5],[24,6,24,12],[24,13,24,14],[24,15,24,16],[24,17,24,18],[25,6,25,12],[25,13,25,14],[25,15,25,16],[70,0,74,1],[26,0,26,18],[35,17,39,18],[27,17,29,18],[20,17,20,18],[75,0,79,1],[75,2,79,6],[75,7,79,12],[75,13,79,14],[80,0,80,18],[70,7,74,12],[70,13,74,14],[70,16,74,16],[40,0,44,1],[45,0,49,1],[50,0,54,1],[55,0,59,1],[60,0,64,1],[60,13,64,14],[40,7,44,12],[45,7,49,12],[50,7,54,12],[55,7,59,12],[60,7,64,12],[40,16,44,16],[30,15,34,15],[35,15,39,15],[40,15,44,15],[45,15,49,15],[50,15,54,15],[55,15,59,15],[60,15,64,15],[65,15,69,15],[70,15,74,15]]}
[]
[null,null,null,null,"COMISIÓN NACIONAL DEL SERVICIO CIVIL \n    "]
[]
[null,null,null,null," FORMATO 3 DE EVIDENCIAS"]
[]
[null,null,null,null,"PROCESO: EVALUACIÓN DEL DESEMPEÑO LABORAL",null,null,null,null,"CÓDIGO:  F-ED-004"]
[null,null,null,null,null,null,null,null,null,"FECHA EMISIÓN",null,null,null,null,"2016-12-27"]
[null,null,null,null,null,null,null,null,null,"Página",null,null,null,null,"1 de 1"]
[null,null,null,null,null,null,null,null,null,"Versión ",null,null,null,null,"2.0"]
["I. IDENTIFICACIÓN DEL EVALUADO"]
["Tipo de Documento",null,"Número de identificación",null,null,"Primer apellido",null,null,"Segundo apellido",null,null,"Primer nombre",null,null,null,"Otros nombres"]
[{"$f":"'F2. COMP. LAB Y COM COMPOR'!A13:B13","v":"CEDULA DE CIUDADANIA"},null,{"$f":"'F2. COMP. LAB Y COM COMPOR'!C13:E13","v":0},null,null,{"$f":"'F2. COMP. LAB Y COM COMPOR'!F13:H13","v":0},null,null,{"$f":"'F2. COMP. LAB Y COM COMPOR'!I13:K13","v":0},null,null,{"$f":"'F2. COMP. LAB Y COM COMPOR'!L13:O13","v":0},null,null,null,{"$f":"'F2. COMP. LAB Y COM COMPOR'!P13:S13","v":0}]
["Dependencia o área a la que pertenece el evaluado",null,null,null,null,null,null,null,"Denominación del empleo"]
[{"$f":"'F2. COMP. LAB Y COM COMPOR'!A15:H15","v":0},null,null,null,null,null,null,null,{"$f":"'F2. COMP. LAB Y COM COMPOR'!I15:S15","v":"ddd"}]
["Nivel jerárquico",null,null,null,null,"Código",null,"Grado",{"$f":"'F2. COMP. LAB Y COM COMPOR'!I16","v":"Propósito del empleo:"},null,{"$f":"'F2. COMP. LAB Y COM COMPOR'!J16","v":0}]
[{"$f":"'F2. COMP. LAB Y COM COMPOR'!A17:E17","v":"DIRECTIVO"},null,null,null,null,{"$f":"'F2. COMP. LAB Y COM COMPOR'!F17:G17","v":0},null,{"$f":"'F2. COMP. LAB Y COM COMPOR'!H17","v":0}]
["II. IDENTIFICACIÓN EVALUADOR. (Jefe inmediato)"]
["Tipo de documento",null,"Número de identificación",null,null,"Primer apellido",null,null,"Segundo apellido",null,null,"Primer nombre",null,null,null,"Otros nombres"]
[{"$f":"'F2. COMP. LAB Y COM COMPOR'!A20:B20","v":"CEDULA DE CIUDADANIA"},null,{"$f":"'F2. COMP. LAB Y COM COMPOR'!C20:E20","v":0},null,null,{"$f":"'F2. COMP. LAB Y COM COMPOR'!F20:H20","v":0},null,null,{"$f":"'F2. COMP. LAB Y COM COMPOR'!I20:K20","v":"  "},null,null,{"$f":"'F2. COMP. LAB Y COM COMPOR'!L20:O20","v":0},null,null,null,{"$f":"'F2. COMP. LAB Y COM COMPOR'!P20:S20","v":"  "}]
[" Área o Dependencia a la que pertenece el evaluador",null,null,null,null,null,"Denominación del empleo",null,null,null,null,null,null,"Código",null,"Grado",null,"Nivel jerárquico"]
[{"$f":"'F2. COMP. LAB Y COM COMPOR'!A22:F22","v":0},null,null,null,null,null,{"$f":"'F2. COMP. LAB Y COM COMPOR'!G22:M22","v":0},null,null,null,null,null,null,{"$f":"'F2. COMP. LAB Y COM COMPOR'!N22:O22","v":0},null,{"$f":"'F2. COMP. LAB Y COM COMPOR'!P22:Q22","v":0},null,{"$f":"'F2. COMP. LAB Y COM COMPOR'!R22:S22","v":0}]
["III. IDENTIFICACIÓN EVALUADOR (Servidor público de Libre Nombramiento y Remoción en caso de constituir Comisión Evaluadora)"]
["Tipo de documento",null,"Número de identificación",null,null,"Primer apellido",null,null,"Segundo apellido",null,null,"Primer nombre",null,null,null,"Otros nombres"]
[{"$f":"'F2. COMP. LAB Y COM COMPOR'!A26:B26","v":"CEDULA DE CIUDADANIA"},null,{"$f":"IF('F2. COMP. LAB Y COM COMPOR'!R24=\"NO\",\"NO REQUERIDO\",'F2. COMP. LAB Y COM COMPOR'!C26:E26)","v":"NO REQUERIDO"},null,null,{"$f":"IF('F2. COMP. LAB Y COM COMPOR'!R24=\"NO\",\"NO REQUERIDO\",'F2. COMP. LAB Y COM COMPOR'!F26:H26)","v":"NO REQUERIDO"},null,null,{"$f":"IF('F2. COMP. LAB Y COM COMPOR'!R24=\"NO\",\"NO REQUERIDO\",'F2. COMP. LAB Y COM COMPOR'!I26:K26)","v":"NO REQUERIDO"},null,null,{"$f":"IF('F2. COMP. LAB Y COM COMPOR'!R24=\"NO\",\"NO REQUERIDO\",'F2. COMP. LAB Y COM COMPOR'!L26:O26)","v":"NO REQUERIDO"},null,null,null,{"$f":"IF('F2. COMP. LAB Y COM COMPOR'!R24=\"NO\",\"NO REQUERIDO\",'F2. COMP. LAB Y COM COMPOR'!P26:S26)","v":"NO REQUERIDO"}]
["Dependencia o área a la que pertenece el evaluador",null,null,null,null,null,"Denominación del empleo",null,null,null,null,null,null,"Código",null,"Grado",null,"Nivel jerárquico"]
[{"$f":"IF('F2. COMP. LAB Y COM COMPOR'!R24=\"NO\",\"NO REQUERIDO\",'F2. COMP. LAB Y COM COMPOR'!A28:F28)","v":"NO REQUERIDO"},null,null,null,null,null,{"$f":"IF('F2. COMP. LAB Y COM COMPOR'!R24=\"NO\",\"NO REQUERIDO\",'F2. COMP. LAB Y COM COMPOR'!G28:M28)","v":"NO REQUERIDO"},null,null,null,null,null,null,{"$f":"IF('F2. COMP. LAB Y COM COMPOR'!R24=\"NO\",\"NO REQUERIDO\",'F2. COMP. LAB Y COM COMPOR'!N28:O28)","v":"NO REQUERIDO"},null,{"$f":"IF('F2. COMP. LAB Y COM COMPOR'!R24=\"NO\",\"NO REQUERIDO\",'F2. COMP. LAB Y COM COMPOR'!P28:Q28)","v":"NO REQUERIDO"},null,{"$f":"IF('F2. COMP. LAB Y COM COMPOR'!R24=\"NO\",\"NO REQUERIDO\",'F2. COMP. LAB Y COM COMPOR'!R28:S28)","v":"NO REQUERIDO"}]
["IV. EVIDENCIAS"]
["Componente de evaluación",null,"Compromisos y Competencias",null,null,null,null,"Descripción de la evidencia",null,null,null,null,null,"Ubicación de la evidencia.",null,"Fecha de Inclusión de la evidencia","Observaciones","Evidencia Aportada por"]
[]
[]
["Período de prueba- Competencia 1",null,{"$f":"VLOOKUP(A31,Hoja4!A$467:B$482,2,FALSE)","v":"Aprendizaje Continuo"}]
[]
[]
[]
[]
["Período de prueba- Competencia 2",null,{"$f":"VLOOKUP(A36,Hoja4!A$467:B$482,2,FALSE)","v":"Compromiso con la Organización"}]
[]
[]
[]
[]
["Período de prueba- Competencia 3",null,{"$f":"VLOOKUP(A41,Hoja4!A$467:B$482,2,FALSE)","v":"Creatividad e Innovación"}]
[]
[]
[]
[]
["Período de prueba- Competencia 4",null,{"$f":"VLOOKUP(A46,Hoja4!A$467:B$482,2,FALSE)","v":"Orientación al usuario y al ciudadano"}]
[]
[]
[]
[]
[null,null,{"$f":"VLOOKUP(A51,Hoja4!A$467:B$482,2,FALSE)","v":{"$error":"#N/A"}}]
[]
[]
[]
[]
[null,null,{"$f":"VLOOKUP(A56,Hoja4!A$467:B$482,2,FALSE)","v":{"$error":"#N/A"}}]
[]
[]
[]
[]
[null,null,{"$f":"VLOOKUP(A61,Hoja4!A$467:B$482,2,FALSE)","v":{"$error":"#N/A"}}]
[]
[]
[]
[]
[null,null,{"$f":"VLOOKUP(A66,Hoja4!A$467:B$482,2,FALSE)","v":{"$error":"#N/A"}}]
[]
[]
[]
[]
[null,null,{"$f":"VLOOKUP(A71,Hoja4!A$467:B$482,2,FALSE)","v":{"$error":"#N/A"}}]
[]
[]
[]
[]
[null,null,{"$f":"VLOOKUP(A76,Hoja4!A$467:B$482,2,FALSE)","v":{"$error":"#N/A"}}]
[]
[]
[]
[]
["V. FORMALIZACIÒN DE LA EVIDENCIAS. (FIRMAS)"]
["EVALUADO",null,"NOMBRE, FIRMA Y NÚMERO DE CÉDULA.",null,null,null,null,null,null,null,"EVALUADOR",null,null,null,null,"TERCERO"]
[null,null,null,null,null,null,null,null,null,null,"NOMBRE, FIRMA Y NÚMERO DE CÉDULA.",null,null,null,null,"NOMBRE, FIRMA Y NÚMERO DE CÉDULA"]
[null,null,null,null,null,{"$f":"UPPER(CONCATENATE(L12,\" \",P12,\" \",F12,\" \",I12))","v":"0 0 0 0"},null,null,null,null,null,null,{"$f":"UPPER(CONCATENATE(L19,\" \",P19,\" \",F19,\" \",I19))","v":"0    0   "}]
[null,null,null,null,null,{"$f":"C12","v":0},null,null,null,null,null,null,{"$f":"C19","v":0}]

{"sheet":"F4. CALF. COM. COMPORT.","index":5,"n_rows":50,"n_cols":21,"rows_kept":50,"cut":false,"hidden":false,"merged":[[21,0,21,1],[16,5,16,7],[16,8,16,10],[16,11,16,14],[16,15,16,18],[24,0,24,5],[24,6,24,12],[24,13,24,14],[24,15,24,16],[24,17,24,18],[17,15,17,18],[19,0,19,5],[19,6,19,12],[19,13,19,14],[19,15,19,16],[19,17,19,18],[23,0,23,5],[23,6,23,12],[20,0,20,18],[22,0,22,1],[22,2,22,4],[22,5,22,7],[23,13,23,14],[23,15,23,16],[23,17,23,18],[22,8,22,10],[22,11,22,14],[22,15,22,18],[21,2,21,4],[21,5,21,7],[21,8,21,10],[21,11,21,14],[21,15,21,18],[9,15,9,18],[12,8,12,18],[14,0,14,4],[14,5,14,6],[13,8,14,8],[13,13,14,18],[18,13,18,14],[18,15,18,16],[18,17,18,18],[18,0,18,5],[18,6,18,12],[11,0,11,7],[11,8,11,18],[13,0,13,4],[13,5,13,6],[12,0,12,7],[15,0,15,18],[17,0,17,1],[17,2,17,4],[17,5,17,7],[17,8,17,10],[17,11,17,14],[16,0,16,1],[16,2,16,4],[48,0,48,2],[48,3,48,8],[48,13,48,14],[48,16,48,18],[49,0,49,2],[49,3,49,8],[49,13,49,14],[49,16,49,18],[46,0,46,2],[46,3,46,8],[46,13,46,14],[46,16,46,18],[47,0,47,2],[47,3,47,8],[47,13,47,14],[47,16,47,18],[38,0,41,8],[38,13,39,13],[38,14,39,14],[43,0,43,18],[44,0,45,2],[44,3,45,8],[44,13,44,18],[45,13,45,14],[45,16,45,18],[40,13,41,13],[40,14,41,14],[42,0,42,8],[42,13,42,14],[30,16,42,17],[30,18,42,18],[34,0,35,1],[34,2,35,3],[34,4,35,8],[36,0,37,1],[36,2,37,3],[36,4,37,8],[30,0,31,1],[30,2,31,3],[30,4,31,8],[32,0,33,1],[32,2,33,3],[32,4,33,8],[25,0,25,18],[26,0,29,1],[26,2,29,3],[26,4,29,8],[26,13,26,14],[27,9,29,9],[27,10,29,10],[27,11,29,11],[27,12,29,12],[27,13,29,13],[27,14,29,14],[27,16,29,17],[27,18,29,18],[26,16,26,18],[8,0,8,18],[10,0,10,1],[10,2,10,4],[10,5,10,7],[10,8,10,10],[10,11,10,14],[10,15,10,18],[0,0,7,3],[0,4,1,14],[0,15,7,18],[2,4,3,14],[4,4,7,6],[4,7,4,14],[5,7,5,11],[6,7,6,11],[7,7,7,11],[5,12,5,14],[6,12,6,14],[7,12,7,14],[9,0,9,1],[9,2,9,4],[9,5,9,7],[9,8,9,10],[9,11,9,14]]}
[null,null,null,null,"COMISIÓN NACIONAL DEL SERVICIO CIVIL"]
[]
[null,null,null,null,"FORMATO 4. CALIFICACIÓN DE COMPETENCIAS COMPORTAMENTALES"]
[]
[null,null,null,null,"PROCESO: EVALUACIÓN DEL DESEMPEÑO LABORAL",null,null,"CÓDIGO:  F-ED-005"]
[null,null,null,null,null,null,null,"FECHA EMISIÓN",null,null,null,null,"2016-12-27"]
[null,null,null,null,null,null,null,"Página",null,null,null,null,"1 de 1"]
[null,null,null,null,null,null,null,"Versión ",null,null,null,null,"2.0"]
["I. IDENTIFICACIÓN DEL EVALUADO"]
["Tipo de Documento",null,"Número de identificación",null,null,"Primer apellido",null,null,"Segundo apellido",null,null,"Primer nombre",null,null,null,"Otros nombres"]
[{"$f":"'F2. COMP. LAB Y COM COMPOR'!A13:B13","v":"CEDULA DE CIUDADANIA"},null,{"$f":"'F2. COMP. LAB Y COM COMPOR'!C13:E13","v":0},null,null,{"$f":"'F2. COMP. LAB Y COM COMPOR'!F13:H13","v":0},null,null,{"$f":"'F2. COMP. LAB Y COM COMPOR'!I13:K13","v":0},null,null,{"$f":"'F2. COMP. LAB Y COM COMPOR'!L13:O13","v":0},null,null,null,{"$f":"'F2. COMP. LAB Y COM COMPOR'!P13:S13","v":0}]
["Dependencia o área a la que pertenece el evaluado",null,null,null,null,null,null,null,"Denominación del empleo"]
[{"$f":"'F2. COMP. LAB Y COM COMPOR'!A15:H15","v":0},null,null,null,null,null,null,null,{"$f":"'F2. COMP. LAB Y COM COMPOR'!I15:S15","v":"ddd"}]
["Nivel jerárquico",null,null,null,null,"Código",null,"Grado",{"$f":"'F2. COMP. LAB Y COM COMPOR'!I16","v":"Propósito del empleo:"},null,null,null,null,{"$f":"'F2. COMP. LAB Y COM COMPOR'!J16","v":0}]
[{"$f":"'F2. COMP. LAB Y COM COMPOR'!A17:E17","v":"DIRECTIVO"},null,null,null,null,{"$f":"'F2. COMP. LAB Y COM COMPOR'!F17:G17","v":0},null,{"$f":"'F2. COMP. LAB Y COM COMPOR'!H17","v":0}]
["II. IDENTIFICACIÓN EVALUADOR. (Jefe inmediato)"]
["Tipo de documento",null,"Número de identificación",null,null,"Primer apellido",null,null,"Segundo apellido",null,null,"Primer nombre",null,null,null,"Otros nombres"]
[{"$f":"'F2. COMP. LAB Y COM COMPOR'!A20:B20","v":"CEDULA DE CIUDADANIA"},null,{"$f":"'F2. COMP. LAB Y COM COMPOR'!C20:E20","v":0},null,null,{"$f":"'F2. COMP. LAB Y COM COMPOR'!F20:H20","v":0},null,null,{"$f":"'F2. COMP. LAB Y COM COMPOR'!I20:K20","v":"  "},null,null,{"$f":"'F2. COMP. LAB Y COM COMPOR'!L20:O20","v":0},null,null,null,{"$f":"'F2. COMP. LAB Y COM COMPOR'!P20:S20","v":"  "}]
[" Área o Dependencia a la que pertenece el evaluador",null,null,null,null,null,"Denominación del empleo",null,null,null,null,null,null,"Código",null,"Grado",null,"Nivel jerárquico"]
[{"$f":"'F2. COMP. LAB Y COM COMPOR'!A22:F22","v":0},null,null,null,null,null,{"$f":"'F2. COMP. LAB Y COM COMPOR'!G22:M22","v":0},null,null,null,null,null,null,{"$f":"'F2. COMP. LAB Y COM COMPOR'!N22:O22","v":0},null,{"$f":"'F2. COMP. LAB Y COM COMPOR'!P22:Q22","v":0},null,{"$f":"'F2. COMP. LAB Y COM COMPOR'!R22:S22","v":0}]
["III. IDENTIFICACIÓN EVALUADOR (Servidor público de Libre Nombramiento y Remoción en caso de constituir Comisión Evaluadora)"]
["Tipo de documento",null,"Número de identificación",null,null,"Primer apellido",null,null,"Segundo apellido",null,null,"Primer nombre",null,null,null,"Otros nombres"]
[{"$f":"'F2. COMP. LAB Y COM COMPOR'!A26:B26","v":"CEDULA DE CIUDADANIA"},null,{"$f":"IF('F2. COMP. LAB Y COM COMPOR'!R24=\"NO\",\"NO REQUERIDO\",'F2. COMP. LAB Y COM COMPOR'!C26:E26)","v":"NO REQUERIDO"},null,null,{"$f":"IF('F2. COMP. LAB Y COM COMPOR'!R24=\"NO\",\"NO REQUERIDO\",'F2. COMP. LAB Y COM COMPOR'!F26:H26)","v":"NO REQUERIDO"},null,null,{"$f":"IF('F2. COMP. LAB Y COM COMPOR'!R24=\"NO\",\"NO REQUERIDO\",'F2. COMP. LAB Y COM COMPOR'!I26:K26)","v":"NO REQUERIDO"},null,null,{"$f":"IF('F2. COMP. LAB Y COM COMPOR'!R24=\"NO\",\"NO REQUERIDO\",'F2. COMP. LAB Y COM COMPOR'!L26:O26)","v":"NO REQUERIDO"},null,null,null,{"$f":"IF('F2. COMP. LAB Y COM COMPOR'!R24=\"NO\",\"NO REQUERIDO\",'F2. COMP. LAB Y COM COMPOR'!P26:S26)","v":"NO REQUERIDO"}]
["Dependencia o área a la que pertenece el evaluador",null,null,null,null,null,"Denominación del empleo",null,null,null,null,null,null,"Código",null,"Grado",null,"Nivel jerárquico"]
[{"$f":"IF('F2. COMP. LAB Y COM COMPOR'!R24=\"NO\",\"NO REQUERIDO\",'F2. COMP. LAB Y COM COMPOR'!A28:F28)","v":"NO REQUERIDO"},null,null,null,null,null,{"$f":"IF('F2. COMP. LAB Y COM COMPOR'!R24=\"NO\",\"NO REQUERIDO\",'F2. COMP. LAB Y COM COMPOR'!G28:M28)","v":"NO REQUERIDO"},null,null,null,null,null,null,{"$f":"IF('F2. COMP. LAB Y COM COMPOR'!R24=\"NO\",\"NO REQUERIDO\",'F2. COMP. LAB Y COM COMPOR'!N28:O28)","v":"NO REQUERIDO"},null,{"$f":"IF('F2. COMP. LAB Y COM COMPOR'!R24=\"NO\",\"NO REQUERIDO\",'F2. COMP. LAB Y COM COMPOR'!P28:Q28)","v":"NO REQUERIDO"},null,{"$f":"IF('F2. COMP. LAB Y COM COMPOR'!R24=\"NO\",\"NO REQUERIDO\",'F2. COMP. LAB Y COM COMPOR'!R28:S28)","v":"NO REQUERIDO"}]
["IV. CALIFICACIÓN COMPETENCIAS COMPORTAMENTALES DEL EMPLEADO PÚBLICO."]
["COMPETENCIA",null,"DEFINICIÓN ",null,"CONDUCTAS ASOCIADAS",null,null,null,null,null,null,null,null,"PERÍODO ANUAL U ORDINARIO",null,null," REFERENCIA PARA UNA "]
[null,null,null,null,null,null,null,null,null,null,null,null,null," PRIMERA PARCIAL SEMESTRAL","SEGUNDA PARCIAL SEMESTRAL",null," EVALUACIÓN POR PERIODO INFERIOR A UN AÑO",null," EVALUACIÓN EXTRAORDINARIA"]
[]
[]
[{"$f":"'F2. COMP. LAB Y COM COMPOR'!B51","v":0},null,{"$f":"'F2. COMP. LAB Y COM COMPOR'!E51","v":{"$error":"#N/A"}},null,{"$f":"'F2. COMP. LAB Y COM COMPOR'!L51","v":{"$error":"#N/A"}},null,null,null,null,null,null,null,null,null,null,null,"CALIFICAR EN FORMATO F10. EVALUACIÓN INFERIOR A UN AÑO\n\nTITULO V. COMPETENCIAS COMPORTAMENTALES.",null,"CALIFICAR EN FORMATO F9. EVALUACIÓN EXTRAORDINARIA\n\nTITULO V. COMPETENCIAS COMPORTAMENTALES.",null,"BASICO"]
[null,null,null,null,null,null,null,null,null,null,null,null,null,{"$f":"IF(A31<>0,IFERROR(VLOOKUP(N31,Hoja4!$A$254:$B$258,2,FALSE),\"\"),\"DEFINA COMPETENCIA\")","v":"DEFINA COMPETENCIA"},{"$f":"IF(A31<>0,(IFERROR(VLOOKUP(O31,Hoja4!$A$254:$B$258,2,FALSE),\"\")),\"DEFINA COMPETENCIA\")","v":"DEFINA COMPETENCIA"},null,null,null,null,null,"INTERMEDIO"]
[{"$f":"'F2. COMP. LAB Y COM COMPOR'!B53","v":0},null,{"$f":"'F2. COMP. LAB Y COM COMPOR'!E53","v":{"$error":"#N/A"}},null,{"$f":"'F2. COMP. LAB Y COM COMPOR'!L53","v":{"$error":"#N/A"}},null,null,null,null,null,null,null,null,null,null,null,null,null,null,null,"AVANZADO"]
[null,null,null,null,null,null,null,null,null,null,null,null,null,{"$f":"IF(A33<>0,IFERROR(VLOOKUP(N33,Hoja4!$A$254:$B$258,2,FALSE),\"\"),\"DEFINA COMPETENCIA\")","v":"DEFINA COMPETENCIA"},{"$f":"IF(A33<>0,(IFERROR(VLOOKUP(O33,Hoja4!$A$254:$B$258,2,FALSE),\"\")),\"DEFINA COMPETENCIA\")","v":"DEFINA COMPETENCIA"},null,null,null,null,null,"SUPERIOR "]
[{"$f":"'F2. COMP. LAB Y COM COMPOR'!B55","v":0},null,{"$f":"'F2. COMP. LAB Y COM COMPOR'!E55","v":{"$error":"#N/A"}},null,{"$f":"'F2. COMP. LAB Y COM COMPOR'!L55","v":{"$error":"#N/A"}}]
[null,null,null,null,null,null,null,null,null,null,null,null,null,{"$f":"IF(A35<>0,IFERROR(VLOOKUP(N35,Hoja4!$A$254:$B$258,2,FALSE),\"\"),\"DEFINA COMPETENCIA\")","v":"DEFINA COMPETENCIA"},{"$f":"IF(A35<>0,(IFERROR(VLOOKUP(O35,Hoja4!$A$254:$B$258,2,FALSE),\"\")),\"DEFINA COMPETENCIA\")","v":"DEFINA COMPETENCIA"}]
[{"$f":"'F2. COMP. LAB Y COM COMPOR'!B57","v":0},null,{"$f":"'F2. COMP. LAB Y COM COMPOR'!E57","v":{"$error":"#N/A"}},null,{"$f":"'F2. COMP. LAB Y COM COMPOR'!L57","v":{"$error":"#N/A"}}]
[null,null,null,null,null,null,null,null,null,null,null,null,null,{"$f":"IF(A37<>0,IFERROR(VLOOKUP(N37,Hoja4!$A$254:$B$258,2,FALSE),\"\"),\"DEFINA COMPETENCIA\")","v":"DEFINA COMPETENCIA"},{"$f":"IF(A37<>0,(IFERROR(VLOOKUP(O37,Hoja4!$A$254:$B$258,2,FALSE),\"\")),\"DEFINA COMPETENCIA\")","v":"DEFINA COMPETENCIA"},null,null,null,null,null,4]
["CALIFICACIÓN EVALUACIÓN  DE LAS COMPETENCIAS COMPORTAMENTALES.",null,null,null,null,null,null,null,null,null,null,null,null,"CALIFICACIÓN PRIMERA PARCIAL SEMESTRAL","CALIFICACIÓN SEGUNDA PARCIAL SEMESTRAL"]
[]
[null,null,null,null,null,null,null,null,null,null,null,null,null,{"$f":"IF(OR(N32=\"DEFINA COMPETENCIA\",N34=\"DEFINA COMPETENCIA\",N36=\"DEFINA COMPETENCIA\",N38=\"DEFINA COMPETENCIA\"),\"CALIFIQUE 4 COMPETENCIAS\",(SUM(N32,N34,N36,N38,)/4))","v":"CALIFIQUE 4 COMPETENCIAS"},{"$f":"IF(OR(O32=\"DEFINA COMPETENCIA\",O34=\"DEFINA COMPETENCIA\",O36=\"DEFINA COMPETENCIA\",O38=\"DEFINA COMPETENCIA\"),\"CALIFIQUE 4 COMPETENCIAS\",(SUM(O32,O34,O36,O38,)/4))","v":"CALIFIQUE 4 COMPETENCIAS"}]
[]
["CALIFICACIÓN  DEFINITIVA DE LAS COMPETENCIAS COMPORTAMENTALES PARA EL PERÍODO ANUAL U ORDINARIO",null,null,null,null,null,null,null,null,null,null,null,null,{"$f":"IF(OR(N41=\"DEFINA COMPETENCIA\",O41=\"DEFINA COMPETENCIA\"),\"DEFINA CUATRO (04) COMPETENCIAS\",(SUM(N41:O42)/2))","v":0}]
["V. (*) ESCALA CUALITATIVA Y CUANTITATIVA DE LOS NIVELES DE DESARROLLO DE LAS COMPETENCIAS COMPORTAMENTALES."]
["NIVELES DE DESARROLLO",null,null,"DESCRIPCIÓN CUALITATIVA",null,null,null,null,null,null,null,null,null,"RESULTADOS CUANTITATIVOS"]
[null,null,null,null,null,null,null,null,null,null,null,null,null,"PERÍODO ANUAL U ORDINARIO, (PARCIALES SEMESTRALES Y PARCIAL EVENTUAL)",null,null,"EVALUACIÓN EXTRAORDINARIA-EVALUACIÓN EN PERIODO DE PRUEBA"]
["BAJO",null,null,"El nivel de desarrollo de la competencia no se presenta con un impacto positivo que permita la obtención de las metas y logros esperados.",null,null,null,null,null,null,null,null,null,4,null,null,6]
["ACEPTABLE",null,null,"El nivel de desarrollo de la competencia se presenta de manera intermitente, con un mediano impacto en la obtención de metas y logros esperados.",null,null,null,null,null,null,null,null,null,6,null,null,9]
["ALTO",null,null,"El nivel de desarrollo de la competencia se presenta de manera permanente e impacta significativamente de manera positiva la obtención de metas y logros esperados.",null,null,null,null,null,null,null,null,null,8,null,null,12]
["MUY ALTO",null,null,"El nivel de desarrollo de la competencia se presenta de manera permanente, impactando significativamente la obtención de metas y logros esperados y agrega valor a los procesos generando un alto nivel de confianza.",null,null,null,null,null,null,null,null,null,10,null,null,15]

{"sheet":"F5. EVA. ÁREAS O DEPENDENCIAS.","index":6,"n_rows":40,"n_cols":13,"rows_kept":40,"cut":false,"hidden":false,"merged":[[17,9,17,12],[15,9,15,12],[33,1,34,12],[35,2,35,11],[31,7,31,8],[32,7,32,8],[29,7,29,8],[27,7,27,8],[28,7,28,8],[27,2,27,6],[28,2,28,6],[29,2,29,6],[24,7,24,8],[23,2,23,6],[24,2,24,6],[25,7,25,8],[21,7,21,8],[22,7,22,8],[21,2,21,6],[22,2,22,6],[23,7,23,8],[19,7,19,8],[20,7,20,8],[19,2,19,6],[20,2,20,6],[17,7,17,8],[18,7,18,8],[17,2,17,6],[18,2,18,6],[12,1,14,1],[12,2,14,6],[12,7,14,8],[12,9,14,12],[16,9,16,12],[20,9,20,12],[21,9,21,12],[22,9,22,12],[0,1,7,4],[4,5,7,7],[7,8,7,9],[2,5,3,10],[0,5,1,10],[15,7,15,8],[16,7,16,8],[15,2,15,6],[16,2,16,6],[8,1,8,12],[9,1,10,4],[9,8,10,9],[11,1,11,12],[4,8,4,10],[5,8,5,9],[6,8,6,9],[0,11,7,12],[31,9,31,12],[30,7,30,8],[23,9,23,12],[24,9,24,12],[25,9,25,12],[26,9,26,12],[27,9,27,12],[26,7,26,8],[28,9,28,12],[29,9,29,12],[30,9,30,12],[18,9,18,12],[39,1,39,12],[16,15,16,22],[17,15,17,16],[17,19,17,20],[6,13,6,15],[7,13,7,15],[32,9,32,12],[38,2,38,12],[31,2,31,6],[32,2,32,6],[36,2,36,11],[37,2,37,12],[30,2,30,6],[25,2,25,6],[26,2,26,6],[19,9,19,12]]}
[null,null,null,null,null,"COMISIÓN NACIONAL DEL SERVICIO CIVIL"]
[]
[null,null,null,null,null,"FORMATO 5. EVALUACIÓN DE GESTIÓN POR ÁREAS O  DEPENDENCIAS"]
[]
[null,null,null,null,null,"PROCESO: EVALUACIÓN DEL DESEMPEÑO LABORAL",null,null,"CÓDIGO:  F-ED-006"]
[null,null,null,null,null,null,null,null,"FECHA EMISIÓN",null,"2016-12-27"]
[null,null,null,null,null,null,null,null,"Página",null,"1 de 1"]
[null,null,null,null,null,null,null,null,"Versión ",null,"2.0"]
[]
[null,"PERÍODO DE VIGENCIA ",null,null,null,"DÍA","MES","AÑO","al",null,"DÍA","MES","AÑO"]
[]
[null,"Resultados de la evaluación por áreas o dependencias"]
[null,"N°","ÁREA O DEPENDENCIA.",null,null,null,null,"CALIFICACIÓN DEL ÁREA O DEPENDENCIA",null,"OBSERVACIONES"]
[]
[]
[null,1]
[null,2]
[null,3]
[null,4]
[null,5]
[null,6]
[null,7]
[null,8]
[null,9]
[null,10]
[null,11]
[null,12]
[null,13]
[null,14]
[null,15]
[null,16]
[null,17]
[null,18]
[null,"Observaciones generales: "]
[]
[null,null,"Nota: Tener en cuenta los siguientes aspectos para efectuar la calificación:"]
[null,null,"i) La planeación institucional enmarcada en la visión, misión y objetivos del organismo; "]
[null,null,"ii) Los objetivos institucionales por dependencia y sus compromisos relacionados y; "]
[null,null,"iii) Los resultados de la ejecución por dependencias de acuerdo con lo  programado en la planeación institucional."]
[null,"En el evento de detectar limitaciones de orden presupuestal o administrativo, se deben describir los aspectos más relevantes que hayan afectado la ejecución de los planes institucionales en cada dependencia."]

{"sheet":"F6. REPOR CLF PRD ANUAL U ORD","index":7,"n_rows":89,"n_cols":18,"rows_kept":89,"cut":false,"hidden":false,"merged":[[30,13,32,14],[30,15,32,16],[30,17,32,18],[23,15,23,18],[25,0,25,5],[25,6,25,12],[25,13,25,14],[25,15,25,16],[25,17,25,18],[24,13,24,14],[24,15,24,16],[24,17,24,18],[24,0,24,5],[24,6,24,12],[23,0,23,1],[23,2,23,4],[23,5,23,7],[23,8,23,10],[23,11,23,14],[28,17,29,18],[26,0,26,18],[27,13,27,18],[28,13,29,14],[28,15,29,16],[79,9,80,15],[79,16,80,17],[83,16,83,17],[73,9,74,15],[73,16,74,17],[75,9,76,15],[75,16,76,17],[77,9,78,15],[77,16,78,17],[48,9,50,13],[48,14,50,18],[69,9,69,15],[69,16,69,17],[70,9,70,15],[70,16,70,17],[71,9,72,15],[71,16,72,17],[62,0,62,18],[67,9,67,15],[67,16,67,17],[68,9,68,15],[68,16,68,17],[46,0,47,1],[46,9,47,11],[46,2,47,8],[46,12,47,18],[58,0,58,18],[59,0,61,2],[59,3,61,3],[59,4,61,6],[59,11,61,14],[59,7,61,10],[59,15,61,18],[56,0,56,8],[57,0,57,8],[56,9,56,18],[57,9,57,18],[51,0,52,3],[51,4,52,8],[51,9,52,13],[51,14,52,18],[53,0,55,3],[53,4,55,8],[53,9,55,13],[53,14,55,18],[48,0,50,3],[35,19,36,19],[37,0,38,1],[37,19,38,19],[35,0,36,1],[35,13,36,14],[35,15,36,18],[35,2,36,4],[37,2,38,4],[37,6,38,10],[35,6,36,10],[33,0,34,1],[33,13,34,14],[44,13,45,15],[33,15,34,18],[44,16,44,18],[45,6,45,8],[45,16,45,18],[42,0,42,18],[43,0,43,8],[43,9,43,18],[39,0,39,18],[40,0,41,18],[44,0,45,2],[44,3,45,5],[44,6,44,8],[44,9,45,12],[33,2,34,4],[33,6,34,10],[37,11,38,18],[28,0,29,1],[31,2,31,3],[32,2,32,3],[27,0,27,4],[27,5,27,10],[27,11,29,12],[28,2,29,4],[28,5,29,10],[31,5,31,9],[32,5,32,9],[30,0,32,1],[30,2,30,3],[30,5,30,9],[30,11,32,12],[9,0,9,18],[11,0,11,1],[11,2,11,4],[11,5,11,7],[11,8,11,10],[11,11,11,14],[11,15,11,18],[13,0,13,7],[13,8,13,18],[12,0,12,7],[12,8,12,18],[10,0,10,1],[10,2,10,4],[10,5,10,7],[10,8,10,10],[10,11,10,14],[10,15,10,18],[22,0,22,1],[22,2,22,4],[22,5,22,7],[22,8,22,10],[22,11,22,14],[22,15,22,18],[20,0,20,5],[20,6,20,12],[20,13,20,14],[20,15,20,16],[20,17,20,18],[21,0,21,18],[14,0,14,4],[14,5,14,6],[14,8,15,10],[14,11,15,18],[19,13,19,14],[19,15,19,16],[19,17,19,18],[19,0,19,5],[19,6,19,12],[18,0,18,1],[18,2,18,4],[18,5,18,7],[18,8,18,10],[18,11,18,14],[18,15,18,18],[17,0,17,1],[17,2,17,4],[17,5,17,7],[17,8,17,10],[17,11,17,14],[17,15,17,18],[15,0,15,4],[15,5,15,6],[16,0,16,18],[1,0,8,2],[1,3,2,15],[1,16,8,18],[3,3,4,15],[5,3,8,8],[6,9,7,13],[6,14,7,15],[8,9,8,13],[8,14,8,15],[5,9,5,11],[5,12,5,13],[5,14,5,15]]}
[]
[null,null,null,"COMISIÓN NACIONAL DEL SERVICIO CIVIL \n    "]
[]
[null,null,null,"FORMATO 6. REPORTE DE CALIFICACIÓN PERÍODO ANUAL U ORDINARIO"]
[]
[null,null,null,"PROCESO: EVALUACIÓN DEL DESEMPEÑO LABORAL",null,null,null,null,null,"CÓDIGO:  ",null,null,"F-ED-007",null,"Página: 1 de 1"]
[null,null,null,null,null,null,null,null,null,"FECHA EMISIÓN",null,null,null,null,"2016-12-27"]
[]
[null,null,null,null,null,null,null,null,null,"Versión ",null,null,null,null,"2.0"]
["I. IDENTIFICACIÓN DEL EVALUADO"]
["Tipo de Documento",null,"Número de identificación",null,null,"Primer apellido",null,null,"Segundo apellido",null,null,"Primer nombre",null,null,null,"Otros nombres"]
[{"$f":"'F2. COMP. LAB Y COM COMPOR'!A13:B13","v":"CEDULA DE CIUDADANIA"},null,{"$f":"'F2. COMP. LAB Y COM COMPOR'!C13:E13","v":0},null,null,{"$f":"'F2. COMP. LAB Y COM COMPOR'!F13:H13","v":0},null,null,{"$f":"'F2. COMP. LAB Y COM COMPOR'!I13:K13","v":0},null,null,{"$f":"'F2. COMP. LAB Y COM COMPOR'!L13:O13","v":0},null,null,null,{"$f":"'F2. COMP. LAB Y COM COMPOR'!P13:S13","v":0}]
["Dependencia o área a la que pertenece el evaluado",null,null,null,null,null,null,null,"Denominación del empleo"]
[{"$f":"'F2. COMP. LAB Y COM COMPOR'!A15:H15","v":0},null,null,null,null,null,null,null,{"$f":"'F2. COMP. LAB Y COM COMPOR'!I15:S15","v":"ddd"}]
["Nivel jerárquico",null,null,null,null,"Código",null,"Grado",{"$f":"'F2. COMP. LAB Y COM COMPOR'!I16","v":"Propósito del empleo:"},null,null,{"$f":"'F2. COMP. LAB Y COM COMPOR'!J16","v":0}]
[{"$f":"'F2. COMP. LAB Y COM COMPOR'!A17:E17","v":"DIRECTIVO"},null,null,null,null,{"$f":"'F2. COMP. LAB Y COM COMPOR'!F17:G17","v":0},null,{"$f":"'F2. COMP. LAB Y COM COMPOR'!H17","v":0}]
["II. IDENTIFICACIÓN EVALUADOR. (Jefe inmediato)"]
["Tipo de documento",null,"Número de identificación",null,null,"Primer apellido",null,null,"Segundo apellido",null,null,"Primer nombre",null,null,null,"Otros nombres"]
[{"$f":"'F2. COMP. LAB Y COM COMPOR'!A20:B20","v":"CEDULA DE CIUDADANIA"},null,{"$f":"'F2. COMP. LAB Y COM COMPOR'!C20:E20","v":0},null,null,{"$f":"'F2. COMP. LAB Y COM COMPOR'!F20:H20","v":0},null,null,{"$f":"'F2. COMP. LAB Y COM COMPOR'!I20:K20","v":"  "},null,null,{"$f":"'F2. COMP. LAB Y COM COMPOR'!L20:O20","v":0},null,null,null,{"$f":"'F2. COMP. LAB Y COM COMPOR'!P20:S20","v":"  "}]
[" Área o Dependencia a la que pertenece el evaluador",null,null,null,null,null,"Denominación del empleo",null,null,null,null,null,null,"Código",null,"Grado",null,"Nivel jerárquico"]
[{"$f":"'F2. COMP. LAB Y COM COMPOR'!A22:F22","v":0},null,null,null,null,null,{"$f":"'F2. COMP. LAB Y COM COMPOR'!G22:M22","v":0},null,null,null,null,null,null,{"$f":"'F2. COMP. LAB Y COM COMPOR'!N22:O22","v":0},null,{"$f":"'F2. COMP. LAB Y COM COMPOR'!P22:Q22","v":0},null,{"$f":"'F2. COMP. LAB Y COM COMPOR'!R22:S22","v":0}]
["III. IDENTIFICACIÓN EVALUADOR (Servidor público de Libre Nombramiento y Remoción en caso de constituir Comisión Evaluadora)"]
["Tipo de documento",null,"Número de identificación",null,null,"Primer apellido",null,null,"Segundo apellido",null,null,"Primer nombre",null,null,null,"Otros nombres"]
[{"$f":"'F2. COMP. LAB Y COM COMPOR'!$A$26:$B$26","v":"CEDULA DE CIUDADANIA"},null,{"$f":"IF('F2. COMP. LAB Y COM COMPOR'!R24=\"NO\",\"NO REQUERIDO\",'F2. COMP. LAB Y COM COMPOR'!$C$26:$E$26)","v":"NO REQUERIDO"},null,null,{"$f":"IF('F2. COMP. LAB Y COM COMPOR'!R24=\"NO\",\"NO REQUERIDO\",'F2. COMP. LAB Y COM COMPOR'!$F$26:$H$26)","v":"NO REQUERIDO"},null,null,{"$f":"IF('F2. COMP. LAB Y COM COMPOR'!R24=\"NO\",\"NO REQUERIDO\",'F2. COMP. LAB Y COM COMPOR'!$I$26:$K$26)","v":"NO REQUERIDO"},null,null,{"$f":"IF('F2. COMP. LAB Y COM COMPOR'!R24=\"NO\",\"NO REQUERIDO\",'F2. COMP. LAB Y COM COMPOR'!$L$26:$O$26)","v":"NO REQUERIDO"},null,null,null,{"$f":"IF('F2. COMP. LAB Y COM COMPOR'!R24=\"NO\",\"NO REQUERIDO\",'F2. COMP. LAB Y COM COMPOR'!$P$26:$S$26)","v":"NO REQUERIDO"}]
["Dependencia o área a la que pertenece el evaluador",null,null,null,null,null,"Denominación del empleo",null,null,null,null,null,null,"Código",null,"Grado",null,"Nivel jerárquico"]
[{"$f":"IF('F2. COMP. LAB Y COM COMPOR'!R24=\"NO\",\"NO REQUERIDO\",'F2. COMP. LAB Y COM COMPOR'!$A$28:$F$28)","v":"NO REQUERIDO"},null,null,null,null,null,{"$f":"IF('F2. COMP. LAB Y COM COMPOR'!R24=\"NO\",\"NO REQUERIDO\",'F2. COMP. LAB Y COM COMPOR'!$G$28:$M$28)","v":"NO REQUERIDO"},null,null,null,null,null,null,{"$f":"IF('F2. COMP. LAB Y COM COMPOR'!R24=\"NO\",\"NO REQUERIDO\",'F2. COMP. LAB Y COM COMPOR'!$N$28:$O$28)","v":"NO REQUERIDO"},null,{"$f":"IF('F2. COMP. LAB Y COM COMPOR'!R24=\"NO\",\"NO REQUERIDO\",'F2. COMP. LAB Y COM COMPOR'!$P$28:$Q$28)","v":"NO REQUERIDO"},null,{"$f":"IF('F2. COMP. LAB Y COM COMPOR'!R24=\"NO\",\"NO REQUERIDO\",'F2. COMP. LAB Y COM COMPOR'!$R$28:$S$28)","v":"NO REQUERIDO"}]
["IV. CONSOLIDACIÓN DE LAS EVALUACIONES"]
["EVALUACIÓN INDIVIDUAL DEL PRIMER SEMESTRE ",null,null,null,null,"EVALUACIÓN INDIVIDUAL DEL SEGUNDO SEMESTRE",null,null,null,null,null,"EVALUACIÓN DE GESTIÓN POR ÁREAS O DEPENDENCIAS (/10)",null,"CALIFICACIÓN DEFINITIVA"]
["FECHA DE COMUNICACIÓN",null,"CALIFICACIÓN PRIMER SEMESTRE\n",null,null,"CALIFICACIÓN SEGUNDO SEMESTRE\n",null,null,null,null,null,null,null,"FECHA DE NOTIFICACIÓN",null,"CALIFICACIÓN DEFINITIVA\n",null,"NIVEL"]
[]
[null,null,"Tiempo efectivamente laborado",null,{"$f":"CONCATENATE(IF('F1. INF. GENERAL'!L45=0,0,IF('F1. INF. GENERAL'!O47=0,'F1. INF. GENERAL'!L44,'F8. EVA. EVENTUAL (Semestre 1)'!L46)),\" días\")","v":"0 días"},"Tiempo efectivamente laborado",null,null,null,null,{"$f":"CONCATENATE(IF('F1. INF. GENERAL'!P45=0,0,IF('F1. INF. GENERAL'!S47=0,'F1. INF. GENERAL'!P44,'F8. EVA. EVENTUAL (Semestre 2)'!L45)),\" días\")","v":"0 días"},{"$f":"'F1. INF. GENERAL'!P53","v":0},null,null,null,{"$f":"'F1. INF. GENERAL'!L58","v":"NO APLICA"},null,{"$f":"'F1. INF. GENERAL'!P58","v":"NO APLICA"}]
[null,null,"Compromisos laborales (sobre 100)",null,{"$f":"IF('F1. INF. GENERAL'!O43=\"\",'F1. INF. GENERAL'!O47,'F1. INF. GENERAL'!O43)","v":0},"Compromisos laborales (sobre 100)",null,null,null,null,{"$f":"IF('F1. INF. GENERAL'!S43=\"\",'F1. INF. GENERAL'!S47,'F1. INF. GENERAL'!S43)","v":0}]
[null,null,"Competencias comportamentales(/10)",null,{"$f":"IF('F1. INF. GENERAL'!F58=0,'F1. INF. GENERAL'!F59,'F1. INF. GENERAL'!F58)","v":"CALIFIQUE 4 COMPETENCIAS"},"Competencias comportamentales(/10)",null,null,null,null,{"$f":"IF('F1. INF. GENERAL'!H58=0,'F1. INF. GENERAL'!H59,'F1. INF. GENERAL'!H58)","v":"CALIFIQUE 4 COMPETENCIAS"}]
["Firma del  Evaluado",null,null,null,null,null,"Firma del  Evaluado",null,null,null,null,null,null,null,null," "]
[]
["Firma del Jefe Inmediato",null,null,null,null,null,"Firma del Jefe Inmediato"]
[]
["Firma del Evaluador en Comisión evaluadora",null,{"$f":"IF(C24=\"NO REQUERIDO\",\"NO APLICA\",\"\")","v":"NO APLICA"},null,null,null,"Firma del Evaluador en Comisión evaluadora",null,null,null,null,{"$f":"IF(C24=\"NO REQUERIDO\",\"NO APLICA\",\"\")","v":"NO APLICA"}]
[]
["INTERPONE RECURSOS"]
["NO"]
[]
["V. DECISIÓN DE RECURSOS"]
["RECURSO DE REPOSICIÓN",null,null,null,null,null,null,null,null,"RECURSO DE APELACIÓN"]
["DECISIÓN",null,null,null,null,null,"FECHA",null,null,"DECISIÓN",null,null,null,null,null,null,"FECHA"]
[]
["Nombre del Evaluado:",null,{"$f":"IF(D45=\"\",\"\",UPPER(CONCATENATE(L12,\" \",P12,\" \",F12,\" \",I12)))","v":""},null,null,null,null,null,null,"Nombre del Evaluado:",null,null,{"$f":"IF(N45=\"\",\"\",UPPER(CONCATENATE(L12,\" \",P12,\" \",F12,\" \",I12)))","v":""}]
[]
["Firma",null,null,null,null,null,null,null,null,"Firma"]
[]
[]
["Nombre del Notificador:",null,null,null,null,null,null,null,null,"Nombre del Notificador:"]
[]
["Firma",null,null,null,null,null,null,null,null,"Firma"]
[]
[]
["MOTIVACIÓN (podrá relacionar anexos):",null,null,null,null,null,null,null,null,"MOTIVACIÓN (podrá relacionar anexos):"]
[]
["VI. CALIFICACIÓN DEFINITIVA"]
["CALIFICACIÓN DEFINITIVA EN FIRME",null,null,null,"FIRMA Y NÚMERO DE CÉDULA DEL NOTIFICADO",null,null,null,null,null,null,"FIRMA Y NÚMERO DE CÉDULA DEL NOTIFICADOR"]
[]
[]
[]
[]
[]
[null,"SI",null,null,null,null,null,"CUMPLE"]
[null,"NO",null,null,null,null,null,"NO CUMPLE",null,"Contador de Cumplimiento"]
[null,null,null,null,null,null,null,"NO APLICA",null,"FACTORES DEL NIVEL SOBRESALIENTE",null,null,null,null,null,null,"CUMPLIMIENTO"]
["Cedula de ciudadanía",null,null,null,null,null,null,null,null,"Evaluación de la Gestión por Dependencias",null,null,null,null,null,null,{"$f":"IF(#REF!=\"Cumple\",1,0)","v":{"$error":"#REF!"}}]
["Cedula de extranjería",null,null,null,null,null,null,null,null,"Por calidad y oportunidad",null,null,null,null,null,null,{"$f":"IF(#REF!=\"Cumple\",1,0)","v":{"$error":"#REF!"}}]
[null,null,null,null,null,null,null,null,null,"Por aportes, propuestas o iniciativas adicionales",null,null,null,null,null,null,{"$f":"IF(#REF!=\"Cumple\",1,0)","v":{"$error":"#REF!"}}]
[null,null,null,null,null,null,null,null,null,"Por iniciativas tendientes a acciones proactivas en las actividades que cumplió",null,null,null,null,null,null,{"$f":"IF(#REF!=\"Cumple\",1,0)","v":{"$error":"#REF!"}}]
[]
[null,null,null,null,null,null,null,null,null,"Por participación y aprovechamiento de capacitación relacionada con las actividades propias del empleo y que genere un valor agregado para la entidad o la dependencia",null,null,null,null,null,null,{"$f":"IF(#REF!=\"Cumple\",1,0)","v":{"$error":"#REF!"}}]
[]
[null,null,null,null,null,null,null,null,null,"Por participación en grupos o en actividades que requieren de disposición voluntaria",null,null,null,null,null,null,{"$f":"IF(#REF!=\"Cumple\",1,0)","v":{"$error":"#REF!"}}]
[]
[null,null,null,null,null,null,null,null,null,null,null,null,null,null,null,null,{"$f":"IF(#REF!=\"Cumple\",1,0)","v":{"$error":"#REF!"}}]
[]
[null,null,null,null,null,null,null,null,null,null,null,null,null,null,null,null,{"$f":"IF(#REF!=\"Cumple\",1,0)","v":{"$error":"#REF!"}}]
[]
[]
[]
[null,null,null,null,null,null,null,null,null,null,null,null,null,null,null,null,{"$f":"SUM(Q69:R81)","v":{"$error":"#REF!"}}]
[]
[]
[null,null,null,null,null,null,null,null,null,null,null,null,null,null,null,null,"CRITERIO DE ORIENTACIÓN"]
[null,null,null,null,null,null,null,null,null,null,null,null,null,null,null,null,"CUMPLE"]
[null,null,null,null,null,null,null,null,null,null,null,null,null,null,null,null,"NO CUMPLE"]

{"sheet":"F7. PLAN DE MEJORAMIENTO","index":8,"n_rows":65,"n_cols":18,"rows_kept":65,"cut":false,"hidden":false,"merged":[[60,0,60,18],[61,0,64,1],[61,2,64,3],[61,7,64,9],[61,10,64,12],[61,17,62,18],[63,17,64,18],[64,4,64,6],[63,4,63,6],[61,13,62,16],[63,13,63,16],[64,13,64,16],[61,4,62,6],[58,0,59,2],[58,3,59,5],[58,6,59,11],[58,12,59,15],[58,16,59,16],[58,17,59,18],[56,0,57,2],[56,3,57,5],[56,6,57,11],[56,12,57,15],[56,16,57,16],[56,17,57,18],[54,0,55,2],[54,3,55,5],[54,6,55,11],[54,12,55,15],[54,16,55,16],[54,17,55,18],[52,0,53,2],[52,3,53,5],[52,6,53,11],[52,12,53,15],[52,16,53,16],[52,17,53,18],[50,0,51,2],[50,3,51,5],[50,6,51,11],[50,12,51,15],[50,16,51,16],[50,17,51,18],[48,0,49,2],[48,3,49,5],[48,6,49,11],[48,12,49,15],[48,16,49,16],[48,17,49,18],[46,0,47,2],[46,3,47,5],[46,6,47,11],[46,12,47,15],[46,16,47,16],[46,17,47,18],[44,0,45,2],[44,3,45,5],[44,6,45,11],[44,12,45,15],[44,16,45,16],[44,17,45,18],[42,0,43,2],[42,3,43,5],[42,6,43,11],[42,12,43,15],[42,16,43,16],[42,17,43,18],[40,0,41,2],[40,3,41,5],[40,6,41,11],[40,12,41,15],[40,16,41,16],[40,17,41,18],[38,0,39,2],[38,3,39,5],[38,6,39,11],[38,12,39,15],[38,16,39,16],[38,17,39,18],[36,0,37,2],[36,3,37,5],[36,6,37,11],[36,12,37,15],[36,16,37,16],[36,17,37,18],[34,0,35,2],[34,3,35,5],[34,6,35,11],[34,12,35,15],[34,16,35,16],[34,17,35,18],[32,0,33,2],[32,3,33,5],[32,6,33,11],[32,12,33,15],[32,16,33,16],[32,17,33,18],[30,0,31,2],[30,3,31,5],[30,6,31,11],[30,12,31,15],[30,16,31,16],[30,17,31,18],[28,0,29,2],[28,3,29,5],[28,6,29,11],[28,12,29,15],[28,16,29,16],[28,17,29,18],[25,0,25,18],[26,0,27,2],[26,3,27,5],[26,6,27,11],[26,12,27,15],[26,16,27,16],[26,17,27,18],[23,0,23,5],[23,6,23,12],[23,13,23,14],[23,15,23,16],[23,17,23,18],[24,0,24,5],[24,6,24,12],[24,13,24,14],[24,15,24,16],[24,17,24,18],[22,0,22,1],[22,2,22,4],[22,5,22,7],[22,8,22,10],[22,11,22,14],[22,15,22,18],[20,0,20,18],[21,0,21,1],[21,2,21,4],[21,5,21,7],[21,8,21,10],[21,11,21,14],[21,15,21,18],[18,0,18,5],[18,6,18,12],[18,13,18,14],[18,15,18,16],[18,17,18,18],[19,0,19,5],[19,6,19,12],[19,13,19,14],[19,15,19,16],[19,17,19,18],[17,0,17,1],[17,2,17,4],[17,5,17,7],[17,8,17,10],[17,11,17,14],[17,15,17,18],[15,0,15,18],[16,0,16,1],[16,2,16,4],[16,5,16,7],[16,8,16,10],[16,11,16,14],[16,15,16,18],[11,0,11,7],[11,8,11,18],[12,0,12,7],[12,8,12,18],[13,0,13,4],[13,5,13,6],[14,0,14,4],[14,5,14,6],[13,8,14,9],[13,10,14,18],[10,0,10,1],[10,2,10,4],[10,5,10,7],[10,8,10,10],[10,11,10,14],[10,15,10,18],[7,13,7,16],[8,0,8,18],[9,0,9,1],[9,2,9,4],[9,5,9,7],[9,8,9,10],[9,11,9,14],[9,15,9,18],[1,0,7,2],[1,3,3,16],[1,17,7,18],[4,3,5,16],[6,3,7,7],[6,8,6,10],[6,11,6,12],[6,13,6,14],[6,15,6,16],[7,8,7,12]]}
[]
[null,null,null,"\nCOMISIÓN NACIONAL DEL SERVICIO CIVIL\n     "]
[]
[]
[null,null,null,"FORMATO 7. PLAN DE MEJORAMIENTO"]
[]
[null,null,null,"PROCESO: EVALUACIÓN DEL DESEMPEÑO LABORAL",null,null,null,null,"CÓDIGO:  ",null,null,"F-ED-008",null,"FECHA EMISIÓN: ",null,"2016-12-27"]
[null,null,null,null,null,null,null,null,"Página: 1 de 1.",null,null,null,null,"Versión:   2.0"]
["I. IDENTIFICACIÓN DEL EVALUADO"]
["Tipo de Documento",null,"Número de identificación",null,null,"Primer apellido",null,null,"Segundo apellido",null,null,"Primer nombre",null,null,null,"Otros nombres"]
[{"$f":"'F2. COMP. LAB Y COM COMPOR'!A13:B13","v":"CEDULA DE CIUDADANIA"},null,{"$f":"'F2. COMP. LAB Y COM COMPOR'!C13:E13","v":0},null,null,{"$f":"'F2. COMP. LAB Y COM COMPOR'!F13:H13","v":0},null,null,{"$f":"'F2. COMP. LAB Y COM COMPOR'!I13:K13","v":0},null,null,{"$f":"'F2. COMP. LAB Y COM COMPOR'!L13:O13","v":0},null,null,null,{"$f":"'F2. COMP. LAB Y COM COMPOR'!P13:S13","v":0}]
["Dependencia o área a la que pertenece el evaluado",null,null,null,null,null,null,null,"Denominación del empleo"]
[{"$f":"'F2. COMP. LAB Y COM COMPOR'!A15:H15","v":0},null,null,null,null,null,null,null,{"$f":"'F2. COMP. LAB Y COM COMPOR'!I15:S15","v":"ddd"}]
["Nivel jerárquico",null,null,null,null,"Código",null,"Grado","Propósito del empleo",null,{"$f":"'F2. COMP. LAB Y COM COMPOR'!J16","v":0}]
[{"$f":"'F2. COMP. LAB Y COM COMPOR'!A17:E17","v":"DIRECTIVO"},null,null,null,null,{"$f":"'F2. COMP. LAB Y COM COMPOR'!F17:G17","v":0},null,{"$f":"'F2. COMP. LAB Y COM COMPOR'!H17","v":0}]
["II. IDENTIFICACIÓN EVALUADOR. (Jefe inmediato)"]
["Tipo de documento",null,"Número de identificación",null,null,"Primer apellido",null,null,"Segundo apellido",null,null,"Primer nombre",null,null,null,"Otros nombres"]
[{"$f":"'F2. COMP. LAB Y COM COMPOR'!A20:B20","v":"CEDULA DE CIUDADANIA"},null,{"$f":"'F2. COMP. LAB Y COM COMPOR'!C20:E20","v":0},null,null,{"$f":"'F2. COMP. LAB Y COM COMPOR'!F20:H20","v":0},null,null,{"$f":"'F2. COMP. LAB Y COM COMPOR'!I20:K20","v":"  "},null,null,{"$f":"'F2. COMP. LAB Y COM COMPOR'!L20:O20","v":0},null,null,null,{"$f":"'F2. COMP. LAB Y COM COMPOR'!P20:S20","v":"  "}]
[" Área o Dependencia a la que pertenece el evaluador",null,null,null,null,null,"Denominación del empleo",null,null,null,null,null,null,"Código",null,"Grado",null,"Nivel jerárquico"]
[{"$f":"'F2. COMP. LAB Y COM COMPOR'!A22:F22","v":0},null,null,null,null,null,{"$f":"'F2. COMP. LAB Y COM COMPOR'!G22:M22","v":0},null,null,null,null,null,null,{"$f":"'F2. COMP. LAB Y COM COMPOR'!N22:O22","v":0},null,{"$f":"'F2. COMP. LAB Y COM COMPOR'!P22:Q22","v":0},null,{"$f":"'F2. COMP. LAB Y COM COMPOR'!R22:S22","v":0}]
["III. IDENTIFICACIÓN EVALUADOR (Servidor público de Libre Nombramiento y Remoción en caso de constituir Comisión Evaluadora)"]
["Tipo de documento",null,"Número de identificación",null,null,"Primer apellido",null,null,"Segundo apellido",null,null,"Primer nombre",null,null,null,"Otros nombres"]
[{"$f":"'F2. COMP. LAB Y COM COMPOR'!A26:B26","v":"CEDULA DE CIUDADANIA"},null,{"$f":"IF('F2. COMP. LAB Y COM COMPOR'!R24=\"NO\",\"NO REQUERIDO\",'F2. COMP. LAB Y COM COMPOR'!C26:E26)","v":"NO REQUERIDO"},null,null,{"$f":"IF('F2. COMP. LAB Y COM COMPOR'!R24=\"NO\",\"NO REQUERIDO\",'F2. COMP. LAB Y COM COMPOR'!F26:H26)","v":"NO REQUERIDO"},null,null,{"$f":"IF('F2. COMP. LAB Y COM COMPOR'!R24=\"NO\",\"NO REQUERIDO\",'F2. COMP. LAB Y COM COMPOR'!I26:K26)","v":"NO REQUERIDO"},null,null,{"$f":"IF('F2. COMP. LAB Y COM COMPOR'!R24=\"NO\",\"NO REQUERIDO\",'F2. COMP. LAB Y COM COMPOR'!L26:O26)","v":"NO REQUERIDO"},null,null,null,{"$f":"IF('F2. COMP. LAB Y COM COMPOR'!R24=\"NO\",\"NO REQUERIDO\",'F2. COMP. LAB Y COM COMPOR'!P26:S26)","v":"NO REQUERIDO"}]
["Dependencia o área a la que pertenece el evaluador",null,null,null,null,null,"Denominación del empleo",null,null,null,null,null,null,"Código",null,"Grado",null,"Nivel jerárquico"]
[{"$f":"IF('F2. COMP. LAB Y COM COMPOR'!R24=\"NO\",\"NO REQUERIDO\",'F2. COMP. LAB Y COM COMPOR'!A28:F28)","v":"NO REQUERIDO"},null,null,null,null,null,{"$f":"IF('F2. COMP. LAB Y COM COMPOR'!R24=\"NO\",\"NO REQUERIDO\",'F2. COMP. LAB Y COM COMPOR'!G28:M28)","v":"NO REQUERIDO"},null,null,null,null,null,null,{"$f":"IF('F2. COMP. LAB Y COM COMPOR'!R24=\"NO\",\"NO REQUERIDO\",'F2. COMP. LAB Y COM COMPOR'!N28:O28)","v":"NO REQUERIDO"},null,{"$f":"IF('F2. COMP. LAB Y COM COMPOR'!R24=\"NO\",\"NO REQUERIDO\",'F2. COMP. LAB Y COM COMPOR'!P28:Q28)","v":"NO REQUERIDO"},null,{"$f":"IF('F2. COMP. LAB Y COM COMPOR'!R24=\"NO\",\"NO REQUERIDO\",'F2. COMP. LAB Y COM COMPOR'!R28:S28)","v":"NO REQUERIDO"}]
["IV. PLAN DE MEJORAMIENTO INDIVIDUAL DEL EMPLEADO PÚBLICO"]
["Componente de evaluación",null,null,"Descripción",null,null,"Aspectos a corregir ",null,null,null,null,null,"Acción de mejoramiento",null,null,null,"Motivo","Observaciones"]
[]
[null,null,null,{"$f":"IFERROR(VLOOKUP(A29,Hoja4!$A$467:$B$482,2,FALSE),0)","v":0}]
[]
[null,null,null,{"$f":"IFERROR(VLOOKUP(A31,Hoja4!$A$467:$B$482,2,FALSE),0)","v":0}]
[]
[null,null,null,{"$f":"IFERROR(VLOOKUP(A33,Hoja4!$A$467:$B$482,2,FALSE),0)","v":0}]
[]
[null,null,null,{"$f":"IFERROR(VLOOKUP(A35,Hoja4!$A$467:$B$482,2,FALSE),0)","v":0}]
[]
[null,null,null,{"$f":"IFERROR(VLOOKUP(A37,Hoja4!$A$467:$B$482,2,FALSE),0)","v":0}]
[]
[null,null,null,{"$f":"IFERROR(VLOOKUP(A39,Hoja4!$A$467:$B$482,2,FALSE),0)","v":0}]
[]
[null,null,null,{"$f":"IFERROR(VLOOKUP(A41,Hoja4!$A$467:$B$482,2,FALSE),0)","v":0}]
[]
[null,null,null,{"$f":"IFERROR(VLOOKUP(A43,Hoja4!$A$467:$B$482,2,FALSE),0)","v":0}]
[]
[null,null,null,{"$f":"IFERROR(VLOOKUP(A45,Hoja4!$A$467:$B$482,2,FALSE),0)","v":0}]
[]
[null,null,null,{"$f":"IFERROR(VLOOKUP(A47,Hoja4!$A$467:$B$482,2,FALSE),0)","v":0}]
[]
[null,null,null,{"$f":"IFERROR(VLOOKUP(A49,Hoja4!$A$467:$B$482,2,FALSE),0)","v":0}]
[]
[null,null,null,{"$f":"IFERROR(VLOOKUP(A51,Hoja4!$A$467:$B$482,2,FALSE),0)","v":0}]
[]
[null,null,null,{"$f":"IFERROR(VLOOKUP(A53,Hoja4!$A$467:$B$482,2,FALSE),0)","v":0}]
[]
[null,null,null,{"$f":"IFERROR(VLOOKUP(A55,Hoja4!$A$467:$B$482,2,FALSE),0)","v":0}]
[]
[null,null,null,{"$f":"IFERROR(VLOOKUP(A57,Hoja4!$A$467:$B$482,2,FALSE),0)","v":0}]
[]
[null,null,null,{"$f":"IFERROR(VLOOKUP(A59,Hoja4!$A$467:$B$482,2,FALSE),0)","v":0}]
[]
["V. FORMALIZACIÒN DEL PLAN DE MEJORAMIENTO"]
["EVALUADO",null,"NOMBRE, FIRMA Y NÚMERO DE CÉDULA.",null,null,null,null,"EVALUADOR",null,null,"NOMBRE, FIRMA Y NÚMERO DE CÉDULA.",null,null,null,null,null,null,"FECHA DE DILIGENCIAMIENTO"]
[]
[null,null,null,null,{"$f":"UPPER(CONCATENATE(L11,\" \",P11,\" \",F11,\" \",I11))","v":"0 0 0 0"},null,null,null,null,null,null,null,null,{"$f":"UPPER(CONCATENATE(L18,\" \",P18,\" \",F18,\" \",I18))","v":"0    0   "}]
[null,null,null,null,{"$f":"C11","v":0},null,null,null,null,null,null,null,null,{"$f":"C18","v":0}]

{"sheet":"F8. EVA. EVENTUAL (Semestre 1)","index":9,"n_rows":76,"n_cols":20,"rows_kept":76,"cut":false,"hidden":false,"merged":[[49,0,49,18],[60,0,60,11],[61,0,62,11],[61,12,62,18],[59,0,59,11],[59,18,60,18],[50,5,50,11],[51,5,52,11],[53,5,54,11],[55,5,56,11],[57,5,58,11],[51,18,52,18],[53,18,54,18],[55,18,56,18],[57,18,58,18],[51,0,52,1],[50,0,50,1],[55,0,56,1],[53,0,54,1],[57,0,58,1],[50,2,50,4],[24,0,24,5],[24,6,24,12],[24,13,24,14],[24,15,24,16],[24,17,24,18],[25,0,25,5],[25,6,25,12],[25,13,25,14],[25,15,25,16],[25,17,25,18],[21,0,21,18],[23,0,23,1],[23,2,23,4],[23,5,23,7],[23,8,23,10],[23,11,23,14],[23,15,23,18],[22,0,22,1],[22,2,22,4],[22,5,22,7],[22,8,22,10],[22,11,22,14],[22,15,22,18],[16,0,16,18],[18,0,18,1],[18,2,18,4],[18,5,18,7],[18,8,18,10],[18,11,18,14],[18,15,18,18],[20,0,20,5],[20,6,20,12],[20,13,20,14],[20,15,20,16],[20,17,20,18],[17,5,17,7],[17,8,17,10],[17,11,17,14],[17,15,17,18],[19,0,19,5],[19,13,19,14],[19,15,19,16],[19,17,19,18],[19,6,19,12],[17,0,17,1],[17,2,17,4],[11,0,11,1],[11,2,11,4],[11,5,11,7],[11,8,11,10],[11,11,11,14],[11,15,11,18],[15,0,15,4],[15,5,15,6],[12,0,12,7],[12,8,12,18],[13,0,13,7],[13,8,13,18],[14,0,14,4],[14,5,14,6],[14,8,15,9],[14,10,15,18],[0,0,5,3],[0,4,1,14],[0,15,6,18],[2,4,3,14],[4,4,5,6],[6,4,6,14],[4,7,4,8],[4,9,4,10],[4,11,4,12],[4,13,4,14],[5,7,5,8],[5,9,5,10],[5,11,5,12],[5,13,5,14],[7,0,8,3],[7,7,8,8],[7,12,8,15],[10,0,10,1],[10,2,10,4],[10,5,10,7],[10,8,10,10],[10,11,10,14],[10,15,10,18],[9,0,9,18],[27,0,33,3],[27,4,33,9],[27,10,33,11],[26,0,26,18],[27,12,28,18],[29,18,33,18],[29,15,30,15],[29,16,30,16],[29,17,30,17],[29,12,30,12],[29,13,30,13],[29,14,30,14],[36,0,37,3],[36,4,37,9],[36,10,37,11],[34,0,35,3],[34,4,35,9],[34,10,35,11],[36,17,37,17],[36,18,37,18],[34,17,35,17],[34,18,35,18],[34,15,35,15],[34,16,35,16],[36,16,37,16],[34,12,35,12],[36,12,37,12],[34,13,35,13],[36,13,37,13],[34,14,35,14],[36,14,37,14],[36,15,37,15],[40,0,41,3],[40,4,41,9],[40,10,41,11],[38,0,39,3],[38,4,39,9],[38,10,39,11],[38,16,39,16],[38,17,39,17],[38,18,39,18],[40,16,41,16],[40,17,41,17],[40,18,41,18],[38,12,39,12],[40,12,41,12],[38,13,39,13],[40,13,41,13],[38,14,39,14],[38,15,39,15],[40,14,41,14],[40,15,41,15],[66,4,68,9],[64,4,65,9],[69,4,70,9],[42,16,43,16],[42,17,43,17],[42,18,43,18],[45,0,46,5],[47,10,47,18],[45,6,45,10],[42,14,43,14],[42,15,43,15],[46,6,46,10],[42,12,43,12],[42,13,43,13],[44,18,46,18],[44,0,44,9],[44,10,44,11],[47,0,47,9],[42,0,43,3],[42,4,43,9],[42,10,43,11],[48,0,48,9],[48,10,48,18],[66,0,68,3],[71,4,72,9],[73,4,74,9],[75,4,77,9],[51,2,52,4],[53,2,54,4],[55,2,56,4],[57,2,58,4],[85,20,85,21],[71,0,72,3],[73,0,74,3],[69,0,70,3],[75,0,77,3],[63,12,70,15],[71,12,77,15],[63,16,70,18],[71,16,77,18],[63,0,63,11],[64,10,64,11],[65,10,77,11],[81,20,82,21],[64,0,65,3],[79,19,80,19],[83,20,84,21],[79,20,80,21]]}
[null,null,null,null,"                                                                                                                                                                           COMISIÓN NACIONAL DEL SERVICIO CIVIL\n    "]
[]
[null,null,null,null,"FORMATO 8. EVALUACIÓN PARCIAL EVENTUAL"]
[]
[null,null,null,null,"PROCESO: EVALUACIÓN DEL DESEMPEÑO LABORAL",null,null,"Código:  ",null,"F-ED-009",null,"Página",null,"1 de 1"]
[null,null,null,null,null,null,null,"Fecha de emisión: ",null,"2016-12-27",null,"Versión: ",null,"2.0"]
[]
["PERÍODO DE EVALUACIÓN",null,null,null,"DÍA","MES","AÑO","al",null,"DÍA","MES","AÑO","FECHA DE CALIFICACIÓN",null,null,null,"DÍA","MES","AÑO"]
[]
["I. IDENTIFICACIÓN DEL EVALUADO"]
["Tipo de Documento",null,"Número de identificación",null,null,"Primer apellido",null,null,"Segundo apellido",null,null,"Primer nombre",null,null,null,"Otros nombres"]
[{"$f":"'F2. COMP. LAB Y COM COMPOR'!A13:B13","v":"CEDULA DE CIUDADANIA"},null,{"$f":"'F2. COMP. LAB Y COM COMPOR'!C13:E13","v":0},null,null,{"$f":"'F2. COMP. LAB Y COM COMPOR'!F13:H13","v":0},null,null,{"$f":"'F2. COMP. LAB Y COM COMPOR'!I13:K13","v":0},null,null,{"$f":"'F2. COMP. LAB Y COM COMPOR'!L13:O13","v":0},null,null,null,{"$f":"'F2. COMP. LAB Y COM COMPOR'!P13:S13","v":0}]
["Dependencia o área a la que pertenece el evaluado",null,null,null,null,null,null,null,"Denominación del empleo"]
[{"$f":"'F2. COMP. LAB Y COM COMPOR'!A15:H15","v":0},null,null,null,null,null,null,null,{"$f":"'F2. COMP. LAB Y COM COMPOR'!I15:S15","v":"ddd"}]
["Nivel jerárquico",null,null,null,null,"Código",null,"Grado",{"$f":"'F2. COMP. LAB Y COM COMPOR'!I16","v":"Propósito del empleo:"},null,{"$f":"'F2. COMP. LAB Y COM COMPOR'!J16","v":0}]
[{"$f":"'F2. COMP. LAB Y COM COMPOR'!A17:E17","v":"DIRECTIVO"},null,null,null,null,{"$f":"'F2. COMP. LAB Y COM COMPOR'!F17:G17","v":0},null,{"$f":"'F2. COMP. LAB Y COM COMPOR'!H17","v":0}]
["II. IDENTIFICACIÓN EVALUADOR. (Jefe inmediato)"]
["Tipo de documento",null,"Número de identificación",null,null,"Primer apellido",null,null,"Segundo apellido",null,null,"Primer nombre",null,null,null,"Otros nombres"]
[{"$f":"'F2. COMP. LAB Y COM COMPOR'!A20:B20","v":"CEDULA DE CIUDADANIA"},null,{"$f":"'F2. COMP. LAB Y COM COMPOR'!C20:E20","v":0},null,null,{"$f":"'F2. COMP. LAB Y COM COMPOR'!F20:H20","v":0},null,null,{"$f":"'F2. COMP. LAB Y COM COMPOR'!I20:K20","v":"  "},null,null,{"$f":"'F2. COMP. LAB Y COM COMPOR'!L20:O20","v":0},null,null,null,{"$f":"'F2. COMP. LAB Y COM COMPOR'!P20:S20","v":"  "}]
[" Área o Dependencia a la que pertenece el evaluador",null,null,null,null,null,"Denominación del empleo",null,null,null,null,null,null,"Código",null,"Grado",null,"Nivel jerárquico"]
[{"$f":"'F2. COMP. LAB Y COM COMPOR'!A22:F22","v":0},null,null,null,null,null,{"$f":"'F2. COMP. LAB Y COM COMPOR'!G22:M22","v":0},null,null,null,null,null,null,{"$f":"'F2. COMP. LAB Y COM COMPOR'!N22:O22","v":0},null,{"$f":"'F2. COMP. LAB Y COM COMPOR'!P22:Q22","v":0},null,{"$f":"'F2. COMP. LAB Y COM COMPOR'!R22:S22","v":0}]
["III. IDENTIFICACIÓN EVALUADOR (Servidor público de Libre Nombramiento y Remoción en caso de constituir Comisión Evaluadora)"]
["Tipo de documento",null,"Número de identificación",null,null,"Primer apellido",null,null,"Segundo apellido",null,null,"Primer nombre",null,null,null,"Otros nombres"]
[{"$f":"'F2. COMP. LAB Y COM COMPOR'!A26:B26","v":"CEDULA DE CIUDADANIA"},null,{"$f":"IF('F2. COMP. LAB Y COM COMPOR'!R24=\"NO\",\"NO REQUERIDO\",'F2. COMP. LAB Y COM COMPOR'!C26:E26)","v":"NO REQUERIDO"},null,null,{"$f":"IF('F2. COMP. LAB Y COM COMPOR'!R24=\"NO\",\"NO REQUERIDO\",'F2. COMP. LAB Y COM COMPOR'!F26:H26)","v":"NO REQUERIDO"},null,null,{"$f":"IF('F2. COMP. LAB Y COM COMPOR'!R24=\"NO\",\"NO REQUERIDO\",'F2. COMP. LAB Y COM COMPOR'!I26:K26)","v":"NO REQUERIDO"},null,null,{"$f":"IF('F2. COMP. LAB Y COM COMPOR'!R24=\"NO\",\"NO REQUERIDO\",'F2. COMP. LAB Y COM COMPOR'!L26:O26)","v":"NO REQUERIDO"},null,null,null,{"$f":"IF('F2. COMP. LAB Y COM COMPOR'!R24=\"NO\",\"NO REQUERIDO\",'F2. COMP. LAB Y COM COMPOR'!P26:S26)","v":"NO REQUERIDO"}]
["Dependencia o área a la que pertenece el evaluador",null,null,null,null,null,"Denominación del empleo",null,null,null,null,null,null,"Código",null,"Grado",null,"Nivel jerárquico"]
[{"$f":"IF('F2. COMP. LAB Y COM COMPOR'!R24=\"NO\",\"NO REQUERIDO\",'F2. COMP. LAB Y COM COMPOR'!A28:F28)","v":"NO REQUERIDO"},null,null,null,null,null,{"$f":"IF('F2. COMP. LAB Y COM COMPOR'!R24=\"NO\",\"NO REQUERIDO\",'F2. COMP. LAB Y COM COMPOR'!G28:M28)","v":"NO REQUERIDO"},null,null,null,null,null,null,{"$f":"IF('F2. COMP. LAB Y COM COMPOR'!R24=\"NO\",\"NO REQUERIDO\",'F2. COMP. LAB Y COM COMPOR'!N28:O28)","v":"NO REQUERIDO"},null,{"$f":"IF('F2. COMP. LAB Y COM COMPOR'!R24=\"NO\",\"NO REQUERIDO\",'F2. COMP. LAB Y COM COMPOR'!P28:Q28)","v":"NO REQUERIDO"},null,{"$f":"IF('F2. COMP. LAB Y COM COMPOR'!R24=\"NO\",\"NO REQUERIDO\",'F2. COMP. LAB Y COM COMPOR'!R28:S28)","v":"NO REQUERIDO"}]
["IV. COMPROMISOS LABORALES"]
["Metas de la Dependencia a las cuales contribuye el empleo",null,null,null,"Compromisos Laborales.",null,null,null,null,null,"Peso porcentual del compromiso",null,"Calificación Eventuales"]
[]
[null,null,null,null,null,null,null,null,null,null,null,null,"No. calificación","1ª","2ª","3ª","4ª","5ª","Total Semestre"]
[]
[null,null,null,null,null,null,null,null,null,null,null,null,"Causal"]
[null,null,null,null,null,null,null,null,null,null,null,null,"Desde"]
[null,null,null,null,null,null,null,null,null,null,null,null,"Hasta"]
[{"$f":"'F2. COMP. LAB Y COM COMPOR'!A37","v":0},null,null,null,{"$f":"'F2. COMP. LAB Y COM COMPOR'!H37","v":0},null,null,null,null,null,{"$f":"'F2. COMP. LAB Y COM COMPOR'!Q37","v":0},null,null,null,null,null,null,null,{"$f":"IF(L46=\"No Aplica\",0,SUM((N35*N$47),(O35*O$47),(P35*P$47),(Q35*Q$47),(R35*R$47)))","v":0}]
[]
[{"$f":"'F2. COMP. LAB Y COM COMPOR'!A39","v":0},null,null,null,{"$f":"'F2. COMP. LAB Y COM COMPOR'!H39","v":0},null,null,null,null,null,{"$f":"'F2. COMP. LAB Y COM COMPOR'!Q39","v":0},null,null,null,null,null,null,null,{"$f":"IF(L47=\"No Aplica\",0,SUM((N37*N$47),(O37*O$47),(P37*P$47),(Q37*Q$47),(R37*R$47)))","v":0}]
[]
[{"$f":"'F2. COMP. LAB Y COM COMPOR'!A41","v":0},null,null,null,{"$f":"'F2. COMP. LAB Y COM COMPOR'!H41","v":0},null,null,null,null,null,{"$f":"'F2. COMP. LAB Y COM COMPOR'!Q41","v":0},null,null,null,null,null,null,null,{"$f":"IF(L47=\"No Aplica\",0,SUM((N39*N$47),(O39*O$47),(P39*P$47),(Q39*Q$47),(R39*R$47)))","v":0}]
[]
[{"$f":"'F2. COMP. LAB Y COM COMPOR'!A43","v":0},null,null,null,{"$f":"'F2. COMP. LAB Y COM COMPOR'!H43","v":0},null,null,null,null,null,{"$f":"'F2. COMP. LAB Y COM COMPOR'!Q43","v":0},null,null,null,null,null,null,null,{"$f":"IF(L47=\"No Aplica\",0,SUM((N41*N$47),(O41*O$47),(P41*P$47),(Q41*Q$47),(R41*R$47)))","v":0}]
[]
[{"$f":"'F2. COMP. LAB Y COM COMPOR'!A45","v":0},null,null,null,{"$f":"'F2. COMP. LAB Y COM COMPOR'!H45","v":0},null,null,null,null,null,{"$f":"'F2. COMP. LAB Y COM COMPOR'!Q45","v":0},null,null,null,null,null,null,null,{"$f":"IF(L47=\"No Aplica\",0,SUM((N43*N$47),(O43*O$47),(P43*P$47),(Q43*Q$47),(R43*R$47)))","v":0}]
[]
["TOTALES",null,null,null,null,null,null,null,null,null,{"$f":"IF(SUM(K35:L44)<1,CONCATENATE(\"ERROR!!: Sumatoria menor a 100% (\",TEXT(SUM(K35:L44),\"0%)\")),SUM(K35:L44))","v":"ERROR!!: Sumatoria menor a 100% (0%)"},null,null,{"$f":"+N35*K$35+N37*K$37+N39*K$39+N41*K$41+N43*K$43","v":0},{"$f":"+O35*K$35+O37*K$37+O39*K$39+O41*K$41+O43*K$43","v":0},{"$f":"+P35*K$35+P37*K$37+P39*K$39+P41*K$41+P43*K$43","v":0},{"$f":"+Q35*K$35+Q37*K$37+Q39*K$39+Q41*K$41+Q43*K$43","v":0},{"$f":"+R35*K$35+R37*K$37+R39*K$39+R41*K$41+R43*K$43","v":0}]
["Días Efectivamente Laborados",null,null,null,null,null,"Total Días Laborados de cada Ev. Eventual",null,null,null,null,{"$f":"IF(OR(SUM(N46:R46)<=30,SUM(N46:R46)>180),\"No Aplica\",SUM(M46:R46))","v":"No Aplica"}]
[null,null,null,null,null,null,"% Participación Días Laborados de cada Evaluación. Eventual",null,null,null,null,{"$f":"IFERROR(+L46/$L$46,0)","v":0},null,0,0,0,0,0]
["CALIFICACIÓN EVALUACIÒN PRIMER SEMESTRE (Sobre 100) ",null,null,null,null,null,null,null,null,null,{"$f":"(+M45*M47+N45*N47+O45*O47+P45*P47+Q45*Q47+R45*R47)","v":0}]
["CALIFICACIÓN TOTAL COMPROMISOS LABORALES",null,null,null,null,null,null,null,null,null,{"$f":"K48*0.8","v":0}]
["V. COMPETENCIAS COMPORTAMENTALES"]
["COMPETENCIA",null,"DEFINICIÓN ",null,null,"CONDUCTAS ASOCIADAS",null,null,null,null,null,null,null,"1a.","2a.","3a.","4a.","5a.","Total"]
[{"$f":"'F2. COMP. LAB Y COM COMPOR'!B51","v":0},null,{"$f":"+'F2. COMP. LAB Y COM COMPOR'!E51","v":{"$error":"#N/A"}},null,null,{"$f":"+'F2. COMP. LAB Y COM COMPOR'!L51","v":{"$error":"#N/A"}},null,null,null,null,null,null,null,null,null,null,null,null,{"$f":"+M53*M$61+N53*N$61+O53*O$61+P53*P$61+Q53*Q$61+R53*R$61","v":0}]
[null,null,null,null,null,null,null,null,null,null,null,null,null,{"$f":"IFERROR(VLOOKUP(N52,Hoja4!$A$254:$B$258,2,FALSE),0)","v":0},{"$f":"IFERROR(VLOOKUP(O52,Hoja4!$A$254:$B$258,2,FALSE),0)","v":0},{"$f":"IFERROR(VLOOKUP(P52,Hoja4!$A$254:$B$258,2,FALSE),0)","v":0},{"$f":"IFERROR(VLOOKUP(Q52,Hoja4!$A$254:$B$258,2,FALSE),0)","v":0},{"$f":"IFERROR(VLOOKUP(R52,Hoja4!$A$254:$B$258,2,FALSE),0)","v":0}]
[{"$f":"'F2. COMP. LAB Y COM COMPOR'!B53","v":0},null,{"$f":"+'F2. COMP. LAB Y COM COMPOR'!E53","v":{"$error":"#N/A"}},null,null,{"$f":"+'F2. COMP. LAB Y COM COMPOR'!L53","v":{"$error":"#N/A"}},null,null,null,null,null,null,null,null,null,null,null,null,{"$f":"+M55*M$61+N55*N$61+O55*O$61+P55*P$61+Q55*Q$61+R55*R$61","v":0}]
[null,null,null,null,null,null,null,null,null,null,null,null,null,{"$f":"IFERROR(VLOOKUP(N54,Hoja4!$A$254:$B$258,2,FALSE),0)","v":0},{"$f":"IFERROR(VLOOKUP(O54,Hoja4!$A$254:$B$258,2,FALSE),0)","v":0},{"$f":"IFERROR(VLOOKUP(P54,Hoja4!$A$254:$B$258,2,FALSE),0)","v":0},{"$f":"IFERROR(VLOOKUP(Q54,Hoja4!$A$254:$B$258,2,FALSE),0)","v":0},{"$f":"IFERROR(VLOOKUP(R54,Hoja4!$A$254:$B$258,2,FALSE),0)","v":0}]
[{"$f":"'F2. COMP. LAB Y COM COMPOR'!B55","v":0},null,{"$f":"+'F2. COMP. LAB Y COM COMPOR'!E55","v":{"$error":"#N/A"}},null,null,{"$f":"+'F2. COMP. LAB Y COM COMPOR'!L55","v":{"$error":"#N/A"}},null,null,null,null,null,null,null,null,null,null,null,null,{"$f":"+M57*M$61+N57*N$61+O57*O$61+P57*P$61+Q57*Q$61+R57*R$61","v":0}]
[null,null,null,null,null,null,null,null,null,null,null,null,null,{"$f":"IFERROR(VLOOKUP(N56,Hoja4!$A$254:$B$258,2,FALSE),0)","v":0},{"$f":"IFERROR(VLOOKUP(O56,Hoja4!$A$254:$B$258,2,FALSE),0)","v":0},{"$f":"IFERROR(VLOOKUP(P56,Hoja4!$A$254:$B$258,2,FALSE),0)","v":0},{"$f":"IFERROR(VLOOKUP(Q56,Hoja4!$A$254:$B$258,2,FALSE),0)","v":0},{"$f":"IFERROR(VLOOKUP(R56,Hoja4!$A$254:$B$258,2,FALSE),0)","v":0}]
[{"$f":"'F2. COMP. LAB Y COM COMPOR'!B57","v":0},null,{"$f":"+'F2. COMP. LAB Y COM COMPOR'!E57","v":{"$error":"#N/A"}},null,null,{"$f":"+'F2. COMP. LAB Y COM COMPOR'!L57","v":{"$error":"#N/A"}},null,null,null,null,null,null,null,null,null,null,null,null,{"$f":"+M59*M$61+N59*N$61+O59*O$61+P59*P$61+Q59*Q$61+R59*R$61","v":0}]
[null,null,null,null,null,null,null,null,null,null,null,null,null,{"$f":"IFERROR(VLOOKUP(N58,Hoja4!$A$254:$B$258,2,FALSE),0)","v":0},{"$f":"IFERROR(VLOOKUP(O58,Hoja4!$A$254:$B$258,2,FALSE),0)","v":0},{"$f":"IFERROR(VLOOKUP(P58,Hoja4!$A$254:$B$258,2,FALSE),0)","v":0},{"$f":"IFERROR(VLOOKUP(Q58,Hoja4!$A$254:$B$258,2,FALSE),0)","v":0},{"$f":"IFERROR(VLOOKUP(R58,Hoja4!$A$254:$B$258,2,FALSE),0)","v":0}]
["PONDERACIÓN POR EVALUACIÓN EVENTUAL",null,null,null,null,null,null,null,null,null,null,null,null,{"$f":"+(N53+N55+N57+N59)/4","v":0},0,0,0,0,null,{"$f":"+M60*M61","v":0}]
["% Participación Días Laborados de cada Evaluación Eventual",null,null,null,null,null,null,null,null,null,null,null,null,{"$f":"+N47","v":0},0,0,0,0,null,{"$f":"+N60*N61","v":0}]
["CALIFICACIÓN TOTAL COMPETENCIAS COMPORTAMENTALES",null,null,null,null,null,null,null,null,null,null,null,{"$f":"+SUMPRODUCT(M60:R60,M61:R61)","v":0}]
[]
["VI. COMUNICACIÓN DE LA EVALUACIÓN",null,null,null,null,null,null,null,null,null,null,null,"F1. INF. GENERAL",null,null,null,"F3. EVIDENCIAS"]
["Nombre del Evaluado:",null,null,null,{"$f":"UPPER(CONCATENATE(L12,\" \",P12,\" \",F12,\" \",I12))","v":"0 0 0 0"},null,null,null,null,null,"FECHA"]
[]
["Firma"]
[]
[]
["Nombre del evaluador:",null,null,null,{"$f":"UPPER(CONCATENATE(L19,\" \",P19,\" \",F19,\" \",I19))","v":"0    0   "}]
[]
["Firma",null,null,null,null,null,null,null,null,null,null,null,"F4. CALF. COM. COMPORT.",null,null,null,"F7. PLAN DE MEJORAMIENTO"]
[]
["Nombre del evaluador en Comisión Evaluadora:",null,null,null,{"$f":"IF(C24=\"NO REQUERIDO\",\"NO REQUERIDO\",UPPER(CONCATENATE(L24,\" \",P24,\" \",F24,\" \",I24)))","v":"NO REQUERIDO"}]
[]
["Firma",null,null,null,{"$f":"IF(E74=\"NO REQUERIDO\",\"NO REQUERIDO\",\"\")","v":"NO REQUERIDO"}]

{"sheet":"F8. EVA. EVENTUAL (Semestre 2)","index":10,"n_rows":75,"n_cols":19,"rows_kept":75,"cut":false,"hidden":false,"merged":[[80,20,81,21],[82,20,83,21],[84,20,84,21],[70,16,76,18],[72,0,73,3],[74,0,76,3],[78,19,79,19],[78,20,79,21],[64,10,76,11],[65,0,67,3],[68,0,69,3],[70,0,71,3],[70,12,76,15],[63,4,64,9],[65,4,67,9],[68,4,69,9],[70,4,71,9],[72,4,73,9],[74,4,76,9],[58,0,58,11],[59,0,59,11],[60,0,61,11],[60,12,61,18],[62,0,62,11],[62,12,69,15],[62,16,69,18],[63,0,64,3],[63,10,63,11],[58,18,59,18],[54,0,55,1],[54,2,55,4],[54,5,55,11],[54,18,55,18],[56,0,57,1],[56,2,57,4],[56,5,57,11],[56,18,57,18],[50,0,51,1],[50,2,51,4],[50,5,51,11],[50,18,51,18],[52,0,53,1],[52,2,53,4],[52,5,53,11],[52,18,53,18],[47,0,47,9],[47,10,47,18],[48,0,48,18],[49,0,49,1],[49,2,49,4],[49,5,49,11],[41,17,42,17],[41,18,42,18],[43,0,43,9],[43,10,43,11],[44,0,45,5],[44,6,44,10],[45,6,45,10],[43,18,45,18],[41,0,42,3],[41,4,42,9],[41,10,42,11],[41,12,42,12],[41,13,42,13],[41,14,42,14],[41,15,42,15],[41,16,42,16],[46,0,46,9],[46,10,46,18],[37,18,38,18],[39,0,40,3],[39,4,40,9],[39,10,40,11],[39,12,40,12],[39,13,40,13],[39,14,40,14],[39,15,40,15],[39,16,40,16],[39,17,40,17],[39,18,40,18],[37,0,38,3],[37,4,38,9],[37,10,38,11],[37,12,38,12],[37,13,38,13],[37,14,38,14],[37,15,38,15],[37,16,38,16],[37,17,38,17],[33,18,34,18],[35,0,36,3],[35,4,36,9],[35,10,36,11],[35,12,36,12],[35,13,36,13],[35,14,36,14],[35,15,36,15],[35,16,36,16],[35,17,36,17],[35,18,36,18],[33,0,34,3],[33,4,34,9],[33,10,34,11],[33,12,34,12],[33,13,34,13],[33,14,34,14],[33,15,34,15],[33,16,34,16],[33,17,34,17],[26,0,26,18],[27,0,32,3],[27,4,32,9],[27,10,32,11],[27,12,28,18],[29,18,32,18],[24,0,24,5],[24,6,24,12],[24,13,24,14],[24,15,24,16],[24,17,24,18],[25,0,25,5],[25,6,25,12],[25,13,25,14],[25,15,25,16],[25,17,25,18],[23,0,23,1],[23,2,23,4],[23,5,23,7],[23,8,23,10],[23,11,23,14],[23,15,23,18],[21,0,21,18],[22,0,22,1],[22,2,22,4],[22,5,22,7],[22,8,22,10],[22,11,22,14],[22,15,22,18],[19,0,19,5],[19,6,19,12],[19,13,19,14],[19,15,19,16],[19,17,19,18],[20,0,20,5],[20,6,20,12],[20,13,20,14],[20,15,20,16],[20,17,20,18],[18,0,18,1],[18,2,18,4],[18,5,18,7],[18,8,18,10],[18,11,18,14],[18,15,18,18],[16,0,16,18],[17,0,17,1],[17,2,17,4],[17,5,17,7],[17,8,17,10],[17,11,17,14],[17,15,17,18],[12,0,12,7],[12,8,12,18],[13,0,13,7],[13,8,13,18],[14,0,14,4],[14,5,14,6],[15,0,15,4],[15,5,15,6],[14,8,15,10],[14,11,15,18],[11,0,11,1],[11,2,11,4],[11,5,11,7],[11,8,11,10],[11,11,11,14],[11,15,11,18],[9,0,9,18],[10,0,10,1],[10,2,10,4],[10,5,10,7],[10,8,10,10],[10,11,10,14],[10,15,10,18],[5,9,5,10],[5,11,5,12],[5,13,5,14],[6,4,6,14],[7,0,8,3],[7,7,8,8],[7,12,8,15],[0,0,5,3],[0,4,1,14],[0,15,6,18],[2,4,3,14],[4,4,5,6],[4,7,4,8],[4,9,4,10],[4,11,4,12],[4,13,4,14],[5,7,5,8]]}
[null,null,null,null,"                                                                                                                                                                           COMISIÓN NACIONAL DEL SERVICIO CIVIL\n    "]
[]
[null,null,null,null,"FORMATO 8. EVALUACIÓN PARCIAL EVENTUAL"]
[]
[null,null,null,null,"PROCESO: EVALUACIÓN DEL DESEMPEÑO LABORAL",null,null,"Código:  ",null,"F-ED-009",null,"Página",null,"1 de 1"]
[null,null,null,null,null,null,null,"Fecha de emisión: ",null,"2016-12-27",null,"Versión: ",null,"2.0"]
[]
["PERÍODO DE EVALUACIÓN",null,null,null,"DÍA","MES","AÑO","al",null,"DÍA","MES","AÑO","FECHA DE CALIFICACIÓN",null,null,null,"DÍA","MES","AÑO"]
[]
["I. IDENTIFICACIÓN DEL EVALUADO"]
["Tipo de Documento",null,"Número de identificación",null,null,"Primer apellido",null,null,"Segundo apellido",null,null,"Primer nombre",null,null,null,"Otros nombres"]
[{"$f":"'F2. COMP. LAB Y COM COMPOR'!A13:B13","v":"CEDULA DE CIUDADANIA"},null,{"$f":"'F2. COMP. LAB Y COM COMPOR'!C13:E13","v":0},null,null,{"$f":"'F2. COMP. LAB Y COM COMPOR'!F13:H13","v":0},null,null,{"$f":"'F2. COMP. LAB Y COM COMPOR'!I13:K13","v":0},null,null,{"$f":"'F2. COMP. LAB Y COM COMPOR'!L13:O13","v":0},null,null,null,{"$f":"'F2. COMP. LAB Y COM COMPOR'!P13:S13","v":0}]
["Dependencia o área a la que pertenece el evaluado",null,null,null,null,null,null,null,"Denominación del empleo"]
[{"$f":"'F2. COMP. LAB Y COM COMPOR'!A15:H15","v":0},null,null,null,null,null,null,null,{"$f":"'F2. COMP. LAB Y COM COMPOR'!I15:S15","v":"ddd"}]
["Nivel jerárquico",null,null,null,null,"Código",null,"Grado",{"$f":"'F2. COMP. LAB Y COM COMPOR'!I16","v":"Propósito del empleo:"},null,null,{"$f":"'F2. COMP. LAB Y COM COMPOR'!J16","v":0}]
[{"$f":"'F2. COMP. LAB Y COM COMPOR'!A17:E17","v":"DIRECTIVO"},null,null,null,null,{"$f":"'F2. COMP. LAB Y COM COMPOR'!F17:G17","v":0},null,{"$f":"'F2. COMP. LAB Y COM COMPOR'!H17","v":0}]
["II. IDENTIFICACIÓN EVALUADOR. (Jefe inmediato)"]
["Tipo de documento",null,"Número de identificación",null,null,"Primer apellido",null,null,"Segundo apellido",null,null,"Primer nombre",null,null,null,"Otros nombres"]
[{"$f":"'F2. COMP. LAB Y COM COMPOR'!A20:B20","v":"CEDULA DE CIUDADANIA"},null,{"$f":"'F2. COMP. LAB Y COM COMPOR'!C20:E20","v":0},null,null,{"$f":"'F2. COMP. LAB Y COM COMPOR'!F20:H20","v":0},null,null,{"$f":"'F2. COMP. LAB Y COM COMPOR'!I20:K20","v":"  "},null,null,{"$f":"'F2. COMP. LAB Y COM COMPOR'!L20:O20","v":0},null,null,null,{"$f":"'F2. COMP. LAB Y COM COMPOR'!P20:S20","v":"  "}]
[" Área o Dependencia a la que pertenece el evaluador",null,null,null,null,null,"Denominación del empleo",null,null,null,null,null,null,"Código",null,"Grado",null,"Nivel jerárquico"]
[{"$f":"'F2. COMP. LAB Y COM COMPOR'!A22:F22","v":0},null,null,null,null,null,{"$f":"'F2. COMP. LAB Y COM COMPOR'!G22:M22","v":0},null,null,null,null,null,null,{"$f":"'F2. COMP. LAB Y COM COMPOR'!N22:O22","v":0},null,{"$f":"'F2. COMP. LAB Y COM COMPOR'!P22:Q22","v":0},null,{"$f":"'F2. COMP. LAB Y COM COMPOR'!R22:S22","v":0}]
["III. IDENTIFICACIÓN EVALUADOR (Servidor público de Libre Nombramiento y Remoción en caso de constituir Comisión Evaluadora)"]
["Tipo de documento",null,"Número de identificación",null,null,"Primer apellido",null,null,"Segundo apellido",null,null,"Primer nombre",null,null,null,"Otros nombres"]
[{"$f":"'F2. COMP. LAB Y COM COMPOR'!A26:B26","v":"CEDULA DE CIUDADANIA"},null,{"$f":"IF('F2. COMP. LAB Y COM COMPOR'!R24=\"NO\",\"NO REQUERIDO\",'F2. COMP. LAB Y COM COMPOR'!C26:E26)","v":"NO REQUERIDO"},null,null,{"$f":"IF('F2. COMP. LAB Y COM COMPOR'!R24=\"NO\",\"NO REQUERIDO\",'F2. COMP. LAB Y COM COMPOR'!F26:H26)","v":"NO REQUERIDO"},null,null,{"$f":"IF('F2. COMP. LAB Y COM COMPOR'!R24=\"NO\",\"NO REQUERIDO\",'F2. COMP. LAB Y COM COMPOR'!I26:K26)","v":"NO REQUERIDO"},null,null,{"$f":"IF('F2. COMP. LAB Y COM COMPOR'!R24=\"NO\",\"NO REQUERIDO\",'F2. COMP. LAB Y COM COMPOR'!L26:O26)","v":"NO REQUERIDO"},null,null,null,{"$f":"IF('F2. COMP. LAB Y COM COMPOR'!R24=\"NO\",\"NO REQUERIDO\",'F2. COMP. LAB Y COM COMPOR'!P26:S26)","v":"NO REQUERIDO"}]
["Dependencia o área a la que pertenece el evaluador",null,null,null,null,null,"Denominación del empleo",null,null,null,null,null,null,"Código",null,"Grado",null,"Nivel jerárquico"]
[{"$f":"IF('F2. COMP. LAB Y COM COMPOR'!R24=\"NO\",\"NO REQUERIDO\",'F2. COMP. LAB Y COM COMPOR'!A28:F28)","v":"NO REQUERIDO"},null,null,null,null,null,{"$f":"IF('F2. COMP. LAB Y COM COMPOR'!R24=\"NO\",\"NO REQUERIDO\",'F2. COMP. LAB Y COM COMPOR'!G28:M28)","v":"NO REQUERIDO"},null,null,null,null,null,null,{"$f":"IF('F2. COMP. LAB Y COM COMPOR'!R24=\"NO\",\"NO REQUERIDO\",'F2. COMP. LAB Y COM COMPOR'!N28:O28)","v":"NO REQUERIDO"},null,{"$f":"IF('F2. COMP. LAB Y COM COMPOR'!R24=\"NO\",\"NO REQUERIDO\",'F2. COMP. LAB Y COM COMPOR'!P28:Q28)","v":"NO REQUERIDO"},null,{"$f":"IF('F2. COMP. LAB Y COM COMPOR'!R24=\"NO\",\"NO REQUERIDO\",'F2. COMP. LAB Y COM COMPOR'!R28:S28)","v":"NO REQUERIDO"}]
["IV. COMPROMISOS LABORALES"]
["Metas de la Dependencia a las cuales contribuye el empleo",null,null,null,"Compromisos Laborales.",null,null,null,null,null,"Peso porcentual del compromiso",null,"Calificación Eventuales"]
[]
[null,null,null,null,null,null,null,null,null,null,null,null,"No. Calificación","1ª","2ª","3ª","4ª","5ª","Total Semestre"]
[null,null,null,null,null,null,null,null,null,null,null,null,"Causal"]
[null,null,null,null,null,null,null,null,null,null,null,null,"Desde"]
[null,null,null,null,null,null,null,null,null,null,null,null,"Hasta"]
[{"$f":"'F2. COMP. LAB Y COM COMPOR'!A37","v":0},null,null,null,{"$f":"'F2. COMP. LAB Y COM COMPOR'!H37","v":0},null,null,null,null,null,{"$f":"'F2. COMP. LAB Y COM COMPOR'!R37","v":0},null,null,null,null,null,null,null,{"$f":"IF(L45=\"No Aplica\",0,SUM((N34*N$46),(O34*O$46),(P34*P$46),(Q34*Q$46),(R34*R$46)))","v":0}]
[]
[{"$f":"'F2. COMP. LAB Y COM COMPOR'!A39","v":0},null,null,null,{"$f":"'F2. COMP. LAB Y COM COMPOR'!H39","v":0},null,null,null,null,null,{"$f":"'F2. COMP. LAB Y COM COMPOR'!R39","v":0},null,null,null,null,null,null,null,{"$f":"IF(L47=\"No Aplica\",0,SUM((N36*N$46),(O36*O$46),(P36*P$46),(Q36*Q$46),(R36*R$46)))","v":0}]
[]
[{"$f":"'F2. COMP. LAB Y COM COMPOR'!A41","v":0},null,null,null,{"$f":"'F2. COMP. LAB Y COM COMPOR'!H41","v":0},null,null,null,null,null,{"$f":"'F2. COMP. LAB Y COM COMPOR'!R41","v":0},null,null,null,null,null,null,null,{"$f":"IF(L49=\"No Aplica\",0,SUM((N38*N$46),(O38*O$46),(P38*P$46),(Q38*Q$46),(R38*R$46)))","v":0}]
[]
[{"$f":"'F2. COMP. LAB Y COM COMPOR'!A43","v":0},null,null,null,{"$f":"'F2. COMP. LAB Y COM COMPOR'!H43","v":0},null,null,null,null,null,{"$f":"'F2. COMP. LAB Y COM COMPOR'!R43","v":0},null,null,null,null,null,null,null,{"$f":"IF(L51=\"No Aplica\",0,SUM((N40*N$46),(O40*O$46),(P40*P$46),(Q40*Q$46),(R40*R$46)))","v":0}]
[]
[{"$f":"'F2. COMP. LAB Y COM COMPOR'!A45","v":0},null,null,null,{"$f":"'F2. COMP. LAB Y COM COMPOR'!H45","v":0},null,null,null,null,null,{"$f":"'F2. COMP. LAB Y COM COMPOR'!R45","v":0},null,null,null,null,null,null,null,{"$f":"IF(L53=\"No Aplica\",0,SUM((N42*N$46),(O42*O$46),(P42*P$46),(Q42*Q$46),(R42*R$46)))","v":0}]
[]
["TOTALES",null,null,null,null,null,null,null,null,null,{"$f":"IF(SUM(K34:L43)<1,CONCATENATE(\"ERROR!!: Sumatoria menor a 100% (\",TEXT(SUM(K34:L43),\"0%)\")),SUM(K34:L43))","v":"ERROR!!: Sumatoria menor a 100% (0%)"},null,null,{"$f":"+N34*K$34+N36*K$36+N38*K$38+N40*K$40+N42*K$42","v":0},{"$f":"+O34*K$34+O36*K$36+O38*K$38+O40*K$40+O42*K$42","v":0},{"$f":"+P34*K$34+P36*K$36+P38*K$38+P40*K$40+P42*K$42","v":0},{"$f":"+Q34*K$34+Q36*K$36+Q38*K$38+Q40*K$40+Q42*K$42","v":0},{"$f":"+R34*K$34+R36*K$36+R38*K$38+R40*K$40+R42*K$42","v":0}]
["Días Efectivamente Laborados",null,null,null,null,null,"Total Días Laborados de cada Ev. Eventual",null,null,null,null,{"$f":"IF(OR(SUM(N45:R45)<=30,SUM(N45:R45)>(180)),\"No Aplica\",SUM(M45:R45))","v":"No Aplica"}]
[null,null,null,null,null,null,"% Participación Días Laborados de cada Evaluación. Eventual",null,null,null,null,{"$f":"IFERROR(+L45/$L$45,0)","v":0},null,0,0,0,0,0]
["CALIFICACIÓN SEGUNDO SEMESTRE (Sobre 100)",null,null,null,null,null,null,null,null,null,{"$f":"(+M44*M46+N44*N46+O44*O46+P44*P46+Q44*Q46+R44*R46)","v":0}]
["CALIFICACIÓN TOTAL COMPROMISOS LABORALES",null,null,null,null,null,null,null,null,null,{"$f":"K47*0.8","v":0}]
["V. COMPETENCIAS COMPORTAMENTALES"]
["COMPETENCIA",null,"DEFINICIÓN ",null,null,"CONDUCTAS ASOCIADAS",null,null,null,null,null,null,null,"1a.","2a.","3a.","4a.","5a.","Total"]
[{"$f":"'F2. COMP. LAB Y COM COMPOR'!B51","v":0},null,{"$f":"+'F2. COMP. LAB Y COM COMPOR'!E51","v":{"$error":"#N/A"}},null,null,{"$f":"+'F2. COMP. LAB Y COM COMPOR'!L51","v":{"$error":"#N/A"}},null,null,null,null,null,null,null,null,null,null,null,null,{"$f":"+M52*M$60+N52*N$60+O52*O$60+P52*P$60+Q52*Q$60+R52*R$60","v":0}]
[null,null,null,null,null,null,null,null,null,null,null,null,null,{"$f":"IFERROR(VLOOKUP(N51,Hoja4!$A$254:$B$258,2,FALSE),0)","v":0},{"$f":"IFERROR(VLOOKUP(O51,Hoja4!$A$254:$B$258,2,FALSE),0)","v":0},{"$f":"IFERROR(VLOOKUP(P51,Hoja4!$A$254:$B$258,2,FALSE),0)","v":0},{"$f":"IFERROR(VLOOKUP(Q51,Hoja4!$A$254:$B$258,2,FALSE),0)","v":0},{"$f":"IFERROR(VLOOKUP(R51,Hoja4!$A$254:$B$258,2,FALSE),0)","v":0}]
[{"$f":"'F2. COMP. LAB Y COM COMPOR'!B53","v":0},null,{"$f":"+'F2. COMP. LAB Y COM COMPOR'!E53","v":{"$error":"#N/A"}},null,null,{"$f":"+'F2. COMP. LAB Y COM COMPOR'!L51","v":{"$error":"#N/A"}},null,null,null,null,null,null,null,null,null,null,null,null,{"$f":"+M54*M$60+N54*N$60+O54*O$60+P54*P$60+Q54*Q$60+R54*R$60","v":0}]
[null,null,null,null,null,null,null,null,null,null,null,null,null,{"$f":"IFERROR(VLOOKUP(N53,Hoja4!$A$254:$B$258,2,FALSE),0)","v":0},{"$f":"IFERROR(VLOOKUP(O53,Hoja4!$A$254:$B$258,2,FALSE),0)","v":0},{"$f":"IFERROR(VLOOKUP(P53,Hoja4!$A$254:$B$258,2,FALSE),0)","v":0},{"$f":"IFERROR(VLOOKUP(Q53,Hoja4!$A$254:$B$258,2,FALSE),0)","v":0},{"$f":"IFERROR(VLOOKUP(R53,Hoja4!$A$254:$B$258,2,FALSE),0)","v":0}]
[{"$f":"'F2. COMP. LAB Y COM COMPOR'!B55","v":0},null,{"$f":"+'F2. COMP. LAB Y COM COMPOR'!E55","v":{"$error":"#N/A"}},null,null,{"$f":"+'F2. COMP. LAB Y COM COMPOR'!L55","v":{"$error":"#N/A"}},null,null,null,null,null,null,null,null,null,null,null,null,{"$f":"+M56*M$60+N56*N$60+O56*O$60+P56*P$60+Q56*Q$60+R56*R$60","v":0}]
[null,null,null,null,null,null,null,null,null,null,null,null,null,{"$f":"IFERROR(VLOOKUP(N55,Hoja4!$A$254:$B$258,2,FALSE),0)","v":0},{"$f":"IFERROR(VLOOKUP(O55,Hoja4!$A$254:$B$258,2,FALSE),0)","v":0},{"$f":"IFERROR(VLOOKUP(P55,Hoja4!$A$254:$B$258,2,FALSE),0)","v":0},{"$f":"IFERROR(VLOOKUP(Q55,Hoja4!$A$254:$B$258,2,FALSE),0)","v":0},{"$f":"IFERROR(VLOOKUP(R55,Hoja4!$A$254:$B$258,2,FALSE),0)","v":0}]
[{"$f":"'F2. COMP. LAB Y COM COMPOR'!B57","v":0},null,{"$f":"+'F2. COMP. LAB Y COM COMPOR'!E57","v":{"$error":"#N/A"}},null,null,{"$f":"+'F2. COMP. LAB Y COM COMPOR'!L55","v":{"$error":"#N/A"}},null,null,null,null,null,null,null,null,null,null,null,null,{"$f":"+M58*M$60+N58*N$60+O58*O$60+P58*P$60+Q58*Q$60+R58*R$60","v":0}]
[null,null,null,null,null,null,null,null,null,null,null,null,null,{"$f":"IFERROR(VLOOKUP(N57,Hoja4!$A$254:$B$258,2,FALSE),0)","v":0},{"$f":"IFERROR(VLOOKUP(O57,Hoja4!$A$254:$B$258,2,FALSE),0)","v":0},{"$f":"IFERROR(VLOOKUP(P57,Hoja4!$A$254:$B$258,2,FALSE),0)","v":0},{"$f":"IFERROR(VLOOKUP(Q57,Hoja4!$A$254:$B$258,2,FALSE),0)","v":0},{"$f":"IFERROR(VLOOKUP(R57,Hoja4!$A$254:$B$258,2,FALSE),0)","v":0}]
["PONDERACIÓN POR EVALUACIÓN EVENTUAL",null,null,null,null,null,null,null,null,null,null,null,null,{"$f":"IFERROR((N52+N54+N56+N58)/4,0)","v":0},0,0,0,0]
["% Participación Días Laborados de cada Evaluación Eventual",null,null,null,null,null,null,null,null,null,null,null,null,{"$f":"+N46","v":0},0,0,0,0]
["CALIFICACIÓN TOTAL COMPETENCIAS COMPORTAMENTALES",null,null,null,null,null,null,null,null,null,null,null,{"$f":"+SUMPRODUCT(M59:R59,M60:R60)","v":0}]
[]
["VI. COMUNICACIÓN DE LA EVALUACIÓN",null,null,null,null,null,null,null,null,null,null,null,"F1. INF. GENERAL",null,null,null,"F3. EVIDENCIAS"]
["Nombre del Evaluado:",null,null,null,{"$f":"UPPER(CONCATENATE(L12,\" \",P12,\" \",F12,\" \",I12))","v":"0 0 0 0"},null,null,null,null,null,"FECHA"]
[]
["Firma"]
[]
[]
["Nombre del evaluador:",null,null,null,{"$f":"UPPER(CONCATENATE(L19,\" \",P19,\" \",F19,\" \",I19))","v":"0    0   "}]
[]
["Firma",null,null,null,null,null,null,null,null,null,null,null,"F4. CALF. COM. COMPORT.",null,null,null,"F7. PLAN DE MEJORAMIENTO"]
[]
["Nombre del evaluador en Comisión Evaluadora:",null,null,null,{"$f":"IF(C24=\"NO REQUERIDO\",\"NO REQUERIDO\",UPPER(CONCATENATE(L24,\" \",P24,\" \",F24,\" \",I24)))","v":"NO REQUERIDO"}]
[]
["Firma",null,null,null,{"$f":"IF(E73=\"NO REQUERIDO\",\"NO REQUERIDO\",\"\")","v":"NO REQUERIDO"}]

{"sheet":"F9. EV. EXTRAORDINARIA","index":11,"n_rows":200,"n_cols":19,"rows_kept":200,"cut":false,"hidden":false,"merged":[[24,17,24,18],[25,0,25,5],[25,6,25,12],[25,13,25,14],[25,15,25,16],[25,17,25,18],[52,1,52,4],[52,5,52,6],[49,7,49,8],[43,15,43,18],[44,0,45,10],[44,11,44,14],[44,15,44,18],[45,11,45,14],[45,15,45,18],[24,0,24,5],[24,6,24,12],[37,17,38,18],[39,0,40,3],[39,4,40,8],[39,9,40,10],[24,13,24,14],[24,15,24,16],[35,9,36,10],[77,2,78,8],[26,0,26,18],[27,0,30,3],[27,4,30,8],[27,9,30,10],[27,11,28,18],[29,11,29,14],[29,15,29,18],[30,13,30,14],[70,6,70,8],[70,9,71,11],[70,12,71,15],[70,16,70,18],[71,6,71,8],[77,0,78,1],[35,0,36,3],[35,4,36,8],[72,11,73,18],[74,0,75,1],[74,9,76,10],[74,11,76,18],[51,1,51,4],[51,5,51,6],[72,2,73,8],[20,0,20,5],[20,6,20,12],[20,13,20,14],[20,15,20,16],[20,17,20,18],[21,0,21,18],[23,0,23,1],[23,2,23,4],[23,5,23,7],[23,8,23,10],[23,11,23,14],[23,15,23,18],[22,0,22,1],[22,2,22,4],[22,5,22,7],[22,8,22,10],[22,11,22,14],[22,15,22,18],[46,13,47,13],[46,14,47,16],[43,6,43,10],[43,11,43,14],[42,0,43,5],[42,11,42,14],[42,15,42,18],[46,0,47,10],[46,11,47,12],[46,17,47,18],[42,6,42,9],[69,0,69,8],[69,9,69,18],[53,9,58,10],[61,0,62,1],[53,1,53,4],[53,5,53,6],[53,11,55,18],[56,11,58,18],[54,0,55,4],[66,0,66,18],[54,5,55,6],[54,7,55,8],[57,0,57,8],[58,0,58,8],[59,0,60,18],[61,9,62,10],[63,2,65,8],[63,0,65,1],[61,2,62,8],[56,0,56,4],[67,0,67,18],[68,0,68,18],[56,5,56,6],[56,7,56,8],[84,0,84,18],[85,0,86,2],[85,3,86,3],[85,4,86,6],[85,7,86,10],[85,11,86,14],[85,15,86,18],[82,0,82,8],[82,9,82,18],[83,9,83,18],[83,0,83,8],[79,0,80,1],[79,9,80,10],[79,11,81,18],[71,16,71,18],[72,0,73,1],[72,9,73,10],[51,15,52,18],[48,9,52,10],[77,9,78,10],[77,11,78,18],[51,11,52,14],[48,0,48,8],[49,0,49,4],[49,5,49,6],[50,15,50,18],[50,11,50,14],[48,11,49,18],[50,1,50,4],[50,5,50,6],[61,11,62,18],[63,11,65,18],[63,9,65,10],[70,0,71,2],[70,3,71,5],[10,0,10,1],[10,2,10,4],[10,5,10,7],[10,8,10,10],[10,11,10,14],[10,15,10,18],[19,13,19,14],[19,15,19,16],[19,17,19,18],[18,0,18,1],[18,2,18,4],[11,0,11,1],[11,2,11,4],[11,5,11,7],[11,8,11,10],[11,11,11,14],[11,15,11,18],[13,0,13,7],[13,8,13,18],[12,0,12,7],[12,8,12,18],[18,5,18,7],[18,8,18,10],[1,0,6,3],[1,4,2,14],[1,15,6,18],[3,4,4,14],[5,4,6,6],[6,7,6,8],[6,9,6,10],[5,7,5,8],[5,9,5,10],[5,11,5,12],[5,13,5,14],[6,11,6,12],[6,13,6,14],[30,17,30,18],[31,16,32,16],[33,16,34,16],[16,0,16,18],[14,0,14,4],[14,5,14,6],[15,0,15,4],[15,5,15,6],[7,0,8,3],[7,7,8,8],[7,12,8,15],[14,8,15,9],[14,10,15,18],[9,0,9,18],[18,11,18,14],[18,15,18,18],[19,0,19,5],[19,6,19,12],[17,0,17,1],[17,2,17,4],[17,5,17,7],[17,8,17,10],[17,11,17,14],[17,15,17,18],[37,11,38,11],[31,17,32,18],[33,17,34,18],[33,0,34,3],[33,4,34,8],[33,9,34,10],[33,13,34,14],[31,12,32,12],[33,12,34,12],[31,15,32,15],[33,15,34,15],[31,11,32,11],[33,11,34,11],[31,0,32,3],[31,4,32,8],[31,9,32,10],[39,11,40,11],[41,0,41,8],[41,9,41,10],[37,0,38,3],[37,4,38,8],[37,9,38,10],[31,13,32,14],[35,15,36,15],[37,15,38,15],[39,15,40,15],[41,11,41,13],[41,15,41,17],[37,13,38,14],[35,12,36,12],[37,12,38,12],[39,12,40,12],[35,13,36,14],[35,17,36,18],[39,13,40,14],[39,17,40,18],[35,16,36,16],[37,16,38,16],[39,16,40,16],[35,11,36,11]]}
[]
[null,null,null,null,"                                                                                                                                                     COMISIÓN NACIONAL DEL SERVICIO CIVIL\n    "]
[]
[null,null,null,null,"FORMATO 9. EVALUACIÓN EXTRAORDINARIA"]
[]
[null,null,null,null,"PROCESO: EVALUACIÓN DEL DESEMPEÑO LABORAL",null,null,"Código:  ",null,"F-ED-010",null,"Página",null,"1 de 1"]
[null,null,null,null,null,null,null,"Fecha de emisión: ",null,"2016-12-27",null,"Versión: ",null,"2.0"]
["PERÍODO DE EVALUACIÓN",null,null,null,"DÍA","MES","AÑO","al",null,"DÍA","MES","AÑO","FECHA DE EVALUACIÓN",null,null,null,"DÍA","MES","AÑO"]
[]
["I. IDENTIFICACIÓN DEL EVALUADO"]
["Tipo de Documento",null,"Número de identificación",null,null,"Primer apellido",null,null,"Segundo apellido",null,null,"Primer nombre",null,null,null,"Otros nombres"]
[{"$f":"'F2. COMP. LAB Y COM COMPOR'!A13:B13","v":"CEDULA DE CIUDADANIA"},null,{"$f":"'F2. COMP. LAB Y COM COMPOR'!C13:E13","v":0},null,null,{"$f":"'F2. COMP. LAB Y COM COMPOR'!F13:H13","v":0},null,null,{"$f":"'F2. COMP. LAB Y COM COMPOR'!I13:K13","v":0},null,null,{"$f":"'F2. COMP. LAB Y COM COMPOR'!L13:O13","v":0},null,null,null,{"$f":"'F2. COMP. LAB Y COM COMPOR'!P13:S13","v":0}]
["Dependencia o área a la que pertenece el evaluado",null,null,null,null,null,null,null,"Denominación del empleo"]
[{"$f":"'F2. COMP. LAB Y COM COMPOR'!A15:H15","v":0},null,null,null,null,null,null,null,{"$f":"'F2. COMP. LAB Y COM COMPOR'!I15:S15","v":"ddd"}]
["Nivel jerárquico",null,null,null,null,"Código",null,"Grado",{"$f":"'F2. COMP. LAB Y COM COMPOR'!I16","v":"Propósito del empleo:"},null,{"$f":"'F2. COMP. LAB Y COM COMPOR'!J16","v":0}]
[{"$f":"'F2. COMP. LAB Y COM COMPOR'!A17:E17","v":"DIRECTIVO"},null,null,null,null,{"$f":"'F2. COMP. LAB Y COM COMPOR'!F17:G17","v":0},null,{"$f":"'F2. COMP. LAB Y COM COMPOR'!H17","v":0}]
["II. IDENTIFICACIÓN EVALUADOR. (Jefe inmediato)"]
["Tipo de documento",null,"Número de identificación",null,null,"Primer apellido",null,null,"Segundo apellido",null,null,"Primer nombre",null,null,null,"Otros nombres"]
[{"$f":"'F2. COMP. LAB Y COM COMPOR'!A20:B20","v":"CEDULA DE CIUDADANIA"},null,{"$f":"'F2. COMP. LAB Y COM COMPOR'!C20:E20","v":0},null,null,{"$f":"'F2. COMP. LAB Y COM COMPOR'!F20:H20","v":0},null,null,{"$f":"'F2. COMP. LAB Y COM COMPOR'!I20:K20","v":"  "},null,null,{"$f":"'F2. COMP. LAB Y COM COMPOR'!L20:O20","v":0},null,null,null,{"$f":"'F2. COMP. LAB Y COM COMPOR'!P20:S20","v":"  "}]
[" Área o Dependencia a la que pertenece el evaluador",null,null,null,null,null,"Denominación del empleo",null,null,null,null,null,null,"Código",null,"Grado",null,"Nivel jerárquico"]
[{"$f":"'F2. COMP. LAB Y COM COMPOR'!A22:F22","v":0},null,null,null,null,null,{"$f":"'F2. COMP. LAB Y COM COMPOR'!G22:M22","v":0},null,null,null,null,null,null,{"$f":"'F2. COMP. LAB Y COM COMPOR'!N22:O22","v":0},null,{"$f":"'F2. COMP. LAB Y COM COMPOR'!P22:Q22","v":0},null,{"$f":"'F2. COMP. LAB Y COM COMPOR'!R22:S22","v":0}]
["III. IDENTIFICACIÓN EVALUADOR (Servidor público de Libre Nombramiento y Remoción en caso de constituir Comisión Evaluadora)"]
["Tipo de documento",null,"Número de identificación",null,null,"Primer apellido",null,null,"Segundo apellido",null,null,"Primer nombre",null,null,null,"Otros nombres"]
[{"$f":"'F2. COMP. LAB Y COM COMPOR'!A26:B26","v":"CEDULA DE CIUDADANIA"},null,{"$f":"IF('F2. COMP. LAB Y COM COMPOR'!R24=\"NO\",\"NO REQUERIDO\",'F2. COMP. LAB Y COM COMPOR'!C26:E26)","v":"NO REQUERIDO"},null,null,{"$f":"IF('F2. COMP. LAB Y COM COMPOR'!R24=\"NO\",\"NO REQUERIDO\",'F2. COMP. LAB Y COM COMPOR'!F26:H26)","v":"NO REQUERIDO"},null,null,{"$f":"IF('F2. COMP. LAB Y COM COMPOR'!R24=\"NO\",\"NO REQUERIDO\",'F2. COMP. LAB Y COM COMPOR'!I26:K26)","v":"NO REQUERIDO"},null,null,{"$f":"IF('F2. COMP. LAB Y COM COMPOR'!R24=\"NO\",\"NO REQUERIDO\",'F2. COMP. LAB Y COM COMPOR'!L26:O26)","v":"NO REQUERIDO"},null,null,null,{"$f":"IF('F2. COMP. LAB Y COM COMPOR'!R24=\"NO\",\"NO REQUERIDO\",'F2. COMP. LAB Y COM COMPOR'!P26:S26)","v":"NO REQUERIDO"}]
["Dependencia o área a la que pertenece el evaluador",null,null,null,null,null,"Denominación del empleo",null,null,null,null,null,null,"Código",null,"Grado",null,"Nivel jerárquico"]
[{"$f":"IF('F2. COMP. LAB Y COM COMPOR'!R24=\"NO\",\"NO REQUERIDO\",'F2. COMP. LAB Y COM COMPOR'!A28:F28)","v":"NO REQUERIDO"},null,null,null,null,null,{"$f":"IF('F2. COMP. LAB Y COM COMPOR'!R24=\"NO\",\"NO REQUERIDO\",'F2. COMP. LAB Y COM COMPOR'!G28:M28)","v":"NO REQUERIDO"},null,null,null,null,null,null,{"$f":"IF('F2. COMP. LAB Y COM COMPOR'!R24=\"NO\",\"NO REQUERIDO\",'F2. COMP. LAB Y COM COMPOR'!N28:O28)","v":"NO REQUERIDO"},null,{"$f":"IF('F2. COMP. LAB Y COM COMPOR'!R24=\"NO\",\"NO REQUERIDO\",'F2. COMP. LAB Y COM COMPOR'!P28:Q28)","v":"NO REQUERIDO"},null,{"$f":"IF('F2. COMP. LAB Y COM COMPOR'!R24=\"NO\",\"NO REQUERIDO\",'F2. COMP. LAB Y COM COMPOR'!R28:S28)","v":"NO REQUERIDO"}]
["IV. COMPROMISOS LABORALES"]
["Metas de la Dependencia a las cuales contribuye el empleo",null,null,null,"Compromisos Laborales.",null,null,null,null,"Peso porcentual del compromiso",null,"Porcentaje de Cumplimiento. "]
[]
[null,null,null,null,null,null,null,null,null,null,null," EVALUACIÓN REALIZADA PREVIA A LA EXTRAORDINARIA (Si hubo)",null,null,null,"EVALUACIÓN ULTIMO PERÍODO"]
[null,null,null,null,null,null,null,null,null,null,null,"Peso porcentual  Evaluaciones previas","CALIFICACIÓN DEL COMPROMISO","CALIFICACIÓN DEL COMPROMISO \n(Con peso porcentual)",null,"Peso porcentual  último período","CALIFICACIÓN DEL COMPROMISO","CALIFICACIÓN DEL COMPROMISO \n(Con peso porcentual)"]
[{"$f":"'F2. COMP. LAB Y COM COMPOR'!A37","v":0},null,null,null,{"$f":"'F2. COMP. LAB Y COM COMPOR'!H37","v":0},null,null,null,null,{"$f":"'F2. COMP. LAB Y COM COMPOR'!S37","v":""},null,null,null,{"$f":"IFERROR(($M32*L32),0)","v":0},null,{"$f":"IFERROR((J32-L32),0)","v":0},null,{"$f":"IFERROR(($Q32*P32),0)","v":0}]
[]
[{"$f":"'F2. COMP. LAB Y COM COMPOR'!A39","v":0},null,null,null,{"$f":"'F2. COMP. LAB Y COM COMPOR'!H39","v":0},null,null,null,null,{"$f":"'F2. COMP. LAB Y COM COMPOR'!S39","v":""},null,null,null,{"$f":"IFERROR(($M34*L34),0)","v":0},null,{"$f":"IFERROR((J34-L34),0)","v":0},null,{"$f":"IFERROR(($Q34*P34),0)","v":0}]
[]
[{"$f":"'F2. COMP. LAB Y COM COMPOR'!A41","v":0},null,null,null,{"$f":"'F2. COMP. LAB Y COM COMPOR'!H41","v":0},null,null,null,null,{"$f":"'F2. COMP. LAB Y COM COMPOR'!S41","v":""},null,null,null,{"$f":"IFERROR(($M36*L36),0)","v":0},null,{"$f":"IFERROR((J36-L36),0)","v":0},null,{"$f":"IFERROR(($Q36*P36),0)","v":0}]
[]
[{"$f":"'F2. COMP. LAB Y COM COMPOR'!A43","v":0},null,null,null,{"$f":"'F2. COMP. LAB Y COM COMPOR'!H43","v":0},null,null,null,null,{"$f":"'F2. COMP. LAB Y COM COMPOR'!S43","v":""},null,null,null,{"$f":"IFERROR(($M38*L38),0)","v":0},null,{"$f":"IFERROR((J38-L38),0)","v":0},null,{"$f":"IFERROR(($Q38*P38),0)","v":0}]
[]
[{"$f":"'F2. COMP. LAB Y COM COMPOR'!A45","v":0},null,null,null,{"$f":"'F2. COMP. LAB Y COM COMPOR'!H45","v":0},null,null,null,null,{"$f":"'F2. COMP. LAB Y COM COMPOR'!S45","v":""},null,null,null,{"$f":"IFERROR(($M40*L40),0)","v":0},null,{"$f":"IFERROR((J40-L40),0)","v":0},null,{"$f":"IFERROR(($Q40*P40),0)","v":0}]
[]
[" PESO TOTAL PONDERADO DE LOS COMPROMISOS LABORALES",null,null,null,null,null,null,null,null,{"$f":"IF(SUM(J32:K41)<1,CONCATENATE(\"ERROR!!: Sumatoria menor a 100% (\",TEXT(SUM(J32:K41),\"0%)\")),SUM(J32:K41))","v":"ERROR!!: Sumatoria menor a 100% (0%)"},null,"Resultado total ",null,null,{"$f":"SUMIF(N32:O41,\"<100\",N32:O41)","v":0},"Resultado total ",null,null,{"$f":"SUMIF(R32:S41,\"<100\",R32:S41)","v":0}]
["Días Efectivamente Laborados",null,null,null,null,null,"Total Días Laborados Efectivamente",null,null,null,{"$f":"IF((L43+P43)<91,\"No aplica\",SUM(L43:S43))","v":"No aplica"}]
[null,null,null,null,null,null,"% Participación Días Laborados para la Evaluación Extraordinaria",null,null,null,null,{"$f":"IF(L43>30,IFERROR(+L43/($L$43+$P$43),0),\"DEBE SER SUPERIOR A 30 DIAS\")","v":"DEBE SER SUPERIOR A 30 DIAS"},null,null,null,{"$f":"IF((L43+P43)>90,IFERROR(+P43/($L$43+$P$43),0),\"DEBE SER SUPERIOR A 90 DIAS\")","v":"DEBE SER SUPERIOR A 90 DIAS"}]
["Calificaciones parciales semestrales compromisos laborales ",null,null,null,null,null,null,null,null,null,null,"1° Calificación",null,null,null,"2° Calificación"]
[null,null,null,null,null,null,null,null,null,null,null,{"$f":"O42*40","v":0},null,null,null,{"$f":"S42*40","v":0}]
["CALIFICACIÓN TOTAL COMPROMISOS LABORALES",null,null,null,null,null,null,null,null,null,null,"Sobre el 100%",null,{"$f":"IF(P44=\"DEBE SER SUPERIOR A 90 DIAS\",0,(O42+S42))","v":0},"Sobre el peso porcentual del 85%",null,null,{"$f":"+N47*85%","v":0}]
[]
["V. COMPETENCIAS COMPORTAMENTALES",null,null,null,null,null,null,null,null,"F4. CALF. COM. COMPORT.",null,"VI. RESULTADOS CONSOLIDADOS EVALUCIÓN EXTRAORDINARIA"]
["COMPETENCIAS COMPORTAMENTALES",null,null,null,null,"Eva. Previa a la EXTR.\n(Si hubo)",null,"Eva. Último período."]
["1.  ",{"$f":"'F2. COMP. LAB Y COM COMPOR'!B51","v":0},null,null,null,null,null,null,{"$f":"IF(B51>0,IFERROR(VLOOKUP(H51,Hoja4!$A$461:$B$464,2,FALSE),\"\"),\"DEFINA COMPETENCIA\")","v":"DEFINA COMPETENCIA"},null,null,"CALIFICACIÓN",null,null,null,"NIVEL DE CALIFICACIÓN"]
["2. ",{"$f":"'F2. COMP. LAB Y COM COMPOR'!B53","v":0},null,null,null,null,null,null,{"$f":"IF(B52>0,IFERROR(VLOOKUP(H52,Hoja4!$A$461:$B$464,2,FALSE),\"\"),\"DEFINA COMPETENCIA\")","v":"DEFINA COMPETENCIA"},null,null,{"$f":"SUM(R47,A59)/100","v":0},null,null,null,{"$f":"IF(P44=\"DEBE SER SUPERIOR A 90 DIAS\",\"CALIFICACIÓN PARA PERIODOS SUPERIORES A 90 DIAS\",IFERROR(VLOOKUP(L52,Hoja4!T$2:U$101,2),0))","v":"CALIFICACIÓN PARA PERIODOS SUPERIORES A 90 DIAS"}]
["3. ",{"$f":"'F2. COMP. LAB Y COM COMPOR'!B55","v":0},null,null,null,null,null,null,{"$f":"IF(B53>0,IFERROR(VLOOKUP(H53,Hoja4!$A$461:$B$464,2,FALSE),\"\"),\"DEFINA COMPETENCIA\")","v":"DEFINA COMPETENCIA"}]
["4. ",{"$f":"'F2. COMP. LAB Y COM COMPOR'!B57","v":0},null,null,null,null,null,null,{"$f":"IF(B54>0,IFERROR(VLOOKUP(H54,Hoja4!$A$461:$B$464,2,FALSE),\"\"),\"DEFINA COMPETENCIA\")","v":"DEFINA COMPETENCIA"},"F7. PLAN DE MEJORAMIENTO",null,"F2. COMP. LAB Y COM COMPOR"]
["CALIFICACIÓN",null,null,null,null,{"$f":"IF(COUNTA(F51:G54)=4,(SUM(F51:G54)/4),\"DEBE CALIFICAR LAS 4 COMPETENCIAS\")","v":"DEBE CALIFICAR LAS 4 COMPETENCIAS"},null,{"$f":"IF(COUNTA(H51:H54)=4,(SUM(I51:I54)/4),\"DEBE CALIFICAR LAS 4 COMPETENCIAS\")","v":"DEBE CALIFICAR LAS 4 COMPETENCIAS"}]
[]
["% Participación Días Laborados de cada Eva. Eventual",null,null,null,null,{"$f":"+L44","v":"DEBE SER SUPERIOR A 30 DIAS"},null,{"$f":"+P44","v":"DEBE SER SUPERIOR A 90 DIAS"},null,null,null,"F3. EVIDENCIAS"]
["CALIFICACIÓN DE LAS COMPETENCIAS COMPORTAMENTALES"]
[{"$f":"SUM(IF(F57=\"DEBE SER SUPERIOR A 30 DIAS\",0,(F55*F57)),IF(H57=\"DEBE SER SUPERIOR A 90 DIAS\",0,(H55*H57)))","v":0}]
["VII. NOTIFICACIÓN"]
[]
["Nombre del Evaluado:",null,{"$f":"UPPER(CONCATENATE(L12,\" \",P12,\" \",F12,\" \",I12))","v":"0 0 0 0"},null,null,null,null,null,null,"Nombre del evaluador:",null,{"$f":"UPPER(CONCATENATE(L19,\" \",P19,\" \",F19,\" \",I19))","v":"0    0   "}]
[]
["Firma",null,null,null,null,null,null,null,null,"Firma"]
[]
[]
["VIII. DECISIÓN DE RECURSOS"]
["Interpone recursos"]
["NO"]
["RECURSO DE REPOSICIÓN",null,null,null,null,null,null,null,null,"RECURSO DE APELACIÓN"]
["DECISIÓN",null,null,null,null,null,"FECHA",null,null,"DECISIÓN",null,null,null,null,null,null,"FECHA"]
[]
["Nombre del Evaluado:",null,{"$f":"IF(D71=\"\",\"\",UPPER(CONCATENATE(L12,\" \",P12,\" \",F12,\" \",I12)))","v":""},null,null,null,null,null,null,"Nombre del Evaluado:",null,{"$f":"IF(M71=\"\",\"\",UPPER(CONCATENATE(L12,\" \",P12,\" \",F12,\" \",I12)))","v":""}]
[]
["Firma",null,null,null,null,null,null,null,null,"Firma"]
[]
[]
["Nombre del Notificador:",null,null,null,null,null,null,null,null,"Nombre del Notificador:"]
[]
["Firma",null,null,null,null,null,null,null,null,"Firma"]
[]
[]
["MOTIVACIÓN (Anexar Acto Administrativo):",null,null,null,null,null,null,null,null,"MOTIVACIÓN (Anexar Acto Administrativo):"]
[]
["IX. CALIFICACIÓN DEFINITIVA"]
["CALIFICACIÓN DEFINITIVA EN FIRME",null,null,null,"FIRMA Y NÚMERO DE CÉDULA DEL NOTIFICADO",null,null,null,null,null,null,"FIRMA Y NÚMERO DE CÉDULA DEL NOTIFICADOR"]
[]
[]
[]
[]
[]
[]
[]
[]
[]
[]
[]
[]
[]
[]
[]
[]
[]
[]
[]
[]
[]
[]
[]
[]
[]
[]
[]
[]
[]
[]
[]
[]
[null,null,null,null,null,null,null,null,null,null,null,"Cedula de ciudadanía"]
[null,null,null,null,null,null,null,null,null,null,null,"Cedula de extranjería"]
[]
[]
[]
[]
[]
[]
[]
[]
[]
[]
[]
[]
[]
[]
[]
[null,null,null,"Asesor"]
[null,null,null,"profesional"]
[null,null,null,"Técnico"]
[null,null,null,"Asistencial"]
[]
[]
[]
[]
[]
[]
[]
[]
[]
[]
[]
[]
[]
[]
[]
[]
[]
[]
[]
[]
[null,null,null,null,null,null,null,null,null,60]
[null,null,null,null,null,null,null,null,null,61]
[null,null,null,null,null,null,null,null,null,62]
[null,null,null,null,null,null,null,null,null,63]
[null,null,null,null,null,null,null,null,null,64]
[null,null,null,null,null,null,null,null,null,65]
[null,null,null,null,null,null,null,null,null,66]
[null,null,null,null,null,null,null,null,null,67]
[null,null,null,null,null,null,null,null,null,68]
[null,null,null,null,null,null,null,null,null,69]
[null,null,null,null,null,null,null,null,null,70]
[null,null,null,null,null,null,null,null,null,71]
[null,null,null,null,null,null,null,null,null,72]
[null,null,null,null,null,null,null,null,null,73]
[null,null,null,null,null,null,null,null,null,74]
[null,null,null,null,null,null,null,null,null,75]
[null,null,null,null,null,null,null,null,null,76]
[null,null,null,null,null,null,null,null,null,77]
[null,null,null,null,null,null,null,null,null,78]
[null,null,null,null,null,null,null,null,null,79]
[null,null,null,null,null,null,null,null,null,80]
[null,null,null,null,null,null,null,null,null,81]
[null,null,null,null,null,null,null,null,null,82]
[null,null,null,null,null,null,null,null,null,83]
[null,null,null,null,null,null,null,null,null,84]
[null,null,null,null,null,null,null,null,null,85]
[null,null,null,null,null,null,null,null,null,86]
[null,null,null,null,null,null,null,null,null,87]
[null,null,null,null,null,null,null,null,null,88]
[null,null,null,null,null,null,null,null,null,89]
[null,null,null,null,null,null,null,null,null,90]
[null,null,null,null,null,null,null,null,null,91]
[null,null,null,null,null,null,null,null,null,92]
[null,null,null,null,null,null,null,null,null,93]
[null,null,null,null,null,null,null,null,null,94]
[null,null,null,null,null,null,null,null,null,95]
[null,null,null,null,null,null,null,null,null,96]
[null,null,null,null,null,null,null,null,null,97]
[null,null,null,null,null,null,null,null,null,98]
[null,null,null,null,null,null,null,null,null,99]
[null,null,null,null,null,null,null,null,null,100]

{"sheet":"F10. EVA. INFERIOR A 1 AÑO","index":12,"n_rows":200,"n_cols":19,"rows_kept":200,"cut":false,"hidden":false,"merged":[[61,11,62,18],[63,9,65,10],[63,11,65,18],[61,2,62,8],[63,2,65,8],[63,0,65,1],[61,9,62,10],[23,0,23,1],[23,2,23,4],[23,5,23,7],[23,8,23,10],[23,11,23,14],[23,15,23,18],[24,0,24,5],[24,6,24,12],[25,0,25,5],[25,6,25,12],[25,13,25,14],[25,15,25,16],[25,17,25,18],[24,13,24,14],[24,15,24,16],[24,17,24,18],[53,7,53,8],[53,11,53,14],[53,15,53,18],[54,11,55,14],[54,15,55,18],[84,0,84,18],[85,0,86,2],[85,3,86,3],[85,4,86,6],[85,7,86,10],[85,11,86,14],[85,15,86,18],[82,0,82,8],[82,9,82,18],[83,9,83,18],[83,0,83,8],[77,0,78,1],[77,9,78,10],[77,11,78,18],[79,0,80,1],[79,9,80,10],[79,11,81,18],[71,16,71,18],[72,0,73,1],[72,9,73,10],[72,11,73,18],[74,0,75,1],[74,9,76,10],[74,11,76,18],[72,2,73,8],[77,2,78,8],[66,0,66,18],[69,0,69,8],[69,9,69,18],[70,0,71,2],[70,3,71,5],[70,6,70,8],[70,9,71,11],[70,12,71,15],[70,16,70,18],[71,6,71,8],[67,0,67,18],[68,0,68,18],[49,7,49,8],[49,11,50,14],[49,15,50,18],[50,1,50,4],[50,5,50,6],[50,7,50,8],[46,0,47,10],[46,14,47,14],[48,0,48,8],[48,9,50,10],[48,11,48,18],[49,0,49,4],[49,5,49,6],[46,15,47,17],[46,11,47,13],[46,18,47,18],[61,0,62,1],[56,11,58,13],[56,16,58,18],[56,14,58,15],[54,0,55,4],[54,5,55,6],[54,7,55,8],[57,0,57,8],[58,0,58,8],[51,9,54,10],[55,9,58,10],[51,1,51,4],[51,5,51,6],[51,7,51,8],[51,11,52,18],[52,1,52,4],[52,5,52,6],[52,7,52,8],[53,1,53,4],[53,5,53,6],[56,0,56,4],[56,5,56,6],[56,7,56,8],[59,0,60,18],[41,0,41,8],[41,9,41,10],[41,11,41,13],[41,15,41,17],[44,0,45,10],[45,11,45,14],[45,15,45,18],[42,15,42,18],[44,11,44,18],[43,11,43,14],[43,15,43,18],[42,0,43,5],[42,6,42,10],[43,6,43,10],[42,11,42,14],[37,17,38,18],[39,0,40,3],[39,4,40,8],[39,9,40,10],[39,13,40,14],[39,17,40,18],[37,0,38,3],[37,4,38,8],[37,9,38,10],[37,13,38,14],[37,11,38,11],[37,12,38,12],[37,15,38,15],[37,16,38,16],[39,11,40,11],[39,12,40,12],[39,15,40,15],[39,16,40,16],[33,17,34,18],[35,0,36,3],[35,4,36,8],[35,9,36,10],[35,13,36,14],[35,17,36,18],[33,0,34,3],[33,4,34,8],[33,9,34,10],[33,13,34,14],[33,11,34,11],[33,12,34,12],[33,15,34,15],[33,16,34,16],[35,11,36,11],[35,12,36,12],[35,15,36,15],[35,16,36,16],[30,17,30,18],[31,0,32,3],[31,4,32,8],[31,9,32,10],[31,13,32,14],[31,17,32,18],[26,0,26,18],[27,0,30,3],[27,4,30,8],[27,9,30,10],[27,11,28,18],[29,11,29,14],[29,15,29,18],[30,13,30,14],[31,11,32,11],[31,12,32,12],[31,15,32,15],[31,16,32,16],[9,0,9,18],[11,0,11,1],[11,2,11,4],[11,5,11,7],[11,8,11,10],[11,11,11,14],[11,15,11,18],[13,0,13,7],[13,8,13,18],[10,0,10,1],[10,2,10,4],[10,5,10,7],[10,8,10,10],[10,11,10,14],[10,15,10,18],[19,13,19,14],[19,15,19,16],[19,17,19,18],[18,0,18,1],[18,2,18,4],[18,5,18,7],[18,8,18,10],[18,11,18,14],[18,15,18,18],[19,0,19,5],[19,6,19,12],[22,0,22,1],[22,2,22,4],[22,5,22,7],[22,8,22,10],[22,11,22,14],[22,15,22,18],[20,0,20,5],[20,6,20,12],[20,13,20,14],[20,15,20,16],[20,17,20,18],[21,0,21,18],[17,0,17,1],[17,2,17,4],[17,5,17,7],[17,8,17,10],[17,11,17,14],[17,15,17,18],[14,0,14,4],[14,5,14,6],[12,0,12,7],[12,8,12,18],[15,0,15,4],[15,5,15,6],[16,0,16,18],[14,8,15,10],[14,11,15,18],[7,0,8,3],[7,7,8,8],[7,12,8,15],[1,0,6,3],[1,4,2,14],[1,15,6,18],[3,4,4,14],[5,4,6,6],[6,7,6,8],[6,9,6,10],[5,7,5,8],[5,9,5,10],[5,11,5,12],[5,13,5,14],[6,11,6,12],[6,13,6,14]]}
[]
[null,null,null,null,"                                                                                                                                                     COMISIÓN NACIONAL DEL SERVICIO CIVIL\n    "]
[]
[null,null,null,null,"FORMATO 10 EVALUACIÓN INFERIOR A UN (1) AÑO."]
[]
[null,null,null,null,"PROCESO: EVALUACIÓN DEL DESEMPEÑO LABORAL",null,null,"Código:  ",null,"F-ED-011",null,"Página",null,"1 de 1"]
[null,null,null,null,null,null,null,"Fecha de emisión: ",null,"2016-12-27",null,"Versión: ",null,"2.0"]
["PERÍODO DE EVALUACIÓN",null,null,null,"DÍA","MES","AÑO","al",null,"DÍA","MES","AÑO","FECHA DE EVALUACIÓN",null,null,null,"DÍA","MES","AÑO"]
[]
["I. IDENTIFICACIÓN DEL EVALUADO"]
["Tipo de Documento",null,"Número de identificación",null,null,"Primer apellido",null,null,"Segundo apellido",null,null,"Primer nombre",null,null,null,"Otros nombres"]
[{"$f":"'F2. COMP. LAB Y COM COMPOR'!A13:B13","v":"CEDULA DE CIUDADANIA"},null,{"$f":"'F2. COMP. LAB Y COM COMPOR'!C13:E13","v":0},null,null,{"$f":"'F2. COMP. LAB Y COM COMPOR'!F13:H13","v":0},null,null,{"$f":"'F2. COMP. LAB Y COM COMPOR'!I13:K13","v":0},null,null,{"$f":"'F2. COMP. LAB Y COM COMPOR'!L13:O13","v":0},null,null,null,{"$f":"'F2. COMP. LAB Y COM COMPOR'!P13:S13","v":0}]
["Dependencia o área a la que pertenece el evaluado",null,null,null,null,null,null,null,"Denominación del empleo"]
[{"$f":"'F2. COMP. LAB Y COM COMPOR'!A15:H15","v":0},null,null,null,null,null,null,null,{"$f":"'F2. COMP. LAB Y COM COMPOR'!I15:S15","v":"ddd"}]
["Nivel jerárquico",null,null,null,null,"Código",null,"Grado",{"$f":"'F2. COMP. LAB Y COM COMPOR'!I16","v":"Propósito del empleo:"},null,null,{"$f":"'F2. COMP. LAB Y COM COMPOR'!J16","v":0}]
[{"$f":"'F2. COMP. LAB Y COM COMPOR'!A17:E17","v":"DIRECTIVO"},null,null,null,null,{"$f":"'F2. COMP. LAB Y COM COMPOR'!F17:G17","v":0},null,{"$f":"'F2. COMP. LAB Y COM COMPOR'!H17","v":0}]
["II. IDENTIFICACIÓN EVALUADOR. (Jefe inmediato)"]
["Tipo de documento",null,"Número de identificación",null,null,"Primer apellido",null,null,"Segundo apellido",null,null,"Primer nombre",null,null,null,"Otros nombres"]
[{"$f":"'F2. COMP. LAB Y COM COMPOR'!A20:B20","v":"CEDULA DE CIUDADANIA"},null,{"$f":"'F2. COMP. LAB Y COM COMPOR'!C20:E20","v":0},null,null,{"$f":"'F2. COMP. LAB Y COM COMPOR'!F20:H20","v":0},null,null,{"$f":"'F2. COMP. LAB Y COM COMPOR'!I20:K20","v":"  "},null,null,{"$f":"'F2. COMP. LAB Y COM COMPOR'!L20:O20","v":0},null,null,null,{"$f":"'F2. COMP. LAB Y COM COMPOR'!P20:S20","v":"  "}]
[" Área o Dependencia a la que pertenece el evaluador",null,null,null,null,null,"Denominación del empleo",null,null,null,null,null,null,"Código",null,"Grado",null,"Nivel jerárquico"]
[{"$f":"'F2. COMP. LAB Y COM COMPOR'!A22:F22","v":0},null,null,null,null,null,{"$f":"'F2. COMP. LAB Y COM COMPOR'!G22:M22","v":0},null,null,null,null,null,null,{"$f":"'F2. COMP. LAB Y COM COMPOR'!N22:O22","v":0},null,{"$f":"'F2. COMP. LAB Y COM COMPOR'!P22:Q22","v":0},null,{"$f":"'F2. COMP. LAB Y COM COMPOR'!R22:S22","v":0}]
["III. IDENTIFICACIÓN EVALUADOR (Servidor público de Libre Nombramiento y Remoción en caso de constituir Comisión Evaluadora)"]
["Tipo de documento",null,"Número de identificación",null,null,"Primer apellido",null,null,"Segundo apellido",null,null,"Primer nombre",null,null,null,"Otros nombres"]
[{"$f":"'F2. COMP. LAB Y COM COMPOR'!A26:B26","v":"CEDULA DE CIUDADANIA"},null,{"$f":"IF('F2. COMP. LAB Y COM COMPOR'!R24=\"NO\",\"NO REQUERIDO\",'F2. COMP. LAB Y COM COMPOR'!C26:E26)","v":"NO REQUERIDO"},null,null,{"$f":"IF('F2. COMP. LAB Y COM COMPOR'!R24=\"NO\",\"NO REQUERIDO\",'F2. COMP. LAB Y COM COMPOR'!F26:H26)","v":"NO REQUERIDO"},null,null,{"$f":"IF('F2. COMP. LAB Y COM COMPOR'!R24=\"NO\",\"NO REQUERIDO\",'F2. COMP. LAB Y COM COMPOR'!I26:K26)","v":"NO REQUERIDO"},null,null,{"$f":"IF('F2. COMP. LAB Y COM COMPOR'!R24=\"NO\",\"NO REQUERIDO\",'F2. COMP. LAB Y COM COMPOR'!L26:O26)","v":"NO REQUERIDO"},null,null,null,{"$f":"IF('F2. COMP. LAB Y COM COMPOR'!R24=\"NO\",\"NO REQUERIDO\",'F2. COMP. LAB Y COM COMPOR'!P26:S26)","v":"NO REQUERIDO"}]
["Dependencia o área a la que pertenece el evaluador",null,null,null,null,null,"Denominación del empleo",null,null,null,null,null,null,"Código",null,"Grado",null,"Nivel jerárquico"]
[{"$f":"IF('F2. COMP. LAB Y COM COMPOR'!R24=\"NO\",\"NO REQUERIDO\",'F2. COMP. LAB Y COM COMPOR'!A28:F28)","v":"NO REQUERIDO"},null,null,null,null,null,{"$f":"IF('F2. COMP. LAB Y COM COMPOR'!R24=\"NO\",\"NO REQUERIDO\",'F2. COMP. LAB Y COM COMPOR'!G28:M28)","v":"NO REQUERIDO"},null,null,null,null,null,null,{"$f":"IF('F2. COMP. LAB Y COM COMPOR'!R24=\"NO\",\"NO REQUERIDO\",'F2. COMP. LAB Y COM COMPOR'!N28:O28)","v":"NO REQUERIDO"},null,{"$f":"IF('F2. COMP. LAB Y COM COMPOR'!R24=\"NO\",\"NO REQUERIDO\",'F2. COMP. LAB Y COM COMPOR'!P28:Q28)","v":"NO REQUERIDO"},null,{"$f":"IF('F2. COMP. LAB Y COM COMPOR'!R24=\"NO\",\"NO REQUERIDO\",'F2. COMP. LAB Y COM COMPOR'!R28:S28)","v":"NO REQUERIDO"}]
["IV. COMPROMISOS LABORALES"]
["Metas de la Dependencia las cuales contribuye el empleo",null,null,null,"Compromisos Laborales.",null,null,null,null,"Peso porcentual del compromiso",null,"Porcentaje de Cumplimiento. "]
[]
[null,null,null,null,null,null,null,null,null,null,null," EVALUACIÓN REALIZADA PREVIA A LA PRESENTE",null,null,null,"EVALUACIÓN ULTIMO PERÍODO"]
[null,null,null,null,null,null,null,null,null,null,null,"Peso porcentual  Evaluaciones previas","CALIFICACIÓN DEL COMPROMISO","CALIFICACIÓN DEL COMPROMISO \n(Con peso porcentual)",null,"Peso porcentual  último período","CALIFICACIÓN DEL COMPROMISO","CALIFICACIÓN DEL COMPROMISO \n(Con peso porcentual)"]
[{"$f":"'F2. COMP. LAB Y COM COMPOR'!A37","v":0},null,null,null,{"$f":"'F2. COMP. LAB Y COM COMPOR'!H37","v":0},null,null,null,null,{"$f":"'F2. COMP. LAB Y COM COMPOR'!S37","v":""},null,null,null,{"$f":"IFERROR(($M32*L32),0)","v":0},null,{"$f":"IFERROR((J32-L32),0)","v":0},null,{"$f":"IFERROR(($Q32*P32),0)","v":0}]
[]
[{"$f":"'F2. COMP. LAB Y COM COMPOR'!A39","v":0},null,null,null,{"$f":"'F2. COMP. LAB Y COM COMPOR'!H39","v":0},null,null,null,null,{"$f":"'F2. COMP. LAB Y COM COMPOR'!S39","v":""},null,null,null,{"$f":"IFERROR(($M34*L34),0)","v":0},null,{"$f":"IFERROR((J34-L34),0)","v":0},null,{"$f":"IFERROR(($Q34*P34),0)","v":0}]
[]
[{"$f":"'F2. COMP. LAB Y COM COMPOR'!A41","v":0},null,null,null,{"$f":"'F2. COMP. LAB Y COM COMPOR'!H41","v":0},null,null,null,null,{"$f":"'F2. COMP. LAB Y COM COMPOR'!S41","v":""},null,null,null,{"$f":"IFERROR(($M36*L36),0)","v":0},null,{"$f":"IFERROR((J36-L36),0)","v":0},null,{"$f":"IFERROR(($Q36*P36),0)","v":0}]
[]
[{"$f":"'F2. COMP. LAB Y COM COMPOR'!A43","v":0},null,null,null,{"$f":"'F2. COMP. LAB Y COM COMPOR'!H43","v":0},null,null,null,null,{"$f":"'F2. COMP. LAB Y COM COMPOR'!S43","v":""},null,null,null,{"$f":"IFERROR(($M38*L38),0)","v":0},null,{"$f":"IFERROR((J38-L38),0)","v":0},null,{"$f":"IFERROR(($Q38*P38),0)","v":0}]
[]
[{"$f":"'F2. COMP. LAB Y COM COMPOR'!A45","v":0},null,null,null,{"$f":"'F2. COMP. LAB Y COM COMPOR'!H45","v":0},null,null,null,null,{"$f":"'F2. COMP. LAB Y COM COMPOR'!S45","v":""},null,null,null,{"$f":"IFERROR(($M40*L40),0)","v":0},null,{"$f":"IFERROR((J40-L40),0)","v":0},null,{"$f":"IFERROR(($Q40*P40),0)","v":0}]
[]
[" PESO TOTAL PONDERADO DE LOS COMPROMISOS LABORALES",null,null,null,null,null,null,null,null,{"$f":"IF(SUM(J32:K41)<1,CONCATENATE(\"ERROR!!: Sumatoria menor a 100% (\",TEXT(SUM(J32:K41),\"0%)\")),SUM(J32:K41))","v":"ERROR!!: Sumatoria menor a 100% (0%)"},null,"Resultado total ",null,null,{"$f":"SUMIF(N32:O41,\"<100\",N32:O41)/100","v":0},"Resultado total ",null,null,{"$f":"SUMIF(R32:S41,\"<100\",R32:S41)/100","v":0}]
["Días Efectivamente Laborados",null,null,null,null,null,"Total Días Laborados de cada Evaluación Eventual"]
[null,null,null,null,null,null,"% Participación Días Laborados de cada Evaluación Eventual",null,null,null,null,{"$f":"IF(L43>30,IFERROR(+L43/($L$43+$P$43),0),\"DEBE SER SUPERIOR A 30 DIAS\")","v":"DEBE SER SUPERIOR A 30 DIAS"},null,null,null,{"$f":"IF(P43<31,\"DEBE SER SUPERIOR A 30 DIAS\",IF(SUM(L43:S43)<270,IFERROR(+P43/($L$43+$P$43),0),\"DILIGENCIE EN FORMATO F1\"))","v":"DEBE SER SUPERIOR A 30 DIAS"}]
["Calificaciones parciales semestrales compromisos laborales ",null,null,null,null,null,null,null,null,null,null,"Calificación total"]
[null,null,null,null,null,null,null,null,null,null,null,{"$f":"O42*40","v":0},null,null,null,{"$f":"S42*40","v":0}]
["CALIFICACIÓN TOTAL COMPROMISOS LABORALES",null,null,null,null,null,null,null,null,null,null,"Sobre el 100%",null,null,{"$f":"IF(OR(P44=\"DEBE SER SUPERIOR A 30 DIAS\",P44=\"DILIGENCIE EN FORMATO F1\"),0,IF(P44<1,(O42+S42),S42)*100)","v":0},"Sobre el peso porcentual del 80%",null,null,{"$f":"+O47*80%","v":0}]
[]
["V. COMPETENCIAS COMPORTAMENTALES",null,null,null,null,null,null,null,null,"F5. EVA. ÁREAS O DEPENDENCIAS.",null,"VI. EVALUACIÓN DE GESTIÓN POR ÁREAS O DEPENDENCIAS"]
["COMPETENCIAS COMPORTAMENTALES",null,null,null,null,"Última Ev. Realizada",null,"Evaluac. Ordinaria",null,null,null,"CALIFICACIÓN DE LA EVALUACIÓN DE GESTIÓN POR ÁREAS O  DEPENDENCIAS."]
["1.  ",{"$f":"'F2. COMP. LAB Y COM COMPOR'!B51","v":0}]
["2. ",{"$f":"'F2. COMP. LAB Y COM COMPOR'!B53","v":0},null,null,null,null,null,null,null,"F4. CALF. COM. COMPORT.",null,"VII. RESULTADOS CONSOLIDADOS COMPONENTES DE LA EVALUACIÓN DE DESEMPEÑO LABORAL PARA LA EVALUACIÓN INFERIOR A UN AÑO."]
["3. ",{"$f":"'F2. COMP. LAB Y COM COMPOR'!B55","v":0}]
["4. ",{"$f":"'F2. COMP. LAB Y COM COMPOR'!B57","v":0},null,null,null,null,null,null,null,null,null,"CALIFICACIÓN",null,null,null,"NIVEL DE CALIFICACIÓN"]
["CALIFICACIÓN",null,null,null,null,{"$f":"IF(COUNTA(F51:G54)=4,(SUM(F51:G54)/4),\"DEBE CALIFICAR LAS 4 COMPETENCIAS\")","v":"DEBE CALIFICAR LAS 4 COMPETENCIAS"},null,{"$f":"IF(COUNTA(H51:I54)=4,(SUM(Hoja4!B508)/4),\"DEBE CALIFICAR LAS 4 COMPETENCIAS\")","v":"DEBE CALIFICAR LAS 4 COMPETENCIAS"},null,null,null,{"$f":"+S47+P50+A59","v":0},null,null,null,{"$f":"IF(P44=\"DILIGENCIE EN FORMATO F1\",\"EVALUACION PARA PERIODOS INFERIORES A 270 DIAS\",IF(AND(S47>=0,A59>0,P50<>\"\")=TRUE,IFERROR(VLOOKUP(L55,Hoja4!AA$3:AB$1002,2),0),\"NO APLICA\"))","v":"NO APLICA"}]
[null,null,null,null,null,null,null,null,null,"F1. INF. GENERAL"]
["% Participación Días Laborados de cada Ev. Eventual",null,null,null,null,{"$f":"IF(H57=\"DILIGENCIE EN FORMATO F1\",\"DILIGENCIE EN FORMATO F1\",L44)","v":"DEBE SER SUPERIOR A 30 DIAS"},null,{"$f":"+P44","v":"DEBE SER SUPERIOR A 30 DIAS"},null,null,null,"F7. PLAN DE MEJORAMIENTO",null,null,"F2. COMP. LAB Y COM COMPOR",null,"F3. EVIDENCIAS"]
["CALIFICACIÓN DE LAS COMPETENCIAS COMPORTAMENTALES"]
[{"$f":"IF(F55=\"DEBE CALIFICAR LAS 4 COMPETENCIAS\",0,F55*F57)+IF(H55=\"DEBE CALIFICAR LAS 4 COMPETENCIAS\",0,H55*H57)","v":0}]
["VIII. NOTIFICACIÓN"]
[]
["Nombre del Evaluado:",null,{"$f":"UPPER(CONCATENATE(L12,\" \",P12,\" \",F12,\" \",I12))","v":"0 0 0 0"},null,null,null,null,null,null,"Nombre del evaluador:",null,{"$f":"UPPER(CONCATENATE(L19,\" \",P19,\" \",F19,\" \",I19))","v":"0    0   "}]
[]
["Firma",null,null,null,null,null,null,null,null,"Firma"]
[]
[]
["IX. DECISION DE RECURSOS"]
["Interpone recursos"]
[]
["RECURSO DE REPOSICIÓN",null,null,null,null,null,null,null,null,"RECURSO DE APELACIÓN"]
["DECISIÓN",null,null,null,null,null,"FECHA",null,null,"DECISIÓN",null,null,null,null,null,null,"FECHA"]
[]
["Nombre del Evaluado:",null,{"$f":"IF(D71=\"\",\"\",UPPER(CONCATENATE(L12,\" \",P12,\" \",F12,\" \",I12)))","v":""},null,null,null,null,null,null,"Nombre del Evaluado:",null,{"$f":"IF(M71=\"\",\"\",UPPER(CONCATENATE(L12,\" \",P12,\" \",F12,\" \",I12)))","v":""}]
[]
["Firma",null,null,null,null,null,null,null,null,"Firma"]
[]
[]
["Nombre del Notificador:",null,null,null,null,null,null,null,null,"Nombre del Notificador:"]
[]
["Firma",null,null,null,null,null,null,null,null,"Firma"]
[]
[]
["MOTIVACIÓN (Anexar Acto Administrativo):",null,null,null,null,null,null,null,null,"MOTIVACIÓN (Anexar Acto Administrativo):"]
[]
["X. CALIFICACIÓN DEFINITIVA"]
["CALIFICACIÓN DEFINITIVA EN FIRME",null,null,null,"FIRMA Y NÚMERO DE CÉDULA DEL NOTIFICADO",null,null,null,null,null,null,"FIRMA Y NÚMERO DE CÉDULA DEL NOTIFICADOR"]
[]
[null,null,null,null,null,null,"}"]
[]
[]
[]
[]
[]
[]
[]
[]
[]
[]
[]
[]
[]
[]
[]
[]
[]
[]
[]
[]
[]
[]
[]
[]
[]
[]
[]
[]
[]
[]
[null,null,null,null,null,null,null,null,null,null,null,"Cedula de ciudadanía"]
[null,null,null,null,null,null,null,null,null,null,null,"Cedula de extranjería"]
[]
[]
[]
[]
[]
[]
[]
[]
[]
[]
[]
[]
[]
[]
[]
[null,null,null,"Asesor"]
[null,null,null,"profesional"]
[null,null,null,"Técnico"]
[null,null,null,"Asistencial"]
[]
[]
[]
[]
[]
[]
[]
[]
[]
[]
[]
[]
[]
[]
[]
[]
[]
[]
[]
[]
[null,null,null,null,null,null,null,null,null,60]
[null,null,null,null,null,null,null,null,null,61]
[null,null,null,null,null,null,null,null,null,62]
[null,null,null,null,null,null,null,null,null,63]
[null,null,null,null,null,null,null,null,null,64]
[null,null,null,null,null,null,null,null,null,65]
[null,null,null,null,null,null,null,null,null,66]
[null,null,null,null,null,null,null,null,null,67]
[null,null,null,null,null,null,null,null,null,68]
[null,null,null,null,null,null,null,null,null,69]
[null,null,null,null,null,null,null,null,null,70]
[null,null,null,null,null,null,null,null,null,71]
[null,null,null,null,null,null,null,null,null,72]
[null,null,null,null,null,null,null,null,null,73]
[null,null,null,null,null,null,null,null,null,74]
[null,null,null,null,null,null,null,null,null,75]
[null,null,null,null,null,null,null,null,null,76]
[null,null,null,null,null,null,null,null,null,77]
[null,null,null,null,null,null,null,null,null,78]
[null,null,null,null,null,null,null,null,null,79]
[null,null,null,null,null,null,null,null,null,80]
[null,null,null,null,null,null,null,null,null,81]
[null,null,null,null,null,null,null,null,null,82]
[null,null,null,null,null,null,null,null,null,83]
[null,null,null,null,null,null,null,null,null,84]
[null,null,null,null,null,null,null,null,null,85]
[null,null,null,null,null,null,null,null,null,86]
[null,null,null,null,null,null,null,null,null,87]
[null,null,null,null,null,null,null,null,null,88]
[null,null,null,null,null,null,null,null,null,89]
[null,null,null,null,null,null,null,null,null,90]
[null,null,null,null,null,null,null,null,null,91]
[null,null,null,null,null,null,null,null,null,92]
[null,null,null,null,null,null,null,null,null,93]
[null,null,null,null,null,null,null,null,null,94]
[null,null,null,null,null,null,null,null,null,95]
[null,null,null,null,null,null,null,null,null,96]
[null,null,null,null,null,null,null,null,null,97]
[null,null,null,null,null,null,null,null,null,98]
[null,null,null,null,null,null,null,null,null,99]
[null,null,null,null,null,null,null,null,null,100]

{"sheet":"F11. EVA P. PRUEBA","index":13,"n_rows":94,"n_cols":19,"rows_kept":94,"cut":false,"hidden":false,"merged":[[93,0,94,4],[93,5,94,10],[93,11,94,14],[93,15,94,18],[89,0,89,8],[89,9,89,18],[89,20,89,21],[90,0,90,18],[91,0,92,2],[91,3,92,3],[91,4,92,6],[91,7,92,10],[91,11,92,14],[91,15,92,18],[83,19,84,19],[83,20,84,21],[85,0,86,1],[85,9,86,10],[85,11,87,18],[85,20,86,21],[87,20,88,21],[88,0,88,8],[88,9,88,18],[80,0,81,1],[80,9,82,10],[80,11,82,18],[83,0,84,1],[83,2,84,8],[83,9,84,10],[83,11,84,18],[76,16,76,18],[77,6,77,8],[77,16,77,18],[78,0,79,1],[78,2,79,8],[78,9,79,10],[78,11,79,18],[72,0,72,18],[73,0,73,18],[74,0,74,18],[75,0,75,8],[75,9,75,18],[76,0,77,2],[76,3,77,5],[76,6,76,8],[76,9,77,11],[76,12,77,15],[65,0,66,18],[67,0,68,1],[67,2,68,9],[67,10,68,12],[67,13,68,18],[69,0,71,1],[69,2,71,9],[69,10,71,11],[69,12,71,18],[63,0,63,3],[63,4,63,5],[63,6,64,11],[63,12,64,18],[64,0,64,3],[64,4,64,5],[59,7,59,9],[59,12,59,14],[59,15,59,16],[59,17,59,18],[60,0,62,5],[60,6,62,11],[60,12,62,18],[57,0,57,18],[58,0,58,3],[58,4,58,6],[58,7,58,9],[58,10,59,11],[58,12,58,14],[58,15,58,16],[58,17,58,18],[59,0,59,3],[59,4,59,6],[55,0,56,6],[55,7,56,8],[55,9,56,11],[55,12,56,13],[55,14,56,15],[55,16,56,18],[53,0,53,11],[54,0,54,11],[49,0,50,1],[49,2,50,4],[49,5,50,11],[49,18,50,18],[51,0,52,1],[51,2,52,4],[51,5,52,11],[51,18,52,18],[45,0,46,1],[45,2,46,4],[45,5,46,11],[45,18,46,18],[47,0,48,1],[47,2,48,4],[47,5,48,11],[47,18,48,18],[43,0,43,18],[44,0,44,1],[44,2,44,4],[44,5,44,11],[40,18,41,18],[41,5,41,10],[42,0,42,9],[42,10,42,11],[42,12,42,16],[42,17,42,18],[38,0,38,4],[38,5,38,9],[38,10,38,11],[39,0,39,9],[39,10,39,11],[40,0,41,4],[40,5,40,10],[36,0,36,4],[36,5,36,9],[36,10,36,11],[37,0,37,4],[37,5,37,9],[37,10,37,11],[30,0,30,18],[31,0,35,4],[31,5,35,9],[31,10,35,11],[31,12,31,18],[32,18,35,18],[27,0,27,18],[28,0,29,4],[28,5,29,5],[28,6,29,9],[28,10,29,10],[28,11,29,12],[28,13,29,18],[25,0,25,5],[25,6,25,12],[25,13,25,14],[25,15,25,16],[25,17,25,18],[26,0,26,5],[26,6,26,12],[26,13,26,14],[26,15,26,16],[26,17,26,18],[24,0,24,1],[24,2,24,4],[24,5,24,7],[24,8,24,10],[24,11,24,14],[24,15,24,18],[21,0,21,18],[22,14,22,16],[22,17,22,18],[23,0,23,1],[23,2,23,4],[23,5,23,7],[23,8,23,10],[23,11,23,14],[23,15,23,18],[19,0,19,5],[19,6,19,12],[19,13,19,14],[19,15,19,16],[19,17,19,18],[20,0,20,5],[20,6,20,12],[20,13,20,14],[20,15,20,16],[20,17,20,18],[18,0,18,1],[18,2,18,4],[18,5,18,7],[18,8,18,10],[18,11,18,14],[18,15,18,18],[16,0,16,18],[17,0,17,1],[17,2,17,4],[17,5,17,7],[17,8,17,10],[17,11,17,14],[17,15,17,18],[12,0,12,7],[12,8,12,18],[13,0,13,7],[13,8,13,18],[14,0,14,4],[14,5,14,6],[14,8,15,9],[14,10,15,18],[15,0,15,4],[15,5,15,6],[11,0,11,1],[11,2,11,4],[11,5,11,7],[11,8,11,10],[11,11,11,14],[11,15,11,18],[9,0,9,18],[10,0,10,1],[10,2,10,4],[10,5,10,7],[10,8,10,10],[10,11,10,14],[10,15,10,18],[6,9,6,10],[6,11,6,12],[6,13,6,14],[7,0,8,3],[7,7,8,8],[7,12,8,15],[0,0,6,3],[0,4,2,14],[0,15,6,18],[3,4,4,14],[5,4,6,6],[5,7,5,8],[5,9,5,10],[5,11,5,12],[5,13,5,14],[6,7,6,8]]}
[null,null,null,null,"COMISIÓN NACIONAL DEL SERVICIO CIVIL"]
[]
[]
[null,null,null,null,"FORMATO 11. EVALUACIÓN PERÍODO DE PRUEBA"]
[]
[null,null,null,null,"PROCESO: EVALUACIÓN DEL DESEMPEÑO LABORAL",null,null,"Código:  ",null,"F-ED-012",null,"Página",null,"1 de 1"]
[null,null,null,null,null,null,null,"Fecha de emisión: ",null,"2016-12-27",null,"Versión: ",null,"2.0"]
["PERÍODO DE EVALUACIÓN",null,null,null,"DÍA","MES","AÑO","al",null,"DÍA","MES","AÑO","FECHA DE EVALUACIÒN",null,null,null,"DÍA","MES","AÑO"]
[null,null,null,null,1,2,2018,null,null,31,7,2018,null,null,null,null,2,2,2018]
["I. IDENTIFICACIÓN DEL EVALUADO"]
["Tipo de Documento",null,"Número de identificación",null,null,"Primer apellido",null,null,"Segundo apellido",null,null,"Primer nombre",null,null,null,"Otros nombres"]
["CEDULA DE CIUDADANIA",null,52960985,null,null,"MEJIA",null,null,"MORAN ",null,null,"HERIKA ",null,null,null,"NATHALIE"]
["Dependencia o área a la que pertenece el evaluado",null,null,null,null,null,null,null,"Denominación del empleo"]
["JURIDICA",null,null,null,null,null,null,null,"PROFESIONAL UNIVERSITARIO"]
["Nivel jerárquico",null,null,null,null,"Código",null,"Grado","Propósito del empleo:  ",null,"EL QUE APARECE EN EL PERFIL DEL EMPLEO"]
["PROFESIONAL",null,null,null,null,1234,null,11]
["II. IDENTIFICACIÓN EVALUADOR. (Jefe inmediato del evaluado )"]
["Tipo de documento",null,"Número de identificación",null,null,"Primer apellido",null,null,"Segundo apellido",null,null,"Primer nombre",null,null,null,"Otros nombres"]
["CEDULA DE CIUDADANIA",null,80123456,null,null,"PEREZ",null,null,"PEREZ",null,null,"JUAN "]
[" Área o Dependencia a la que pertenece el evaluador",null,null,null,null,null,"Denominación del empleo",null,null,null,null,null,null,"Código",null,"Grado",null,"Nivel jerárquico"]
["JURIDICA",null,null,null,null,null,"PROFESIONAL ESPECIALIZADO",null,null,null,null,null,null,4567,null,22,null,"PROFESIONAL"]
["III. IDENTIFICACIÓN EVALUADOR (Servidor público de Libre Nombramiento y Remoción en caso de constituir Comisión Evaluadora)"]
[null,null,null,null,null,null,null,null,null,null,null,null,null,null,"Se requiere constituir Comisión Evaluadora",null,null,"NO"]
["Tipo de documento",null,"Número de identificación",null,null,"Primer apellido",null,null,"Segundo apellido",null,null,"Primer nombre",null,null,null,"Otros nombres"]
["CEDULA DE CIUDADANIA"]
["Dependencia o área a la que pertenece el evaluador",null,null,null,null,null,"Denominación del empleo",null,null,null,null,null,null,"Código",null,"Grado",null,"Nivel jerárquico"]
[]
[]
["CONCERTACIÓN / FIJACIÓN DE COMPROMISOS",null,null,null,null,null,"AJUSTE DE COMPROMISOS",null,null,null,null,"SELECCIONE LA RAZÓN DEL AJUSTE DE LOS COMPROMISOS"]
[]
["IV. COMPROMISOS LABORALES"]
["Funciones Esenciales del empleo.",null,null,null,null,"Compromisos Laborales.",null,null,null,null,"Peso porcentual del compromiso",null,"Períodos de evaluación"]
[null,null,null,null,null,null,null,null,null,null,null,null,"No. calificación","1a.","2a.","3a.","4a.","5a.","Total"]
[null,null,null,null,null,null,null,null,null,null,null,null,"Causal"]
[null,null,null,null,null,null,null,null,null,null,null,null,"Desde"]
[null,null,null,null,null,null,null,null,null,null,null,null,"Hasta"]
["F 1",null,null,null,null,"C 1",null,null,null,null,0.4,null,null,null,null,null,null,null,{"$f":"IF($L$41=\"\",0,SUM(($K37*N37*N$42),(K37*O37*O$42),(K37*P37*P$42),(K37*Q37*Q$42),(K37*R37*R$42)))","v":0}]
["F 2",null,null,null,null,"C 2",null,null,null,null,0.4,null,null,null,null,null,null,null,{"$f":"IF($L$41=\"\",0,SUM(($K38*N38*N$42),(K38*O38*O$42),(K38*P38*P$42),(K38*Q38*Q$42),(K38*R38*R$42)))","v":0}]
["F 3",null,null,null,null,"C 3",null,null,null,null,0.2,null,null,null,null,null,null,null,{"$f":"IF($L$41=\"\",0,SUM(($K39*N39*N$42),(K39*O39*O$42),(K39*P39*P$42),(K39*Q39*Q$42),(K39*R39*R$42)))","v":0}]
["TOTALES",null,null,null,null,null,null,null,null,null,{"$f":"IF(COUNT(K37:L39)<3,\"DETERMINAR TRES (03) COMPROMISOS\",IF(SUM(K37:L39)>1,CONCATENATE(\"ERROR!!: Sumatoria mayor a 100% (\",TEXT(SUM(K37:L39),\"0%)\")),IF(SUM(K37:L39)<1,CONCATENATE(\"ERROR!!: Sumatoria menor a 100% (\",TEXT(SUM(K37:L39),\"0%)\")),SUM(K37:L39))))","v":1},null,null,{"$f":"IF(N41=\"\",0,(N37*$K37+N38*$K38+N39*$K39))","v":0},{"$f":"IF(O41=\"\",0,(O37*$K37+O38*$K38+O39*$K39))","v":0},{"$f":"IF(P41=\"\",0,(P37*$K37+P38*$K38+P39*$K39))","v":0},{"$f":"IF(Q41=\"\",0,(Q37*$K37+Q38*$K38+Q39*$K39))","v":0},{"$f":"IF(R41=\"\",0,(R37*$K37+R38*$K38+R39*$K39))","v":0},{"$f":"IF($L$41=0,0,SUM(($K40*N40*N$42),(K40*O40*O$42),(K40*P40*P$42),(K40*Q40*Q$42),(K40*R40*R$42)))","v":0}]
["Días Efectivamente Laborados",null,null,null,null,"Total Días Laborados de cada Evaluación Eventual",null,null,null,null,null,{"$f":"IF(SUM(N41:R41)>180,\"No Aplica\",SUM(N41:R41))","v":0}]
[null,null,null,null,null,"% Participación Días Laborados de cada Evalución Eventual",null,null,null,null,null,{"$f":"IFERROR(+L41/$L$41,0)","v":0},null,{"$f":"IFERROR(+N41/$L$41,0)","v":0},{"$f":"IFERROR(+O41/$L$41,0)","v":0},{"$f":"IFERROR(+P41/$L$41,0)","v":0},{"$f":"IFERROR(+Q41/$L$41,0)","v":0},{"$f":"IFERROR(+R41/$L$41,0)","v":0}]
["CALIFICACIÓN COMPROMISOS LABORALES (Sobre 100)",null,null,null,null,null,null,null,null,null,{"$f":"IF(AND(K40=1,L42=1)=TRUE,(N40*N42+O40*O42+P40*P42+Q40*Q42+R40*R42),\"NO APLICA\")","v":"NO APLICA"},null,"CALIFICACIÓN COMPROMISOS LABORALES\n(Sobre 85%)",null,null,null,null,{"$f":"IFERROR((K43*85%),\"NO APLICA\")","v":"NO APLICA"}]
["V. COMPETENCIAS COMPORTAMENTALES"]
["COMPETENCIA",null,"DEFINICIÓN ",null,null,"CONDUCTAS ASOCIADAS",null,null,null,null,null,null,null,"1a.","2a.","3a.","4a.","5a.","Total"]
["Aprendizaje Continuo",null,{"$f":"IFERROR(VLOOKUP($A$16&A46,Hoja4!C$601:E$638,2,FALSE),\"\")","v":"Adquirir y desarrollar permanentemente conocimientos, destrezas y habilidades, con el fin de mantener altos estándares de eficacia organizacional."},null,null,{"$f":"IF(AND(A46<>A48,A46<>A50,A46<>A52)=TRUE,VLOOKUP($A$16&A46,Hoja4!C$601:E$638,3,FALSE),\"REPETIDA\")","v":"▪Aprende de la experiencia de otros y de la propia.\n▪Se adapta y aplica nuevas tecnologías que se implanten en la organización.\n▪Aplica los conocimientos adquiridos a los desafíos que se presentan en el desarrollo del trabajo.\n▪Investiga, indaga y profundiza en los temas de su entorno área de desempeño.\n▪Reconoce las propias limitaciones y las necesidades de mejorar su preparación.\n▪Asimila nueva información y la aplica correctamente."},null,null,null,null,null,null,null,null,null,null,null,null,{"$f":"IFERROR((SUM(IF($N$55>0,N47*$N$55,0),IF($O$55>0,O47*$O$55,0),IF($P$55>0,P47*$P$55,0),IF($Q$55>0,Q47*$Q$55,0),IF($R$55>0,R47*$R$55,0))),\"FALTAN CALIFICACIONES\")","v":0}]
[null,null,null,null,null,null,null,null,null,null,null,null,null,{"$f":"IF($A$46<>0,IFERROR(VLOOKUP(N46,Hoja4!$A$460:$B$464,2,FALSE),\"\"),\"DEFINA COMPETENCIA\")","v":""},{"$f":"IF($A$46<>0,IFERROR(VLOOKUP(O46,Hoja4!$A$460:$B$464,2,FALSE),\"\"),\"DEFINA COMPETENCIA\")","v":""},{"$f":"IF($A$46<>0,IFERROR(VLOOKUP(P46,Hoja4!$A$460:$B$464,2,FALSE),\"\"),\"DEFINA COMPETENCIA\")","v":""},{"$f":"IF($A$46<>0,IFERROR(VLOOKUP(Q46,Hoja4!$A$460:$B$464,2,FALSE),\"\"),\"DEFINA COMPETENCIA\")","v":""},{"$f":"IF($A$46<>0,IFERROR(VLOOKUP(R46,Hoja4!$A$460:$B$464,2,FALSE),\"\"),\"DEFINA COMPETENCIA\")","v":""}]
["Compromiso con la Organización",null,{"$f":"IFERROR(VLOOKUP($A$16&A48,Hoja4!C$601:E$638,2,FALSE),\"\")","v":"Alinear el propio comportamiento a las necesidades, prioridades y metas organizacionales."},null,null,{"$f":"IF(AND(A46<>A48,A48<>A50,A48<>A52)=TRUE,VLOOKUP($A$16&A48,Hoja4!C$601:E$638,3,FALSE),\"REPETIDA\")","v":"▪Promueve las metas de la organización y respeta sus normas.\n▪Antepone las necesidades de la organización a sus propias necesidades.\n▪Apoya a la organización en situaciones difíciles.\n▪Demuestra sentido de pertenencia en todas sus actuaciones."},null,null,null,null,null,null,null,null,null,null,null,null,{"$f":"IFERROR((SUM(IF($N$55>0,N49*$N$55,0),IF($O$55>0,O49*$O$55,0),IF($P$55>0,P49*$P$55,0),IF($Q$55>0,Q49*$Q$55,0),IF($R$55>0,R49*$R$55,0))),\"FALTAN CALIFICACIONES\")","v":0}]
[null,null,null,null,null,null,null,null,null,null,null,null,null,{"$f":"IF($A$48<>0,IFERROR(VLOOKUP(N48,Hoja4!$A$460:$B$464,2,FALSE),\"\"),\"DEFINA COMPETENCIA\")","v":""},{"$f":"IF($A$48<>0,IFERROR(VLOOKUP(O48,Hoja4!$A$460:$B$464,2,FALSE),\"\"),\"DEFINA COMPETENCIA\")","v":""},{"$f":"IF($A$48<>0,IFERROR(VLOOKUP(P48,Hoja4!$A$460:$B$464,2,FALSE),\"\"),\"DEFINA COMPETENCIA\")","v":""},{"$f":"IF($A$48<>0,IFERROR(VLOOKUP(Q48,Hoja4!$A$460:$B$464,2,FALSE),\"\"),\"DEFINA COMPETENCIA\")","v":""},{"$f":"IF($A$48<>0,IFERROR(VLOOKUP(R48,Hoja4!$A$460:$B$464,2,FALSE),\"\"),\"DEFINA COMPETENCIA\")","v":""}]
["Creatividad e Innovación",null,{"$f":"IFERROR(VLOOKUP($A$16&A50,Hoja4!C$601:E$638,2,FALSE),\"\")","v":"Generar y desarrollar nuevas ideas, conceptos, métodos y soluciones."},null,null,{"$f":"IF(AND(A46<>A50,A48<>A50,A50<>A52)=TRUE,VLOOKUP($A$16&A50,Hoja4!C$601:E$638,3,FALSE),\"REPETIDA\")","v":"▪Ofrece respuestas alternativas.\n▪Aprovecha las oportunidades y problemas para dar soluciones novedosas.\n▪Desarrolla nuevas formas de hacer y tecnologías.\n▪Busca nuevas alternativas de solución y se arriesga a romper esquemas tradicionales.\n▪Inicia acciones para superar los obstáculos y alcanzar metas específicas."},null,null,null,null,null,null,null,null,null,null,null,null,{"$f":"IFERROR((SUM(IF($N$55>0,N51*$N$55,0),IF($O$55>0,O51*$O$55,0),IF($P$55>0,P51*$P$55,0),IF($Q$55>0,Q51*$Q$55,0),IF($R$55>0,R51*$R$55,0))),\"FALTAN CALIFICACIONES\")","v":0}]
[null,null,null,null,null,null,null,null,null,null,null,null,null,{"$f":"IF($A$50<>0,IFERROR(VLOOKUP(N50,Hoja4!$A$460:$B$464,2,FALSE),\"\"),\"DEFINA COMPETENCIA\")","v":""},{"$f":"IF($A$50<>0,IFERROR(VLOOKUP(O50,Hoja4!$A$460:$B$464,2,FALSE),\"\"),\"DEFINA COMPETENCIA\")","v":""},{"$f":"IF($A$50<>0,IFERROR(VLOOKUP(P50,Hoja4!$A$460:$B$464,2,FALSE),\"\"),\"DEFINA COMPETENCIA\")","v":""},{"$f":"IF($A$50<>0,IFERROR(VLOOKUP(Q50,Hoja4!$A$460:$B$464,2,FALSE),\"\"),\"DEFINA COMPETENCIA\")","v":""},{"$f":"IF($A$50<>0,IFERROR(VLOOKUP(R50,Hoja4!$A$460:$B$464,2,FALSE),\"\"),\"DEFINA COMPETENCIA\")","v":""}]
["Orientación al usuario y al ciudadano",null,{"$f":"IFERROR(VLOOKUP($A$16&A52,Hoja4!C$601:E$638,2,FALSE),\"\")","v":"Dirigir las decisiones y acciones a la satisfacción de las necesidades e intereses de los usuarios internos y externos, de conformidad con las responsabilidades públicas asignadas a la entidad."},null,null,{"$f":"IF(AND(A46<>A52,A48<>A52,A50<>A52)=TRUE,VLOOKUP($A$16&A52,Hoja4!C$601:E$638,3,FALSE),\"REPETIDA\")","v":"▪ Atiende y valora las necesidades y peticiones de los usuarios y de ciudadanos en general.\n▪Considera las necesidades de los usuarios al diseñar proyectos o servicios.\n▪Da respuesta oportuna a las necesidades de los usuarios de conformidad con el servicio que ofrece la entidad.\n▪Establece diferentes canales de comunicación con el usuario para conocer sus necesidades y propuestas y responde a las mismas.\n▪Reconoce la interdependencia entre su trabajo y el de otros."},null,null,null,null,null,null,null,null,null,null,null,null,{"$f":"IFERROR((SUM(IF($N$55>0,N53*$N$55,0),IF($O$55>0,O53*$O$55,0),IF($P$55>0,P53*$P$55,0),IF($Q$55>0,Q53*$Q$55,0),IF($R$55>0,R53*$R$55,0))),\"FALTAN CALIFICACIONES\")","v":0}]
[null,null,null,null,null,null,null,null,null,null,null,null,null,{"$f":"IF($A$52<>0,IFERROR(VLOOKUP(N52,Hoja4!$A$460:$B$464,2,FALSE),\"\"),\"DEFINA COMPETENCIA\")","v":""},{"$f":"IF($A$52<>0,IFERROR(VLOOKUP(O52,Hoja4!$A$460:$B$464,2,FALSE),\"\"),\"DEFINA COMPETENCIA\")","v":""},{"$f":"IF($A$52<>0,IFERROR(VLOOKUP(P52,Hoja4!$A$460:$B$464,2,FALSE),\"\"),\"DEFINA COMPETENCIA\")","v":""},{"$f":"IF($A$52<>0,IFERROR(VLOOKUP(Q52,Hoja4!$A$460:$B$464,2,FALSE),\"\"),\"DEFINA COMPETENCIA\")","v":""},{"$f":"IF($A$52<>0,IFERROR(VLOOKUP(R52,Hoja4!$A$460:$B$464,2,FALSE),\"\"),\"DEFINA COMPETENCIA\")","v":""}]
["PONDERACIÓN POR EVALUACIÓN EVENTUAL",null,null,null,null,null,null,null,null,null,null,null,null,{"$f":"IFERROR(AVERAGE(N47,N49,N51,N53),0)","v":0},0,{"$f":"IFERROR(AVERAGE(P47,P49,P51,P53),0)","v":0},{"$f":"IFERROR(AVERAGE(Q47,Q49,Q51,Q53),0)","v":0},0,{"$f":"IFERROR(AVERAGE(S46:S53),0)","v":0}]
["% Participación Días Laborados de cada Ev. Eventual",null,null,null,null,null,null,null,null,null,null,null,null,{"$f":"+N42","v":0},{"$f":"+O42","v":0},{"$f":"+P42","v":0},0,0,{"$f":"SUM(M55:R55)","v":0}]
["CALIFICACIÓN COMPETENCIAS COMPORTAMENTALES",null,null,null,null,null,null,{"$f":"IF(OR(F46=\"REPETIDA\",F48=\"REPETIDA\",F50=\"REPETIDA\",F52=\"REPETIDA\")=TRUE,\"NO APLICA\",IF(COUNTA(A46:B53)=4,S54,\"DETERMINAR CUATRO (04) COMPETENCIAS\"))","v":0},null,"CALIFICACIÓN TOTAL PERÍODO DE PRUEBA",null,null,{"$f":"IFERROR((IF(K40=\"DETERMINAR TRES (03) COMPROMISOS\",0,R43)+IF(H56=\"DETERMINAR CUATRO (04) COMPETENCIAS\",0,H56)),\"NO APLICA\")","v":"NO APLICA"},null,"NIVEL DE CALIFICACIÓN",null,{"$f":"IF(AND(OR(H56=0,R43=0,M56=\"NO APLICA\",R43=\"NO APLICA\"))=TRUE,\"NO APLICA\",IFERROR(VLOOKUP(M56,Hoja4!AA3:AB1002,2),0))","v":"NO APLICA"}]
[]
["VI. FIRMAS, RECLAMACIÓN U OBJECIÓN EN LA CONCERTACIÓN DE COMPROMISOS."]
["FIRMA DEL EVALUADO",null,null,null,"FIRMA DEL JEFE INMEDIATO",null,null,"FIRMA DEL FUNCIONARIO DE LIBRE NOMBRAMIENTO Y REMOCIÓN ",null,null,"Renuencia del Evaluado para firmar la concertación de compromisos",null,"DATOS DEL TESTIGO",null,null,"FIRMA DEL TESTIGO",null,"FECHA"]
[]
["RECLAMACIÓN U OBJECIÓN EN ÚNICA INSTANCIA ANTE LA COMISIÓN DE PERSONAL (Paràgrafo del articulo 31º, del Acuerdo 565 de 2016)",null,null,null,null,null,"DECISIÓN DE LA COMISIÓN DE PERSONAL",null,null,null,null,null,"MOTIVACIÓN DE LA DECISIÓN"]
[]
[]
["Número de Radicado"]
["Fecha Reclamación (dd/mm/aa)"]
["VII. NOTIFICACIÓN"]
[]
["Nombre del Evaluado:",null,{"$f":"UPPER(CONCATENATE(L12,\" \",P12,\" \",F12,\" \",I12))","v":"HERIKA  NATHALIE MEJIA MORAN "},null,null,null,null,null,null,null,"Nombre del evaluador:",null,null,{"$f":"UPPER(CONCATENATE(L19,\" \",P19,\" \",F19,\" \",I19))","v":"JUAN   PEREZ PEREZ"}]
[]
["Firma",null,null,null,null,null,null,null,null,null,"Firma"]
[]
[]
["VIII. DECISIÓN DE RECURSOS"]
["Interpone recursos"]
["NO"]
["RECURSO DE REPOSICIÓN",null,null,null,null,null,null,null,null,"RECURSO DE APELACIÓN"]
["DECISIÓN",null,null,null,null,null,"FECHA",null,null,"DECISIÓN",null,null,null,null,null,null,"FECHA"]
[]
["Nombre del Evaluado:",null,{"$f":"IF(D77=\"\",\"\",C68)","v":""},null,null,null,null,null,null,"Nombre del Evaluado:",null,{"$f":"IF(M77=\"\",\"\",C68)","v":""}]
[]
["Firma",null,null,null,null,null,null,null,null,"Firma"]
[]
[]
["Nombre del Notificador:",null,null,null,null,null,null,null,null,"Nombre del Notificador:"]
[]
["Firma",null,null,null,null,null,null,null,null,"Firma"]
[]
[]
["MOTIVACIÓN (Anexar Acto Administrativo):",null,null,null,null,null,null,null,null,"MOTIVACIÓN (Anexar Acto Administrativo):"]
[]
["IX. CALIFICACIÓN DEFINITIVA"]
["CALIFICACIÓN DEFINITIVA EN FIRME",null,null,null,"FIRMA Y NÚMERO DE CÉDULA DEL NOTIFICADO",null,null,null,null,null,null,"FIRMA Y NÚMERO DE CÉDULA DEL NOTIFICADOR"]
[]
["F1. INF. GENERAL",null,null,null,null,"F4. CALF. COM. COMPORT.",null,null,null,null,null,"F3. EVIDENCIAS",null,null,null,"F7. PLAN DE MEJORAMIENTO"]